Workbook

Sheet Auswahl
B2: Auslegungstabellen
B3: Wärmepumpe
G4: IMP 05/12
C5: Druckauswahl | O5: Name Blatt | P5: Blatt gewählt ? | Q5: Tabelle-Nr. | R5: Blätter gewählt | S5: Sprache | V5: gewählt? | W5: Blatt.-Nr. | X5: Beschreibung | AC5: Seitenbeschriftung
C7: Deckblatt | Inhaltsverzeichnis | E7: Wärmetauscher Schwimmbad | O7: =C7 -> Deckblatt | Inhaltsverzeichnis | P7: TRUE | Q7: 20 | R7: =COUNTIF(P7:P29,TRUE) -> 23 | S7: English | V7: =P7 -> TRUE | W7: 0 | X7: =Translation!$A$221 -> Front page | AC7: ----
C8: Positionsbeschreibung | E8: Zwischenwärmetauscher WPF | G8: Sprachauswahl | O8: Positionsbeschreibung | P8: TRUE | Q8: 3 | S8: Deutsch | V8: =P8 -> TRUE | W8: =IF(V8=TRUE,$R$14,0) -> 2 | X8: =Translation!$A$222 -> Description hydraulic I electric scheme | AC8: =Translation!$A$220&" "&W8& " | "&Translation!$A$90&" "&$R$10 -> Page 2 | Version 05/12
C9: Planungshinweise WPL | E9: Passive Kühlung WPF | O9: Planungshinweise WPL | P9: TRUE | Q9: 4 | R9: Eingabe Stand | S9: English | V9: =P9 -> TRUE | W9: =IF(V9=TRUE,MAX($W$8+1,$R$14),0) -> 3 | X9: =Translation!$A$223 -> Design information air-water heat pump | AC9: =Translation!$A$220&" "&W9& " | "&Translation!$A$90&" "&$R$10 -> Page 3 | Version 05/12
C10: Planungshinweise WPF | E10: Passive Kühlung WPF (Zwischen-WT) | O10: Planungshinweise WPF | P10: TRUE | Q10: 5 | R10: 05/12 | S10: Spanisch | V10: =P9 -> TRUE | W10: =IF(V10=TRUE,MAX(MAX($W$8:W9)+1,$R$14),0) -> 4 | X10: =Translation!$A$223 -> Design information air-water heat pump | AC10: =Translation!$A$220&" "&W10& " | "&Translation!$A$90&" "&$R$10 -> Page 4 | Version 05/12
C11: Planungshinweise WPF (Zwischen-WT) | E11: Aktive Kühlung WPF | O11: Planungshinweise WPF (Zwischen-WT) | P11: TRUE | Q11: 6 | S11: Schwedisch | V11: =P9 -> TRUE | W11: =IF(V11=TRUE,MAX(MAX($W$8:W10)+1,$R$14),0) -> 5 | X11: =Translation!$A$223 -> Design information air-water heat pump | AC11: =Translation!$A$220&" "&W11& " | "&Translation!$A$90&" "&$R$10 -> Page 5 | Version 05/12
C12: Puffer | Hydraulische Weiche | E12: Auslegung Umschaltventile | O12: Puffer | Hydraulische Weiche | P12: TRUE | Q12: 8 | S12: Norwegisch | V12: =P9 -> TRUE | W12: =IF(V12=TRUE,MAX(MAX($W$8:W11)+1,$R$14),0) -> 6 | X12: =Translation!$A$223 -> Design information air-water heat pump | AC12: =Translation!$A$220&" "&W12& " | "&Translation!$A$90&" "&$R$10 -> Page 6 | Version 05/12
C13: Warmwasserbereitung | E13: Abmessungen Rohrleitungen | O13: Warmwasserbereitung | P13: TRUE | Q13: 9 | R13: Erste Seite | S13: Italienisch | V13: =P10 -> TRUE | W13: =IF(V13=TRUE,MAX(MAX($W$8:W12)+1,$R$14),0) -> 7 | X13: =Translation!$A$224 -> Design information brine-water heat pump | AC13: =Translation!$A$220&" "&W13& " | "&Translation!$A$90&" "&$R$10 -> Page 7 | Version 05/12
C14: Auslegung Warmwasserspeicher | E14: Rohrleitungen Kaskaden | O14: =C14 -> Auslegung Warmwasserspeicher | P14: TRUE | Q14: 25 | R14: =IF(V7=TRUE,2,1) -> 2 | S14: Französich | V14: =P10 -> TRUE | W14: =IF(V14=TRUE,MAX(MAX($W$8:W13)+1,$R$14),0) -> 8 | X14: =Translation!$A$224 -> Design information brine-water heat pump | AC14: =Translation!$A$220&" "&W14& " | "&Translation!$A$90&" "&$R$10 -> Page 8 | Version 05/12
C15: Auslegung Erdreichkollektor | E15: EnEV-Daten Wärmepumpe | O15: =C15 -> Auslegung Erdreichkollektor | P15: TRUE | Q15: 10 | S15: Rumänisch | V15: =P10 -> TRUE | W15: =IF(V15=TRUE,MAX(MAX($W$8:W14)+1,$R$14),0) -> 9 | X15: =Translation!$A$224 -> Design information brine-water heat pump | AC15: =Translation!$A$220&" "&W15& " | "&Translation!$A$90&" "&$R$10 -> Page 9 | Version 05/12
C16: Auslegung Erdwärmesonde | E16: Max. Gebäudeheizlast WPL | O16: =C16 -> Auslegung Erdwärmesonde | P16: TRUE | Q16: 11 | S16: Niederländisch | V16: =P11 -> TRUE | W16: =IF(V16=TRUE,MAX(MAX($W$8:W15)+1,$R$14),0) -> 10 | X16: =Translation!$A$225 -> Design information water-water heat pump | AC16: =Translation!$A$220&" "&W16& " | "&Translation!$A$90&" "&$R$10 -> Page 10 | Version 05/12
C17: Auslegung Erdwärmekörbe | E17: Max. Gebäudeheizlast WPF | O17: =C17 -> Auslegung Erdwärmekörbe | P17: TRUE | Q17: 23 | S17: Lettisch | V17: =P11 -> TRUE | W17: =IF(V17=TRUE,MAX(MAX($W$8:W16)+1,$R$14),0) -> 11 | X17: =Translation!$A$225 -> Design information water-water heat pump | AC17: =Translation!$A$220&" "&W17& " | "&Translation!$A$90&" "&$R$10 -> Page 11 | Version 05/12
C18: Wärmetauscher Warmwasser | O18: =C18 -> Wärmetauscher Warmwasser | P18: TRUE | Q18: 12 | S18: Polnisch | V18: =P11 -> TRUE | W18: =IF(V18=TRUE,MAX(MAX($W$8:W17)+1,$R$14),0) -> 12 | X18: =Translation!$A$225 -> Design information water-water heat pump | AC18: =Translation!$A$220&" "&W18& " | "&Translation!$A$90&" "&$R$10 -> Page 12 | Version 05/12
O19: =E7 -> Wärmetauscher Schwimmbad | P19: TRUE | Q19: 13 | S19: Portugiesisch | V19: TRUE | W19: =IF(V19=TRUE,MAX(MAX($W$8:W18)+1,$R$14),0) -> 13 | X19: =Translation!$A$226 -> Layout Buffer I Low loss header | AC19: =Translation!$A$220&" "&W19& " | "&Translation!$A$90&" "&$R$10 -> Page 13 | Version 05/12
O20: Zwischenwärmetauscher WPF | P20: TRUE | Q20: 17 | S20: Russisch | V20: =P13 -> TRUE | W20: =IF(V20=TRUE,MAX(MAX($W$8:W19)+1,$R$14),0) -> 14 | X20: =Translation!$A$227 -> Layout DHW cylinder | AC20: =Translation!$A$220&" "&W20& " | "&Translation!$A$90&" "&$R$10 -> Page 14 | Version 05/12
O21: Passive Kühlung WPF | P21: TRUE | Q21: 14 | S21: Türkisch | V21: =P13 -> TRUE | W21: =IF(V21=TRUE,MAX(MAX($W$8:W20)+1,$R$14),0) -> 15 | X21: =Translation!$A$227 -> Layout DHW cylinder | AC21: =Translation!$A$220&" "&W21& " | "&Translation!$A$90&" "&$R$10 -> Page 15 | Version 05/12
O22: Passive Kühlung WPF (Zwischen-WT) | P22: TRUE | Q22: 24 | S22: Tschechisch | V22: TRUE | W22: =IF(V22=TRUE,MAX(MAX($W$8:W21)+1,$R$14),0) -> 16 | X22: =Translation!$A$227 -> Layout DHW cylinder | AC22: =Translation!$A$220&" "&W22& " | "&Translation!$A$90&" "&$R$10 -> Page 16 | Version 05/12
O23: Aktive Kühlung WPF | P23: TRUE | Q23: 15 | S23: Finnisch | V23: TRUE | W23: =IF(V23=TRUE,MAX(MAX($W$8:W22)+1,$R$14),0) -> 17 | X23: =Translation!$A$228 -> Design chart ground collector | AC23: =Translation!$A$220&" "&W23& " | "&Translation!$A$90&" "&$R$10 -> Page 17 | Version 05/12
O24: Auslegung Umschaltventile | P24: TRUE | Q24: 18 | S24: Bulgarisch | V24: TRUE | W24: =IF(V24=TRUE,MAX(MAX($W$8:W23)+1,$R$14),0) -> 18 | X24: =Translation!$A$229 -> Design chart probes | AC24: =Translation!$A$220&" "&W24& " | "&Translation!$A$90&" "&$R$10 -> Page 18 | Version 05/12
O25: Abmessungen Rohrleitungen | P25: TRUE | Q25: 19 | S25: Griechisch | V25: TRUE | W25: =IF(V25=TRUE,MAX(MAX($W$8:W24)+1,$R$14),0) -> 19 | X25: =Translation!$A$230 -> Design chart ground collector | AC25: =Translation!$A$220&" "&W25& " | "&Translation!$A$90&" "&$R$10 -> Page 19 | Version 05/12
O26: Rohrleitungen Kaskaden | P26: TRUE | Q26: 7 | S26: Ungarisch | V26: TRUE | W26: =IF(V26=TRUE,MAX(MAX($W$8:W25)+1,$R$14),0) -> 20 | X26: =Translation!$A$231 -> Heat Exchanger domestic hot water | AC26: =Translation!$A$220&" "&W26& " | "&Translation!$A$90&" "&$R$10 -> Page 20 | Version 05/12
O27: EnEV-Daten Wärmepumpe | P27: TRUE | Q27: 16 | S27: Litauisch | V27: TRUE | W27: =IF(V27=TRUE,MAX(MAX($W$8:W26)+1,$R$14),0) -> 21 | X27: =Translation!$A$232 -> Heat exchanger swimming pool | AC27: =Translation!$A$220&" "&W27& " | "&Translation!$A$90&" "&$R$10 -> Page 21 | Version 05/12
O28: Max. Gebäudeheizlast WPL | P28: TRUE | Q28: 21 | S28: Estnisch | V28: =P19 -> TRUE | W28: =IF(V28=TRUE,MAX(MAX($W$8:W27)+1,$R$14),0) -> 22 | X28: =Translation!$A$232 -> Heat exchanger swimming pool | AC28: =Translation!$A$220&" "&W28& " | "&Translation!$A$90&" "&$R$10 -> Page 22 | Version 05/12
O29: Max. Gebäudeheizlast WPF | P29: TRUE | Q29: 22 | S29: Dänisch | V29: =P20 -> TRUE | W29: =IF(V29=TRUE,MAX(MAX($W$8:W28)+1,$R$14),0) -> 23 | X29: =Translation!$A$233 -> Heat exchanger well system | AC29: =Translation!$A$220&" "&W29& " | "&Translation!$A$90&" "&$R$10 -> Page 23 | Version 05/12
P30: TRUE | S30: Slowakisch | V30: =P21 -> TRUE | W30: =IF(V30=TRUE,MAX(MAX($W$8:W29)+1,$R$14),0) -> 24 | X30: =Translation!$A$234 -> Heat exchanger passive cooling WPF/WPW | AC30: =Translation!$A$220&" "&W30& " | "&Translation!$A$90&" "&$R$10 -> Page 24 | Version 05/12
P31: TRUE | V31: =P22 -> TRUE | W31: =IF(V31=TRUE,MAX(MAX($W$8:W30)+1,$R$14),0) -> 25 | X31: =Translation!$A$234 -> Heat exchanger passive cooling WPF/WPW | AC31: =Translation!$A$220&" "&W31& " | "&Translation!$A$90&" "&$R$10 -> Page 25 | Version 05/12
P32: TRUE | V32: =P23 -> TRUE | W32: =IF(V32=TRUE,MAX(MAX($W$8:W31)+1,$R$14),0) -> 26 | X32: =Translation!$A$235 -> Heat exchanger active cooling | AC32: =Translation!$A$220&" "&W32& " | "&Translation!$A$90&" "&$R$10 -> Page 26 | Version 05/12
P33: TRUE | V33: =P23 -> TRUE | W33: =IF(V33=TRUE,MAX(MAX($W$8:W32)+1,$R$14),0) -> 27 | X33: =Translation!$A$235 -> Heat exchanger active cooling | AC33: =Translation!$A$220&" "&W33& " | "&Translation!$A$90&" "&$R$10 -> Page 27 | Version 05/12
P34: TRUE | V34: TRUE | W34: =IF(V34=TRUE,MAX(MAX($W$8:W33)+1,$R$14),0) -> 28 | X34: =Translation!$A$236 -> Change-over valves active/passive cooling | AC34: =Translation!$A$220&" "&W34& " | "&Translation!$A$90&" "&$R$10 -> Page 28 | Version 05/12
P35: TRUE | V35: TRUE | W35: =IF(V35=TRUE,MAX(MAX($W$8:W34)+1,$R$14),0) -> 29 | X35: =Translation!$A$237 -> Technical information pipes | AC35: =Translation!$A$220&" "&W35& " | "&Translation!$A$90&" "&$R$10 -> Page 29 | Version 05/12
P36: TRUE | V36: TRUE | W36: =IF(V36=TRUE,MAX(MAX($W$8:W35)+1,$R$14),0) -> 30 | X36: =Translation!$A$238 -> Graduation cascade | AC36: =Translation!$A$220&" "&W36& " | "&Translation!$A$90&" "&$R$10 -> Page 30 | Version 05/12
P37: TRUE | V37: TRUE | W37: =IF(V37=TRUE,MAX(MAX($W$8:W36)+1,$R$14),0) -> 31 | X37: =Translation!$A$239 -> COP-data heat pumps | AC37: =Translation!$A$220&" "&W37& " | "&Translation!$A$90&" "&$R$10 -> Page 31 | Version 05/12
P38: TRUE | V38: TRUE | W38: =IF(V38=TRUE,MAX(MAX($W$8:W37)+1,$R$14),0) -> 32 | X38: =Translation!A$242&" "&Translation!$A$92 -> Max. Heat demand building Air/Water Heat pumps | AC38: =Translation!$A$220&" "&W38& " | "&Translation!$A$90&" "&$R$10 -> Page 32 | Version 05/12
P39: TRUE | V39: TRUE | W39: =IF(V39=TRUE,MAX(MAX($W$8:W38)+1,$R$14),0) -> 33 | X39: =Translation!$A$242&" "&Translation!$A$108 -> Max. Heat demand building Brine/Water Heat pumps | AC39: =Translation!$A$220&" "&W39& " | "&Translation!$A$90&" "&$R$10 -> Page 33 | Version 05/12
P40: TRUE | AC40: =Translation!$A$220&" "&W40& " | "&Translation!$A$90&" "&$R$10 -> Page | Version 05/12
P41: TRUE | AC41: =Translation!$A$220&" "&W41& " | "&Translation!$A$90&" "&$R$10 -> Page | Version 05/12
P42: TRUE | AC42: =Translation!$A$220&" "&W42& " | "&Translation!$A$90&" "&$R$10 -> Page | Version 05/12
AC43: =Translation!$A$220&" "&W43& " | "&Translation!$A$90&" "&$R$10 -> Page | Version 05/12
AC44: =Translation!$A$220&" "&W44& " | "&Translation!$A$90&" "&$R$10 -> Page | Version 05/12
AC45: =Translation!$A$220&" "&W45& " | "&Translation!$A$90&" "&$R$10 -> Page | Version 05/12
AC46: =Translation!$A$220&" "&W46& " | "&Translation!$A$90&" "&$R$10 -> Page | Version 05/12
AC47: =Translation!$A$220&" "&W47& " | "&Translation!$A$90&" "&$R$10 -> Page | Version 05/12
AC48: =Translation!$A$220&" "&W48& " | "&Translation!$A$90&" "&$R$10 -> Page | Version 05/12
AC49: =Translation!$A$220&" "&W49& " | "&Translation!$A$90&" "&$R$10 -> Page | Version 05/12
AC50: =Translation!$A$220&" "&W50& " | "&Translation!$A$90&" "&$R$10 -> Page | Version 05/12
AC51: =Translation!$A$220&" "&W51& " | "&Translation!$A$90&" "&$R$10 -> Page | Version 05/12
AC52: =Translation!$A$220&" "&W52& " | "&Translation!$A$90&" "&$R$10 -> Page | Version 05/12
AC53: =Translation!$A$220&" "&W53& " | "&Translation!$A$90&" "&$R$10 -> Page | Version 05/12
AC54: =Translation!$A$220&" "&W54& " | "&Translation!$A$90&" "&$R$10 -> Page | Version 05/12
AC55: =Translation!$A$220&" "&W55& " | "&Translation!$A$90&" "&$R$10 -> Page | Version 05/12

Sheet Translation
A2: English | B2: Deutsch | C2: English | D2: Spanisch | E2: Schwedisch | F2: Norwegisch | G2: Italienisch | H2: Französich | I2: Rumänisch | J2: Niederländisch | K2: Lettisch | L2: Polnisch | M2: Portugiesisch | N2: Russisch | O2: Türkisch | P2: Tschechisch | Q2: Finnisch | R2: Bulgarisch | S2: Griechisch | T2: Ungarisch | U2: Litauisch | V2: Estnisch | W2: Dänisch | X2: Slowakisch
A3: DESCRIPTION | B3: POSITIONSBESCHREIBUNG | C3: DESCRIPTION | D3: Leyenda | E3: BESKRIVNING | F3: Nor | G3: Descrizione | H3: Description des positions | I3: Descriere | J3: Positieomschrijving | K3: POZĪCIJU NOSAUKUMI | L3: OPIS POZYCJI | M3: DESCRIÇÃO DA POSIÇÃO | N3: ОПИСАНИЕ | O3: POZİSYON AÇIKLAMASI | P3: POPIS POLOHY | Q3: KUVAUKSET | R3: ОПИСАНИЕ НА ПОЗИЦИЯТА | S3: ΠΕΡΙΓΡΑΦΗ ΘΕΣΗΣ | T3: TÉTELES LEÍRÁS | U3: POZICIJŲ APRAŠYMAS | V3: LEGEND | W3: POSITIONSBESKRIVELSE | X3: POPIS POLOŽIEK
A4: Pos. | B4: Pos. | C4: Pos. | D4: Pos. | E4: Pos. | F4: Nor | G4: Posizione | H4: pos. | I4: Poz. | J4: Pos. | K4: Poz. | L4: Poz. | M4: Pos. | N4: Поз. | O4: Poz. | P4: Poz. | Q4: Pos. | R4: Поз. | S4: Θέση | T4: Poz. | U4: Poz. | V4: Nr | W4: Pos. | X4: Pol.
A5: Heat pump | B5: Wärmepumpe | C5: Heat pump | D5: Bomba de calor | E5: Värmepump | F5: Nor | G5: Pompa di Calore | H5: Pompe à chaleur | I5: Pompa de caldura | J5: Warmtepomp | K5: Siltumsūknis | L5: Pompa ciepła | M5: Bomba de calor | N5: Тепловой насос | O5: Isı pompası | P5: Tepelné čerpadlo | Q5: Lämpöpumppu | R5: Термопомпа | S5: Αντλία θερμότητας | T5: Hőszivattyú | U5: Šilumos siurblys | V5: soojuspump | W5: Varmepumpe | X5: Tepelné čerpadlo
A6: Exhaust air module: LWM 250 | B6: Luftungsmodul LWM 250 | C6: Exhaust air module: LWM 250 | D6: Módulo de ventilación LWM 250 | E6: Frånlufts modul: LWM 250 | F6: Nor | G6: Modulo per Aria Esausta: LWM 250 | H6: Module de ventilation centralisé LWM 250 | I6: Modul recuperare: LWM 250 | J6: Ventilatiemodule LWM 250 | K6: Ventilācijas modulis LWM 250 | L6: Moduł wentylacji LWM 250 | M6: Módulo de ventilação de ar LWM 250 | N6: Модуль регенерации отработанного воздуха LWM 250 | O6: Havalandırma modülü LWM 250 | P6: Ventilační modul LWM 250 | Q6: Ilmastointimoduuli LWM 250 | R6: Вентилационен модул LWM 250 | S6: Μονάδα αερισμού LWM 250 | T6: Szellőztető modul LWM 250 | U6: Vėdinimo modulis LWM 250 | V6: ventilatsioonimoodul LWM 250 | W6: Ventilationsmodul LWM 250 | X6: Odvetrávací modul LWM 250
A7: Cooling module: WPAC | B7: Kühlmodul WPAC | C7: Cooling module: WPAC | D7: Módulo de refrigeración activa WPAC | E7: Kylnings modul: WPAC | F7: Nor | G7: Modulo Raffrescamento:WPAC | H7: Module de rafraîchissement WPAC | I7: Modul racire: WPAC | J7: Koelmodule WPAC | K7: Dzesēšanas modulis WPAC | L7: Moduł chłodzący WPAC | M7: Módulo de refrigeração WPAC | N7: Охлаждающий модуль WPAC | O7: Soğutma modülü WPAC | P7: Chladicí modul WPAC | Q7: Jäähdytysmoduuli WPAC | R7: Охладителен модул WPAC | S7: Μονάδα ψύξης WPAC | T7: Hűtőmodul WPAC | U7: Aušinimo modulis WPAC | V7: jahutusmoodul WPAC | W7: Kølemodul WPAC | X7: Chladiaci modul WPAC
A8: Control unit: WPMW | B8: Regelgerät WPMW | C8: Control unit: WPMW | D8: Unidad de control WPMW | E8: Styrenhet: WPMW | F8: Nor | G8: Termoregolatore: WPMW | H8: Régulation de pompe à chaleur WPMW | I8: Controler: WPMW | J8: WP manager WPMW | K8: Regulators WPMW | L8: Regulator WPMW | M8: Controlador WPMW | N8: Модуль управления WPMW | O8: Kontrol cihazı WPMW | P8: Regulační zařízení WPMW | Q8: Ohjausautomatiikka WPMW | R8: Регулиращо устройство WPMW | S8: Ρυθμιστική συσκευή WPMW | T8: Szabályzó berendezés WPMW | U8: Reguliavimo prietaisas WPMW | V8: juhtseade WPMW | W8: Styreenhed WPMW | X8: Regulačná jednotka WPMW
A9: Swimming pool module: MSMW | B9: Mischermodul MSMW | C9: Swimming pool module: MSMW | D9: Unidad de ampliación de control MSMW | E9: Pool modul: MSMW | F9: Nor | G9: Modulo Piscina:MSM | H9: Régulation auxiliaire MSMW circuit mélangeur/piscine | I9: Modul piscina: MSMW | J9: Zwembadregeling MSMW | K9: Maisītāja modulis MSMW | L9: Moduł mieszacza MSMW | M9: Módulo misturador MSMW | N9: Смесительный модуль управления MSMW | O9: Karıştırıcı modülü MSMW | P9: Směšovací modul MSMW | Q9: Lisäautomatiikka MSMW | R9: Смесителен модул MSMW | S9: Μονάδα μίκτη MSMW | T9: Keverőmodul MSMW | U9: Maišytuvo modulis MSMW | V9: segurimoodul MSMW | W9: Shuntmodul MSMW | X9: Modul miešača MSMW
A10: Remote control: FE 7 | B10: Fernbedienung FE 7 | C10: Remote control: FE 7 | D10: Control remoto FE 7 | E10: Fjärrkontroll: FE 7 | F10: Nor | G10: Controllo remoto:FE7 | H10: Commande à distance FE7 | I10: Telecomanda: FE 7 | J10: Thermostaat FE7 | K10: Attālinātā vadība FE 7 | L10: Zdalne sterowanie FE7 | M10: Comando à distância FE 7 | N10: Пульт дистанционного управления FE 7 | O10: Uzaktan kumanda FE 7 | P10: Dálkový ovladač FE 7 | Q10: Kauko-ohjain FE 7 | R10: Дистанционно управление FE 7 | S10: Τηλεχειρισμός FE 7 | T10: Távirányító FE 7 | U10: Nuotolinio valdymo prietaisas FE 7 | V10: kaugjuhtimispult FE 7 | W10: Fjernbetjening FE 7 | X10: Diaľkové ovládanie FE 7
A11: Remote control cooling: FEK | B11: Fernbedienung Kühlung FEK | C11: Remote control cooling: FEK | D11: Control remoto refrigeración FEK | E11: Fjärrkontroll kylning: FEK | F11: Nor | G11: Controllo remoto raffrescamento:FEK | H11: Commande à distance pour rafraîchissement FEK | I11: Telecomanda racire: FEK | J11: Thermostaat met koel-functie FEK | K11: Attālinātā vadība, dzesēšana FEK | L11: Zdalne sterowanie chłodzenia FEK | M11: Comando à distância refrigeração FEK | N11: Пульт дистанционного управления FEK | O11: Uzaktan kumanda Soğutma FEK | P11: Dálkový ovladač chlazení FEK | Q11: Jäähdytyksen kauko-ohjain FEK | R11: Дистанционно управление охлаждане FEK | S11: Τηλεχειρισμός ψύξης FEK | T11: Hűtés távirányító FEK | U11: Aušinimo nuotolinio valdymo prietaisas FEK | V11: jahutuse kaugjuhtimispult FEK | W11: Fjernbetjening køling FEK | X11: Diaľkové ovládanie Chladenie FEK
A12: Temperature sensor: Outside temperature | B12: Außentemperaturfühler | C12: Temperature sensor: Outside temperature | D12: Sensor de temperatura: Temperatura exterior | E12: Temperaturgivare: Utetemperatur | F12: Nor | G12: Sensore di Temperatura: Temperatura Esterna | H12: Sonde de température extérieure | I12: Senzor de temperatura: Senzor de exterior | J12: Buitentemperatuurvoeler | K12: Āra temperatūras sensors | L12: Czujnik temperatury zewnętrznej | M12: Sensor de temperatura exterior | N12: Датчик наружной температуры | O12: Harici sıcaklık sensörü | P12: Snímač venkovní teploty | Q12: Ulkolämpötila-anturi | R12: Датчик за външната температура | S12: Αισθητήρας εξωτερικής θερμοκρασίας | T12: Külső hőmérséklet-érzékelő | U12: Išorės temperatūros jutiklis | V12: välistemperatuuriandur | W12: Udetemperatursensor | X12: Snímač vonkajšej teploty
A13: Temperature sensor: Return temperature | B13: Rücklauftemperaturfühler Wärmepumpe | C13: Temperature sensor: Return temperature | D13: Sensor de temperatura: Retorno bomba de calor | E13: Temperaturgivare: returtemperatur | F13: Nor | G13: Sensore di Temperatura: Temperatura di Ritorno | H13: Sonde de température retour PAC | I13: Senzor de temperatura: Senzor retur | J13: Retourtemperatuurvoeler WP | K13: Atpakaļgaitas temperatūras sensors, siltumsūknis | L13: Czujnik temperatury powrotu pompy ciepła | M13: Sensor de temperatura de saída bomba de calor | N13: Датчик температуры обратной линии теплового насоса | O13: Isı pompası geri dönüş sıcaklığı | P13: Snímač teploty vratného toku tepelného čerpadla | Q13: Paluuvirtauksen/puskurivaraajan lämpötila-anturi | R13: Датчик за температурата в обратната линия термопомпа | S13: Αισθητήρας θερμοκρασίας επιστροφής αντλίας θερμότητας | T13: Hőszivattyú visszatérő ági hőmérséklet-érzékelője | U13: Šilumos siurblio grįžtančio srauto temperatūros jutiklis | V13: soojuspumba tagasivoolutemperatuuri andur | W13: Returløbstemperatursensor varmepumpe | X13: Snímač vratnej teploty Tepelné čerpadlo
A14: Temperature sensor: Flow temperature, DHW "off" | B14: Vorlauftemperaturfühler, Warmwasserbereitung "Aus" | C14: Temperature sensor: Flow temperature, DHW "off" | D14: Sensor de temperatura: Temperatura de impulsión, ACS "off" | E14: Temperaturgivare: Framledningstemperatur, VV "av" | F14: Nor | G14: Sensore di Temperatura: Temperatura di Mandata, ACS"off" | H14: Sonde de température départ PAC, ECS "Fin" | I14: Senzor de temperatura: Senzor tur, apa calda menajera "OFF" | J14: Aanvoertemp. voeler, warmwaterbereiding uit | K14: Turpgaitas temperatūras sensors, karstā ūdens sagatavošana "Izsl." | L14: Czujnik temperatury zasilania, przygotowanie ciepłej wody „wył” | M14: Sensor de temperatura de entrada, aquecimento de água sanitária "Desl." | N14: Датчик температуры подачи | O14: Akış sıcaklığı sensörü, sıcak su ısıtma "Kapalı" | P14: Snímač teploty přítoku, příprava teplé vody "VYP" | Q14: Lämpöpumpun menovirtauksen lämpötila-anturi | R14: Датчик за температурата в подаващата линия, получаване на топла вода "Изкл." | S14: Αισθητήρας θερμοκρασίας ροής, παραγωγή ζεστού νερού "Off" | T14: Előremenő ági hőmérséklet-érzékelő, melegvízkészítés „Ki” | U14: Tiekiamo srauto temperatūros jutiklis, karšto vandens ruošimas „IŠJ.“ | V14: pealevoolutemperatuuri andur, sooja vee tootmine „väljas” | W14: Fremløbstemperatursensor, varmtvandsopvarmning "Fra" | X14: Snímač prívodnej teploty, príprava teplej vody „Vyp”
A15: Temperature sensor: Flow temperature, DHW "on" | B15: Warmwassertemperaturfühler, Warmwasserbereitung "Ein" | C15: Temperature sensor: Flow temperature, DHW "on" | D15: Sensor de temperatura: Temperatura de impulsión, ACS "on" | E15: Temperaturgivare: Framledningstemperatur, VV "på" | F15: Nor | G15: Sensore di Temperatura: Temperatura di Mandata, ACS"on" | H15: Sonde de température production Eau Chaude Sanitaire, ECS "Début" | I15: Senzor de temperatura: Senzor tur, apa calda menajera "ON" | J15: Warmwatertemp. voeler, warmwaterbereiding aan | K15: Karstā ūdens temperatūras sensors, karstā ūdens sagatavošana "Iesl." | L15: Czujnik temperatury ciepłej wody, przygotowanie ciepłej wody „zał” | M15: Sensor de temperatura de água quente, aquecimento de água sanitária "Lig." | N15: Датчик температуры ГВС | O15: Sıcak su sıcaklığı sensörü, sıcak su ısıtma "Açık" | P15: Snímač teploty teplé vody, příprava teplé vody "Zap" | Q15: Käyttövesivaraajan lämpötila-anturi | R15: Датчик за температурата на топлата вода, получаване на топла вода "Вкл." | S15: Αισθητήρας θερμοκρασίας ζεστού νερού, παραγωγή ζεστού νερού "On" | T15: Melegvíz hőmérséklet-érzékelő, melegvízkészítés „Be” | U15: Karšto vandens temperatūros jutiklis, karšto vandens ruošimas „ĮJ.“ | V15: soojaveetemperatuuri andur, sooja vee tootmine „sees” | W15: Varmtvandstemperatursensor, varmtvandsopvarmning "Til" | X15: Snímač teploty teplej vody, príprava teplej vody „Zap”
A16: Temperature sensor: Mixer control | B16: Heizkreistemperaturfühler für Mischerregelung | C16: Temperature sensor: Mixer control | D16: Sensor de temperatura: Control de válvula mezcladora | E16: Temperaturgivare: Shuntventil | F16: Nor | G16: Sensore di temperatura: Controllo valvola di miscela | H16: Sonde de température départ du circuit de chauffage mélangé (circuit 2) | I16: Senzor de temperatura: Control amestec | J16: Temperatuurvoeler verwarming voor mengregeling | K16: Apkures kontūra temperatūras sensors maisītāja regulēšanai | L16: Czujnik temperatury obiegu grzewczego do regulacji mieszacza | M16: Sensor de temperatura do circuito de aquecimento para a controlo do misturador | N16: Датчик температуры контура со смесителем | O16: Karıştırıcı kontrol ünitesi için kullanılan ısıtma devresi sıcaklık sensörü | P16: Snímač teploty topného okruhu pro regulaci směšovače | Q16: Lämmityspiirin lämpötila-anturi sekoittimen säätöyksikköön | R16: Датчик за температурата в отоплителния контур за регулиране не смесителя | S16: Αισθητήρας θερμοκρασίας κυκλώματος θέρμανσης για ρύθμιση μίκτη | T16: Fűtőköri hőmérséklet-érzékelő keverőszabályozáshoz | U16: Šildymo kontūro temperatūros jutiklis maišytuvo reguliavimo sistemai | V16: küttekontuuri temperatuuriandur seguri juhtimiseks | W16: Varmekredsløbstemperatursensor shuntregulering | X16: Snímač teploty ohrievacieho okruhu pre reguláciu miešača
A17: Temperature sensor: Heat source 2 | B17: Temperaturfühler 2. Wärmeerzeuger | C17: Temperature sensor: Heat source 2 | D17: Sensor de temperatura:Fuente de calor 2 | E17: Temperaturgivare: värmekälla 2 | F17: Nor | G17: Sensore di temperatura: 2° Generatore di calore | H17: Sonde de température 2ème générateur de chaleur | I17: Senzor de temperatura: Sursa de caldura 2 | J17: Temperatuurvoeler van 2e verwarmingstoestel | K17: Temperatūras sensors, 2. siltumiekārta | L17: Czujnik temperatury 2. wytwornicy ciepła | M17: Sensor de temperatura 2.Gerador de calor | N17: Датчик температуры 2-го генератора тепла | O17: 2. ısı kaynağı sıcaklık sensörü | P17: Snímač teploty 2. tepelného zdroje | Q17: Lämpötila-anturi, 2. lämmöntuottaja | R17: Датчик за температурата 2-ри генератор на топлина | S17: Αισθητήρας θερμοκρασίας 2ης γεννήτριας θερμότητας | T17: Hőmérséklet-érzékelő 2. Hőfejlesztő | U17: 2-o šilumos generatoriaus temperatūros jutiklis | V17: 2. soojusgeneraatori temperatuuriandur | W17: Temperatursensor 2. varmegenerator | X17: Snímač teploty 2. generátor tepla
A18: Temperature sensor: Heat source | B18: Wärmequellentemperaturfühler | C18: Temperature sensor: Heat source | D18: Sensor de temperatura: Fuente de calor | E18: Temperaturgivare: värmekälla | F18: Nor | G18: Sensore di temperatura: Generatore di calore | H18: Sonde de température source primaire | I18: Senzor de temperatura: Sursa de caldura | J18: Bronaanvoertemperatuurvoeler | K18: Siltuma avota temperatūras sensors | L18: Czujnik temperatury dolnego źródła | M18: Sensor de temperatura da fonte de calor | N18: Датчик температуры источника тепла | O18: Isı kaynakları sıcaklık sensörü | P18: Snímač teploty tepelného zdroje | Q18: Lämmönlähteen lämpötila-anturi | R18: Датчик за температурата на топлинния източник | S18: Αισθητήρας θερμοκρασίας θερμικής πηγής | T18: Hőforrás hőmérséklet-érzékelője | U18: Šilumos šaltinio temperatūros jutiklis | V18: soojusallika temperatuuriandur | W18: Varmekildetemperatursensor | X18: Snímač teploty zdroja tepla
A19: Temperature sensor: Swimming pool water heating | B19: Schwimmbadtemperaturfühler | C19: Temperature sensor: Swimming pool water heating | D19: Sensor de temperatura: Agua piscina | E19: Temperaturgivare: Pooltemperatur | F19: Nor | G19: Sensore di Temperatura: Riscaldamento Piscina | H19: Sonde de température piscine | I19: Senzor de temperatura: Incalzire apa piscina | J19: Voeler zwembad | K19: Peldbaseina temperatūras sensors | L19: Czujnik temperatury wody basenowej | M19: Sensor de temperatura da piscina | N19: Датчик температуры воды в бассейне | O19: Yüzme havuzu sıcaklık sensörü | P19: Snímač teploty bazénu | Q19: Uima-altaan lämpötila-anturi | R19: Датчик за температурата в плувния басейн | S19: Αισθητήρας θερμοκρασίας κολυμβητήριου | T19: Medence hőmérséklet-érzékelője | U19: Plaukimo baseino temperatūros jutiklis | V19: basseini temperatuuriandur | W19: Svømmebassintemperatursensor | X19: Snímač teploty bazénu
A20: Temperature sensor: solar panel | B20: Kollektorfühler-Solaranlage | C20: Temperature sensor: solar panel | D20: Sensor de temperatura: Panel solar | E20: Temperaturgivare: solpanel | F20: Nor | G20: Sensore di Temperatura: Collettore solare | H20: Sonde de température collecteur/capteur solaire (retour) | I20: Senzor de temperatura: Panou solar | J20: Collectorvoeler zonnepanelen | K20: Kolektora sensors-solārā iekārta | L20: Czujnik kolektora instalacji solarnej | M20: Sensor do colector da instalação solar | N20: Датчик температуры солнечного коллектора | O20: Kolektör sensörü güneş ısıtma sistemi | P20: Snímač kolektoru solárního systému | Q20: Aurinkokeräimen lämpötila-anturi | R20: Датчик на колектора-соларна инсталация | S20: Αισθητήρας συλλέκτη ηλιακής εγκατάστασης | T20: Szolárrendszer kollektorérzékelője | U20: Saulės kolektorių sistemos jutiklis | V20: solaarsüsteemi kollektori andur | W20: Kollektorsensor solvarmeanlæg | X20: Snímač kolektora-solárny kolektor
A21: Temperature sensor: solar panel East | B21: Kollektorfühler-Solaranlage Ost | C21: Temperature sensor: solar panel East | D21: Sensor de temperatura: Panel solar Este | E21: Temperaturgivare: solpanel Öst | F21: Nor | G21: Sensore di Temperatura: Collettore solare Est | H21: Sonde de température capteur/collecteur solaire est | I21: Senzor de temperatura: Panou solar Est | J21: Collectorvoeler zonnepanelen Oost | K21: Kolektora sensors-solārā iekārta Austrumi | L21: Czujnik kolektora instalacji solarnej wschód | M21: Sensor do colector da instalação solar Este | N21: Датчик температуры солнечного коллектора "Восток" | O21: Kolektör sensörü güneş ısıtma sistemi Doğu | P21: Snímač kolektoru solárního systému - východ | Q21: Aurinkokeräimen lämpötila-anturi, itäsuunta | R21: Датчик на колектора-соларна инсталация "изток" | S21: Αισθητήρας συλλέκτη ηλιακής εγκατάστασης Ανατολικά | T21: Szolárrendszer kollektorérzékelője - kelet | U21: Rytinės saulės kolektorių sistemos jutiklis | V21: solaarsüsteemi idapoolse kollektori andur | W21: Kollektorsensor solvarmeanlæg øst | X21: Snímač kolektora-solárny kolektor Východ
A22: Temperature sensor: solar panel West | B22: Kollektorfühler-Solaranlage West | C22: Temperature sensor: solar panel West | D22: Sensor de temperatura: Panel solar Oeste | E22: Temperaturgivare: solpanel Väst | F22: Nor | G22: Sensore di Temperatura: Collettore solare Ovest | H22: Sonde de température capteur/collecteur solaire ouest | I22: Senzor de temperatura: Panou solar Vest | J22: Collectorvoeler zonnepanelen West | K22: Kolektora sensors-solārā iekārta Rietumi | L22: Czujnik kolektora instalacji zachód | M22: Sensor do colector da instalação solar Oeste | N22: Датчик темпрературы солнечного коллектора "Запад" | O22: Kolektör sensörü güneş ısıtma sistemi Batı | P22: Snímač kolektoru solárního systému - západ | Q22: Aurinkokeräimen lämpötila-anturi, länsisuunta | R22: Датчик на колектора-соларна инсталация "запад" | S22: Αισθητήρας συλλέκτη ηλιακής εγκατάστασης Δυτικά | T22: Szolárrendszer kollektorérzékelője - nyugat | U22: Vakarinės saulės kolektorių sistemos jutiklis | V22: solaarsüsteemi läänepoolse kollektori andur | W22: Kollektorsensor solvarmeanlæg vest | X22: Snímač kolektora-solárny kolektor Západ
A23: Temperature sensor 1: return flow temperature increase | B23: Fühler 1 Rücklauftemperaturanhebung | C23: Temperature sensor 1: return flow temperature increase | D23: Sensor de temperatura 1: Incremento de temperatura de retorno | E23: Temperaturgivare 1: returflödet temperaturhöjning | F23: Nor | G23: Sensore di Temperatura 1: Incremento Temperatura di ritorno | H23: Sonde 1, élévation température de retour | I23: Senzor de temperatura 1: Retur - creste temperatura | J23: Voeler 1 retourtemperatuurstijging | K23: Sensors 1, atpakaļgaitas temperatūras paaugstināšana | L23: Czujnik 1 Podwyższenie temperatury powrotu | M23: Sensor 1 Aumento da temperatura de saída | N23: Датчик 1: повышение температуры обратной линии | O23: Sensör 1 Geri dönüş sıcaklığını yükseltme | P23: Snímač 1 zvýšení teploty vratného toku | Q23: Anturi 1, paluuvirtauslämpötilan nosto | R23: Датчик 1 повишаване на температурата в обратната линия | S23: Αισθητήρας 1 αύξησης θερμοκρασίας ροής επιστροφής | T23: Visszatérő hőmérséklet-emelés, érzékelő 1 | U23: Grįžtančio srauto temperatūros pakėlimo jutiklis 1 | V23: tagasivoolutemperatuuri tõsteseadise andur 1 | W23: Sensor 1 returløbstemperaturstigning | X23: Snímač 1 Zvýšenie vratnej teploty
A24: Temperature sensor 2: return flow temperature increase | B24: Fühler 2 Rücklauftemperaturanhebung | C24: Temperature sensor 2: return flow temperature increase | D24: Sensor de temperatura 2: Incremento de temperatura de retorno | E24: Temperaturgivare 2: returflödet ökning framledningstemperatur | F24: Nor | G24: Sensore di Temperatura 2: Incremento Temperatura di ritorno | H24: Sonde 2, élévation température de retour | I24: Senzor de temperatura 2: Retur - creste temperatura | J24: Voeler 2 retourtemperatuurstijging | K24: Sensors 2, atpakaļgaitas temperatūras paaugstināšana | L24: Czujnik 2 Podwyższenie temperatury powrotu | M24: Sensor 2 Aumento da temperatura de saída | N24: Датчик 2: повышение температуры обратной линии | O24: Sensör 2 Geri dönüş sıcaklığını yükseltme | P24: Snímač 2 zvýšení teploty vratného toku | Q24: Anturi 2, paluuvirtauslämpötilan nosto | R24: Датчик 2 повишаване на температурата в обратната линия | S24: Αισθητήρας 2 αύξησης θερμοκρασίας ροής επιστροφής | T24: Visszatérő hőmérséklet-emelés, érzékelő 2 | U24: Grįžtančio srauto temperatūros pakėlimo jutiklis 2 | V24: tagasivoolutemperatuuri tõsteseadise andur 2 | W24: Sensor 2 returløbstemperaturstigning | X24: Snímač 2 Zvýšenie vratnej teploty
A25: Temperature sensor: solar buffer cylinder | B25: Speicherfühler-Solaranlage Puffer | C25: Temperature sensor: solar buffer cylinder | D25: Sensor de temperatura: Depósito de inercia solar | E25: Temperaturgivare: sol buffert cylinder | F25: Nor | G25: Sensore di Temperatura: Serbatoio Solare | H25: Sonde ballon tampon solaire | I25: Senzor de temperatura : buffer instalatie solara | J25: Buffertemperatuurvoeler zonnepanelen | K25: Rezervuāra sensors-solārā iekārta, buferis | L25: Czujnik zasobnika instalacji solarnej, bufor | M25: Sensor do acumulador da instalação solar, tampão | N25: Датчик температуры: буфер солнечного коллектора | O25: Kazan sensörü güneş ısıtma sistemi Tampon | P25: Snímač zásobníku - akumulace solárního zařízení | Q25: Aurinkolämpöjärjestelmän puskurivaraajan lämpötila-anturi | R25: Датчик на бойлера-соларна инсталация буфер | S25: Αισθητήρας συσσωρευτή ηλιακής εγκατάστασης για ενδιάμεσο συσσωρευτή | T25: Szolárrendszer puffertároló érzékelő | U25: Saulės kolektorių sistemos rezervuaro jutiklis, buferis | V25: solaarsüsteemi puhversalvesti andur | W25: Beholdersensor solvarmeanlæg-buffer | X25: Snímač zásobníka-solárny kolektor Vyrovnávací zásobník
A26: Temperature sensor: additional solar buffer cylinder | B26: Speicherfühler-Solaranlage weiterer Speicher | C26: Temperature sensor: additional solar buffer cylinder | D26: Sensor de temperatura: Depósito de inercia solar adicional | E26: Temperaturgivare: ytterligare sol buffert cylinder | F26: Nor | G26: Sensore di Temperatura: Serbatoio solare addizionale | H26: Sonde ballon tampon solaire supplémentaire | I26: Senzor de temperatura : buffer suplimentar instalatie solara | J26: Buffertemperatuurvoeler zonnepanelen extra boiler | K26: Rezervuāra sensors-solārā iekārta, cits rezervuārs | L26: Czujnik zasobnika instalacji solarnej, kolejny zasobnik | M26: Sensor do acumulador da instalação solar, outro acumulador | N26: Датчик температуры: доп. буфер солнечного коллектора | O26: Kazan sensörü güneş ısıtma sistemi diğer kazan | P26: Snímač zásobníku solárního zařízení - další zásobník | Q26: Aurinkolämpöjärjestelmän lisäpuskurivaraajan lämpötila-anturi | R26: Датчик на бойлера-соларна инсталация следващ бойлер | S26: Αισθητήρας συσσωρευτή ηλιακής εγκατάστασης για περαιτέρω συσσωρευτές | T26: Szolárrendszeri tárolóérzékelő, egyéb tároló | U26: Saulės kolektorių sistemos rezervuaro jutiklis, kiti rezervuarai | V26: solaarsüsteemi 2. puhversalvesti andur | W26: Beholdersensor solvarmeanlæg, yderligere beholder | X26: Snímač zásobníka-Solárny kolektor Ďalší zásobník
A27: Temperature sensor: solar system hot water/ cooling | B27: Speicherfühler-Solaranlage Warmwasser / Kühlbetrieb | C27: Temperature sensor: solar system hot water/ cooling | D27: Sensor de temperatura: solar / refrigeración | E27: Temperaturgivare: solsystemet varmvatten / kyla | F27: Nor | G27: Sensore di Temperatura:Solare ACS / Raffrescamento | H27: Sonde ballon tampon solaire Eau Chaude Sanitaire / rafraîchissement | I27: Senzor de temperatura: Sistem solar apa calda/racire | J27: Buffertemperatuurvoeler zonnepanelen warmwater/koeling | K27: Rezervuāra sensors-solārā iekārta, karstais ūdens / dzesēšanas režīms | L27: Czujnik zasobnika instalacji solarnej, ciepła woda / chłodzenie | M27: Sensor do acumulador da instalação solar Água quente / Refrigeração | N27: Датчик температуры: солнечный коллектор / охлаждение | O27: Kazan sensörü güneş ısıtma sistemi Sıcak su / Soğutma modu | P27: Snímač zásobníku solárního zařízení - teplá voda / režim chlazení | Q27: Aurinkolämpö-/jäähdytyksen lämpötila-anturi | R27: Датчик на бойлера-соларна инсталация топла вода / режим на охлаждане | S27: Αισθητήρας συσσωρευτή ηλιακής εγκατάστασης για ζεστό νερό / λειτουργία ψύξης | T27: Szolárrendszeri tárolóérzékelő, melegvíz / hűtőüzem | U27: Saulės kolektorių sistemos rezervuaro jutiklis, karštas vanduo / aušinimo režimas | V27: solaarsüsteemi salvesti andur: soe vesi / jahutus | W27: Beholdersensor solvarmeanlæg varmtvands- / køledrift | X27: Snímač zásobníka-Solárny kolektor Teplá voda/Chladiaci režim
A28: Circulation pump: Heat pump - heat source | B28: Umwälzpumpe für die Wärmepumpe (Wärmequelle) | C28: Circulation pump: Heat pump - heat source | D28: Bomba de circulación: Bomba de calor - circuito fuente | E28: Cirkulationspump: Värmepump - värmekälla | F28: Nor | G28: Circolatore: Pompa di calore - sorgente di calore | H28: Circulateur PAC (côté primaire) | I28: Pompa de circulatie: Pompa de caldura - sursa | J28: Circulatiepomp voor de WP (bronzijdig) | K28: Cirkulācijas sūknis siltumsūknim (siltuma avots) | L28: Pompa obiegowa do pompy ciepła (dolne źródło) | M28: Bomba de recirculação para a bomba de calor (fonte de calor) | N28: Циркуляционный насос теплового насоса (источник тепла) | O28: Isı pompasına (ısı kaynağı) ait sirkülasyon pompası | P28: Oběhové čerpadlo pro tepelné čerpadlo (tepelný zdroj) | Q28: Keruupiirin liuospumppu | R28: Циркулационна помпа за термопомпата (топлинен източник) | S28: Αντλία κυκλοφορίας για την αντλία θερμότητας (θερμική πηγή) | T28: Hőszivattyú (hőforrás) keringető szivattyúja | U28: Cirkuliacinis siurblys šilumos siurbliui (šilumos šaltinis) | V28: soojuspumba ringluspump (soojusallikas) | W28: Cirkulationspumpe til varmepumpe (varmekilde) | X28: Obehové čerpadlo pre tepelné čerpadlo (zdroj tepla)
A29: Circulation pump: Heat pump - heating side | B29: Umwälzpumpe für die Wärmepumpe (heizungsseitig) | C29: Circulation pump: Heat pump - heating side | D29: Bomba de circulación: Bomba de calor - circuito producción | E29: Cirkulationspump: Värmepump - värmesystem | F29: Nor | G29: Circolatore: Pompa di calore - accumulo termico | H29: Circulateur PAC (côté secondaire) | I29: Pompa de circulatie: Pompa de caldura - circuitul de incalzire | J29: Circulatiepomp voor de WP (CV-afgiftezijdig) | K29: Cirkulācijas sūknis siltumsūknim (apkures pusē) | L29: Pompa obiegowa do pompy ciepła (po str. ogrzewania) | M29: Bomba de recirculação para a bomba de calor (do lado do aquecimento) | N29: Циркуляционный насос теплового насоса (система отопления) | O29: Isı pompasına (ısıtma tarafı) ait sirkülasyon pompası | P29: Oběhové čerpadlo pro tepelné čerpadlo (strana topení) | Q29: Lämmityksen latauspumppu | R29: Циркулационна помпа за термопомпата (откъм страната на системата за отопление ) | S29: Αντλία κυκλοφορίας για την αντλία θερμότητας (πλευρά θέρμανσης) | T29: Hőszivattyú (fűtésoldali) keringető szivattyúja | U29: Cirkuliacinis siurblys šilumos siurbliui (šildymo sistemos pusėje) | V29: soojuspumba ringluspump (küttepoolel) | W29: Cirkulationspumpe til varmepumpe (varmeside) | X29: Obehové čerpadlo pre tepelné čerpadlo (na strane ohrevu)
A30: Circulation pump: DHW heating | B30: Umwälzpumpe für die Warmwassererwärmung | C30: Circulation pump: DHW heating | D30: Bomba de circulación: circuito ACS | E30: Cirkulationspump: VV uppvärmning | F30: Nor | G30: Circolatore: Produzione ACS | H30: Circulateur Eau Chaude Sanitaire | I30: Pompa de circulatie: Preparare apa calda menajera | J30: Circulatiepomp warmwater | K30: Cirkulācijas sūknis karstā ūdens uzsildīšanai | L30: Pompa obiegowa do podgrzewania ciepłej wody | M30: Bomba de recirculação para o aquecimento de água sanitária | N30: Циркуляционный насос контура ГВС | O30: Sıcak suyu istenen sıcaklığa kadar ısıtmak için sirkülasyon pompası | P30: Oběhové čerpadlo pro ohřev teplé vody | Q30: Käyttöveden latauspumppu | R30: Циркулационна помпа за загряване на топлата вода | S30: Αντλία κυκλοφορίας για θέρμανση ζεστού νερού | T30: Vízmelegítés keringető szivattyúja | U30: Cirkuliacinis siurblys karšto vandens šildymui | V30: veesoojenduse ringluspump | W30: Cirkulationspumpe til varmtvandsopvarmning | X30: Obehové čerpadlo pre prípravu teplej vody
A31: Circulation pump: Heating circuit 1 | B31: Umwälzpumpe für den Heizkreis 1 | C31: Circulation pump: Heating circuit 1 | D31: Bomba de circulación: circuito calefacción 1 | E31: Cirkulationspump: Värmekrets 1 | F31: Nor | G31: Circolatore: Circuito Riscaldamento 1 | H31: Circulateur circuit de chauffage 1 | I31: Pompa de circulatie: Circuit de incalzire 1 | J31: Circulatiepomp stooklijn1 | K31: Cirkulācijas sūknis apkures kontūram 1 | L31: Pompa obiegowa do obiegu grzewczego 1 | M31: Bomba de recirculação do circuito de aquecimento 1 | N31: Циркуляционный насос нагревательного контура 1 | O31: 1. ısıtma devresine ait sirkülasyon pompası | P31: Oběhové čerpadlo pro topný okruh 1 | Q31: Lämmityspiirin 1 kiertopumppu | R31: Циркулационна помпа за нагревателен контур 1 | S31: Αντλία κυκλοφορίας για το κύκλωμα θέρμανσης 1 | T31: Keringető szivattyú, fűtőkör 1 | U31: Cirkuliacinis siurblys šildymo kontūrui 1 | V31: küttekontuuri 1 ringluspump | W31: Cirkulationspumpe til varmekredsløb 1 | X31: Obehové čerpadlo pre ohrievací okruh 1
A32: Circulation pump: Heating circuit 2 | B32: Umwälzpumpe für den Heizkreis 2 | C32: Circulation pump: Heating circuit 2 | D32: Bomba de circulación: circuito calefacción 2 | E32: Cirkulationspump: Värmekrets 2 | F32: Nor | G32: Circolatore: Circuito Riscaldamento 2 | H32: Circulateur circuit de chauffage 2 | I32: Pompa de circulatie: Circuit de incalzire 2 | J32: Circulatiepomp stooklijn2 | K32: Cirkulācijas sūknis apkures kontūram 2 | L32: Pompa obiegowa do obiegu grzewczego 2 | M32: Bomba de recirculação do circuito de aquecimento 2 | N32: Циркуляционный насос нагревательного контура 2 | O32: 2. ısıtma devresine ait sirkülasyon pompası | P32: Oběhové čerpadlo pro topný okruh 2 | Q32: Lämmityspiirin 2 kiertopumppu | R32: Циркулационна помпа за нагревателен контур 2 | S32: Αντλία κυκλοφορίας για το κύκλωμα θέρμανσης 2 | T32: Keringető szivattyú, fűtőkör 2 | U32: Cirkuliacinis siurblys šildymo kontūrui 2 | V32: küttekontuuri 2 ringluspump | W32: Cirkulationspumpe til varmekredsløb 2 | X32: Obehové čerpadlo pre ohrievací okruh 2
A33: Circulation pump: Swimming pool | B33: Umwälzpumpe für die Schwimmbadwassererwärmung | C33: Circulation pump: Swimming pool | D33: Bomba de circulación: circuito calentamiento piscina | E33: Cirkulationspump: Pool | F33: Nor | G33: Circolatore: Piscina | H33: Circulateur chauffage piscine | I33: Pompa de circulatie: Circuit de incalzire apa piscina | J33: Circulatiepomp zwembadverwarming | K33: Cirkulācijas sūknis peldbaseina ūdens uzsildīšanai | L33: Pompa obiegowa do podgrzewania wody basenowej | M33: Bomba de recirculação para o aquecimento da água da piscina | N33: Циркуляционный насос нагрева теплообменника бассейна | O33: Yüzme havuzu suyunu ısıtmak için sirkülasyon pompası | P33: Oběhové čerpadlo pro ohřev vody v bazénu | Q33: Uima-allasveden lämmityksen kiertopumppu | R33: Циркулационна помпа за загряване на водата в плувния басейн | S33: Αντλία κυκλοφορίας για θέρμανση νερού κολυμβητήριου | T33: Keringető szivattyú, medence vízmelegítés | U33: Cirkuliacinis siurblys plaukimo baseino vandens šildymui | V33: basseiniveesoojenduse ringluspump | W33: Cirkulationspumpe til svømmebassin-vandopvarmning | X33: Obehové čerpadlo pre ohrievanie vody bazénu
A34: Circulation pump: Solar DHE heating | B34: Umwälzpumpe für die Solaranlage Warmwasserbereitung | C34: Circulation pump: Solar DHE heating | D34: Bomba de circulación: Solar, producción de ACS | E34: Cirkulationspump: Sol DHE uppvärmning | F34: Nor | G34: Circolatore: Sistema solare per ACS | H34: Circulateur ECS installation solaire | I34: Pompa de circulatie: Panouri solare-Boiler | J34: Circulatiepomp solar warmwaterondersteuning | K34: Cirkulācijas sūknis solārajai iekārtai, karstā ūdens uzsildīšana | L34: Pompa obiegowa do przygotowania ciepłej wody w instalacji solarnej | M34: Bomba de recirculação para a instalação solar, aquecimento de água sanitária | N34: Циркуляционный насос солнечного коллектора | O34: Güneş ısıtma sistemi sıcak su ısıtmak için sirkülasyon pompası | P34: Oběhové čerpadlo pro solární zařízení na ohřev vody | Q34: Aurinkolämpöjärjestelmän kiertopumppu, käyttöveden lämmitys | R34: Циркулационна помпа за соларната инсталация получаване на топла вода | S34: Αντλία κυκλοφορίας για την ηλιακή εγκατάσταση παραγωγής ζεστού νερού | T34: Keringető szivattyú, szolárrendszer melegvízkészítés | U34: Cirkuliacinis siurblys saulės kolektorių sistemos karšto vandens ruošimui | V34: solaarsüsteemi veesoojenduse ringluspump | W34: Cirkulationspumpe til solaranlæg brugsvandsopvarmning | X34: Obehové čerpadlo pre solárny kolektor Príprava teplej vody
A35: Circulation pump: Solar heating system | B35: Umwälzpumpe für die Solaranlage Heizungsunterstützung | C35: Circulation pump: Solar heating system | D35: Bomba de circulación: Solar, producción de calefacción | E35: Cirkulationspump: solvärmesystem | F35: Nor | G35: Circolatore: Sistema solare per riscaldamento | H35: Circulateur installation solaire appoint chauffage | I35: Pompa de circulatie: Sistem incalzire solar | J35: Circulatiepomp solar verwarmingsondersteuning | K35: Cirkulācijas sūknis solārajai iekārtai, apkures atbalsts | L35: Pompa obiegowa do wspomagania ogrzewania w instalacji solarnej | M35: Bomba de recirculação para a instalação solar, apoio do aquecimento | N35: Циркуляционный насос системы отопления солнечным коллектором | O35: Güneş ısıtma sistemi ısıtma desteği için sirkülasyon pompası | P35: Oběhové čerpadlo pro solární zařízení - podpora vytápění | Q35: Aurinkolämpöjärjestelmän kiertopumppu, lämmitys | R35: Циркулационна помпа за соларната инсталация спомагателна система за отопление | S35: Αντλία κυκλοφορίας για την ηλιακή εγκατάσταση υποστήριξης θέρμανσης | T35: Keringető szivattyú, szolárrendszer fűtésrásegítés | U35: Cirkuliacinis siurblys saulės kolektorių sistemos šildymo sistemos palaikymui | V35: solaarsüsteemi abikütte ringluspump | W35: Cirkulationspumpe til solvarmeanlæg-varmeunderstøttelse | X35: Obehové čerpadlo pre solárny kolektor Podpora ohrevu
A36: Circulation pump: Solar Swimming pool | B36: Umwälzpumpe für die Solaranlage Schwimmbadwasser | C36: Circulation pump: Solar Swimming pool | D36: Bomba de circulación: Solar, calentamiento de piscina | E36: Cirkulationspump: Sol Pool | F36: Nor | G36: Circolatore: Sistema solare per piscina | H36: Circulateur installation solaire pour piscine | I36: Pompa de circulatie: Sistem incalzire solar - pt piscina | J36: Circulatiepomp solar zwembadondersteuning | K36: Cirkulācijas sūknis solārajai iekārtai, peldbaseina ūdens | L36: Pompa obiegowa do wody basenowej w instalacji solarnej | M36: Bomba de recirculação para a instalação solar, água de piscina | N36: Циркуляционный насос подогрева бассейна (солнечный коллектор) | O36: Güneş ısıtma sistemi yüzme havuzu suyu için sirkülasyon pompası | P36: Oběhové čerpadlo pro solární zařízení - voda v bazénu | Q36: Aurinkolämpöjärjestelmän kiertopumppu, uima-allas | R36: Циркулационна помпа за соларната инсталация вода за плувния басейн | S36: Αντλία κυκλοφορίας για την ηλιακή εγκατάσταση νερού κολυμβητήριου | T36: Keringető szivattyú, szolárrendszer medencefűtés | U36: Cirkuliacinis siurblys saulės kolektorių sistemos plaukimo baseino vandeniui | V36: solaarsüsteemi basseinivee ringluspump | W36: Cirkulationspumpe til solvarmeanlæg-svømmebassinvand | X36: Obehové čerpadlo pre solárny kolektor Voda bazénu
A37: Circulation pump: Solar panel East | B37: Umwälzpumpe für die Solaranlage Feld Ost | C37: Circulation pump: Solar panel East | D37: Bomba de circulación: Panel solar Este | E37: Cirkulationspump: Solpanel Öst | F37: Nor | G37: Circolatore: Collettore solare Est | H37: Circulateur installation solaire champs de panneaux est | I37: Pompa de circulatie: Panou solar Est | J37: Circulatiepomp solarveld Oost | K37: Cirkulācijas sūknis solārajai iekārtai, panelis Austrumi | L37: Pompa obiegowa do instalacji solarnej, pole wschód | M37: Bomba de recirculação para a instalação solar, área Este | N37: Циркуляционный насос солнечного коллектора "Восток" | O37: Güneş ısıtma sistemi doğu alanı için sirkülasyon pompası | P37: Oběhové čerpadlo pro solární zařízení - pole východ | Q37: Aurinkolämpöjärjestelmän kiertopumppu, itäpuoli | R37: Циркулационна помпа за соларната инсталация зона "изток" | S37: Αντλία κυκλοφορίας για την ηλιακή εγκατάσταση Ανατολικό πεδίο | T37: Keringető szivattyú, szolárrendszer keleti mező | U37: Cirkuliacinis siurblys saulės kolektorių sistemos laukui rytuose | V37: solaarpargi (ida) ringluspump | W37: Cirkulationspumpe til solvarmeanlæg, østfelt | X37: Obehové čerpadlo pre solárny kolektor Pole Východ
A38: Circulation pump: Solar panel West | B38: Umwälzpumpe für die Solaranlage Feld West | C38: Circulation pump: Solar panel West | D38: Bomba de circulación: Panel solar Oeste | E38: Cirkulationspump: Solpanel Väst | F38: Nor | G38: Circolatore: Collettore solare Ovest | H38: Circulateur installation solaire champs de panneaux ouest | I38: Pompa de circulatie: Panou solar Vest | J38: Circulatiepomp solarveld West | K38: Cirkulācijas sūknis solārajai iekārtai, panelis Rietumi | L38: Pompa obiegowa do instalacji solarnej, pole zachód | M38: Bomba de recirculação para a instalação solar, área Oeste | N38: Циркуляционный насос солнечного коллектора "Запад" | O38: Güneş ısıtma sistemi batı alanı için sirkülasyon pompası | P38: Oběhové čerpadlo pro solární zařízení - pole západ | Q38: Aurinkolämpöjärjestelmän kiertopumppu, länsipuoli | R38: Циркулационна помпа за соларната инсталация зона "запад" | S38: Αντλία κυκλοφορίας για την ηλιακή εγκατάσταση Δυτικό πεδίο | T38: Keringető szivattyú, szolárrendszer nyugati mező | U38: Cirkuliacinis siurblys saulės kolektorių sistemos laukui vakaruose | V38: solaarpargi (lääs) ringluspump | W38: Cirkulationspumpe til solvarmeanlæg, vestfelt | X38: Obehové čerpadlo pre solárny kolektor Pole Západ
A39: Circulation pump: Solid fuel boiler | B39: Umwälzpumpe für den Feststoffkessel | C39: Circulation pump: Solid fuel boiler | D39: Bomba de circulación: Caldera de pellet / leña | E39: Cirkulationspump: vedpanna | F39: Nor | G39: Circolatore: Caldaia a combustibile solido | H39: Circulateur chaudière bois/coke | I39: Pompa de circulatie: Cazan combustibil solid | J39: Circulatiepomp houtkachel | K39: Cirkulācijas sūknis cietā kurināmā katlam | L39: Pompa obiegowa do kotła paliwa stałego | M39: Bomba de recirculação para a caldeira de combustíveis sólidos | N39: Циркуляционный насос котла на твердом топливе | O39: Katı yakıt kazanı için sirkülasyon pompası | P39: Oběhové čerpadlo pro kotel na tuhá paliva | Q39: Kiinteän polttoaineen kattilan kiertopumppu | R39: Циркулационна помпа за отоплителния резервоар с твърдо гориво | S39: Αντλία κυκλοφορίας για τον λέβητα στερεών υλικών | T39: Keringető szivattyú, szilárdtüzelésű kazán | U39: Cirkuliacinis siurblys kietojo kuro katilui | V39: tahkekütuskatla ringluspump | W39: Cirkulationspumpe til faststofkedel | X39: Obehové čerpadlo pre kotol na tuhé palivo
A40: Circulation pump: Cooling - hest source | B40: Umwälzpumpe für die Kühlung (heizungsseitig) | C40: Circulation pump: Cooling - hest source | D40: Bomba de circulación: Refrigeración - circuito fuente | E40: Cirkulationspump: Kyla - Värme källa | F40: Nor | G40: Circolatore: Raffrescamento - sorgente di calore | H40: Circulateur rafraîchissement (côté chauffage) | I40: Pompa de circulatie: Racire - sursa | J40: Circulatiepomp koeling (afgiftezijdig) | K40: Cirkulācijas sūknis dzesēšanai (apkures pusē) | L40: Pompa obiegowa do chłodzenia (po str. ogrzewania) | M40: Bomba de recirculação para a refrigeração (do lado do aquecimento) | N40: Циркуляционный насос: охлаждение - источник тепла | O40: Soğutmaya (ısıtma tarafı) ait sirkülasyon pompası | P40: Oběhové čerpadlo pro chlazení (strana topení) | Q40: Jäähdytyksen (lämmityspuoli) kiertopumppu | R40: Циркулационна помпа за охлаждането (откъм страната на системата за отопление) | S40: Αντλία κυκλοφορίας για την ψύξη (πλευρά θέρμανσης) | T40: Keringető szivattyú, hűtés (fűtésoldali) | U40: Cirkuliacinis siurblys aušinimui (šildymo sistemos pusėje) | V40: jahutuse ringluspump (küttepoolel) | W40: Cirkulationspumpe til køling (varmeside) | X40: Obehové čerpadlo pre chladenie (na strane ohrevu)
A41: Circulation pump: Heat pump - heat source | B41: Umwälzpumpe für die Wärmepumpe (Wärmequelle) | C41: Circulation pump: Heat pump - heat source | D41: Bomba de circulación: Bomba de calor - circuito fuente | E41: Cirkulationspump: Värmepump - värmekälla | F41: Nor | G41: Circolatore: Pompa di calore - sorgente di calore | H41: Circulateur PAC (circuit primaire) | I41: Pompa de circulatie: Pompa de caldura - sursa | J41: Circulatiepomp WP (bronzijdig) | K41: Cirkulācijas sūknis siltumsūknim (siltuma avots) | L41: Pompa obiegowa do pompy ciepła (dolne źródło) | M41: Bomba de recirculação para a bomba de calor (fonte de calor) | N41: Циркуляционный насос: тепловой насос - источник тепла | O41: Isı pompasına (ısı kaynağı) ait sirkülasyon pompası | P41: Oběhové čerpadlo pro tepelné čerpadlo (tepelný zdroj) | Q41: Lämpöpumpun (lämmönlähde) kiertopumppu | R41: Циркулационна помпа за термопомпата (топлинен източник) | S41: Αντλία κυκλοφορίας για την αντλία θερμότητας (θερμική πηγή) | T41: Hőszivattyú (hőforrás) keringető szivattyúja | U41: Cirkuliacinis siurblys šilumos siurbliui (šilumos šaltinis) | V41: soojuspumba ringluspump (soojusallikas) | W41: Cirkulationspumpe til varmepumpe (varmekilde) | X41: Obehové čerpadlo pre tepelné čerpadlo (zdroj tepla)
A42: Compact installation: WPKI | B42: Kompaktinstallation, Typ WPKI | C42: Compact installation: WPKI | D42: Instalación compacta: WPKI | E42: Kompakt installation: WPKI | F42: Nor | G42: Installazione Compatta: WPKI | H42: Kit compact hydraulique, type WPKI | I42: Instalatie compacta: WPKI | J42: Compact installatie WPKI | K42: Kompaktā instalācija, tips WPKI | L42: Instalacja kompaktowa, typ WPKI | M42: Instalação compacta, tipo WPKI | N42: Компактный арматурный блок, тип WPKI | O42: Kompakt kurulum kiti, Tip WPKI | P42: Kompaktní instalace, typ WPKI | Q42: WPKI asennussarja | R42: Компактна инсталация, тип WPKI | S42: Κόμπακτ εγκατάσταση, τύπος WPKI | T42: Kompakt szerelvény, WPKI típus | U42: Kompaktiška instaliacija, tipas WPKI | V42: kompaktpaigalduse komplekt, mudel WPKI | W42: Kompaktinstallation, type WPKI | X42: Kompaktná inštalácia, typ WPKI
A43: Safety valve | B43: Sicherheitsventil | C43: Safety valve | D43: Válvula de seguridad | E43: Säkerhetsventil | F43: Nor | G43: Valvola di sicurezza | H43: Soupape de sécurité | I43: Supapa de siguranta | J43: Veiligheidsventiel | K43: Drošības vārsts | L43: Zawór bezpieczeństwa | M43: Válvula de segurança | N43: Предохранительный клапан | O43: Emniyet vanası | P43: Pojistný ventil | Q43: Varoventtiili | R43: Предпазен клапан | S43: Βαλβίδα ασφαλείας | T43: Biztonsági szelep | U43: Apsauginis vožtuvas | V43: kaitseklapp | W43: Sikkerhedsventil | X43: Poistný ventil
A44: Expansion vessel | B44: Ausdehnungsgefäß | C44: Expansion vessel | D44: Vaso de expansión | E44: Expansionskärl | F44: Nor | G44: Vaso d`espansione | H44: Vase d'expansion | I44: Vas de expansiune | J44: Expansievat | K44: Izplešanās tvertne | L44: Naczynie wzbiorcze | M44: Reservatório de expansão | N44: Расширительный бак | O44: Genleşme tankı | P44: Expanzní nádoba | Q44: Paisunta-astia | R44: Разширителен съд | S44: Δοχείο διαστολής | T44: Tágulási tartály | U44: Išsiplėtimo indas | V44: paisupaak | W44: Ekspansionsbeholder | X44: Expanzná nádoba
A45: Buffer cylinder/ low loss header | B45: Pufferspeicher / hydraulische Weiche | C45: Buffer cylinder/ low loss header | D45: Depósito de inercia / aguja hidraulica | E45: Buffert cylinder / Hydraulisk Växel | F45: Nor | G45: Serbatoio inerziale / Separatore idraulico | H45: Ballon tampon / bouteille de découplage | I45: Buffer/preselector hidraulic | J45: Buffervat / openverdeler | K45: Bufera rezervuārs / hidrauliskais kompensators | L45: Zbiornik buforowy / rozdzielacz hydrauliczny | M45: Acumulador tampão / separador hidráulico | N45: Буферная емкость / гидравлический разделитель | O45: Tampon kazan / hidrolik deflektör | P45: Akumulační zásobník / termohydraulický rozdělovač | Q45: Puskurivaraaja / hydraulinen tasaaja | R45: Буферен бойлер / хидравличен разделител | S45: Ενδιάμεσος συσσωρευτής / υδραυλική σύνδεση | T45: Puffertároló / hidraulikus szelep | U45: Buferinis rezervuaras / hidraulinis kompensatorius | V45: puhversalvesti / hüdrauliline kompensaator | W45: Bufferbeholder / hydraulisk forgrening | X45: Vyrovnávací zásobník/hydraulická výhybka
A46: Anti-vibration mount | B46: Schwingungsdämpfer oder Verbindungsschlauch | C46: Anti-vibration mount | D46: Tubo amortiguador antivibraciones | E46: Vibrationsdämpade slangar | F46: Nor | G46: Tubi flessibili anti vibrazione | H46: Flexible anti-vibratoire ou tuyau de raccordement | I46: Suport antivibrant | J46: Compensator / Verbindingsslang | K46: Svārstību slāpētājs vai savienotājšļūtene | L46: Amortyzator drgań lub wąż łączący | M46: Amortecedor de vibrações ou tubo de ligação | N46: Виброгасящий шланг | O46: Amortisör veya bağlama hortumu | P46: Tlumič vibrací nebo spojovací hadice | Q46: Joustava paineletku | R46: Виброгасител или свързващ шлаух | S46: Αποσβεστήρας ταλαντώσεων ή συνδετικός ελαστικός σωλήνας | T46: Gumipuffer vagy csatlakozótömlő | U46: Vibracijų slopintuvas arba jungiamoji žarna | V46: võnkesummuti või ühendusvoolik | W46: Svingningsdæmper eller forbindelsesslange | X46: Tlmič vibrácií alebo spojovacia hadica
A47: Non-return valve | B47: Rückschlagventil | C47: Non-return valve | D47: Válvula antiretorno | E47: Backventil | F47: Nor | G47: Valvola di ritegno | H47: Clapet anti-retour | I47: Clapeta de sens | J47: Terugslagklep | K47: Pretvārsts | L47: Zawór zwrotny | M47: Válvula de retenção | N47: Обратный клапан | O47: Geri dönüşsüz vana | P47: Zpětný ventil | Q47: Takaiskuventtiili | R47: Обратен клапан | S47: Αντεπίστροφη βαλβίδα | T47: Visszacsapószelep | U47: Kontrolinis vožtuvas | V47: tagasilöögiklapp | W47: Kontraventil | X47: Spätný ventil
A48: Fill & drain valve | B48: Füll- und Entleerungshahn | C48: Fill & drain valve | D48: Válvula de llenado y vaciado | E48: Påfyllnings & botten ventil | F48: Nor | G48: Valvola di carico/scarico impianto | H48: Vanne de remplissage/vidange | I48: Robinet de umplere&golire | J48: Vul-en aftapkraan | K48: Uzpildes un iztukšošanas krāns | L48: Zawór napełniająco-spustowy | M48: Válvula de enchimento e de drenagem | N48: Кран для заполнения и слива | O48: Doldurma ve boşaltma vanası | P48: Plnicí a vypouštěcí kohout | Q48: Täyttö- ja tyhjennyshana | R48: Кран за напълване и изпразване | S48: Κρουνός πλήρωσης και εκκένωσης | T48: Töltő- és ürítőcsap | U48: Pildymo ir ištuštinimo čiaupas | V48: täite- ja tühjenduskraan | W48: Påfyldnings- og aftapningshane | X48: Plniaci a vypúšťací kohútik
A49: Oil fired boiler / Gas fired boiler | B49: Ölkessel / Gaskessel | C49: Oil fired boiler / Gas fired boiler | D49: Caldera de gasoil/gas | E49: Oljepannan / Gas panna | F49: Nor | G49: Caldaia a gasolio/gas | H49: Chaudière fioul/gaz | I49: Cazan cu functionare pe motorina / Cazan cu functionare pe gaz | J49: Gas of Olie gestookte CV ketel | K49: Mazuta katls / gāzes katls | L49: Kocioł olejowy / gazowy | M49: Caldeira de óleo / caldeira de gás | N49: Дизельный / газовый котел | O49: Yağ kazanı / gaz kazanı | P49: Olejový kotel / plynový kotel | Q49: Öljykattila/kaasukattila | R49: Маслен резервоар / газов резервоар | S49: Λέβητας πετρελαίου / λέβητας φυσικού αερίου | T49: Olajkazán / Gázkazán | U49: Mazuto katilas / dujų katilas | V49: õlikatel / gaasikatel | W49: Oliekedel / Gaskedel | X49: Olejový/plynový kotol
A50: Electric central heating | B50: Elektro-Zentralheizung | C50: Electric central heating | D50: Calefacción eléctrica centralizada | E50: Elektrisk centralvärme | F50: Nor | G50: Riscaldamento elettrico centralizzato | H50: Chauffage central électrique | I50: Incalzire centrala electrica | J50: Elektrische CV ketel | K50: Elektriskā centrālapkure | L50: Centralne ogrzewanie elektryczne | M50: Aquecimento central eléctrico | N50: Электрическая система отопления | O50: Elektrikli merkezi ısıtma | P50: Elektrické ústřední topení | Q50: Sähkökeskuslämmitys | R50: Електрическа централна система за отопление | S50: Ηλεκτρική κεντρική θέρμανση | T50: Elektromos központi fűtés | U50: Elektrinė centrinio šildymo sistema | V50: elektrikeskküte | W50: Elektrisk ekstraopvarmning | X50: Elektrické ústredné vykurovanie
A51: Mixing valve | B51: Mischventil | C51: Mixing valve | D51: Válvula mezcladora | E51: Shuntventil | F51: Nor | G51: Valvola miscelatrice | H51: Vanne mélangeuse | I51: Vana de amestec | J51: Mengventiel | K51: Maisītājvārsts | L51: Zawór mieszający | M51: Válvula misturadora | N51: Смесительный клапан | O51: Karıştırma vanası | P51: Směšovací ventil | Q51: Sekoitusventtiili | R51: Смесителен клапан | S51: Βαλβίδα ανάμειξης | T51: Keverőszelep | U51: Maišymo vožtuvas | V51: segisti | W51: blandingsventil | X51: Zmiešavací ventil
A52: Mixing valve actuator | B52: Stellmotor für Mischventil | C52: Mixing valve actuator | D52: Servomotor para válvula mezcladora | E52: Ställdon shuntventil | F52: Nor | G52: Attuatore Valvola Miscelatrice | H52: Moteur pour vanne mélangeuse | I52: Servomotor pentru vana de amestec | J52: Aandrijfmotor voor mengventiel | K52: Maisītājvārsta servodzinējs | L52: Siłownik do zaworu mieszającego | M52: Actuador para válvula misturadora | N52: Сервопривод смесительного клапана | O52: Karıştırma vanası için servo motor | P52: Servomotor pro směšovací ventil | Q52: Sekoitusventtiilin toimilaite | R52: Управляващ двигател за смесителния клапан | S52: Σερβοκινητήρας για βαλβίδα ανάμειξης | T52: Szelepmotor keverőszelephez | U52: Vykdomasis variklis maišymo vožtuvui | V52: segisti täiturmootor | W52: Servomotor til shuntventil | X52: Servomotor pre zmiešavací ventil
A53: Heating control unit | B53: Heizungsregelgerät | C53: Heating control unit | D53: Control de temperatura (calefacción) | E53: Styrenhet uppvärmning | F53: Nor | G53: Termoregolatore | H53: Régulation de chauffage | I53: Unitate de control incalzire | J53: Regelunit verwarming | K53: Apkures regulators | L53: Regulator ogrzewania | M53: Controlador do aquecimento | N53: Система управления контуром отопления | O53: Isıtma kontrol cihazı | P53: Regulační zařízení topení | Q53: Lämmityksen säätölaite | R53: Устройство за регулиране на системата за отопление | S53: Ρυθμιστική συσκευή θέρμανσης | T53: Fűtésszabályozó készülék | U53: Šildymo sistemos reguliavimo prietaisas | V53: kütte juhtseade | W53: Varmestyreenhed | X53: Regulačná jednotka ohrevu
A54: Remote set value selector | B54: Sollwertfernversteller | C54: Remote set value selector | D54: Control remoto de valor de consigna | E54: Fjärrinställning av börvärden | F54: Nor | G54: Centralina remota | H54: Commande à distance de la consigne | I54: Control la distanta | J54: Afstandsbediening instelwaarde | K54: Nominālās vērtības regulators - attālinātā vadība | L54: Zdalny nastawnik wartości zadanej | M54: Selector remoto do valor definido | N54: Дистанционный регулятор | O54: Nominal değer uzaktan kumandası | P54: Dálková regulace požadovaných hodnot | Q54: Ohjearvon kaukoasetin | R54: Устройство за дистанционно настройване на зададената стойност | S54: Τηλεχειριστήριο προδιαγραφόμενης τιμής | T54: Alapjel távirányító | U54: Numatytosios vertės nuotolinis valdiklis | V54: nimiväärtuste kaugseadur | W54: Fjernindstiller af nominel værdi | X54: Diaľkový regulátor požadovanej hodnoty
A55: Temperature sensor: Outside temperature | B55: Außentemperaturfühler | C55: Temperature sensor: Outside temperature | D55: Sensor de temperatura exterior | E55: Temperaturgivare: Utetemperatur | F55: Nor | G55: Sensore di temperatura: Temperatura Esterna | H55: Sonde température extérieure | I55: Senzor de temperatura: Senzor de exterior | J55: Buitentemperatuurvoeler | K55: Āra temperatūras sensors | L55: Czujnik temperatury zewnętrznej | M55: Sensor de temperatura exterior | N55: Датчик наружной температуры | O55: Harici sıcaklık sensörü | P55: Snímač venkovní teploty | Q55: Ulkolämpötila-anturi | R55: Датчик за външната температура | S55: Αισθητήρας εξωτερικής θερμοκρασίας | T55: Külső hőmérséklet-érzékelő | U55: Išorės temperatūros jutiklis | V55: välistemperatuuriandur | W55: Udetemperatursensor | X55: Snímač vonkajšej teploty
A56: Temperature sensor: Flow temperature | B56: Vorlauftemperaturfühler | C56: Temperature sensor: Flow temperature | D56: Sensor de temperatura: Temperatura de impulsión | E56: Temperaturgivare: Framledningstemperatur | F56: Nor | G56: Sensore di temperatura: Temperatura di Mandata | H56: Sonde température départ | I56: Senzor de temperatura: Senzor tur | J56: Aanvoertemperatuurvoeler | K56: Turpgaitas temperatūras sensors | L56: Czujnik temperatury zasilania | M56: Sensor de temperatura de entrada | N56: Датчик температуры подачи | O56: Akış sıcaklığı sensörü | P56: Snímač přívodní teploty | Q56: Menovirtauksen lämpötila-anturi | R56: Датчик за температурата в подаващата линия | S56: Αισθητήρας θερμοκρασίας ροής | T56: Előremenő ági hőmérséklet-érzékelő | U56: Tiekiamo srauto temperatūros jutiklis | V56: pealevoolutemperatuuri andur | W56: Fremløbstemperatursensor | X56: Snímač prívodnej teploty
A57: Air vent valve | B57: Entlüftung | C57: Air vent valve | D57: Purgador de aire | E57: Avluftningsventil | F57: Nor | G57: Valvola sfogo aria | H57: Purge | I57: Aerisitor | J57: Ontluchting | K57: Ventilācija | L57: Odpowietrzanie | M57: Exaustão | N57: Воздухоотводчик | O57: Aspiratör | P57: Odvzdušnění | Q57: Ilmausventtiili | R57: Обезвъздушаване | S57: Εξαέρωση | T57: Szellőztetés | U57: Nuorinimas | V57: õhuti | W57: Udluftning | X57: Odvzdušnenie
A58: Solid fuel boiler | B58: Feststoffkessel mit thermischer Ablaufsicherung | C58: Solid fuel boiler | D58: Caldera de Leña / Pellet (combustible solido) | E58: Vedpanna | F58: Nor | G58: Caldaia a combustibile solido | H58: Chaudière bois/coke avec sécurité thermique | I58: Cazan combustibil solid | J58: Houtkachel met thermostatische begrenzing | K58: Cietā kurināmā katls ar termisko drošības armatūru | L58: Kocioł paliwa stałego z termicznym bezpiecznikiem odpływu | M58: Caldeira de combustíveis sólidos com válvula de segurança de descarga térmica | N58: Котел на твердом топливе | O58: Isıyla etkinleştirilen emniyet vanalı katı yakıt kazanı | P58: Kotel na tuhá paliva s tepelnou pojistkou | Q58: Kiinteän polttoaineen kattilan terminen poistoventtiili | R58: Нагревателен резервоар с твърдо гориво с термична предпазна арматура | S58: Λέβητας στερεών υλικών με θερμικά ενεργοποιούμενη ασφάλεια απορροής | T58: Szilárd tüzelésű kazán termikus biztonsági szeleppel | U58: Kietojo kuro katilas su terminio proceso saugikliu | V58: tahkekütuskatel, termilise ülekuumenemiskaitsmega | W58: Faststofkedel med termisk udløbssikring | X58: Kotol na tuhé palivo s tepelnou odtokovou poistkou
A59: Motorised valve / Solenoid valve | B59: Motorventil / Magnetventil | C59: Motorised valve / Solenoid valve | D59: Válvula motorizada / válvula magnética | E59: Magnetventil | F59: Nor | G59: Valvola motorizzata / valvola a solenoide | H59: Electrovanne / vanne magnétique | I59: Electrovana / Vana cu solenoid | J59: Mengventiel / Magneetventiel | K59: Motorizētas piedziņas vārsts / magnētiskais vārsts | L59: Zawór silnikowy / zawór elektromagnetyczny | M59: Válvula motorizada / válvula magnética | N59: Приводной / электромагнитный клапан | O59: Motorla çalıştırılan vana / Selenoid vana | P59: Motorový ventil / magnetický ventil | Q59: Moottori-/magneettiventtiili | R59: Електрически клапан / електромагнитен клапан | S59: Βαλβίδα κινητήρα / ηλεκτρομαγνητική βαλβίδα | T59: Motoros szelep / Mágnesszelep | U59: Variklio vožtuvas / elektromagnetinis vožtuvas | V59: mootorventiil / solenoidklapp | W59: Motorventil / Magnetventil | X59: Motorový/magnetický ventil
A60: Diverter valve | B60: Umsteuerventil | C60: Diverter valve | D60: Válvula desviadora | E60: Växelventil | F60: Nor | G60: Valvola deviatrice | H60: Vanne d'inversion | I60: Vana deviatoare | J60: Omschakelventiel | K60: Virzienmaiņas vārsts | L60: Zawór sterujący | M60: Válvula inversora | N60: Реверсивный клапан | O60: Değiştirme vanası | P60: Přepínací ventil | Q60: Suunnanvaihtoventtiili | R60: Реверсивен клапан | S60: Βαλβίδα κατευθυντικού ελέγχου | T60: Irányváltó szelep | U60: Reversinis vožtuvas | V60: ümberlülitusventiil | W60: Bypassventil | X60: Vratný ventil
A61: Threaded immersion heater | B61: Einschraubheizkörper | C61: Threaded immersion heater | D61: Resistencia eléctrica de inmersión | E61: Elpatron | F61: Nor | G61: Resistenze elettriche a immersione con attacco filettato | H61: Corps de chauffe à visser | I61: Rezistenta electrica | J61: Inschroef verwarmingselement | K61: Ieskrūvējams sildķermenis | L61: Grzałka wkręcana | M61: Unidade de aquecimento de enroscar | N61: Нагревательный элемент | O61: Vidalı daldırma tip ısıtıcı | P61: Šroubovací topné těleso | Q61: Sähkövastus | R61: Нагревателен елемент с резба | S61: Κοχλιωτό θερμαντικό σώμα | T61: Becsavarható fűtőtest | U61: Įsukamas šildytuvas | V61: sissekeeratav küttekeha | W61: El-patron | X61: Závitové vykurovacie teleso
A62: Heat exchanger | B62: Wärmeaustauscher | C62: Heat exchanger | D62: Intercambiador de calor | E62: Värmeväxlare | F62: Nor | G62: Scambiatore di calore | H62: Échangeur | I62: Schimbator de caldura | J62: Warmtewisselaar | K62: Siltummainis | L62: Wymiennik ciepła | M62: Permutador de calor | N62: Теплообменник | O62: Isı eşanjörü | P62: Výměník tepla | Q62: Lämmönsiirrin | R62: Топлообменник | S62: Εναλλάκτης θερμότητας | T62: Hőcserélő | U62: Šilumokaitis | V62: soojusvaheti | W62: Varmeveksler | X62: Tepelný výmenník
A63: Combi cylinder | B63: Kombispeicher | C63: Combi cylinder | D63: Depósito mixto: Inercia / ACS | E63: Kombitank | F63: Nor | G63: Accumulo Combi | H63: Ballon combiné | I63: Cilindru combi | J63: Combi boiler | K63: Kombinētais rezervuārs | L63: Zasobnik kombinowany | M63: Acumulador combinado | N63: Комбинированный накопительный водонагреватель | O63: Kombi kazan | P63: Kombinovaný zásobník | Q63: Yhdistelmävaraaja | R63: Комбиниран бойлер | S63: Σύνθετος συσσωρευτής | T63: Kombi melegvíztároló | U63: Kombinuotas rezervuaras | V63: kombisalvesti | W63: Kombibeholder | X63: Kombinovaný zásobník
A64: DHW cylinder | B64: Warmwasserspeicher | C64: DHW cylinder | D64: Depósito de ACS | E64: VV cylinder | F64: Nor | G64: Accumulo ACS | H64: Ballon d'ECS | I64: Boiler | J64: Warmwaterboiler | K64: Karstā ūdens rezervuārs | L64: Zasobnik ciepłej wody | M64: Acumulador de água quente | N64: Водонагревательная емкость | O64: Sıcak su kazanı | P64: Zásobník teplé vody | Q64: Käyttövesivaraaja | R64: Бойлер за топла вода | S64: Συσσωρευτής ζεστού νερού | T64: Melegvíztároló | U64: Karšto vandens rezervuaras | V64: soojaveesalvesti | W64: Varmtvandsbeholder | X64: Zásobník teplej vody
A65: Central control thermostat | B65: Zentralthermostat | C65: Central control thermostat | D65: Termostato principal | E65: Central termostat | F65: Nor | G65: Termostato centralizzato | H65: Thermostat central | I65: Termostat control central | J65: Centrale thermostaat | K65: Centrālais termostats | L65: Centralny termostat | M65: Termóstato central | N65: Термостат, централизованное управление | O65: Merkezi termostat | P65: Centrální termostat | Q65: Keskustermostaatti | R65: Централен термостат | S65: Κεντρικός θερμοστάτης | T65: Központi termosztát | U65: Centrinis termostatas | V65: kesktermostaat | W65: Centraltermostat | X65: Centrálny termostat
A66: Cold water - safety equipment assembly | B66: Kaltwasser-Sicherheitsgruppe nach DIN 1988 | C66: Cold water - safety equipment assembly | D66: Grupo de seguridad de agua fría | E66: Kallt vatten - säkerhetsutrustningen montering | F66: Nor | G66: Gruppo di sicurezza carico acqua fredda | H66: Groupe de sécurité eau froide | I66: Apa rece - grup de siguranta | J66: Koudwater veiligheidsgroep | K66: Aukstā ūdens drošības grupa, atbilstoša DIN 1988 | L66: Zespół ochronny do zimnej wody wg DIN 1988 | M66: Grupo de segurança de água fria de acordo com a norma DIN 1988 | N66: Предохранительный узел холодной воды | O66: DIN 1988'e uygun soğuk su emniyet grubu | P66: Bezpečnostní skupina pro studenou vodu podle DN 1988 | Q66: Kylmän veden varolaiteryhmä, SFS 1988:n mukainen | R66: Предпазен блок за студената вода по DIN 1988 | S66: Ομάδα ασφαλείας κρύου νερού κατά DIN 1988 | T66: DIN 1988 szabványnak megfelelő hidegvizes biztonsági szivattyú | U66: Šalto vandens saugos grupė pagal DIN 1988 | V66: külmavee ohutusseadiste sõlm (vastab normile DIN 1988) | W66: Koldtvands-sikkerhedsgruppe iht. DIN 1988 | X66: Studená voda-poistné skupinové zariadenie podľa DIN 1988
A67: Controller: Swimming pool water | B67: Temperaturregler für Schwimmbadwasser | C67: Controller: Swimming pool water | D67: Control: Agua de piscina | E67: Styrenhet: Vatten Simbassäng | F67: Nor | G67: Termoregolatore per riscaldamento piscina | H67: Régulateur de température eau piscine | I67: Controler: Apa piscina | J67: Temperatuurregelaar voor zwembad | K67: Peldbaseina ūdens temperatūras regulators | L67: Regulator temperatury wody basenowej | M67: Regulador de temperatura da água da piscina | N67: Контроллер системы подогрева бассейна | O67: Yüzme havuzu suyu için sıcaklık regülatörü | P67: Regulátor teploty pro vodu v bazénu | Q67: Lämpötilansäädin uima-allasvedelle | R67: Терморегулатор за водата в плувния басейн | S67: Ρυθμιστής θερμοκρασίας για νερό κολυμβητήριου | T67: Medencevíz hőfokszabályozó | U67: Temperatūros reguliatorius plaukimo baseino vandeniui | V67: basseinivee temperatuuriregulaator | W67: Temperaturstyring til svømmebassinvand | X67: Regulátor teploty pre vodu bazéna
A68: Control thermostat | B68: Elektronischer Temperaturregler | C68: Control thermostat | D68: Regulador electrónico de temperatura | E68: Termostat | F68: Nor | G68: Termostato | H68: Thermostat électronique | I68: termostat de control | J68: Elektronische temparatuurregelaar | K68: Elektroniskais temperatūras regulators | L68: Elektroniczny regulator temperatury | M68: Regulador electrónico de temperatura | N68: Электронный терморегулятор | O68: Elektronik sıcaklık regülatörü | P68: Elektronický regulátor teploty | Q68: Elektroninen lämpötilansäädin | R68: Електронен терморегулатор | S68: Ηλεκτρονικός ρυθμιστής θερμοκρασίας | T68: Elektronikus hőfokszabályozó | U68: Elektroninis temperatūros reguliatorius | V68: elektrooniline temperatuuriregulaator | W68: Elektronisk temperaturstyring | X68: Elektronický regulátor teploty
A69: Overflow valve | B69: Überströmventil | C69: Overflow valve | D69: Válvula de desbordamiento | E69: Bypassventil | F69: Nor | G69: Valvola di Compensazione | H69: Vanne de décharge / by-pass | I69: Vana prea-plin | J69: Overloopventiel | K69: Pārplūdes vārsts | L69: Zawór przelewowy | M69: Válvula de segurança | N69: Перепускной клапан | O69: Taşma vanası | P69: Přepouštěcí ventil | Q69: Ylivirtausventtiili | R69: Преливен клапан | S69: Βαλβίδα υπερβολικού ρεύματος ροής | T69: Túlfolyószelep | U69: Perteklinio srauto vožtuvas | V69: ülevooluklapp | W69: overstrømventil | X69: Prepúšťací ventil
A70: cap valve | B70: Absperrschieber - gegen unbeabsichtigtes Schließen sichern | C70: cap valve | D70: Llave de corte - evitar el cierre accidental. | E70: Skjutventil | F70: Nor | G70: Valvola chiusura di servizio | H70: Vanne d'arrêt - à protéger contre une fermeture involontaire | I70: Robinet cu sertar | J70: Vergrendelbare afsluiter | K70: Aizbīdnis - nodrošināt pret nejaušu aizvēršanu | L70: Zasuwa odcinająca – zabezpieczyć przed przypadkowym zamknięciem | M70: Válvula de corrediça - proteger contra fecho acidental | N70: Запорная задвижка от непредвиденного закрытия | O70: Yanlışlıkla kapatmaya karşı kapatma sürgüsü | P70: Zajistěte uzavírací klapku proti manipulaci nepovolanými osobami | Q70: Luistiventtiili – varmista tahatonta sulkemista vastaan | R70: Спирателен шибър - осигуряване срещу неволно затваряне | S70: Σύρτης φραγής - ασφάλιση από αθέλητο κλείσιμο | T70: Tolózár - véletlen zárás ellen biztosítani kell | U70: Uždarymo sklendė – užblokuokite nuo netyčinio uždarymo | V70: sulgursiiber – tõkestada tahtmatu sulgemine | W70: Afspærringsventil - sikres imod utilsigtet lukning | X70: Posuvný uzáver - zaistenie proti neúmyselnému zatvoreniu
A71: Line regulating valve | B71: Strangregulierventil | C71: Line regulating valve | D71: Válvula de regulación | E71: Strypventil | F71: Nor | G71: Regolatore di portata | H71: Vanne limitatrice de débit | I71: Vana de echilibrare debit | J71: Debietregelventiel | K71: Sekcijas regulēšanas vārsts | L71: Zawór regulacyjny przewodu | M71: Válvula de estrangulamento | N71: Регулировочный клапан | O71: Hat regülatör vanası | P71: Ventil regulace větve | Q71: Linjansäätöventtiili | R71: Регулиращ клапан | S71: Βαλβίδα ρύθμισης γραμμής | T71: Strangszabályozó szelep | U71: Linijos reguliavimo vožtuvas | V71: haru reguleerimisventiil | W71: Strengreguleringsventil | X71: Regulačný ventil vetvy
A72: Temperature differential controller | B72: Temperatur-Differenzregelung / Regelgerät Solar | C72: Temperature differential controller | D72: Control diferencial de temperatura | E72: Temperaturdifferens reglering | F72: Nor | G72: Regolatore differenziale di temperatura | H72: Régulation différentielle de température / régulateur solaire | I72: Controler diferential de temperatura | J72: Deltatemperatuur meter / Regelunit solar | K72: Temperatūru starpības regulēšana / solārais regulators | L72: Regulator temperatury różnicowej / regulator Solar | M72: Regulação diferencial de temperatura / Controlador solar | N72: Дифференциальный регулятор температуры | O72: Sıcaklık diferansiyel kontrolü / Güneş kontrol cihazı | P72: Regulace na základě rozdílu teplot / regulační zařízení Solar | Q72: Lämpötilaeron säädin / säätölaite aurinkolämpöjärjestelmään | R72: Устройство за регулиране на разликата в температурите / регулиращо устройство Солар | S72: Ρύθμιση διαφοράς θερμοκρασίας / ρυθμιστική συσκευή ηλιακού συστήματος | T72: Hőmérsékletkülönbség-szabályozás / Szolár szabályozó | U72: Temperatūros diferencinis reguliatorius / soliarinės energijos reguliavimo prietaisas | V72: temperatuuri diferentsregulaator / solaarsüsteemi juhtseade | W72: Temperaturdifferensstyring / solvarmestyreenhed | X72: Regulácia teplotného rozdielu/Regulačná jednotka Solárny kolektor
A73: Flow limiter | B73: Strömungswächter | C73: Flow limiter | D73: Limitador de flujo | E73: Flödesbegränsare | F73: Nor | G73: Misuratore di portata | H73: Contrôleur de débit | I73: Limitator de debit | J73: Stromingsschakelaar | K73: Plūsmas kontrolierīce | L73: Przepływomierz | M73: Controlador de fluxo | N73: Ограничитель потока | O73: Akış sınırlandırıcı | P73: Kontrola průtoku | Q73: Virtausvahti | R73: Контролен датчик за водния поток | S73: Διάταξη επιτήρησης ρεύματος ροής | T73: Áramlásőr | U73: Srauto kontrolės įtaisas | V73: vooluhulga kontrollseade | W73: Flow-pressostat | X73: Obmedzovač prietoku
A74: High limit thermostat - underfloor heating system | B74: Schutztemperturregler-Fußbodenheizung | C74: High limit thermostat - underfloor heating system | D74: Desconector por alta temperatura. Protección de suelo radiante. | E74: Temperaturbegränsare - golvvärmesystem | F74: Nor | G74: Temostato di sicurezza riscaldamento a pavimento | H74: Thermostat de sécurité pour plancher chauffant | I74: Termostat de siguranta - circuitul de incalzire in pardoseala | J74: Temperatuurbegrenzer vloerverwarming | K74: Drošības temperatūras regulators - grīdas apsilde | L74: Regulator temperatury ochronnej ogrzewania podłogowego | M74: Regulador de temperatura de protecção, piso radiante | N74: Предохранительный термостат системы теплого пола | O74: Alttan ısıtma sistemi koruyucu sıcaklık regülatörü | P74: Bezpečnostní regulátor teploty podlahového topení | Q74: Lattialämmitys lämpötilan turvasäätimen kera | R74: Защитен терморегулатор - подово отопление | S74: Προστατευτικός ρυθμιστής θερμοκρασίας θέρμανσης δαπέδου | T74: Biztonsági hőmérséklet-szabályozó - padlófűtés | U74: Grindų šildymo sistemos apsauginis temperatūros reguliatorius | V74: põrandakütte kaitsetermostaat | W74: Beskyttelsestemperaturregulator, gulvvarmeanlæg | X74: Ochranný regulátor teploty-podlahové vykurovanie
A75: Zone valve | B75: Zonenventil | C75: Zone valve | D75: Válvula de zona | E75: Zon ventil | F75: Nor | G75: Valvola di Zona | H75: Vanne de zone | I75: Robinet de trecere | J75: Zoneventiel | K75: Zonas vārsts | L75: Zawór strefowy | M75: Válvula de zona | N75: Зональный клапан | O75: Bölge vanası | P75: Zónový ventil | Q75: Alueventtiili | R75: Зонов вентил | S75: Βαλβίδα ζώνης | T75: Zónaszelep | U75: Zoninis vožtuvas | V75: tsooniventiil | W75: Zoneventil | X75: Zónový ventil
A76: Inflow tube | B76: Einströmrohr | C76: Inflow tube | D76: Tubo de entrada de flujo | E76: Insticksrör | F76: Nor | G76: Tubo di immissione | H76: Conduite d'admission | I76: Conducta de injectie | J76: Instroombuis | K76: Ieplūdes caurule | L76: Rura napływowa | M76: Tubo do fluxo de entrada | N76: Впускная труба | O76: Akış borusu | P76: Vstupní potrubí | Q76: Tuloputki | R76: Входяща тръба | S76: Αγωγός εισροής | T76: Befolyócső | U76: Įtekėjimo vamzdis | V76: sissevoolutoru | W76: Indstrømningsrør | X76: Vtoková rúra
A77: Filter / strainer | B77: Schmutzfilter | C77: Filter / strainer | D77: Filtro de suciedad | E77: Filter / sil | F77: Nor | G77: Filtro/colino | H77: Filtre à tamis | I77: Filtru | J77: Vuilfilter | K77: Netīrumu filtrs | L77: Filtr zanieczyszczeń | M77: Filtro de sujidade | N77: Фильтр | O77: Kir filtresi | P77: Filtr na nečistoty | Q77: Likasuodatin | R77: Филтър за замърсяванията | S77: Φίλτρο ακαθαρσιών | T77: Szennyszűrő | U77: Nešvarumų filtras | V77: mudafilter | W77: smudsfilter | X77: Filter nečistôt
A78: Fancoil | B78: Gebläsekonvektor | C78: Fancoil | D78: Convector con ventilador/fancoil | E78: Fläktkonvektor | F78: Nor | G78: Fancoil | H78: Ventilo-convecteur | I78: Ventiloconvector | J78: Ventilatieconvector | K78: Konvektors ar ventilatoru | L78: Konwektor nadmuchowy | M78: Ventiloconvector | N78: Фанкойл | O78: Fanlı konvektör | P78: Konvektor s ventilátorem | Q78: Puhallinkonvektori | R78: Вентилаторан конвектор | S78: Αερόθερμο | T78: Klímakonvektor | U78: Ventiliatorinis konvektorius | V78: puhurkonvektor | W78: Blæserkonvektor | X78: Konvektor s ventilátorom
A79: Instantaneous water heater DHE | B79: Durchlauferhitzer DHE | C79: Instantaneous water heater DHE | D79: Calentador instantáneo de ACS | E79: Genomströmningsberedare DHE | F79: Nor | G79: Boiler elettrico istantaneo ACS | H79: Chauffe-eau électrique instantané DHE | I79: Resistenta electrica | J79: Doorstromer DHE | K79: Caurplūdes ūdens sildītājs DHE | L79: Ogrzewacz przepływowy DHE | M79: Esquentador DHE | N79: Проточный водонагреватель DHE | O79: Anında su ısıtıcı DHE | P79: Průtokový ohřívač DHE | Q79: Läpivirtauslämmitin DHE | R79: Проточен водонагревател DHE | S79: Στιγμιαίος θερμαστής νερού DHE | T79: Átfolyós vízmelegítő DHE | U79: Momentinis vandens šildytuvas DHE | V79: läbivooluboiler DHE | W79: Gennemstrømsvarmer DHE | X79: Prietokový ohrievač DHE
A80: Solar panel | B80: Solarkollektor | C80: Solar panel | D80: Panel Solar | E80: Solpanel | F80: Nor | G80: Collettore solare | H80: Panneau solaire | I80: Panou solar | J80: Solar collector | K80: Solārais kolektors | L80: Kolektor solarny | M80: Colector solar | N80: Солнечный коллектор | O80: Güneş enerjisi kolektörü | P80: Solární kolektor | Q80: Aurinkokeräin | R80: Соларен колектор | S80: Ηλιακός συλλέκτης | T80: Napkollektor | U80: Saulės kolektorius | V80: solaarkollektor | W80: Solarkollektor | X80: Solárny kolektor
A81: Elecrtical heating flang | B81: Elektroheizflansch | C81: Elecrtical heating flang | D81: Resistencia de calefacción electrónica | E81: Elpatron flänsanslutning | F81: Nor | G81: Flangia Resistenza elettrica supplementare | H81: Bride électrique | I81: Flasa incalzire electrica | J81: Elektrisch verwarmingselement | K81: Elektriski apsildāms atloks | L81: Elektryczny kołnierz grzejny | M81: Flange de aquecimento eléctrico | N81: Фланец с нагревательными ТЭНами | O81: Elektrikli ısıtıcı flanşı | P81: Elektrická topná příruba | Q81: Sähkövastus | R81: Електронагревателен фланец | S81: Ηλεκτροθερμική φλάντζα | T81: Elektromos fűtőbetét | U81: Elektrinė šildymo jungė | V81: elektriline kütteelement, äärikuga | W81: Elektrisk varmeflange | X81: Elektrická vykurovacia príruba
A82: Heat utilisation system | B82: Wärmenutzungsanlage | C82: Heat utilisation system | D82: Sistema emisor de calor | E82: Värmekrets | F82: Nor | G82: Sistema di utilizzo del calore | H82: Installation de chauffage / émetteurs de chaleur | I82: Sistem de utilizare a incalzirii | J82: Warmte-installatie | K82: Siltuma izmantošanas iekārta | L82: Instalacja wykorzystująca ciepło | M82: Sistema de aproveitamento de calor | N82: Система отопления | O82: Isı kullanım sistemi | P82: Zařízení na využití tepla | Q82: Lämmönkäyttölaitteisto | R82: Инсталация за използване на топлината | S82: Εγκατάσταση αξιοποίησης θερμότητας | T82: Hőhasznosító berendezés | U82: Šilumos panaudojimo sistema | V82: soojust tarbiv süsteem | W82: Varmeudnyttelsesanlæg | X82: Zariadenie využívajúce teplo
A83: Heat source system | B83: Wärmequellenanlage | C83: Heat source system | D83: Sistema captador de energía | E83: Värmekälla system | F83: Nor | G83: Sistema sorgente di calore | H83: Installation source de chaleur / circuit primaire | I83: Sistem sursa incalzire | J83: Broninstallatie | K83: Siltuma avota iekārta | L83: System dolnego źródła | M83: Instalação de fonte de calor | N83: Источник тепла | O83: Isı kaynağı sistemi | P83: Zařízení s tepelným zdrojem | Q83: Lämmönlähdelaitteisto | R83: Инсталация на топлинния източник | S83: Εγκατάσταση θερμικής πηγής | T83: Hőforrás berendezés | U83: Šilumos šaltinio sistema | V83: soojusallikasüsteem | W83: Varmekildeanlæg | X83: Zariadenie zdroja tepla
A84: Solar panel | B84: Solarkollektoren | C84: Solar panel | D84: Sistema de paneles solares | E84: Solpanel | F84: Nor | G84: Collettore solare | H84: Panneaux solaires | I84: Panou solar | J84: Solar collector | K84: Solārie kolektori | L84: Kolektory solarne | M84: Colectores solares | N84: Солнечный коллектор | O84: Güneş enerjisi kolektörleri | P84: Solární kolektory | Q84: Aurinkokeräimet | R84: Соларни колектори | S84: Ηλιακοί συλλέκτες | T84: Napkollektorok | U84: Saulės kolektoriai | V84: solaarkollektorid | W84: Solarkollektorer | X84: Solárne kolektory
A85: Cooling system | B85: Kühlanlage | C85: Cooling system | D85: Sistema de refrigeración | E85: Kylsystem | F85: Nor | G85: Sistema di raffrescamento | H85: Installation de rafraîchissement | I85: Sistem racire | J85: Koelinstallatie | K85: Dzesēšanas iekārta | L85: Instalacja chłodnicza | M85: Instalação de refrigeração | N85: Система охлаждения | O85: Soğutma sistemi | P85: Chladicí zařízení | Q85: Jäähdytyslaitteisto | R85: Охладителна инсталация | S85: Εγκατάσταση ψύξης | T85: Hűtőberendezés | U85: Aušinimo sistema | V85: jahutussüsteem | W85: Køleanlæg | X85: Chladiace zariadenie
A86: Radiator heating system | B86: Heizkörperheizung | C86: Radiator heating system | D86: Sistema de calefacción por radiadores | E86: Radiator värmesystem | F86: Nor | G86: Sitema riscaldamento a radiatori | H86: Chauffage par radiateurs | I86: Sistem incalzire cu radiatoare | J86: Radiatorverwarming | K86: Apkure ar sildķermeņiem | L86: Ogrzewanie grzejnikowe | M86: Aquecimento por radiadores | N86: Радиаторное отопление | O86: Radyatörlü ısıtıcı | P86: Ohřev topného tělesa | Q86: Patterilämmitys | R86: Система за отопление с нагревателни елементи | S86: Θέρμανση θερμαντικού σώματος | T86: Fűtőtestes fűtés | U86: Radiatorinio šildymo sistema | V86: radiaatorküttesüsteem | W86: Radiatorvarme | X86: Ohrev vykurovacími telesami
A87: Underfloor heating system | B87: Flächenheizung | C87: Underfloor heating system | D87: Sistema de suelo radiante | E87: Golvvärmesystem | F87: Nor | G87: Sistema riscaldamento a pavimento | H87: Chauffage par plancher chauffant | I87: Sistem de incalzire in pardoseala | J87: Vloer-/Wand-verwarming | K87: Grīdas apsilde | L87: Ogrzewanie powierzchniowe | M87: Aquecimento de áreas | N87: Система отопления пола | O87: Yüzey ısıtma sistemi | P87: Plošné topení | Q87: Pintalämmitys | R87: Система за панелно отопление | S87: Επιφανειακή θέρμανση | T87: Falfűtés | U87: Plokštuminio šildymo sistema | V87: kiirgusküte | W87: Gulvvarme | X87: Povrchové vykurovanie
A88: DHW | B88: Warmwasser | C88: DHW | D88: Agua caliente sanitaria | E88: VV | F88: Nor | G88: ACS | H88: Eau Chaude Sanitaire | I88: Apa calda menajera | J88: Warmwater | K88: Karstais ūdens | L88: Ciepła woda | M88: Água quente | N88: Горячая вода | O88: Sıcak su | P88: Teplá voda | Q88: Lämmin käyttövesi | R88: Топла вода | S88: Ζεστό νερό | T88: Melegvíz | U88: Karštas vanduo | V88: soe vesi | W88: Varmt vand | X88: Teplá voda
A89: Swimming pool water | B89: Schwimmbadwasser | C89: Swimming pool water | D89: Agua piscina | E89: Simbassäng vatten | F89: Nor | G89: Acqua della piscina | H89: Eau de piscine | I89: Apa piscina | J89: Zwembadwater | K89: Peldbaseina ūdens | L89: Woda basenowa | M89: Água da piscina | N89: Вода для бассейна | O89: Yüzme havuzu suyu | P89: Voda v bazénu | Q89: Uima-allasvesi | R89: Вода за плувния басейн | S89: Νερό κολυμβητήριου | T89: Medencevíz | U89: Plaukimo baseino vanduo | V89: basseinivesi | W89: Svømmebassinvand | X89: Voda bazéna
A90: Version | B90: Stand | C90: Version | D90: Versión | E90: Version | F90: Nor | G90: Versione | H90: Version | I90: Vesiune | J90: Versie | K90: Sagatavots | L90: Stan | M90: De | N90: Версия | O90: Sürüm | P90: Stav | Q90: Versio | R90: Състояние | S90: Έκδοση | T90: Szint | U90: Redakcija | V90: Seisuga: | W90: Stand | X90: Stav
A91: DESIGN INFORMATION | B91: PLANUNGSHINWEISE | C91: DESIGN INFORMATION | D91: Información de diseño | E91: Tekniska data | F91: Nor | G91: Informazioni di progetto | H91: Indications pour planification | I91: Informatii proiectare | J91: Ontwerp uitgangspunten | K91: PROJEKTĒŠANAS DATI | L91: WSKAZÓWKI DOTYCZĄCE PROJEKTOWANIA | M91: INDICAÇÕES DE PLANEAMENTO | N91: РЕКОМЕНДАЦИИ ПО ПРОЕКТИРОВАНИЮ | O91: TASARIM BİLGİLERİ | P91: POKYNY K PLÁNOVÁNÍ | Q91: SUUNNITTELUTIEDOT | R91: УКАЗАНИЯ ЗА ПРОЕКТИРАНЕ | S91: ΟΔΗΓΙΕΣ ΣΧΕΔΙΑΣΜΟΥ | T91: TERVEZÉSI ÚTMUTATÓ | U91: PLANAVIMO NUORODOS | V91: PROJEKTEERIMISJUHISED | W91: PLANLÆGNINGSHENVISNINGER | X91: POKYNY K PROJEKTOVANIU
A92: Air/Water Heat pumps | B92: Luft-Wasser-Wärmepumpen | C92: Air/Water Heat pumps | D92: Bomba de calor aire/agua | E92: Luft / Vatten Värmepumpar | F92: Nor | G92: Pompa di Calore Aria/Acqua | H92: Pompes à chaleur Air/Eau | I92: Pompa de caldura aer-apa | J92: Lucht / water WP | K92: Gaisa-ūdens siltumsūkņi | L92: Pompy ciepła powietrze/woda | M92: Bombas de calor ar-água | N92: Тепловые насосы типа "воздух-вода" | O92: Hava-Su-Isı pompaları | P92: Vzduchová/vodní tepelná čerpadla | Q92: Ulkoilma-vesilämpöpumput | R92: Термопомпи тип “въздух-вода” | S92: Αντλίες θερμότητας αέρα-νερού | T92: Levegő-víz hőszivattyúk | U92: Oro-vandens šilumos siurbliai | V92: Õhk-vesi-soojuspumbad | W92: Luft-vand-varmepumper | X92: Tepelné čerpadlá vzduch-voda
A93: Hydraulic connection | B93: Hydraulischer Anschluss | C93: Hydraulic connection | D93: Conexión hidráulica | E93: Hydraulisk anslutning | F93: Nor | G93: Connessioni idrauliche | H93: Raccord hydraulique | I93: Conexiuni hidraulice | J93: Hydraulische aansluiting | K93: Hidrauliskais pieslēgums | L93: Podłączenie hydrauliczne | M93: Ligação hidráulica | N93: Дополнительное оборудование | O93: Hidrolik bağlantısı | P93: Hydraulické připojení | Q93: Hydrauliliitäntä | R93: Хидравлично свързване | S93: Υδραυλική σύνδεση | T93: Hidraulikus csatlakozó | U93: Hidraulikos prijungimas | V93: Hüdraulikaühendus | W93: Hydraulisk tilslutning | X93: Hydraulická prípojka
A94: Heating | B94: Heizung | C94: Heating | D94: Calefacción | E94: Uppvärmning | F94: Nor | G94: Riscaldamento | H94: Chauffage | I94: Incalzire | J94: Verwarming | K94: Apkure | L94: Ogrzewanie | M94: Aquecimento | N94: Отопление | O94: Isıtma sistemi | P94: Vytápění | Q94: Lämmitys | R94: Система за отопление | S94: Θέρμανση | T94: Fűtés | U94: Šildymo sistema | V94: Küte | W94: Varme | X94: Ohrev
A95: Pipe diameter | B95: Rohrdurchmesser | C95: Pipe diameter | D95: Diámetro de tubo | E95: Rördiameter | F95: Nor | G95: Diametro Tubo | H95: Diamètre tuyaux | I95: Diametru teava | J95: Leiding diameter | K95: Caurules diametrs | L95: Średnica rury | M95: Diâmetro do tubo | N95: Диаметр трубопроводов | O95: Boru çapı | P95: Průměr trubky | Q95: Putken halkaisija | R95: Диаметър на тръбата | S95: Διάμετρος αγωγού | T95: Csőátmérő | U95: Vamzdžio skersmuo | V95: Toruläbimõõt | W95: Rørdiameter | X95: Priemer rúry
A96: Pump | B96: Umwälzpumpe | C96: Pump | D96: Bomba circuladora | E96: Pump | F96: Nor | G96: Pompa | H96: Circulateur | I96: Pompa | J96: Circulatiepomp | K96: Cirkulācijas sūknis | L96: Pompa obiegowa | M96: Bomba de recirculação | N96: Циркуляц. насос | O96: Sirkülasyon pompası | P96: Cirkulační čerpadlo | Q96: Latauspumppu | R96: Циркулационна помпа | S96: Αντλία κυκλοφορίας | T96: Keringetőszivattyú | U96: Cirkuliacinis siurblys | V96: Ringluspump | W96: Cirkulationspumpe | X96: Obehové čerpadlo
A97: Expansion vessel | B97: Ausdehnungsgefäß | C97: Expansion vessel | D97: Vaso de expansión | E97: Expansionskärl | F97: Nor | G97: Vaso d'espansione | H97: Vase d'expansion | I97: Vas de expansiune | J97: Expansievat | K97: Izplešanās tvertne | L97: Naczynie wzbiorcze | M97: Reservatório de expansão | N97: Расширительный бак | O97: Genleşme tankı | P97: Expanzní nádoba | Q97: Paisunta-astia | R97: Разширителен съд | S97: Δοχείο διαστολής | T97: Tágulási tartály | U97: Išsiplėtimo indas | V97: Paisupaak | W97: Ekspansionsbeholder | X97: Expanzná nádoba
A98: HP - Buffer cylinder | B98: WP-Pufferspeicher | C98: HP - Buffer cylinder | D98: Bomba de Calor - Depósito de Inercia | E98: Värmepump - Buffert cylinder | F98: Nor | G98: PDC - Serbatoio Inerziale | H98: Ballon tampon PAC | I98: Pompa de caldura - Buffer | J98: WP Buffervat | K98: WP-bufera rezervuārs | L98: Zbiornik buforowy PC | M98: Acumulador tampão WP | N98: ТН - буферная емкость | O98: WP tampon kazan | P98: Akumulační zásobník tepelného čerpadla | Q98: LP-puskurivaraaja | R98: ТП буферен бойлер | S98: Ενδιάμεσος συσσωρευτής αντλίας θερμότητας | T98: Hőszivattyú puffertároló | U98: ŠS-buferinis rezervuaras | V98: Soojuspumba (SP) puhversalvesti | W98: VP-bufferbeholder | X98: Vyrovnávací zásobník TČ
A99: HP - DHW cylinder | B99: WP-Warmwasserspeicher | C99: HP - DHW cylinder | D99: Bomba de Calor - Depósito de ACS | E99: Värmepump - VV cylinder | F99: Nor | G99: PDC - Accumulo ACS | H99: Ballon ECS PAC | I99: Pompa de caldura - Cilindru preparare acm | J99: WP Warmwaterboiler | K99: WP-karstā ūdens rezervuārs | L99: Zasobnik c.w.u. PC | M99: Acumulador de água quente WP | N99: ТН - водонагреватель | O99: WP sıcak su kazanı | P99: Ohřívač vody tepelného čerpadla | Q99: LP-käyttövesivaraaja | R99: ТП бойлер за топла вода | S99: Συσσωρευτής ζεστού νερού αντλίας θερμότητας | T99: Hőszivattyú melegvíztároló | U99: ŠS-karšto vandens rezervuaras | V99: SP soojaveesalvesti | W99: VP-varmtvandsbeholder | X99: Zásobník teplej vody TČ
A100: Electrical connection | B100: Elektrischer Anschluss | C100: Electrical connection | D100: Conexión eléctrica | E100: Elanslutning | F100: Nor | G100: Allacciamenti elettrici | H100: Raccordement électrique | I100: Conexiuni electrice | J100: Elektrische aansluiting | K100: Pievienošana elektrotīklam | L100: Podłączenie elektryczne | M100: Ligação eléctrica | N100: Электрическое подсоединение | O100: Elektrik bağlantısı | P100: Elektrická přípojka | Q100: Sähköliitäntä | R100: Електрическо свързване | S100: Ηλεκτρική σύνδεση | T100: Villamos csatlakozás | U100: Elektros prijungimas | V100: Elektriühendus | W100: Elektrisk tilslutning | X100: Elektrická prípojka
A101: Compressor | B101: Verdichter | C101: Compressor | D101: Compresor | E101: Kompressor | F101: Nor | G101: Compressore | H101: Compresseur | I101: Compresor | J101: Compressor | K101: Kompresors | L101: Sprężarka | M101: Compressor | N101: Компрессор | O101: Kompresör | P101: Kompresor | Q101: Kompressori | R101: Компресор | S101: Συμπυκνωτής | T101: Kompresszor | U101: Kompresorius | V101: Kompressor | W101: Kompressor | X101: Kompresor
A102: Connecting cable | B102: Anschlusskabel | C102: Connecting cable | D102: Cable de alimentación | E102: Anslutningskabel | F102: Nor | G102: Cavo di connessione | H102: Câble de raccordement | I102: Cabluri de conectare | J102: Aansluitkabel | K102: Pieslēguma kabelis | L102: Kabel przyłączeniowy | M102: Cabo de ligação | N102: Соединительный кабель | O102: Bağlantı kablosu | P102: Přívodní kabel | Q102: Liitäntäkaapeli | R102: Свързващ кабел | S102: Καλώδιο σύνδεσης | T102: Csatlakozókábel | U102: Jungiamasis kabelis | V102: Ühenduskaabel | W102: Tilslutningskabel | X102: Pripojovací kábel
A103: Fuse | B103: Absicherung | C103: Fuse | D103: Fusible | E103: Säkring | F103: Nor | G103: Fusibile | H103: Protection | I103: Siguranta fuzibila | J103: Zekering | K103: Drošinātājs | L103: Zabezpieczenie | M103: Fusível | N103: Предохранитель | O103: Sigorta | P103: Zajištění | Q103: Suojaus | R103: Защитно устройство | S103: Ασφάλιση | T103: Biztosíték | U103: Saugiklis | V103: Kaitse | W103: Sikring | X103: Istenie
A104: DHC | B104: Zusatzheizung | C104: DHC | D104: Resistencia auxiliar | E104: DHC / Elpatron | F104: Nor | G104: DHC | H104: Chauffage d'appoint | I104: Rezistenta electrica a pompei de caldura | J104: DHC element | K104: Papildu apsilde | L104: Ogrzewanie dodatkowe | M104: Aquecimento adicional | N104: Дополнительный нагреватель | O104: Elektrikli ek ısıtıcı | P104: Přídavné topení | Q104: Lisälämmitys | R104: Допълнителна система за отопление | S104: Πρόσθετη θέρμανση | T104: Fűtésrásegítés | U104: Papildomas šildytuvas | V104: Lisaküte | W104: Ekstraopvarmning | X104: Prídavný ohrev
A105: Control circuit | B105: Steuerung | C105: Control circuit | D105: Control de circuito | E105: Manöverkrets | F105: Nor | G105: Circuiti di comando | H105: Commande | I105: Circuit de control | J105: Sturing | K105: Vadība | L105: Sterownik | M105: Comando | N105: Система управления | O105: Kontrol | P105: Vyměňte řídicí | Q105: Ohjauspiiri | R105: Управление | S105: Έλεγχος | T105: Vezérlés | U105: Valdymo blokas | V105: Juhtsüsteem | W105: Styring | X105: Riadenie
A106: BUS-cable | B106: BUS-Leitung | C106: BUS-cable | D106: Cable de comunicación BUS | E106: BUS-kabel | F106: Nor | G106: Cavo BUS | H106: Liaison BUS | I106: Cablu BUS | J106: BUS aansluiting | K106: BUS kabelis | L106: Przewód szyny | M106: Linha BUS | N106: Шина управления | O106: BUS hattı | P106: Rozvod sběrnice (BUS) | Q106: BUS-väyläjohto | R106: Шина | S106: Καλώδιο BUS | T106: Buszvezeték | U106: Magistralės laidas | V106: Siinid | W106: BUS-ledning | X106: Zbernicové vedenie
A107: Per compressor | B107: je Verdichter | C107: Per compressor | D107: por compresor | E107: Per kompressor | F107: Nor | G107: per compressore | H107: par compresseur | I107: pe compresor | J107: per compressor | K107: katram kompresoram | L107: na jedną sprężarkę | M107: por compressor | N107: на компрессор | O107: kompresör başına | P107: Na každý kompresor | Q107: per kompressori | R107: на компресор | S107: ανά συμπυκνωτή | T107: kompresszoronként | U107: vienam kompresoriui | V107: kompressori kohta | W107: pr. kompressor | X107: na kompresor
A108: Brine/Water Heat pumps | B108: Sole-Wasser-Wärmepumpen | C108: Brine/Water Heat pumps | D108: Bomba de calor Geotérmica | E108: Vätska / Vatten Värmepumpar | F108: Nor | G108: PDC Terra/acqua | H108: Pompes à chaleur Eau glycolée/Eau | I108: Pompe de caldura sol-apa | J108: Brine / water WP | K108: Sālsūdens/ūdens siltumsūkņi | L108: Pompy ciepła solanka/woda | M108: Bombas de calor terra-água | N108: Тепловые насосы типа "солевой раствор-вода" | O108: Tuzlu su-Su-Isı pompaları | P108: Solanková/vodní tepelná čerpadla | Q108: Maalämpöpumput | R108: Термопомпи тип “солен разтвор-вода” | S108: Αντλίες θερμότητας άλμης-νερού | T108: Sole-víz hőszivattyúk | U108: Sūrymo-vandens šilumos siurbliai | V108: Soolvesi-vesi-soojuspumbad | W108: Brine-vand-varmepumper | X108: Tepelné čerpadlá soľný roztok-voda
A109: Probes DN 25, max 100m | B109: Erdsonde DN 25, max. 100 m | C109: Probes DN 25, max 100m | D109: Circuito geotérmico (DN 25, máx.100 m) | E109: Borrhål DN 40 | F109: Nor | G109: sonde DN 25, max 100m | H109: Sonde géothermique DN 25, max. 100 m | I109: sonde termice DN 25, max. 100m | J109: Aardsonde DN25 max. 100 m | K109: Zemes zonde DN 25, maks. 100 m | L109: Sonda ziemna DN 25, maks. 100 m | M109: Sonda geotérmica DN 25, máx. 100 m | N109: ТН - источник тепла | O109: Jeotermik sonda DN 25, maks. 100 m | P109: Zemní sonda DN 25, max. 100 m | Q109: Lämpökaivo DN 25, maks. 100 m | R109: Земна сонда DN 25, макс. 100 m | S109: Γεωθερμικός αισθητήρας DN 25, έως 100 m | T109: Földszonda DN 25, max. 100 m | U109: Žemės zondas DN 25, maks. 100 m | V109: Maasond DN 25, max 100 m | W109: Jordsonde DN 25, maks. 100 m | X109: Zemná sonda DN 25, max. 100 m
A110: Copper | B110: Kupfer | C110: Copper | D110: Cobre | E110: Koppar | F110: Nor | G110: Rame | H110: Tuyau en cuivre | I110: Cupru | J110: Koper | K110: varš | L110: Miedź | M110: Cobre | N110: Медь | O110: Bakır | P110: Měď | Q110: Kupari | R110: Мед | S110: Χαλκός | T110: Vörösréz | U110: Varis | V110: Vask | W110: Kobber | X110: Meď
A111: plastic material | B111: Kunststoff | C111: plastic material | D111: Material plástico | E111: plastmaterial | F111: Nor | G111: Materiale Plastico | H111: Tuyau en PVC | I111: Material plastic | J111: Kunststof | K111: plastmasa | L111: Tworzywo sztuczne | M111: Plástico | N111: Пластик | O111: Plastik | P111: Plast | Q111: Muovi | R111: Пластмаса | S111: Πλαστικό | T111: Műanyag | U111: Plastikas | V111: Plast | W111: Kunststof | X111: Plast
A112: Heat source | B112: Wärmequelle | C112: Heat source | D112: Circuito geotérmico | E112: Värmekälla | F112: Nor | G112: Sorgente di calore | H112: Source | I112: Sursa de incalzire | J112: Bron | K112: Siltuma avots | L112: Dolne źródło | M112: Fonte de calor | N112: Источник тепла | O112: Isı kaynağı | P112: Zdroj tepla | Q112: Lämmönlähde | R112: Топлинен източник | S112: Θερμική πηγή | T112: Hőforrás | U112: Šilumos šaltinis | V112: Soojusallikas | W112: Varmekilde | X112: Zdroj tepla
A113: Water/Water Heat pumps | B113: Wasser-Wasser-Wärmepumpen | C113: Water/Water Heat pumps | D113: Bombas de calor agua/agua | E113: Vatten / Vatten Värmepumpar | F113: Nor | G113: PDC Acqua/Acqua | H113: Pompes à chaleur Eau/Eau | I113: Pompe de caldura apa-apa | J113: Water / Water WP | K113: Ūdens/ūdens siltumsūkņi | L113: Pompy ciepła woda/woda | M113: Bombas de calor água-água | N113: Тепловой насос типа "вода-вода" | O113: Su-Su-Isı pompaları | P113: Vodní/vodní tepelná čerpadla | Q113: Vesi-vesilämpöpumput | R113: Термопомпи тип “вода-вода” | S113: Αντλίες θερμότητας νερού-νερού | T113: Víz-víz hőszivattyúk | U113: Vandens-vandens šilumos siurbliai | V113: Vesi-vesi-soojuspumbad | W113: Vand-vand-varmepumper | X113: Tepelné čerpadlá voda-voda
A114: Well max.20 m | B114: Brunnen, max .20 m Förderhöhe | C114: Well max.20 m | D114: pozo máx. 20 m. profundidad | E114: Källa max.20 m | F114: Nor | G114: pozzo max. 20m | H114: Hauteur manométrique maximale: 20 m | I114: put max. 20m | J114: Bron max. 20m opvoerhoogte | K114: aka, padeves augstums maks. 20 m | L114: Studnia, maks. wysokość tłoczenia 20 m | M114: Poço, máx. 20 m altura de elevação | N114: Колодец, высота подачи макс. 20 м | O114: kUYULAR, maks .20 m sevk yüksekliği | P114: Studna, výtlačná výška max. 20 m | Q114: Kaivo, nostokorkeus maks. 20 m | R114: Сондаж, макс. 20 m напорна височина | S114: Φρεάτιο, έως 20 m ύψος κατάθλιψης | T114: Kutak, max. 20 m szállítási magasság | U114: Šulinys, maks. 20 m tiekimo aukštis | V114: Kaev, tõstekõrgus max 20 m | W114: Brønd, maks. 20 m transporthøjde | X114: Studňa, max. 20 m dopravná výška
A115: DESIGN CHART DIAMETER TUBE | B115: AUSLEGUNGSTABELLE ROHRLEITUNGEN | C115: DESIGN CHART DIAMETER TUBE | D115: TUBOS: SISTEMAS EN CASCADA | E115: Dimensionering röranslutning | F115: Nor | G115: Tabelle di Progetto diametro tubi | H115: Tableau de dimensionnement des tuyaux | I115: Tabel dimensionare diametre tevi | J115: Selectietabel leidingdiameter | K115: CAURUĻVADU PARAMETRU TABULA | L115: TABELA DOBORU PRZEWODÓW RUROWYCH | M115: TABELA DE LAYOUT DAS TUBAGENS | N115: РАСЧЕТНАЯ ТАБЛИЦА ДИАМЕТРОВ ТРУБОПРОВОДОВ | O115: BORU HATLARI TASARIM TABLOSU | P115: TABULKA DIMENZOVÁNÍ POTRUBÍ | Q115: PUTKIJOHTOJEN MITTATAULUKKO | R115: ОРАЗМЕРИТЕЛНА ТАБЛИЦА ТРЪБОПРОВОДИ | S115: ΠΙΝΑΚΑΣ ΚΑΘΟΡΙΣΜΟΥ ΣΩΛΗΝΩΣΕΩΝ | T115: CSŐVEZETÉK MÉRETEZŐ TÁBLÁZAT | U115: VAMZDYNŲ PROJEKTAVIMO LENTELĖ | V115: TORUSTIKU PROJEKTEERIMISTABEL | W115: DIMENSIONERINGSTABEL, RØRLEDNINGER | X115: PROJEKTOVÁ TABUĽKA VEDENIE POTRUBIA
A116: Grading for cascade | B116: Abstufung bei Kaskaden-Anlagen | C116: Grading for cascade | D116: Clasificación de sistemas en cascada | E116: Anslutningsdimensioner för Kaskad | F116: Nor | G116: Calibratura della cascata | H116: Étagement lors d'installations en cascade | I116: Trepte de cascadare | J116: Afzekering bij cascade opstelling | K116: Kaskādes iekārtu pakāpes | L116: Stopniowanie w instalacjach kaskadowych | M116: Gradação em instalações em cascata | N116: Каскадные установки | O116: Kademeli sistemlerde kademelendirme | P116: Odstupnění u kaskádových zařízení | Q116: Porrastus yhdistetyissä (kaskadi) laitteistoissa | R116: Степенуване при каскадни инсталации | S116: Κατηγοριοποίηση σε εγκαταστάσεις διαδοχικής σύνδεσης | T116: Fokozat kaszkád rendszereknél | U116: Gradacija kaskadinėse sistemose | V116: Astmikud kaskaadsüsteemide korral | W116: Trininddeling ved kaskade-anlæg | X116: Odstupňovanie pri kaskádových zariadeniach
A117: Type | B117: Typ | C117: Type | D117: Modelo | E117: Typ | F117: Nor | G117: Tipo | H117: Type | I117: Tip | J117: Type | K117: Tips | L117: Typ | M117: Modelo | N117: Тип | O117: Tip | P117: Typ | Q117: Tyyppi | R117: Тип | S117: Τύπος | T117: Típus | U117: Modelis | V117: Mudel | W117: Type | X117: Typ
A118: Volume flow | B118: Volumenstrom | C118: Volume flow | D118: Caudal | E118: Volymflöde | F118: Nor | G118: Calibratura della cascata | H118: Débit volumique | I118: Debit volumic | J118: Volumestroom | K118: Plūsmas tilpums | L118: Strumień przepływu | M118: Taxa de fluxo | N118: Объем. расход | O118: Debi | P118: Průtok | Q118: Tilavuusvirta | R118: Обемен поток | S118: Ροή όγκου | T118: Térfogatáram | U118: Debitas | V118: Vooluhulk | W118: Volumenstrøm | X118: Objemový prietok
A119: Graduation | B119: Abstufung | C119: Graduation | D119: Nivel | E119: Anslutning | F119: Nor | G119: Dimensionameto | H119: Palier | I119: Treapta | J119: Graad | K119: Pakāpe | L119: Stopniowanie | M119: Gradação | N119: Ступень | O119: Kademelendirme | P119: Odstupnění | Q119: Porrastus | R119: Степенуване | S119: Κατηγοριοποίηση | T119: Fokozat | U119: Gradacija | V119: Astmik | W119: Trininddeling | X119: Odstupňovanie
A120: PE-Tube | B120: PE-Rohr | C120: PE-Tube | D120: Tubo PE | E120: PE-slang | F120: Nor | G120: Tubi PE | H120: Tuyau PE | I120: Teava PE | J120: PE-Leiding | K120: PE caurule | L120: Rura PE | M120: Tubo PE | N120: ПЭ-труба | O120: PE boru | P120: Trubka PE | Q120: PE-putki | R120: PE-тръба | S120: Αγωγός PE | T120: PE cső | U120: PE vamzdis | V120: PE-toru | W120: PE-rør | X120: Rúra z PE
A121: Capacity | B121: Rohrinhalt | C121: Capacity | D121: Volumen | E121: Kapacitet | F121: Nor | G121: Contenuto | H121: Capacité "tube" tuyau | I121: Capacitate | J121: Inhoud leiding | K121: Caurules tilpums | L121: Pojemność rury | M121: Conteúdo do tubo | N121: Объем | O121: Boru içeriği | P121: Obsah potrubí | Q121: Putken tilavuus | R121: Обем на тръбата | S121: Περιεχόμενο αγωγού | T121: Csőtérfogat | U121: Vamzdžio tūris | V121: Toru läbilaskevõime | W121: Rørindhold | X121: Objem rúry
A122: DESIGN CHART BUFFER CYLINDER | B122: PUFFERSPEICHER | HYDRAULISCHE WEICHE | C122: DESIGN CHART BUFFER CYLINDER | D122: DEPÓSITO DE INERCIA / AGUJA HIDRÁULICA | E122: Dimensionering bufferttank | F122: Nor | G122: Tabella di Progetto Serbatoio Inerziale | H122: Ballons tampon / Bouteilles de découplage | I122: Tabel dimensionare Buffer | J122: Selectietabel Buffervat / Openverdeler | K122: BUFERA REZERVUĀRS | HIDRAULISKAIS KOMPENSATORS | L122: ZBIORNIK BUFOROWY | ROZDZIELACZ HYDRAULICZNY | M122: ACUMULADOR TAMPÃO | SEPARADOR HIDRÁULICO | N122: ПОДБОР БУФЕРНОЙ ЕМКОСТИ | O122: TAMPON KAZAN | HİDROLİK DEFLEKTÖR | P122: AKUMULAČNÍ ZÁSOBNÍK | TERMOHYDRAULICKÝ ROZDĚLOVAČ | Q122: PUSKURIVARAAJA | HYDRAULINEN TASAAJA | R122: БУФЕРЕН БОЙЛЕР | ХИДРАВЛИЧЕН РАЗДЕЛИТЕЛ | S122: ΕΝΔΙΑΜΕΣΟΣ ΣΥΣΣΩΡΕΥΤΗΣ | ΥΔΡΑΥΛΙΚΗ ΣΥΝΔΕΣΗ | T122: PUFFERTÁROLÓ | HIDRAULIKUS SZELEP | U122: BUFERINIS REZERVUARAS | HIDRAULINIS KOMPENSATORIUS | V122: PUHVERSALVESTI / HÜDRAULILINE KOMPENSAATOR | W122: BUFFERBEHOLDER | HYDRAULISK FORGRENING | X122: VYROVNÁVACÍ ZÁSOBNÍK| HYDRAULICKÁ VÝHYBKA
A123: Buffer | B123: Pufferspeicher | C123: Buffer | D123: Depósito de inercia | E123: Buffert | F123: Nor | G123: Accumulo | H123: Ballon tampon | I123: Buffer | J123: Buffervat | K123: Bufera rezervuārs | L123: Zbiornik buforowy | M123: Acumulador tampão | N123: Буферная емкость | O123: Tampon kazan | P123: Akumulační zásobník | Q123: Puskurivaraaja | R123: Буферен бойлер | S123: Ενδιάμεσος συσσωρευτής | T123: Puffertároló | U123: Buferinis rezervuaras | V123: Puhversalvesti | W123: Bufferbeholder | X123: Pufferspeicher
A124: Low Loss Header | B124: Hydraulische Weiche | C124: Low Loss Header | D124: Aguja Hidráulica | E124: Hydraulisk växel | F124: Nor | G124: Separatore Idraulico | H124: Bouteille de découplage | I124: Preselector hidraulic | J124: Openverdeler | K124: Hidrauliskais kompensators | L124: Rozdzielacz hydrauliczny | M124: Separador hidráulico | N124: Гидравл. стрелка | O124: Hidrolik deflektör | P124: Termohydraulický rozdělovač | Q124: Hydraulinen tasaaja | R124: Хидравличен разделител | S124: Υδραυλική σύνδεση | T124: Hidraulikus szelep | U124: Hidraulinis kompensatorius | V124: Hüdrauliline kompensaator | W124: Hydraulisk forgrening | X124: Hydraulická výhybka
A125: Litres | B125: Liter | C125: Litres | D125: Litros | E125: Liter | F125: Nor | G125: Litri | H125: litre | I125: Litri | J125: Liter | K125: litri | L125: l | M125: Litros | N125: л | O125: Litre | P125: Litry | Q125: litraa | R125: Литри | S125: Λίτρα | T125: liter | U125: Litrai | V125: liitrit | W125: liter | X125: Litre
A126: DESIGN CHART DHW | B126: WARMWASSERBEREITUNG | C126: DESIGN CHART DHW | D126: DEPÓSITOS DE ACS | E126: Dimensionering VV beredning | F126: Nor | G126: Tabella di Progetto Accumulo ACS | H126: Production ECS | I126: Tabel dimensionare boilere | J126: Selectietabel warmwaterbereiding | K126: KARSTĀ ŪDENS SAGATAVOŠANA | L126: PRZYGOTOWANIE CIEPŁEJ WODY | M126: AQUECIMENTO DE ÁGUA SANITÁRIA | N126: ПОДБОР ВОДОНАГРЕВАТЕЛЬНОЙ ЕМКОСТИ | O126: SU ISITMA MODU | P126: PŘÍPRAVA TEPLÉ VODY | Q126: KÄYTTÖVEDEN LÄMMITYS | R126: ПОЛУЧАВАНЕ НА ТОПЛА ВОДА | S126: ΠΑΡΑΓΩΓΗ ΖΕΣΤΟΥ ΝΕΡΟΥ | T126: MELEGVÍZKÉSZÍTÉS | U126: KARŠTO VANDENS RUOŠIMO SISTEMA | V126: SOOJA VEE TOOTMINE | W126: VARMTVANDSOPVARMNING | X126: PRÍPRAVA TEPLEJ VODY
A127: 0,25 m² -0,30 m² heat exchanger per KW heating load | B127: 0,25 m² bis 0,30 m² Wärmetauscherfläche pro KW Heizleistung nötig | C127: 0,25 m² -0,30 m² heat exchanger per KW heating load | D127: 0,25 m² -0,30 m² de intercambiador de calor por cada kW de potencia de la bomba de calor | E127: 0,25 m² -0,30 m² värmeväxlareyta per kW värmeeffekt | F127: Nor | G127: Superficie scambiatore di 0,25 m² -0,30 m² per kW di potenza di carico | H127: 0,25 à 0,30 m² de surface d'échange nécessaire par kW de puissance calorifique | I127: 0.25 m2 - 0.30 m2 suprafata schimbator de caldura | J127: 0,25 m² tot 0,30 m² warmtewisselaar | K127: Uz katru KW jaudas vajag 0,25 m² līdz 0,30 m² siltummaiņa virsmas | L127: Niezbędna powierzchnia wymiennika ciepła od 0,25 m² do 0,30 m² na kW mocy grzewczej | M127: Necessária uma superfície de troca térmica de 0,25 m² a 0,30 m² por KW de potência calorífica | N127: 0,25 м²–0,30 м² площади теплообменника на кВт мощности | O127: Beher KW ısıtma gücü için 0,25 m² ila 0,30 m² ısı eşanjörü yüzeyi gerekmektedir | P127: Na kW topného výkonu je nutná plocha výměníku tepla 0,25 m² až 0,30 m² | Q127: 0,25 m² - 0,30 m² lämmönsiirtimen pinta-ala tarvitaan yhden kW:n lämmitystehoa kohti | R127: необходима е 0,25 m² до 0,30 m² повърхност на топлообменника за KW нагревателна мощност | S127: Απαιτείται επιφάνεια εναλλάκτη θερμότητας 0,25 m² έως 0,30 m² ανά KW ισχύος θέρμανσης | T127: 0,25 m² - 0,30 m² hőcserélő felület szükséges fűtőteljesítmény kW-onként | U127: Vienam KW šildymo galios reikia nuo 0,25 m² iki 0,30 m² šilumokaičio paviršiaus ploto | V127: Küttevõimsuse 1 kW kohta on vaja 0,25–0,30 m² soojusvaheti pinda | W127: Der kræves 0,25 m² til 0,30 m² varmevekslerflade pr. KW varmeeffekt | X127: Potrebná je 0,25 m² až 0,30 m² plocha výmenníka tepla na kW ohrievacieho výkonu
A128: DHW - Temperature with heat pump max. +50°C | B128: Erreichbare Warmwassertemperatur im reinen Wärmepumpenbetrieb max. 50°C | C128: DHW - Temperature with heat pump max. +50°C | D128: ACS - Temperatura con bomba de calor max. +50ºC | E128: VV- Temperatur med värmepump max. 50 ° C | F128: Nor | G128: ACS - Temperatura massima con PDC 50°C | H128: Temp. ECS max. avec PAC seule (fonctionnement monovalent) : + 50°C | I128: Apa calda menajera - Temperatura maxima realizata cu pompa de caldura +50°C | J128: Warmwatertemperatuur met WP max. +50°C | K128: Tikai no siltumsūkņa iegūtā karstā ūdens temperatūra ir maks. 50 °C | L128: Możliwa temperatura ciepłej wody przy eksploatacji samej pompy ciepła maks. 50°C | M128: Temperatura de água atingível apenas com operação de bomba de calor máx. 50°C | N128: Температура горячей воды в режиме работы теплового насоса макс. 50°C | O128: Sadece ısı pompaları ile çalışıldığında ulaşılabilecek sıcak su sıcaklığı maks. 50°C | P128: Teplota teplé vody dosažitelná v provozu pouze s tepelným čerpadlem max. 50 °C | Q128: Saavutettu lämpimän käyttöveden lämpötila pelkässä lämpöpumppukäytössä maks. 50 °C | R128: Достижима температура на топлата вода при режим само с термопомпа макс. 50°C | S128: Επιτεύξιμη θερμοκρασία ζεστού νερού με καθαρή λειτουργία αντλίας θερμότητας έως 50°C | T128: Elérhető melegvíz hőmérséklet tisztán hőszivattyús üzemben 50°C | U128: Pasiekiama karšto vandens temperatūra gryname šilumos siurblio režime maks. 50°C | V128: Saavutatav soojaveetemperatuur (üksnes soojuspumba abil) max 50 ℃ | W128: Opnåelig varmtvandstemperatur ved ren varmepumpedrift er maks. 50°C | X128: Dosiahnuteľná teplota teplej vody iba v prevádzke tepelného čerpadla je max. 50°C
A129: * Part load mode | B129: * im Teillastbetrieb | C129: * Part load mode | D129: * en cacrgas parciales | E129: * Dellast läge | F129: Nor | G129: * Funzionameto modulare | H129: * en mode charge partielle | I129: * mod de incarcare partiala | J129: * in deellast bedrijf | K129: * daļējas slodzes režīmā | L129: * w trybie obciążenia częściowego | M129: * em operação de carga parcial | N129: * при частичной нагрузке | O129: * kısmi yük modunda | P129: *v režimu částečného zatížení | Q129: * Osakuormituksessa | R129: * при режим с частично натоварване | S129: * στη λειτουργία υπό μερικό φορτίο | T129: * részterheléses üzemben | U129: * dalinės apkrovos režime | V129: * osakoormusrežiimil | W129: * i dellastdrift | X129: * v prevádzke s čiastočným zaťažením
A130: Design: | B130: Auslegungsdaten bei: | C130: Design: | D130: Dimensionado: | E130: Design: | F130: Nor | G130: Progetto: | H130: Données de dimensionnement : | I130: Proiectare: | J130: Ontwerpdata bij: | K130: Parametru dati: | L130: Dane projektu przy: | M130: Dados técnicos | N130: Расчетные параметры при: | O130: Tasarım verileri: | P130: Údaje pro dimenzování: | Q130: Mitoituspiste: | R130: Оразмерителни данни при: | S130: Δεδομένα σχεδιασμού σε: | T130: Méretezési az alábbiakra: | U130: Projektiniai duomenys, kai: | V130: Projektandmed: | W130: Dimensioneringsdata ved: | X130: Projektové údaje pri:
A131: Heat exchanger area | B131: Tauscherfläche | C131: Heat exchanger area | D131: Superficie de intercambio de calor | E131: Värmeväxlare yta | F131: Nor | G131: Superficie richiesta scambiatore | H131: Surface échangeur | I131: Suprafata de schimb de caldura necesara | J131: Min. WT-opp. | K131: S-maiņa virsma | L131: Powierzchnia wymiennika | M131: Área do permutador de calor | N131: Площ. теплообм. | O131: Eşanjör yüzeyi | P131: Plocha výměníku | Q131: Vaadittu siirrin-m² | R131: Повърхност на топлообменника | S131: Επιφάνεια ανταλλάκτη | T131: Hőcserélő felület | U131: Šilumokaičio plotas | V131: Soojusvaheti pind | W131: Varmevekslerflade | X131: Plocha výmenníka
A132: DESIGN CHART GROUND COLLECTOR | B132: ERDREICHKOLLEKTOR | C132: DESIGN CHART GROUND COLLECTOR | D132: SISTEMA HORIZONTAL | E132: Dimensioneringstabell ytjordvärmeslingor | F132: Nor | G132: Tabella di Progetto collettore geotermico | H132: Capteur géothermique | I132: Tabel dimensionare colectori in sol | J132: Selectietabel Bodemcollector | K132: ZEMES KOLEKTORS | L132: KOLEKTOR GRUNTOWY | M132: COLECTOR TERRA | N132: РАСЧЕТ ГОРИЗОНТАЛЬНОГО ГЕОТЕРМАЛЬНОГО КОЛЛЕКТОРА | O132: JEOTERMİK KOLEKTÖR | P132: ZEMNÍ KOLEKTOR | Q132: PINTAKERUUPUTKISTO | R132: ПОЧВЕН КОЛЕКТОР | S132: ΣΥΛΛΕΚΤΗΣ ΕΔΑΦΟΥΣ | T132: FÖLDKOLLEKTOR | U132: ŽEMĖS KOLEKTORIUS | V132: MAAKOLLEKTOR | W132: JORDKOLLEKTOR | X132: ZEMNÝ KOLEKTOR
A133: Heat removal | B133: Entzugsleistung | C133: Heat removal | D133: Potencia de extracción | E133: Värmeavledning | F133: Nor | G133: Calore prelevato | H133: Puissance d'extraction | I133: Caldura extrasa | J133: Warmteverlies | K133: Ieguves jauda | L133: Wydajność poboru | M133: Potência de extracção | N133: Удельный теплосъем | O133: Çekme gücü | P133: Odběrný výkon | Q133: Saatava lämpöteho | R133: Геотермична топлинна мощност | S133: Ισχύς λήψης | T133: Hőelvonó teljesítmény | U133: Išgavimo galia | V133: Soojushõivevõimsus | W133: Optaget effekt | X133: Odvádzací výkon
A134: Heating Capacity | B134: Heizleistung | C134: Heating Capacity | D134: Pot. calorífica | E134: Värmekapacitet | F134: Nor | G134: Capacità di riscaldamento | H134: Puissance calorifique | I134: Capacitate incalzire | J134: Vermogen | K134: Sildīšanas jauda | L134: Moc grzewcza | M134: Potência calorífica | N134: Тепл. мощность | O134: Isıtma kapasitesi | P134: Topný výkon | Q134: Lämmitysteho | R134: Нагревателна мощност | S134: Ισχύς θέρμανσης | T134: Fűtőteljesítmény | U134: Šildymo galia | V134: Soojendusvõimsus | W134: Varmeeffekt | X134: Ohrievací výkon
A135: Compressor | B135: Aufnahme | C135: Compressor | D135: Compresor | E135: Kompressor | F135: Nor | G135: Compressore | H135: Puissance absorbée | I135: Compresor | J135: Afname | K135: Patēriņš | L135: Pobór | M135: Entrada | N135: Компрессор | O135: Tüketim | P135: Příkon | Q135: Ottoteho | R135: Поемане | S135: Υποδοχή | T135: Felvétel | U135: Vartojimas | V135: Võimsustarve | W135: Optag | X135: Príkon
A136: Cooling Capacity | B136: Kälteleistung | C136: Cooling Capacity | D136: Pot. frigorífica | E136: Kyleffekt | F136: Nor | G136: Capacità di raffrescamento | H136: Puissance frigorifique | I136: Capacitate racire | J136: Koelcapaciteit | K136: Dzesēšanas jauda | L136: Wydajność chłodzenia | M136: Potência de refrigeração | N136: Холод. мощность | O136: Soğutma kapasitesi | P136: Chladicí výkon | Q136: Jäähdytysteho | R136: Студопроизводителност | S136: Απόδοση ψύξης | T136: Hűtőteljesítmény | U136: Šaldymo galia | V136: Jahutusvõimsus | W136: Køleeffekt | X136: Chladiaci výkon
A137: Area | B137: Fläche | C137: Area | D137: Superficie | E137: yta | F137: Nor | G137: Area | H137: Surface | I137: Suprafata | J137: Oppervlakte | K137: Laukums | L137: Powierzchnia | M137: Área | N137: Площадь | O137: Alan | P137: Plocha | Q137: Pinta-ala | R137: Повърхност | S137: Επιφάνεια | T137: Felület | U137: Plotas | V137: Pindala | W137: Flade | X137: Plocha
A138: Traces | B138: Stränge | C138: Traces | D138: Nº de circuitos | E138: Slingor | F138: Nor | G138: Tracce | H138: Nombre de boucles | I138: Trasee | J138: Lussen | K138: Sekcijas | L138: Wiązki | M138: Cabos | N138: Ветки | O138: Kollar | P138: Řetězce | Q138: Piirit, lkm | R138: Разклонения | S138: Γραμμές διακλάδωσης | T138: Ágak | U138: Linijos | V138: Harud | W138: Strenge | X138: Vetvy
A139: Brine assembly | B139: Solebausatz | C139: Brine assembly | D139: Circulación | E139: Brine kit | F139: Nor | G139: Accessori lato sorgente | H139: Kit | I139: Distribuitor-colector | J139: Set | K139: Sālsūdens mezgls | L139: Zestaw do solanki | M139: Conjunto terra | N139: Насос солевого контура | O139: Isı kaynağı tesisat takımı | P139: Konstrukční sada k výrobě solanky | Q139: Keruupiirin pumppupaketti | R139: Комплект за солен разтвор | S139: Κιτ εγκατάστασης θερμικής πηγής | T139: Sole-készlet | U139: Sūrymo montavimo rinkinys | V139: Soolveesõlm | W139: Brine-samlesæt | X139: Súprava soľného roztoku
A140: Expansion vessel | B140: Ausdehnungsgefäß | C140: Expansion vessel | D140: Vaso de expansión | E140: Expansionskärl | F140: Nor | G140: Vaso d'espansione | H140: Vase d'expansion | I140: expansiune vas | J140: Expansievat | K140: Izplešanās tvertne | L140: Naczynie wzbiorcze | M140: Reservatório de expansão | N140: Расширительный бак | O140: Genleşme tankı | P140: Expanzní nádoba | Q140: Paisunta-astia | R140: Разширителен съд | S140: Δοχείο διαστολής | T140: Tágulási tartály | U140: Išsiplėtimo indas | V140: Paisupaak | W140: Ekspansionsbeholder | X140: Expanzná nádoba
A141: HP-Collector | B141: WP - Kollektor | C141: HP-Collector | D141: Tub.Gnral. B.Calor | E141: HP-kollektor | F141: Nor | G141: Collettore pompa di calore | H141: Collecteur PAC | I141: Pompa de caldura - Colector | J141: WP collector | K141: WP - kolektors | L141: PC – kolektor | M141: Colector WP | N141: ТН - коллектор | O141: WP kolektörü | P141: Tepelné čerpadlo - kolektor | Q141: Siirtoputki | R141: ТП - колектор | S141: Συλλέκτης αντλίας θερμότητας | T141: Hőszivattyú - kollektor | U141: ŠS - kolektorius | V141: SP – kollektor | W141: VP - Kollektor | X141: Kolektor TČ
A142: Depth of pipes | B142: Verlegetiefe der Rohre | C142: Depth of pipes | D142: Profundidad de captación | E142: Läggningsdjup | F142: Nor | G142: Profondità delle tubazioni | H142: profondeur de pose des tuyaux du capteur horizontal | I142: Adancime | J142: Inbouwdiepte | K142: Cauruļu dziļums | L142: Głębokość ułożenia rur | M142: Profundidade de colocação dos tubos | N142: Глубина закладки трубы | O142: Boruların döşeme derinliği | P142: Hloubka pokládky potrubí | Q142: Putkien asennussyvyys | R142: Дълбочина на полагане на тръбите | S142: Βάθος τοποθέτησης των αγωγών | T142: Csövek méretezési mélysége | U142: Vamzdžių klojimo gylis | V142: Torude paigaldussügavus | W142: Rørenes lægningsdybde | X142: Hĺbka kladenia rúr
A143: Depth of ground heat collector | B143: Verlegetiefe der Erdwärmekörbe | C143: Depth of ground heat collector | D143: Ground heat cones | G143: Profondità dei canestri geotermici | H143: profondeur de pose des corbeilles géothermiques | J143: Diepte aardwarmtekorf | N143: Глубина горизонтального коллектора | Q143: Maakierreputkiston syvyys | U143: Žemės šilumos krepšių įkasimo gylis | X143: Hlbka geotermálnej sondy
A144: Pipe spacing | B144: Abstand der Sonden | C144: Pipe spacing | D144: Separación entre sondas | E144: Pipe avstånd | F144: Nor | G144: Distanza tra i tubi | H144: distance entre sondes | I144: Distanta intre tevi | J144: Afstand tussen de sonden | K144: Atstatums starp zondēm | L144: Odległość sond | M144: Distância das sondas | N144: Шаг укладки | O144: Sondalar arasındaki mesafe | P144: Vzdálenost sond | Q144: Asennusväli | R144: Разстояние между сондите | S144: Απόσταση των αισθητήρων | T144: Szondák távolsága | U144: Atstumas tarp zondų | V144: Sondide vahekaugus | W144: Sondeafstand | X144: Odstup sond
A145: Concentrate | B145: Füllmischung für Erdreichkollektor | C145: Concentrate | D145: Concentración del líquido caloportador | E145: Koncentrat | F145: Nor | G145: Concentrato | H145: Mélange de remplissage pour capteur horizontal | I145: Concentrat | J145: Concentraat | K145: Pildmaisījums zemes kolektorā | L145: Mieszanka napełniająca do kolektora gruntowego | M145: Mistura de enchimento para colector terra | N145: Концентрат этиленгликоля | O145: Jeotermik kolektör için dolgu karışımı | P145: Plnicí směs pro zemní kolektor | Q145: Pintakeruuputkistoon lisättävä nesteseos | R145: Смес за напълване на ﻿почвения колектор | S145: Μίγμα πλήρωσης για συλλέκτη εδάφους | T145: Földkollektor töltet | U145: Pildymo mišinys žemės kolektoriui | V145: Maakollektori täitesegu | W145: Påfyldningsblanding for jordkollektor | X145: Plniaca zmes pre zemný kolektor
A146: Concentration | B146: Füllmischung für Erdwärmekörbe | C146: Concentration | D146: Ground heat cones | G146: Fluido per canestri geotermici | H146: Mélange de remplissage des corbeilles géothermiques | J146: Mengverhouding aardwarmtekorf | N146: Концентрация | Q146: Maakierreputkiston täyteaine | U146: Pildymo mišinys žemės šilumos krepšiams | X146: Plniaca zmes pre geotermálnu sondu
A147: Operation hours | B147: Benutzungszeit | C147: Operation hours | D147: Horas de operación | E147: Drifttimmar | F147: Nor | G147: Ore di funzionamento | H147: Durée d'utilisation | I147: Ore de functionare | J147: Draaiuren | K147: Izmantošanas ilgums | L147: Czas użytkowania | M147: Tempo de utilização | N147: Время работы | O147: Kullanım süresi | P147: Doba využití | Q147: Käyttötunnit | R147: Срок за използване | S147: Χρόνος χρήσης | T147: Használati idő | U147: Naudojimo laikas | V147: Käiduaeg | W147: Anvendelsestid | X147: Doba použitia
A148: 33 Vol % Antifrogen N (Tyfocor), 67 Vol % Water | B148: 33 Vol % Antifrogen N (Tyfocor), 67 Vol % Wasser | C148: 33 Vol % Antifrogen N (Tyfocor), 67 Vol % Water | D148: 33% Vol anticongelante N (Tyfocor), 67% Vol agua | E148: 33 Vol% Antifrogen N (Tyfocor), 67 vol% vatten | F148: Nor | G148: 33 Vol % Antigelo N (Tyfocor), 67 Vol % Acqua | H148: 33 % Antifrogen N (Tyfocor) (éthylène-glycol), 67% eau en vol. | I148: 33% Antifrogen N (Tyfocor), 67% Apa | J148: 33 Vol % Antifrogeen, 67 Vol % Water | K148: 33 % tilp. Antifrogen N (Tyfocor), 67 % tilp. ūdens | L148: Antifrogen N (Tyfocor) 33 % obj., woda 67 % obj. | M148: 33 Vol % Antifrogen N (Tyfocor), 67 Vol % água | N148: 33 % Антифрогена N (Tyfocor), 67 % воды | O148: % 33 (hacmen) Antifrogen N (Tyfocor), % 67 (hacmen) su | P148: 33 obj. % přípravku Antifrogen N (Tyfocor), 67 obj. % vody | Q148: 33 til.-% Antifrogen N (Tyfocor), 67 til.-% vettä | R148: 33 обемни % Antifrogen N (Tyfocor), 67 обемни % вода | S148: 33 % κατ' όγκο Antifrogen N (Tyfocor), 67 % κατ' όγκο νερό | T148: 33 térf% Antifrogen N (Tyfocor), 67 térf% víz | U148: 33 tūrio % Antifrogen N (Tyfocor), 67 tūrio % vandens | V148: 33 mahu% Antifrogen N (Tyfocor), 67 mahu% vett | W148: 33 vol % Antifrogen N (Tyfocor), 67 vol % vand | X148: 33 obj.% Antifrogen N (Tyfocor), 67 obj. % vody
A149: max. 1800 yearly operation hours (monovalent) | B149: max. 1800 Jahresbetriebsstunden (monovalenter Betrieb) | C149: max. 1800 yearly operation hours (monovalent) | D149: máx. 1800 horas de funcionamiento al año (modo monovalente) | E149: max. 1800 årliga drifttimmar (monovalent) | F149: Nor | G149: max.1800 ore di funzionameto annue (monovalente) | H149: 1800 heures de fonctionnement maximales par an (mode monovalent) | I149: max. 1800 ore de functionare anual (monovalent) | J149: max. 1800 draaiuren op jaarbasis (monovalent ingezet) | K149: maks. 1800 darba stundas gadā (monovalentā režīmā) | L149: Maks. 1800 godzin pracy rocznie (praca jednosystemowa) | M149: máx. 1800 horas de operação anuais (operação monovalente) | N149: макс. 1800 часов работы в год (моновалентный режим) | O149: yılda maks. 1800 çalışma saati (tekli çalıştırma) | P149: Max. 1800 provozních hodin ročně (monovalentní provoz) | Q149: maks. 1800 vuosikäyttötuntia (yksiarvoinen käyttö) | R149: макс. 1800 работни часа годишно (моновалентен режим) | S149: έως 1800 ετήσιες ώρες λειτουργίας (μονοσθενής λειτουργία) | T149: max. 1800 éves üzemóra (monovalens üzemben) | U149: maks. 1800 darbo valandų per metus (monovalentinis režimas) | V149: max 1800 töötundi aastas (ainsa soojusallikana) | W149: maks. 1.800 driftstimer pr. år (monovalent drift) | X149: max. 1800 prevádzkových hodín za rok (monovalentná prevádzka)
A150: DESIGN CHART PROBES | B150: ERDWÄRMESONDE | C150: DESIGN CHART PROBES | D150: SONDAS VERTICALES | E150: Dimensioneringstabell Borrhål | F150: Nor | G150: Tabella di progetto sonde geotermiche | H150: Sonde géothermique | I150: Tabel dimensionare sonde termice verticale | J150: Selectietabel aardcollector | K150: ĢEOTERMISKĀ ZONDE | L150: ZIEMNA SONDA CIEPLNA | M150: SONDA GEOTÉRMICA | N150: РАСЧЕТ ГЕОТЕРМАЛЬНЫХ ЗОНДОВ | O150: JEOTERMİK SONDA | P150: GEOTERMÁLNÍ SONDA | Q150: LÄMPÖKAIVO | R150: ГЕОТЕРМАЛНА СОНДА | S150: ΓΕΩΘΕΡΜΙΚΟΣ ΑΙΣΘΗΤΗΡΑΣ | T150: FÖLDHŐSZONDA | U150: ŽEMĖS ŠILUMOS ZONDAS | V150: MAASOOJUSSOND | W150: JORDVARMESONDE | X150: GEOTERMÁLNA SONDA
A151: HP-Probes | B151: WP-Erdsonde | C151: HP-Probes | D151: Sonda geotérmica bomba de calor | E151: VP slingor | F151: Nor | G151: PDC - Sonde geotermiche | H151: Sonde géothermique | I151: Pompa de caldura - sonde termice verticale | J151: WP Aardsonde | K151: WP-zemes zonde | L151: PC – sonda ziemna | M151: Sonda terra WP | N151: ТН-зонд | O151: WP jeotermik sonda | P151: Tepelné čerpadlo - zemní sonda | Q151: Siirtoputki | R151: ТП земна сонда | S151: Αισθητήρας εδάφους αντλίας θερμότητας | T151: Hőszivattyú földszonda | U151: ŠS-žemės zondas | V151: SP-maasond | W151: VP-jordsonde | X151: Zemná sonda TČ
A152: Probes | B152: Erdwärmesonde | C152: Probes | D152: Sondas geotérmicas | E152: Slingor | F152: Nor | G152: Sonde Geotermiche | H152: Sonde géothermique | I152: Sonde termice | J152: Aardsonde | K152: Ģeotermiskā zonde | L152: Ziemna sonda cieplna | M152: Sonda geotérmica | N152: Геотермальный зонд | O152: Jeotermik sonda | P152: Geotermální sonda | Q152: Lämpökaivot | R152: Геотермална сонда | S152: Γεωθερμικός αισθητήρας | T152: Földhőszonda | U152: Žemės šilumos zondas | V152: Maasoojussond | W152: Jordvarmesonde | X152: Geotermálna sonda
A153: Total length | B153: Gesamtlänge | C153: Total length | D153: Longitud Total | E153: Totallängd | F153: Nor | G153: Lunghezza complessiva | H153: Longueur totale | I153: Lungime | J153: Totale lengte | K153: Kopgarums | L153: Długość całkowita | M153: Comprimento total | N153: Общая длина | O153: Toplam uzunluk | P153: Celková délka | Q153: Kokonaispituus | R153: Обща дължина | S153: Συνολικό μήκος | T153: Teljes hossz | U153: Bendrasis ilgis | V153: Kogupikkus | W153: Total længde | X153: Celková dĺžka
A154: Quantity | B154: Anzahl | C154: Quantity | D154: Cantidad | E154: Kvantitet | F154: Nor | G154: Quantità | H154: Nombre | I154: Cantitate | J154: Aantal | K154: Skaits | L154: Liczba | M154: Número | N154: Кол-во | O154: sayısı | P154: Počet | Q154: Lukumäärä | R154: Брой | S154: Πλήθος | T154: Darabszám | U154: Skaičius | V154: Arv | W154: Stk. | X154: Počet
A155: Depth | B155: Tiefe | C155: Depth | D155: Profundidad | E155: Djup | F155: Nor | G155: Profondità | H155: Profondeur | I155: Adancime | J155: Diepte | K155: Dziļums | L155: Głębokość | M155: Profundidade | N155: Глубина | O155: Derinlik | P155: Hloubka | Q155: Aktiivisyvyys | R155: Дълбочина | S155: Βάθος | T155: Mélység | U155: Gylis | V155: Sügavus | W155: Dybde | X155: Hĺbka
A156: Concentrate | B156: Füllmischung für Erdwärmesonde | C156: Concentrate | D156: Concentración del líquido caloportador | E156: Koncentrat | F156: Nor | G156: Concentrato | H156: Mélange de remplissage pour sonde géothermique | I156: Concentrat | J156: Concentraat | K156: Pildmaisījums ģeotermiskajā zondē | L156: Mieszanka napełniająca do ziemnej sondy cieplnej | M156: Mistura de enchimento da sonda geotérmica | N156: Концентрат этиленгликоля | O156: Jeotermik sonda için dolgu malzemesi karışımı | P156: Plnicí směs pro geotermální sondu | Q156: Lämpökaivoon lisättävä nesteseos | R156: Смес за напълване на геотермалната сонда | S156: Μίγμα πλήρωσης για γεωθερμικό αισθητήρα | T156: Földhőszonda töltet | U156: Pildymo mišinys žemės šilumos zondui | V156: Maasoojussondi täitesegu | W156: Påfyldningsblanding for jordvarmesonde | X156: Plniaca zmes pre geotermálnu sondu
A157: DESIGN CHART HEAT EXCHANGER DHW | B157: WÄRMETAUSCHER WARMWASSERBEREITUNG | C157: DESIGN CHART HEAT EXCHANGER DHW | D157: INTERCAMBIADOR DE CALOR PARA ACS | E157: Dimensioneringstabell värmeväxlare VV | F157: Nor | G157: Tabella di Progetto Scambiatore di calore per ACS | H157: Échangeur Eau Chaude Sanitaire | I157: Tabel dimensionare schimbator de caldura pentru apa calda menajera | J157: Selectietabel WT warmwaterbereiding | K157: SILTUMMAINIS, KARSTĀ ŪDENS SAGATAVOŠANA | L157: WYMIENNIK CIEPŁA DO PRZYGOTOWANIA CIEPŁEJ WODY | M157: PERMUTADOR DE CALOR AQUECIMENTO DE ÁGUA SANITÁRIA | N157: РАСЧЕТ ТЕПЛООБМЕННИКА КОНТУРА ГВС | O157: ISI EŞANJÖRÜ SU ISITMA MODU | P157: VÝMĚNÍK TEPLA PRO PŘÍPRAVU TEPLÉ VODY | Q157: LÄMMÖNSIIRRIN, KÄYTTÖVEDEN LÄMMITYS | R157: ТОПЛООБМЕННИК ﻿﻿ПОЛУЧАВАНЕ НА ТОПЛА ВОДА | S157: ΕΝΑΛΛΑΚΤΗΣ ΘΕΡΜΟΤΗΤΑΣ ΠΑΡΑΓΩΓΗΣ ΝΕΡΟΥ | T157: MELEGVÍZKÉSZÍTÉS HŐCSERÉLŐJE | U157: KARŠTO VANDENS RUOŠIMO SISTEMOS ŠILUMOKAITIS | V157: SOOJUSVAHETI: SOOJA VEE TOOTMINE | W157: VARMEVEKSLER, VARMTVANDSOPVARMNING | X157: VÝMENNÍK TEPLA PRÍPRAVA TEPLEJ VODY
A158: Heat Exchanger | B158: Wärmetauscher | C158: Heat Exchanger | D158: Intercambiador de calor | E158: Värmeväxlare | F158: Nor | G158: Scambiatore di calore | H158: Échangeur de chaleur | I158: Schimbator de caldura | J158: Warmtewisselaar | K158: Siltummainis | L158: Wymiennik ciepła | M158: Permutador de calor | N158: Теплообменник | O158: Isı eşanjörü | P158: Výměník | Q158: Lämmönsiirrin | R158: Топлообменник | S158: Εναλλάκτης θερμότητας | T158: Hőcserélő | U158: Šilumokaitis | V158: Soojusvaheti | W158: Varmevekslere | X158: Výmenník tepla
A159: Temperature | B159: Temperatur | C159: Temperature | D159: Temperaturas | E159: Temperatur | F159: Nor | G159: Temperatura | H159: Température | I159: Temperatura | J159: Temperatuur | K159: Temperatūra | L159: Temperatura | M159: Temperatura | N159: Температура | O159: Sıcaklık | P159: Teplota | Q159: Lämpötila | R159: Температура | S159: Θερμοκρασία | T159: Hőmérséklet | U159: Temperatūra | V159: Temperatuur | W159: Temperatur | X159: Teplota
A160: Pressure loss | B160: Druckverlust | C160: Pressure loss | D160: Pérdida de carga | E160: Tryckfall | F160: Nor | G160: Perdite di carico | H160: Pertes de charge | I160: Pierdere de presiune | J160: Drukverlies | K160: Spiediena kritums | L160: Strata ciśnienia | M160: Perda de pressão | N160: Потеря напора | O160: Basınç kaybı | P160: Tlaková ztráta | Q160: Painehäviö | R160: Загуба на налягане | S160: Απώλεια πίεσης | T160: Nyomásveszteség | U160: Slėgio nuostoliai | V160: Rõhukadu | W160: Tryktab | X160: Strata tlaku
A161: Pumps | B161: Umwälzpumpe | C161: Pumps | D161: Bomba Circuladora | E161: Pumpar | F161: Nor | G161: Pompe | H161: Circulateur | I161: Pompe | J161: Circulatiepomp | K161: Cirkulācijas sūknis | L161: Pompa obiegowa | M161: Bomba de recirculação | N161: Циркуляционный насос | O161: Sirkülasyon pompası | P161: Cirkulační čerpadlo | Q161: Kiertopumppu | R161: Циркулационна помпа | S161: Αντλία κυκλοφορίας | T161: Keringetőszivattyú | U161: Cirkuliacinis siurblys | V161: Ringluspump | W161: Cirkulationspumpe | X161: Obehové čerpadlo
A162: HX - DHW-Cylinder | B162: WT - WW-Speicher | C162: HX - DHW-Cylinder | D162: Agua dulce | E162: VVX VV beredare | F162: Nor | G162: Scambiatore di calore - Accumulo ACS | H162: Échangeur - ballon ECS | I162: Schimbator de caldura - Acumulator apa calda | J162: WT - warmwaterboiler | K162: WT - WW-rezervuārs | L162: Wymiennik ciepła – zasobnik c.w.u. | M162: Acumulador WT - WW | N162: ТО - водонагрев. | O162: WT - WW kazanı | P162: Výměník tepla - zásobník teplé vody | Q162: LS - LV-varaaja | R162: ТП - ТВ-бойлер | S162: Συσσωρευτής ζεστού νερού εναλλάκτη θερμότητας | T162: Melegvíztároló hőcserélője | U162: ŠK - KV rezervuaras | V162: Soojusvaheti – SV boiler | W162: Varmeveksler - VV-beholder | X162: Zásobník VT-TV
A163: DESIGN CHART POOL | B163: WÄRMETAUSCHER SCHWIMMBAD | C163: DESIGN CHART POOL | D163: PISCINA | E163: Dimensioneringstabell Pool | F163: Nor | G163: Tabella di progetto Scambiatore di calore per piscine | H163: échangeur piscine | I163: Tabel dimensionare piscina | J163: Selectietabel warmtewisselaar zwembad | K163: SILTUMMAINIS, PELDBASEINS | L163: WYMIENNIK CIEPŁA DO BASENU | M163: PERMUTADOR DE CALOR PISCINA | N163: РАСЧЕТ ТЕПЛООБМЕННИКА ДЛЯ НАГРЕВА БАССЕЙНА | O163: YÜZME HAVUZU ISI EŞANJÖRÜ | P163: VÝMĚNÍK TEPLA PRO BAZÉN | Q163: LÄMMÖNSIIRRIN, UIMA-ALLAS | R163: Топлообменник плувен басейн | S163: ΕΝΑΛΛΑΚΤΗΣ ΘΕΡΜΟΤΗΤΑΣ ΚΟΛΥΜΒΗΤΗΡΙΟΥ | T163: MEDENCE HŐCSERÉLŐJE | U163: PLAUKIMO BASEINO ŠILUMOKAITIS | V163: SOOJUSVAHETI: BASSEIN | W163: VARMEVEKSLER, SVØMMEBASSIN | X163: VÝMENNÍK TEPLA BAZÉN
A164: only if the water has a small level of chlorine | B164: Nur für leicht gechlortes Schwimmbadwasser geeignet | C164: only if the water has a small level of chlorine | D164: sólo apto para agua de piscinas ligeramente clorada | E164: endast om vattnet har låg klorhalt | F164: Nor | G164: solo se l´acqua ha un basso livello di cloro | H164: uniquement adapté pour de l'eau piscine légèrement chlorée | I164: numai daca apa contine o concentratie scazuta de chlorine | J164: alleen bij licht gechloord zwembadwater geschikt | K164: Piemērots tikai nedaudz hlorētam peldbaseina ūdenim | L164: Przeznaczony do wody basenowej o niskiej zawartości chloru | M164: Apenas adequado para água de piscina pouco clorada | N164: Только для воды в бассейне с небольшим содержанием хлора | O164: Hafif klorlanmış yüzme havuzu suyu için uygun değildir | P164: Vhodné pouze pro bazény s mírně chlorovanou vodou | Q164: Soveltuu vain kevyesti klooratulle uima-allasvedelle | R164: Подходящ само за слабо хлорирана вода за плувни басейни | S164: Ενδείκνυται μόνο για ελαφρώς χλωριωμένο νερό κολυμβητήριου | T164: Csak enyhén klórozott medencevízhez használható | U164: Tinka tik lengvai chloruotam plaukimo baseino vandeniui | V164: Sobib ainult väheklooritud basseiniveele | W164: Kun egnet til let kloret svømmebassinvand | X164: Vhodné len pre mierne chlórovanú vodu bazéna
A165: HEAT EXCHANGER PASSIVE COOLING | B165: WÄRMETAUSCHER PASSIVE KÜHLUNG | C165: HEAT EXCHANGER PASSIVE COOLING | D165: INTERCAMBIADOR DE CALOR. REFRESCAMIENTO PASIVO | E165: VÄRMEVÄXLARE passiv kylning | F165: Nor | G165: Scambiatore di calore per free cooling | H165: Échangeur pour rafraîchissement passif | I165: Tabel dimensionare schimbator de caldura racire - cu pompe de caldura sol-apa | J165: Warmtewisselaar passieve koeling | K165: SILTUMMAINIS, PASĪVĀ DZESĒŠANA | L165: WYMIENNIK CIEPŁA CHŁODZENIA PASYWNEGO | M165: PERMUTADOR DE CALOR REFRIGERAÇÃO PASSIVA | N165: РАСЧЕТ ТЕПЛООБМЕННИКА ПАССИВНОЕ ОХЛАЖДЕНИЕ | O165: ISI EŞANJÖRÜ PASİF SOĞUTMA | P165: VÝMĚNÍK TEPLA PRO PASIVNÍ CHLAZENÍ | Q165: LÄMMÖNSIIRRIN, PASSIIVINEN JÄÄHDYTYS | R165: ТОПЛООБМЕННИК ПАСИВНО ОХЛАЖДАНЕ | S165: ΕΝΑΛΛΑΚΤΗΣ ΘΕΡΜΟΤΗΤΑΣ ΓΙΑ ΠΑΘΗΤΙΚΗ ΨΥΞΗ | T165: PASSZÍV HŰTÉS HŐCSERÉLŐJE | U165: PASYVAUS AUŠINIMO ŠILUMOKAITIS | V165: SOOJUSVAHETI: PASSIIVJAHUTUS | W165: VARMEVEKSLER, PASSIV KØLING | X165: VÝMENNÍK TEPLA PASÍVNE CHLADENIE
A166: Indirect cooling via probes | B166: Indirekte Kühlung über Erdwärmesonde | C166: Indirect cooling via probes | D166: Refrigeración pasiva via sondas geotermicas verticales | E166: Indirekt kylning borrhål | F166: Nor | G166: Raffrescamento indiretto tramite Sonde | H166: Rafraîchissement passif par sondes géothermiques | I166: racire indirecta prin intermediul sondelor termice | J166: Passieve koeling via sonden | K166: Netiešā dzesēšana ar ģeotermisko zondi|akas iekārtu | L166: Chłodzenie pośrednie przez ziemną sondę cieplnąi | M166: Refrigeração indirecta através de sonda geotérmica | N166: Пассивное охлаждение через геотермальный зонд | O166: Jeotermik sonda I Kuyu sistemi üzerinden dolay | P166: Nepřímé chlazení pomocí geotermální sondy | Q166: Epäsuora viilennys lämpökaivoon | R166: Индиректно охлаждане чрез геотермална сонда | S166: Έμμεση ψύξη μέσω γεωθερμικού αισθητήρα | T166: Közvetett hűtés földhőszondán | U166: Netiesioginis aušinimas per žemės šilumos zondą | V166: Kaudne jahutus maasoojussondi | W166: Indirekte køling via jordvarmesonde | X166: Nepriame chladenie geotermálnou sondou
A167: Indirect cooling via well system | B167: Indirekte Kühlung über Brunnenanlage | C167: Indirect cooling via well system | D167: Refrigeración pasiva via sistema geotérmico abierto vertical (pozos) | E167: Indirekt kylning grundvatten | F167: Nor | G167: Raffrescamento indiretto tramite acqua di falda | H167: Rafraîchissement passif via puits | I167: racire indirecta prin intermediul sondelor termice | J167: Passieve koeling over grondwatersysteem | K167: Netiešā dzesēšana ar ģeotermisko zondi|akas iekārtu | L167: Chłodzenie pośrednie przez ziemną instalację studni | M167: Refrigeração indirecta através de poço | N167: Пассивное охлаждение грунтовыми водами | O167: Jeotermik sonda I Kuyu sistemi ı soğutma | P167: Nepřímé chlazení pomocí studny | Q167: Epäsuora viilennys kaivojärjestelmän kautta | R167: Индиректно охлаждане чрез инсталация с кладенци | S167: Έμμεση ψύξη μέσω γεωθερμικού Εγκατάσταση φρέατος | T167: Közvetett hűtés kútrendszeren keresztül | U167: Netiesioginis aušinimas per žemės šulinių sistemą | V167: Kaudne jahutus kaevu kasutamisega | W167: Indirekte køling via brøndanlæg | X167: Nepriame chladenie Studňové zariadenie
A168: Cooling Capacity | B168: Kühlleistung | C168: Cooling Capacity | D168: Potencia frigorífica | E168: Kyleffekt | F168: Nor | G168: Fabbisogno di raffrescamento | H168: puissance froid | I168: Capacitate de racire | J168: Koelcapaciteit | K168: Dzesēšanas jauda | L168: Moc chłodzenia | M168: Potência de refrigeração | N168: Охлаждающая способность | O168: Soğutma kapasitesi | P168: Chladicí výkon | Q168: Viilennysteho | R168: Студопроизводителност | S168: Ψυκτική απόδοση | T168: Hűtőteljesítmény | U168: Aušinimo galia | V168: Jahutusvõimsus | W168: Køleeffekt | X168: Chladiaci výkon
A169: Probes with Tyfocor | B169: Erdwärmesonden mit Solefüllung | C169: Probes with Tyfocor | D169: Sondas geotérmicas con Tyfocor | E169: Slingor med Tyfocor | F169: Nor | G169: Sonde Geotermiche con Tyfocor | H169: sondes géothermiques avec solution glycolée | I169: Sonde termice cu Tyfocor | J169: Aardwarmtesonde met bronvulling | K169: Ģeotermiskās zondes ar sālsūdens pildījumu | L169: Ziemne sondy cieplne z solanką | M169: Sondas geotérmicas com enchimento terra | N169: Заполненные геотермальные зонды | O169: Tuzlu su doldurulmuş jeotermik sondalar | P169: Geotermální sondy se solankovou náplní | Q169: Lämpökaivot keruuliuoksella | R169: Геотермални сонди с пълнеж от солен разтвор | S169: Γεωθερμικοί αισθητήρες με πλήρωση άλμης | T169: Sole töltetű földhőszondák | U169: Žemės šilumos zondai su sūrymo užpildu | V169: Soolveetäitega maasoojussondid | W169: Jordvarmesonder med brinepåfyldning | X169: Geotermálne sondy naplnené soľným roztokom
A170: HEAT EXCHANGER ACTIVE COOLING | B170: WÄRMETAUSCHER AKTIVE KÜHLUNG | C170: HEAT EXCHANGER ACTIVE COOLING | D170: INTERCAMBIADOR DE CALOR. REFRIGERACIÓN ACTIVA | E170: VÄRMEVÄXLARE aktiv kylning | F170: Nor | G170: Scambiatore di calore per active cooling | H170: Échangeur pour rafraîchissement actif | I170: Tabel dimensionare racire activa - cu pompele de caldura sol-apa | J170: Warmtewisselaar actieve koeling | K170: SILTUMMAINIS, AKTĪVĀ DZESĒŠANA | L170: WYMIENNIK CIEPŁA CHŁODZENIA AKTYWNEGO | M170: PERMUTADOR DE CALOR REFRIGERAÇÃO ACTIVA | N170: РАСЧЕТ ТЕПЛООБМЕННИКА АКТИВНОЕ ОХЛАЖДЕНИЕ | O170: ISI EŞANJÖRÜ AKTİF SOĞUTMA | P170: VÝMĚNÍK TEPLA PRO AKTIVNÍ CHLAZENÍ | Q170: LÄMMÖNSIIRRIN, AKTIIVINEN JÄÄHDYTYS | R170: ТОПЛООБМЕННИК АКТИВНО ОХЛАЖДАНЕ | S170: ΕΝΑΛΛΑΚΤΗΣ ΘΕΡΜΟΤΗΤΑΣ ΓΙΑ ΕΝΕΡΓΗ ΨΥΞΗ | T170: AKTÍV HŰTÉS HŐCSERÉLŐJE | U170: AKTYVAUS AUŠINIMO ŠILUMOKAITIS | V170: SOOJUSVAHETI: AKTIIVJAHUTUS | W170: VARMEVEKSLER, AKTIV KØLING | X170: VÝMENNÍK TEPLA AKTÍVNE CHLADENIE
A171: Heat transfer HP- heat source > heating system | B171: Wärmeübertragung WP-Wärmequelle an das Heizsystem | C171: Heat transfer HP- heat source > heating system | D171: Circuito Evaporador Transferencia de calor: Evaporador > Sistema emisor | E171: Värmeöverföring VP-värmekälla > värmesystem (kyldrift) | F171: Nor | G171: Trasferimento calore PdC - Lato sorgente > Lato riscaldamento | H171: Transfert de chaleur source de chaleur - circuit de chauffage | I171: Transfer de caldura pompa de caldura - sursa > sistemul de incalzire | J171: Warmteoverdracht WP-bron aan verwarming | K171: Siltuma pāreja WP-siltuma avots uz apkures sistēmu | L171: Przesył ciepła z dolnego źródła PC do systemu grzewczego | M171: Transmissão de calor de fonte de calor WP ao sistema de aquecimento | N171: Теплообмен: источник тепла/ТН - система отопления | O171: Isıtma sistemine ısı aktarımı WP ısı kaynağı | P171: Přenos tepla tepelného zdroje tepelného čerpadla do systému topení | Q171: Lämmönsiirto LP-lämmönlähteestä lämmitysjärjestelmään | R171: Топлопренасяне от ТП-топлинния източник към отоплителната система | S171: Μεταβίβαση θερμότητας από θερμική πηγή ΑΘ στο σύστημα θέρμανσης | T171: Hőszivattyú-hőforrás hőátvitel a fűtőrendszer felé | U171: ŠS-šilumos šaltinio šilumos perdavimas šildymo sistemai | V171: Soojusülekanne soojusallika SP-lt küttesüsteemile | W171: Varmeoverførsel, VP-varmekilde til varmesystemet | X171: Prenos tepla zo zdroja tepla TČ na ohrievací systém
A172: Heat transfer HP- heating > heat source | B172: Wärmeübertragung WP-Heizung an die Wärmequelle | C172: Heat transfer HP- heating > heat source | D172: Circuito condensador Transferencia de calor: Condensador > Captación geotérmica | E172: Värmeöverföring VP-uppvärmning> värmekälla (värmedrift) | F172: Nor | G172: Trasferimento calore PdC - Lato riscaldamento > Lato sorgente | H172: Transfert de chaleur circuit de chauffage-source de chaleur | I172: Transfer de caldura pompa de caldura - circuit incalzire > capacitate incalzire sursa | J172: Warmteoverdracht WP-verwarming aan bronzijde | K172: Siltuma pāreja WP-apkure uz siltuma avotu | L172: Przesył ciepła z ogrzewania PC do dolnego źródła | M172: Transmissão de calor do aquecimento WP à fonte de calor | N172: Теплообмен: ТН/система отопления - источник | O172: Isı kaynağına ısı aktarma WP ısıtma sistemi | P172: Přenos tepla topení tepelného čerpadla do tepelného zdroje | Q172: Lämmönsiirto LP-lämmityksestä lämmönlähteeseen | R172: Топлопренасяне от система за отопление с ТП към топлинния източник | S172: Μεταβίβαση θερμότητας από θέρμανση ΑΘ στην θερμική πηγή | T172: Hőszivattyú-fűtés hőátvitel a hőforrás felé | U172: ŠS-šildymo sistemos šilumos perdavimas šilumos šaltiniui | V172: Soojusülekanne kütte SP-lt soojusallikale | W172: Varmeoverførsel, VP-opvarmning til varmekilden | X172: Prenos tepla z ohrevu TČ na zdroj tepla
A173: Cooling | B173: Kühlbetrieb | C173: Cooling | D173: Refrigeración | E173: Kylning | F173: Nor | G173: Raffrescamento | H173: mode rafraîchissement | I173: racire | J173: Koelbedrijf | K173: Dzesēšanas režīms | L173: Tryb chłodzenia | M173: Operação de refrigeração | N173: Режим охлаждения | O173: Soğutma modu | P173: Chladicí režim | Q173: Jäähdytyskäyttö | R173: Режим на охлаждане | S173: Λειτουργία ψύξης | T173: Hűtőüzem | U173: Aušinimo režimas | V173: Jahutusrežiim | W173: Køledrift | X173: Chladiaci režim
A174: Cooling via probes | B174: Direkte Kühlung über Erdwärmesonden | C174: Cooling via probes | D174: refrigeración via sondas geotermicas | E174: Kylning via borrhål | G174: Raffrescamento tramite sonde geotermiche | H174: Rafraîchissement actif par sondes géothermiques | I174: Racire prin intermediul sondelor termice | J174: Directe koeling over aardsonden | K174: Tiešā dzesēšana ar ģeotermiskajām zondēm | L174: Chłodzenie bezpośrednie przez ziemne sondy cieplne | M174: Refrigeração directa através de sondas geotérmicas | N174: Активное охлаждение через геотермальные зонды | O174: Jeotermik sondalar üzerinden doğrudan soğutma | P174: Přímé chlazení prostřednictvím geotermálních sond | Q174: Suora jäähdytys lämpökaivojen kautta | R174: Директно охлаждане чрез геотермални сонди | S174: Απευθείας ψύξη μέσω γεωθερμικών αισθητήρων | T174: Földhőszondás közvetlen hűtés | U174: Tiesioginis aušinimas per žemės šilumos zondus | V174: Otsejahutus maasoojussondide abil | W174: Direkte køling via jordvarmesonder | X174: Priame chladenie geotermálnymi sondami
A175: Attention water quality is important | B175: Die Wasserqualität ist zu beachten | C175: Attention water quality is important | D175: Atención: preste atención a la calidad del agua (!) | E175: OBS vattenkvalitet är viktig | F175: Nor | G175: Attenzione: la qualitá dell´ acqua é importante | H175: tenir compte de la qualité de l'eau | I175: ATENTIE calitatea apei este importanta! | J175: Waterkwaliteit controleren | K175: Jāņem vērā ūdens kvalitāte | L175: Zwrócić uwagę na jakość wody | M175: A qualidade da água deve ser observada | N175: Уделите особое внимание качеству воды | O175: Su kalitesine dikkat edilmelidir | P175: Je nezbytné respektovat kvalitu vody | Q175: Veden laatu on huomioitava | R175: Трябва да се съблюдава качеството на водата | S175: Πρέπει να δίνεται προσοχή στην ποιότητα του νερού | T175: Fontos a megfelelő vízminőség! | U175: Reikia atsižvelgti į vandens kokybę | V175: Arvestada vee kvaliteeti | W175: Vandkvaliteten skal iagttages | X175: Dbajte na kvalitu vody
A176: HEAT EXCHANGER BRINE|WATER HEAT PUMP | B176: WÄRMETAUSCHER SOLE|WASSER WÄRMEPUMPE | C176: HEAT EXCHANGER BRINE|WATER HEAT PUMP | D176: INTERCAMBIADOR DE CALOR BOMBA DE CALOR GEOTÉRMICA | E176: VÄRMEVÄXLARE VÄTSKA | VATTEN VÄRMEPUMP | F176: Nor | G176: Scambiatore di calore pompa di calore terra-acqua | H176: Échangeur PAC Eau glycolée/Eau | I176: Tabel dimensionare pompe de caldura sol-apa | J176: Warmtewisselaar brine/water warmtepomp | K176: SILTUMMAINIS, SĀLSŪDENS|ŪDENS SILTUMSŪKNIS | L176: WYMIENNIK CIEPŁA POMPY CIEPŁA SOLANKA|WODA | M176: PERMUTADOR DE CALOR BOMBA DE ÁGUA TERRA|ÁGUA | N176: РАСЧЕТ ТЕПЛООБМЕННИКА – ТЕПЛОВОЙ НАСОС "ВОДА|ВОДА" | O176: ISI EŞANJÖRÜ TUZLU SU|SU ISI POMPASI | P176: VÝMĚNÍK TEPLA - TEPELNÉ ČERPADLO SOLANKA|VODA | Q176: LÄMMÖNSIIRRIN, MAALÄMPÖPUMPPU | R176: ТОПЛООБМЕННИК СОЛЕН РАЗТВОР|ВОДА ТЕРМОПОМПА | S176: ΕΝΑΛΛΑΚΤΗΣ ΘΕΡΜΟΤΗΤΑΣ ΑΝΤΛΙΑΣ ΘΕΡΜΟΤΗΤΑΣ ΑΛΜΗΣ|ΝΕΡΟΥ | T176: SOLE|VÍZ HŐSZIVATTYÚ HŐCSERÉLŐJE | U176: SŪRYMO|VANDENS ŠILUMOS SIURBLIO ŠILUMOKAITIS | V176: SOOJUSVAHETI: SOOLVESI-VESI-SOOJUSPUMP | W176: VARMEVEKSLER BRINE | VAND VARMEPUMPE | X176: VÝMENNÍK TEPLA TEPELNÉ ČERPADLO SOĽNÝ ROZTOK|VODA
A177: Heat exchanger between Brine/Water Heat Pump and well system | B177: Zwischenkreis für Brunnenanlagen | C177: Heat exchanger between Brine/Water Heat Pump and well system | D177: Intecambiador de calor entre bomba de calor y sistema geotérmico abierto | E177: Värmeväxlare vätska / vatten värmepump och grundvatten system | F177: Nor | G177: Scambiatore interposto tra acqua di falda e pompa di calore geotermica | H177: Circuit intermédiaire version Eau/Eau | I177: Schimbator de caldura intre pompa de caldura sol-apa si sistemul de puturi | J177: Warmtewisselaar tussen open bron en warmtepomp | K177: Starpkontūrs aku iekārtai | L177: Obieg pośredni do instalacji studni | M177: Circuito intermédio para poços | N177: Промежуточный теплообменник для отбора тепла у грунтовых вод | O177: Kuyu sistemleri için ara devre | P177: Vložený okruh pro studny | Q177: Lämmönsiirrin kaivojärjestelmän ja maalämpöpumpun välissä | R177: Междинен контур за инсталации с кладенци | S177: Ενδιάμεσο κύκλωμα για εγκαταστάσεις φρέατος | T177: Kútrendszer közbenső köre | U177: Tarpinis kontūras šulinių sistemoms | V177: Vahekontuur kaevusüsteemidele | W177: Mellemkreds til brøndanlæg | X177: Vložený okruh pre studňové zariadenia
A178: Plates | B178: Platten | C178: Plates | D178: Placas | E178: Plattor | F178: Nor | G178: Piastre | H178: plaques | I178: Placi | J178: Platen | K178: Plāksnes | L178: Płyty | M178: Placas | N178: Пластины | O178: Plakalar | P178: Desky | Q178: levyä | R178: Плочи | S178: Πλάκες | T178: Lapok | U178: Plokštelės | V178: Plaadid | W178: Plader | X178: Dosiek
A179: Well | B179: Brunnenseite | C179: Well | D179: Pozo | E179: Brunn | F179: Nor | G179: Pozzo | H179: Côté puits | I179: Put | J179: Bronzijde | K179: Akas puse | L179: Strona studni | M179: Lado do poço | N179: Скважина | O179: Kuyu tarafı | P179: Strana studny | Q179: Kaivopuoli | R179: Страна на кладенците | S179: Πλευρά φρέατος | T179: Kút oldal | U179: Šulinių pusė | V179: Kaevupool | W179: Brøndside | X179: Strana studne
A180: Intermediate circuit is filled with Tyfocor | B180: Zwischenkreis mit Solefüllung | C180: Intermediate circuit is filled with Tyfocor | D180: Circuito intemedio con agua glicolada | E180: Mellanliggande krets är fylld med Tyfocor | F180: Nor | G180: Il circuito interposto riempito con acqua glicolata | H180: circuit intermédiaire avec solution eau glycolée | I180: Circuitul intermediar se umple cu Tyfocor | J180: Tussencircuit met vulling | K180: Starpkontūrs ar sālsūdens pildījumu | L180: Obieg pośredni z solanką | M180: Circuito intermédio com enchimento terra | N180: Промежуточный контур залит солевым раствором | O180: Tuzlu su doldurulmuş ara devre | P180: Vložený okruh se solankovou náplní | Q180: Välipiiri keruuliuoksella | R180: Междинен контур с пълнеж от солен разтвор | S180: Ενδιάμεσο κύκλωμα με πλήρωση άλμης | T180: Sole töltetű közbenső kör | U180: Tarpinis kontūras su sūrymo užpildu | V180: Soolveetäitega vahekontuur | W180: Mellemkreds med brinepåfyldning | X180: Vložený okruh naplnený soľným roztokom
A181: Hot side | B181: Warme Seite | C181: Hot side | D181: lado caliente | E181: Varma sidan | F181: Nor | G181: Lato caldo | H181: Côté chaud | I181: Partea calda | J181: Warme zijde | K181: Siltā puse | L181: Strona ciepła | M181: Lado quente | N181: Тепл. сторона | O181: Sıcak taraf | P181: Teplá strana | Q181: Lämmin puoli | R181: Топла страна | S181: Ζεστή πλευρά | T181: Meleg oldal | U181: Šiltoji pusė | V181: Soe pool | W181: Varm side | X181: Teplá strana
A182: Cold side | B182: Kalte Seite | C182: Cold side | D182: lado frío | E182: Kalla sidan | F182: Nor | G182: Lato Freddo | H182: Côté froid | I182: Partea rece | J182: Koude zijde | K182: Aukstā puse | L182: Strona zimna | M182: Lado frio | N182: Хол. сторона | O182: Soğuk taraf | P182: Studená strana | Q182: Kylmä puoli | R182: Студена страна | S182: Κρύα πλευρά | T182: Hideg oldal | U182: Šaltoji pusė | V182: Külm pool | W182: Kold side | X182: Studená strana
A183: CHANGE-OVER VALVES | B183: UMSCHALTVENTILE | C183: CHANGE-OVER VALVES | D183: VALVULA DESVIADORA | E183: Växelventil | F183: Nor | G183: Valvole deviatrici | H183: Vannes d'inversion pour rafraîchissement | I183: Tabel dimensionare vana deviatoare sursa - firma Belimo | J183: Omschakelventiel | K183: PĀRSLĒDZĒJVĀRSTI | L183: ZAWORY PRZEŁĄCZAJĄCE | M183: VÁLVULAS DE COMUTAÇÃO | N183: РАСЧЕТ ПЕРЕКЛЮЧАЮЩИХ КЛАПАНОВ | O183: DEVRE DEĞİŞTİRME VALFLARI | P183: PŘEPÍNACÍ VENTILY | Q183: VAIHTOVENTTIILIT | R183: ПРЕВКЛЮЧВАЩИ КЛАПАНИ | S183: ΒΑΛΒΙΔΕΣ ΕΝΑΛΛΑΓΗΣ | T183: ÁTKAPCSOLÓ SZELEPEK | U183: PERJUNGIMO VOŽTUVAI | V183: ÜMBERLÜLITUSVENTIILID | W183: OMKOBLERVENTILER | X183: PREPÍNACIE VENTILY
A184: External thread | B184: Außengewinde | C184: External thread | D184: Rosca exterior | E184: Yttergänga | F184: Nor | G184: Attaco esterno filettato | H184: Filetage mâle (ext.) | I184: Filet exterior | J184: Buitendraad | K184: Ārējā vītne | L184: Gwint zewnętrzny | M184: Rosca exterior | N184: Резьбовое соед. | O184: Dış diş | P184: Vnější závit | Q184: Ulkokierre | R184: Външна резба | S184: Εξωτερικό σπείρωμα | T184: Külső menet | U184: Išorinis sriegis | V184: Väliskeere | W184: Udvendigt gevind | X184: Vonkajší závit
A185: Size | B185: Größe | C185: Size | D185: Tamaño | E185: Storlek | F185: Nor | G185: Dimensione | H185: Taille | I185: Dimensiune | J185: Grootte | K185: Izmērs | L185: Wielkość | M185: Tamanho | N185: Разм. | O185: Büyüklük | P185: Velikost | Q185: Koko | R185: Размери | S185: Μέγεθος | T185: Méret | U185: Dydis | V185: Suurus | W185: Størrelse | X185: Veľkosť
A186: Valve | B186: Ventil | C186: Valve | D186: Válvula | E186: Ventil | F186: Nor | G186: Valvola | H186: vanne | I186: Vana | J186: ventiel | K186: Vārsts | L186: Zawór | M186: Válvula | N186: клапана | O186: Valf | P186: Ventil | Q186: Venttiili | R186: Клапан | S186: Βαλβίδα | T186: Szelep | U186: Vožtuvas | V186: ventiil | W186: Ventil | X186: Ventil
A187: Inch | B187: Zoll | C187: Inch | D187: Pulgada | E187: Tum | F187: Nor | G187: Pollici | H187: pouce | I187: Inch | J187: Duim | K187: collas | L187: cal | M187: Polegadas | N187: Дюйм | O187: inç | P187: Palce | Q187: tuumaa | R187: Цол | S187: Ίντσες | T187: col | U187: Coliai | V187: tolli | W187: tommer | X187: Palce
A188: Engine | B188: Motor | C188: Engine | D188: Motor | E188: Motor | F188: Nor | G188: Motore | H188: Moteur | I188: motor | J188: Motor | K188: Motors | L188: Silnik | M188: Motor | N188: Привод | O188: Motor | P188: Motor | Q188: Moottori | R188: Двигател | S188: Κινητήρας | T188: Motor | U188: Variklis | V188: Mootor | W188: Motor | X188: Motor
A189: Flanged connection | B189: Flanschanschluss | C189: Flanged connection | D189: Conexión embridada | E189: Flänsanslutningar | F189: Nor | G189: Attacco flangiato | H189: Raccord pour bride | I189: Conexiune cu flansa | J189: Flensaansluiting | K189: Atloka pievienojums | L189: Przyłącze kołnierzowe | M189: Ligação flange | N189: Фланцевое соединение | O189: Flanşlı bağlantı | P189: Přírubová přípojka | Q189: Laippaliitäntä | R189: Фланцово свързване | S189: Σύνδεση φλάντζας | T189: Karimacsatlakozó | U189: Flanšinė jungtis | V189: Äärikühendus | W189: Flangetilslutning | X189: Prírubové pripojenie
A190: Flang | B190: Flansch | C190: Flang | D190: Brida | E190: Fläns | F190: Nor | G190: Flangia | H190: Bride | I190: Flansa | J190: Flens | K190: Atloks | L190: Kołnierz | M190: Flange | N190: Фланец | O190: Flanş | P190: Příruba | Q190: Laippa | R190: Фланец | S190: Φλάντζα | T190: Karima | U190: Jungė | V190: Äärik | W190: Flange | X190: Príruba
A191: Top | B191: oben | C191: Top | D191: Superior | E191: Toppen | F191: Nor | G191: Superiore | H191: sup. | I191: Sus | J191: boven | K191: augšā | L191: góra | M191: em cima | N191: вверху | O191: üst | P191: Nahoře | Q191: Ylempi | R191: горе | S191: επάνω | T191: fent | U191: viršuje | V191: ülal | W191: foroven | X191: hore
A192: Bottom | B192: unten | C192: Bottom | D192: Inferior | E192: Botten | F192: Nor | G192: Inferiore | H192: inf. | I192: Spate | J192: onder | K192: apakšā | L192: dół | M192: em baixo | N192: внизу | O192: alt | P192: Dole | Q192: Alempi | R192: долу | S192: κάτω | T192: lent | U192: apačioje | V192: all | W192: forneden | X192: dole
A193: Steel pipe | B193: Stahlrohr | C193: Steel pipe | D193: Acero | E193: Stålrör | F193: Nor | G193: Tubazione in acciao | H193: Tube acier | I193: Teava din otel | J193: Stalen buis | K193: Tērauda caurule | L193: Rura stalowa | M193: Tubo de aço | N193: Стальн. труба | O193: Çelik boru | P193: Ocelová trubka | Q193: Teräsputki | R193: Стоманена тръба | S193: Χαλύβδινος αγωγός | T193: Acél cső | U193: Plieninis vamzdis | V193: Terastoru | W193: Stålrør | X193: Oceľová rúra
A194: Loading unit | B194: Ladestation | C194: Loading unit | D194: Kit prod ACS | E194: Laddstation | G194: Stazione di carico | H194: Station de charge | I194: Incarcare | J194: Laadstation | K194: Iepildīšanas stacija | L194: Stacja ładowania | M194: Estação de carga | N194: Станция заполнения | O194: Yükleme istasyonu | P194: Ohřívací stanice | Q194: Latausyksikkö | R194: Станция за зареждане | S194: Σταθμός πλήρωσης | T194: Töltőállomás | U194: Krovimo stotis | V194: Laadimissõlm | W194: Ladestation | X194: Nabíjacia stanica
A195: Both | B195: beide | C195: Both | D195: Ambos | E195: Båda | F195: Nor | G195: Entrambi | H195: les deux | I195: Ambele | J195: beide | K195: abi | L195: obie | M195: ambos | N195: оба | O195: her ikisi | P195: Oba | Q195: Molemmat | R195: две | S195: και τα δύο | T195: mindkettő | U195: abi | V195: mõlemad | W195: begge | X195: obidve
A196: Connection heat exchanger | B196: Anschluss Wärmetauscher | C196: Connection heat exchanger | D196: Ubicación del serpentin en depósito | E196: Anslutning värmeväxlare | F196: Nor | G196: Connessione scambiatore di calore | H196: Raccord échangeur | I196: Racord schimbator de caldura | J196: Aansluiting warmtewisselaar | K196: Siltummaiņa pieslēgums | L196: Przyłącze wymiennika ciepła | M196: Ligação do permutador de calor | N196: Расположение теплообменника | O196: Isı eşanjörü bağlantısı | P196: Přípojka výměníku tepla | Q196: Liitettävät latauskierukat | R196: Свързване топлообменник | S196: Σύνδεση εναλλάκτη θερμότητας | T196: Hőcserélő csatlakozás | U196: Šilumokaičio prijungimas | V196: Soojusvaheti ühendus | W196: Tilslutning varmeveksler | X196: Pripojenie výmenníka tepla
A197: Performance data | B197: Leistungsdaten | C197: Performance data | D197: Parámetros de diseño | E197: Effektuppgifter | F197: Nor | G197: Dati di rendimento | H197: Caractéristiques | I197: Datele de performanta | J197: Vermogensdata | K197: Jaudas parametri | L197: Wydajność | M197: Dados de desempenho | N197: Показатели мощности | O197: Performans verileri | P197: Údaje o výkonu | Q197: Tehotiedot | R197: Мощностни характеристики | S197: Στοιχεία απόδοσης | T197: Teljesítményadatok | U197: Galios duomenys | V197: Võimsuse andmed | W197: Effektdata | X197: Výkonové údaje
A198: Horizontal collector | B198: Erdreichkollektor | C198: Horizontal collector | D198: Colector horizontal | E198: Ytjordvärmeslinga | F198: Nor | G198: Collettore orizzontale | H198: Capteur géothermique | I198: Colector orizontal | J198: Horizontale collector | K198: Zemes kolektors | L198: Kolektor gruntowy | M198: Colector terra | N198: Горизонтальный коллектор | O198: Jeotermik kolektör | P198: Zemní kolektor | Q198: Pintakeruuputkisto | R198: Почвен колектор | S198: Συλλέκτης εδάφους | T198: Földkollektor | U198: Žemės kolektorius | V198: Maakollektor | W198: Jordkollektor | X198: Zemný kolektor
A199: Pipe spacing | B199: Verlegeabstand | C199: Pipe spacing | D199: Espaciado | E199: Pipe avstånd | F199: Nor | G199: Distanza tra i tubi | H199: Distance de pose | I199: Distanta intre tevi | J199: Verdeelafstand | K199: Atstarpe | L199: Odstęp układania | M199: Distância de colocação | N199: Шаг укладки | O199: Döşeme mesafesi | P199: Vzdálenost při pokládce | Q199: Asennusväli | R199: Разстояние при полагането | S199: Απόσταση τοποθέτησης | T199: Méretezési távolság | U199: Klojimo atstumas | V199: Torude vahekaugus | W199: Lægningsafstand | X199: Odstup kladenia
A200: Brine assembly | B200: Soleverteiler | C200: Brine assembly | D200: Colector | E200: Brine kit | F200: Nor | G200: Sorgente geotermica | H200: Collecteur eau glycolée | I200: Distribuitor-colector | J200: Bronverdeler | K200: Sālsūdens sadalītājs | L200: Rozdzielacz solanki | M200: Distribuidor terra | N200: Распределитель | O200: Tuzlu su dağıtıcısı | P200: Rozdělovač solanky | Q200: Jakotukki | R200: Разпределител на соления разтвор | S200: Διανομέας άλμης | T200: Sole elosztó | U200: Sūrymo skirstytuvas | V200: Soolveejaotur | W200: Brine-fordeler | X200: Rozdeľovač soľného roztoku
A201: DESIGN CHART PIPES | B201: ROHRLEITUNGEN | C201: DESIGN CHART PIPES | D201: TUBOS. DIMENSIONES ESTÁNDAR | E201: Dimensioneringstabell rör | F201: Nor | G201: TABELLA DI DIMENSIONAMENTO DELLE TUBAZIONI | H201: Tuyaux | I201: Conducte | J201: Leidingen | K201: CAURUĻVADI | L201: PRZEWODY RUROWE | M201: TUBAGENS | N201: ПОДБОР ТРУБОПРОВОДОВ | O201: BORU HATLARI | P201: POTRUBÍ | Q201: PUTKIJOHDOT | R201: ТРЪБОПРОВОДИ | S201: ΣΩΛΗΝΩΣΕΙΣ | T201: CSŐVEZETÉKEK | U201: VAMZDYNAI | V201: TORUD | W201: RØRLEDNINGER | X201: VEDENIE POTRUBIA
... 223 more rows

Sheet Deckblatt
A1: =Translation!A240 -> DESIGN CHARTS.
A2: =Translation!A241 -> HEAT PUMP
BD3: ="IMP | "&Auswahl!$R$10 -> IMP | 05/12
E5: =Translation!$A$220 -> Page | F5: =Auswahl!W8 -> 2 | H5: =Auswahl!X8 -> Description hydraulic I electric scheme
E6: =$E$5 -> Page | F6: =Auswahl!W9 -> 3 | H6: =Auswahl!X9 -> Design information air-water heat pump
E7: =$E$5 -> Page | F7: =Auswahl!W10 -> 4 | H7: =Auswahl!X10 -> Design information air-water heat pump
E8: Page | F8: =Auswahl!W11 -> 5 | H8: =Auswahl!X11 -> Design information air-water heat pump
E9: Page | F9: =Auswahl!W13 -> 7 | H9: =Auswahl!X13 -> Design information brine-water heat pump
E10: Page | F10: =Auswahl!W14 -> 8 | H10: =Auswahl!X14 -> Design information brine-water heat pump
E11: Page | F11: =Auswahl!W15 -> 9 | H11: =Auswahl!X15 -> Design information brine-water heat pump
E12: Page | F12: =Auswahl!W16 -> 10 | H12: =Auswahl!X16 -> Design information water-water heat pump
E13: Page | F13: =Auswahl!W17 -> 11 | H13: =Auswahl!X17 -> Design information water-water heat pump
E14: Page | F14: =Auswahl!W18 -> 12 | H14: =Auswahl!X18 -> Design information water-water heat pump
E15: Page | F15: =Auswahl!W19 -> 13 | H15: =Auswahl!X19 -> Layout Buffer I Low loss header
E16: Page | F16: =Auswahl!W20 -> 14 | H16: =Auswahl!X20 -> Layout DHW cylinder
E17: Page | F17: =Auswahl!W23 -> 17 | H17: =Auswahl!X23 -> Design chart ground collector
E18: Page | F18: =Auswahl!W24 -> 18 | H18: =Auswahl!X24 -> Design chart probes
E19: Page | F19: =Auswahl!W25 -> 19 | H19: =Auswahl!X25 -> Design chart ground collector
E20: Page | F20: =Auswahl!W26 -> 20 | H20: =Auswahl!X26 -> Heat Exchanger domestic hot water
E21: Page | F21: =Auswahl!W27 -> 21 | H21: =Auswahl!X27 -> Heat exchanger swimming pool
E22: Page | F22: =Auswahl!W29 -> 23 | H22: =Auswahl!X29 -> Heat exchanger well system
E23: Page | F23: =Auswahl!W30 -> 24 | H23: =Auswahl!X30 -> Heat exchanger passive cooling WPF/WPW
E24: Page | F24: =Auswahl!W31 -> 25 | H24: =Auswahl!X31 -> Heat exchanger passive cooling WPF/WPW
E25: Page | F25: =Auswahl!W32 -> 26 | H25: =Auswahl!X32 -> Heat exchanger active cooling
E26: Page | F26: =Auswahl!W33 -> 27 | H26: =Auswahl!X33 -> Heat exchanger active cooling
E27: Page | F27: =Auswahl!W34 -> 28 | H27: =Auswahl!X34 -> Change-over valves active/passive cooling
E28: Page | F28: =Auswahl!W35 -> 29 | H28: =Auswahl!X35 -> Technical information pipes
E29: Page | F29: =Auswahl!W36 -> 30 | H29: =Auswahl!X36 -> Graduation cascade
E30: Page | F30: =Auswahl!W37 -> 31 | H30: =Auswahl!X37 -> COP-data heat pumps
E31: Page | F31: =Auswahl!W38 -> 32 | H31: =Auswahl!X38 -> Max. Heat demand building Air/Water Heat pumps
E32: Page | F32: =Auswahl!W39 -> 33 | H32: =Auswahl!X39 -> Max. Heat demand building Brine/Water Heat pumps
H43: Zeilen mit gleichem Titel und ohne Seitenzahl werden per Code ausblendet

Sheet Positionsbeschreibung
A1: =Translation!$A$3 -> DESCRIPTION
N4: =Auswahl!$AC$8 -> Page 2 | Version 05/12
B5: =Translation!$A$4 -> Pos. | C5: 1 | D5: =Translation!A5 -> Heat pump | H5: =Translation!$A$4 -> Pos. | I5: 10 | J5: =Translation!A48 -> Fill & drain valve
B6: =Translation!$A$4 -> Pos. | C6: 1-1 | D6: =Translation!A6 -> Exhaust air module: LWM 250 | H6: =Translation!$A$4 -> Pos. | I6: 11 | J6: =Translation!A49 -> Oil fired boiler / Gas fired boiler
B7: =Translation!$A$4 -> Pos. | C7: 1-2 | D7: =Translation!A7 -> Cooling module: WPAC | H7: =Translation!$A$4 -> Pos. | I7: 12 | J7: =Translation!A50 -> Electric central heating
B8: =Translation!$A$4 -> Pos. | C8: 2 | D8: =Translation!A8 -> Control unit: WPMW | H8: =Translation!$A$4 -> Pos. | I8: 13 | J8: =Translation!A51 -> Mixing valve
B9: =Translation!$A$4 -> Pos. | C9: 2-1 | D9: =Translation!A9 -> Swimming pool module: MSMW | H9: =Translation!$A$4 -> Pos. | I9: 14 | J9: =Translation!A52 -> Mixing valve actuator
B10: =Translation!$A$4 -> Pos. | C10: 2-2 | D10: =Translation!A10 -> Remote control: FE 7 | H10: =Translation!$A$4 -> Pos. | I10: 15 | J10: =Translation!A53 -> Heating control unit
B11: =Translation!$A$4 -> Pos. | C11: 2-3 | D11: =Translation!A11 -> Remote control cooling: FEK | H11: =Translation!$A$4 -> Pos. | I11: 16 | J11: =Translation!A54 -> Remote set value selector
B12: =Translation!$A$4 -> Pos. | C12: 2 a | D12: =Translation!A12 -> Temperature sensor: Outside temperature | H12: =Translation!$A$4 -> Pos. | I12: 17 | J12: =Translation!A55 -> Temperature sensor: Outside temperature
B13: =Translation!$A$4 -> Pos. | C13: 2 b | D13: =Translation!A13 -> Temperature sensor: Return temperature | H13: =Translation!$A$4 -> Pos. | I13: 18 | J13: =Translation!A56 -> Temperature sensor: Flow temperature
B14: =Translation!$A$4 -> Pos. | C14: 2 c | D14: =Translation!A14 -> Temperature sensor: Flow temperature, DHW "off" | H14: =Translation!$A$4 -> Pos. | I14: 19 | J14: =Translation!A57 -> Air vent valve
B15: =Translation!$A$4 -> Pos. | C15: 2 d | D15: =Translation!A15 -> Temperature sensor: Flow temperature, DHW "on" | H15: =Translation!$A$4 -> Pos. | I15: 20 | J15: =Translation!A58 -> Solid fuel boiler
B16: =Translation!$A$4 -> Pos. | C16: 2 e | D16: =Translation!A16 -> Temperature sensor: Mixer control | H16: =Translation!$A$4 -> Pos. | I16: 21 | J16: =Translation!A59 -> Motorised valve / Solenoid valve
B17: =Translation!$A$4 -> Pos. | C17: 2 f | D17: =Translation!A17 -> Temperature sensor: Heat source 2 | H17: =Translation!$A$4 -> Pos. | I17: 22 | J17: =Translation!A60 -> Diverter valve
B18: =Translation!$A$4 -> Pos. | C18: 2 g | D18: =Translation!A18 -> Temperature sensor: Heat source | H18: =Translation!$A$4 -> Pos. | I18: 23 | J18: =Translation!A61 -> Threaded immersion heater
B19: =Translation!$A$4 -> Pos. | C19: 2 h | D19: =Translation!A19 -> Temperature sensor: Swimming pool water heating | H19: =Translation!$A$4 -> Pos. | I19: 24 | J19: =Translation!A62 -> Heat exchanger
B20: =Translation!$A$4 -> Pos. | C20: 2 k | D20: =Translation!A20 -> Temperature sensor: solar panel | H20: =Translation!$A$4 -> Pos. | I20: 25 | J20: =Translation!A63 -> Combi cylinder
B21: =Translation!$A$4 -> Pos. | C21: 2 ko | D21: =Translation!A21 -> Temperature sensor: solar panel East | H21: =Translation!$A$4 -> Pos. | I21: 26 | J21: =Translation!A64 -> DHW cylinder
B22: =Translation!$A$4 -> Pos. | C22: 2 kw | D22: =Translation!A22 -> Temperature sensor: solar panel West | H22: =Translation!$A$4 -> Pos. | I22: 27 | J22: =Translation!A65 -> Central control thermostat
B23: =Translation!$A$4 -> Pos. | C23: 2 l | D23: =Translation!A23 -> Temperature sensor 1: return flow temperature increase | H23: =Translation!$A$4 -> Pos. | I23: 28 | J23: =Translation!A66 -> Cold water - safety equipment assembly
B24: =Translation!$A$4 -> Pos. | C24: 2 m | D24: =Translation!A24 -> Temperature sensor 2: return flow temperature increase | H24: =Translation!$A$4 -> Pos. | I24: 29 | J24: =Translation!A67 -> Controller: Swimming pool water
B25: =Translation!$A$4 -> Pos. | C25: 2 p | D25: =Translation!A25 -> Temperature sensor: solar buffer cylinder | H25: =Translation!$A$4 -> Pos. | I25: 30 | J25: =Translation!A68 -> Control thermostat
B26: =Translation!$A$4 -> Pos. | C26: 2 r | D26: =Translation!A26 -> Temperature sensor: additional solar buffer cylinder | H26: =Translation!$A$4 -> Pos. | I26: 31 | J26: =Translation!A69 -> Overflow valve
B27: =Translation!$A$4 -> Pos. | C27: 2 s | D27: =Translation!A27 -> Temperature sensor: solar system hot water/ cooling | H27: =Translation!$A$4 -> Pos. | I27: 32 | J27: =Translation!A70 -> cap valve
B28: =Translation!$A$4 -> Pos. | C28: 3 | D28: =Translation!A28 -> Circulation pump: Heat pump - heat source | H28: =Translation!$A$4 -> Pos. | I28: 33 | J28: =Translation!A71 -> Line regulating valve
B29: =Translation!$A$4 -> Pos. | C29: 3 a | D29: =Translation!A29 -> Circulation pump: Heat pump - heating side | H29: =Translation!$A$4 -> Pos. | I29: 34 | J29: =Translation!A72 -> Temperature differential controller
B30: =Translation!$A$4 -> Pos. | C30: 3 b | D30: =Translation!A30 -> Circulation pump: DHW heating | H30: =Translation!$A$4 -> Pos. | I30: 35 | J30: =Translation!A73 -> Flow limiter
B31: =Translation!$A$4 -> Pos. | C31: 3 c | D31: =Translation!A31 -> Circulation pump: Heating circuit 1 | H31: =Translation!$A$4 -> Pos. | I31: 36 | J31: =Translation!A74 -> High limit thermostat - underfloor heating system
B32: =Translation!$A$4 -> Pos. | C32: 3 d | D32: =Translation!A32 -> Circulation pump: Heating circuit 2 | H32: =Translation!$A$4 -> Pos. | I32: 37 | J32: =Translation!A75 -> Zone valve
B33: =Translation!$A$4 -> Pos. | C33: 3 e | D33: =Translation!A33 -> Circulation pump: Swimming pool | H33: =Translation!$A$4 -> Pos. | I33: 38 | J33: =Translation!A76 -> Inflow tube
B34: =Translation!$A$4 -> Pos. | C34: 3 f | D34: =Translation!A34 -> Circulation pump: Solar DHE heating | H34: =Translation!$A$4 -> Pos. | I34: 39 | J34: =Translation!A77 -> Filter / strainer
B35: =Translation!$A$4 -> Pos. | C35: 3 f.1 | D35: =Translation!A35 -> Circulation pump: Solar heating system | H35: =Translation!$A$4 -> Pos. | I35: 40 | J35: =Translation!A78 -> Fancoil
B36: =Translation!$A$4 -> Pos. | C36: 3 f.2 | D36: =Translation!A36 -> Circulation pump: Solar Swimming pool | H36: =Translation!$A$4 -> Pos. | I36: 41 | J36: =Translation!A79 -> Instantaneous water heater DHE
B37: =Translation!$A$4 -> Pos. | C37: 3 fo | D37: =Translation!A37 -> Circulation pump: Solar panel East | H37: =Translation!$A$4 -> Pos. | I37: 42 | J37: =Translation!A80 -> Solar panel
B38: =Translation!$A$4 -> Pos. | C38: 3 fw | D38: =Translation!A38 -> Circulation pump: Solar panel West | H38: =Translation!$A$4 -> Pos. | I38: 43 | J38: =Translation!A81 -> Elecrtical heating flang
B39: =Translation!$A$4 -> Pos. | C39: 3 g | D39: =Translation!A39 -> Circulation pump: Solid fuel boiler
B40: =Translation!$A$4 -> Pos. | C40: 3 x | D40: =Translation!A40 -> Circulation pump: Cooling - hest source | H40: =Translation!$A$4 -> Pos. | I40: I | J40: =Translation!A82 -> Heat utilisation system
B41: =Translation!$A$4 -> Pos. | C41: 3 y | D41: =Translation!A41 -> Circulation pump: Heat pump - heat source | H41: =Translation!$A$4 -> Pos. | I41: II | J41: =Translation!A83 -> Heat source system
B42: =Translation!$A$4 -> Pos. | C42: 4 | D42: =Translation!A42 -> Compact installation: WPKI | H42: =Translation!$A$4 -> Pos. | I42: III | J42: =Translation!A84 -> Solar panel
B43: =Translation!$A$4 -> Pos. | C43: 5 | D43: =Translation!A43 -> Safety valve | H43: =Translation!$A$4 -> Pos. | I43: IV | J43: =Translation!A85 -> Cooling system
B44: =Translation!$A$4 -> Pos. | C44: 6 | D44: =Translation!A44 -> Expansion vessel | H44: =Translation!$A$4 -> Pos. | I44: V | J44: =Translation!A86 -> Radiator heating system
B45: =Translation!$A$4 -> Pos. | C45: 7 | D45: =Translation!A45 -> Buffer cylinder/ low loss header | H45: =Translation!$A$4 -> Pos. | I45: VI | J45: =Translation!A87 -> Underfloor heating system
B46: =Translation!$A$4 -> Pos. | C46: 8 | D46: =Translation!A46 -> Anti-vibration mount | H46: =Translation!$A$4 -> Pos. | I46: VII | J46: =Translation!A88 -> DHW
B47: =Translation!$A$4 -> Pos. | C47: 9 | D47: =Translation!A47 -> Non-return valve | H47: =Translation!$A$4 -> Pos. | I47: VIII | J47: =Translation!A89 -> Swimming pool water

Sheet Daten WPL
A1: =Translation!$A$91 -> DESIGN INFORMATION
A3: =Translation!$A$92 -> Air/Water Heat pumps
M4: =Auswahl!$AC$9 -> Page 3 | Version 05/12
B6: =Translation!$A$197 -> Performance data | D6: WPL 13 cool | E6: WPL 18 cool | F6: WPL 23 cool | G6: 2 x WPL 23 cool | H6: 3 x WPL 23 cool | I6: 4 x WPL 23 cool | J6: 5 x WPL 23 cool | K6: 6 x WPL 23 cool
B7: =Translation!$A$134& " A2/W35" -> Heating Capacity A2/W35 | C7: KW | D7: 8.1 | E7: 11.3 | F7: 14.8 | G7: 29.6 | H7: 44.4 | I7: 59.2 | J7: 74 | K7: 88.8
B8: =Translation!$A$118&" - "&Translation!$A$94 -> Volume flow - Heating | C8: [7K] m³/h | D8: 1 | E8: 1.4 | F8: 1.8 | G8: 3.6 | H8: 5.5 | I8: 7.3 | J8: 9.1 | K8: 10.9
B9: =Translation!$A$118&" - "&Translation!$A$112 -> Volume flow - Heat source | C9: m³/h | D9: 3200 | E9: 3500 | F9: 3500 | G9: 2 x 3500 | H9: 3 x 3500 | I9: 4 x 3500 | J9: 5 x 3500 | K9: 6 x 3500
B10: =Translation!$A$160&" - "&Translation!$A$94 -> Pressure loss - Heating | C10: hPa | D10: 40 | E10: 80 | F10: 130 | G10: 130 | H10: 130 | I10: 130 | J10: 130 | K10: 130
B11: =Translation!$A$253&" - "&Translation!$A$112 -> external pressure differential - Heat source | C11: hPa | D11: 100 | E11: 100 | F11: 100 | G11: 100 | H11: 100 | I11: 100 | J11: 100 | K11: 100
B12: =Translation!$A$95 -> Pipe diameter
B13: =Translation!$A$94&" - "&Translation!$A$110 -> Heating - Copper | C13: mm | D13: 22 x 1,0 | E13: 28 x 1,5 | F13: 35 x 1,5 | G13: 42 x 1,5 | H13: 54 x 2,0 | I13: 76 x 2,5 | J13: 76 x 2,5 | K13: 76 x 2,5
B14: =Translation!$A$94&" - "&Translation!$A$193 -> Heating - Steel pipe | D14: DN 25 | E14: DN 32 | F14: DN 32 | G14: DN 50 | H14: DN 65 | I14: DN 65 | J14: DN 65 | K14: DN 80
B15: =Translation!$A$94&" - "&Translation!$A$111 -> Heating - plastic material | C15: mm | D15: 32 x 2,9 | E15: 32 x 2,9 | F15: 40 x 3,7 | G15: 50 x 4,6 | H15: 63 x 5,8 | I15: 75 x 6,8 | J15: 75 x 6,8 | K15: 90 x 8,2
B16: =Translation!$A$88&" - "&Translation!$A$110 -> DHW - Copper | C16: mm | D16: 28 x 1,5 | E16: 28 x 1,5 | F16: 35 x 1,5 | G16: 35 x 1,5 | H16: 35 x 1,5 | I16: 35 x 1,5 | J16: 35 x 1,5 | K16: 35 x 1,5
B17: =Translation!$A$88&" - "&Translation!$A$193 -> DHW - Steel pipe | D17: DN 25 | E17: DN 32 | F17: DN 32 | G17: DN 32 | H17: DN 32 | I17: DN 32 | J17: DN 32 | K17: DN 32
B18: =Translation!$A$96 -> Pump
B19: =Translation!$A$98 -> HP - Buffer cylinder | D19: UP 25/1-7 | E19: UP 25/1-7 | F19: UP 25/1-7 | G19: 2 x UP 25/1-7 | H19: 3 x UP 25/1-7 | I19: 4 x UP 25/1-7 | J19: 5 x UP 25/1-7 | K19: 6 x UP 25/1-7
B20: =Translation!$A$99 -> HP - DHW cylinder | D20: UP 25/1-7 | E20: UP 25/1-7 | F20: UP 25/1-7 | G20: UP 25/1-7 | H20: UP 25/1-7 | I20: UP 25/1-7 | J20: UP 25/1-7 | K20: UP 25/1-7
B21: =Translation!$A$97 -> Expansion vessel
B22: =Translation!$A$94 -> Heating | D22: 50 / 1,0 | E22: 50 / 1,0 | F22: 50 / 1,0 | G22: 80 / 1,0 | H22: 80 / 1,0 | I22: 140 / 1,0 | J22: 140 / 1,0 | K22: 140 / 1,0
B23: =Translation!$A$101 -> Compressor
B24: =Translation!$A$135& " A2/W35" -> Compressor A2/W35 | C24: KW | D24: 2.4 | E24: 3 | F24: 4.2 | G24: 2 x 4,2 | H24: 3 x 4,2 | I24: 4 x 4,2 | J24: 5 x 4,2 | K24: 6 x 4,2
B25: =Translation!$A$102 -> Connecting cable | C25: n x mm² | D25: 5 x 2,5 | E25: 5 x 2,5 | F25: 5 x 2,5 | G25: 5 x 2,5 | H25: 5 x 2,5 | I25: 5 x 2,5 | J25: 5 x 2,5 | K25: 5 x 2,5
B26: =Translation!$A$103 -> Fuse | C26: A | D26: 3 x C 16 A | E26: 3 x C 16 A | F26: 3 x C 16 A | G26: 3 x C 16 A | H26: 3 x C 16 A | I26: 3 x C 16 A | J26: 3 x C 16 A | K26: 3 x C 16 A
B27: =Translation!$A$104 -> DHC
B28: =Translation!$A$134 -> Heating Capacity | C28: KW | D28: 8.8 | E28: 8.8 | F28: 8.8 | G28: - | H28: - | I28: - | J28: - | K28: -
B29: =Translation!$A$102 -> Connecting cable | C29: n x mm² | D29: 5 x 2,5 | E29: 5 x 2,5 | F29: 5 x 2,5 | G29: - | H29: - | I29: - | J29: - | K29: -
B30: =Translation!$A$103 -> Fuse | C30: A | D30: 3 x C 16 A | E30: 3 x C 16 A | F30: 3 x C 16 A | G30: - | H30: - | I30: - | J30: - | K30: -
B31: =Translation!$A$105 -> Control circuit
B32: =Translation!$A$102 -> Connecting cable | C32: n x mm² | D32: 5 x 1,5 | E32: 5 x 1,5 | F32: 5 x 1,5 | G32: 5 x 1,5 | H32: 5 x 1,5 | I32: 5 x 1,5 | J32: 5 x 1,5 | K32: 5 x 1,5
B33: =Translation!$A$103 -> Fuse | C33: A | D33: C 16 A | E33: C 16 A | F33: C 16 A | G33: C 16 A | H33: C 16 A | I33: C 16 A | J33: C 16 A | K33: C 16 A
B34: =Translation!$A$106 -> BUS-cable | C34: n x mm² | D34: J-Y 2x2x0,8 | E34: J-Y 2x2x0,8 | F34: J-Y 2x2x0,8 | G34: J-Y 2x2x0,8 | H34: J-Y 2x2x0,8 | I34: J-Y 2x2x0,8 | J34: J-Y 2x2x0,8 | K34: J-Y 2x2x0,8
A35: =Translation!$A$91 -> DESIGN INFORMATION
A37: =Translation!$A$92 -> Air/Water Heat pumps
M38: =Auswahl!$AC$10 -> Page 4 | Version 05/12
B40: =Translation!$A$197 -> Performance data | D40: WPL 34 | E40: WPL 47 | F40: WPL 57 | G40: 2 x WPl 47 | H40: WPL 47 + WPL 57 | I40: 2 x WPL 57 | J40: 3 x WPL 57 | K40: 4 x WPL 57 | L40: 5 x WPL 57 | M40: 6 x WPL 57
B41: =Translation!$A$134& " A2/W35" -> Heating Capacity A2/W35 | C41: KW | D41: 19.2 | E41: 26.5 | F41: 29.9 | G41: 53 | H41: 56.4 | I41: 59.8 | J41: 89.7 | K41: 119.6 | L41: 149.5 | M41: 179.4
B42: =Translation!$A$118&" - "&Translation!$A$94 -> Volume flow - Heating | C42: [7K] m³/h | D42: 2.4 | E42: 3.3 | F42: 3.7 | G42: 6.5 | H42: 6.9 | I42: 7.3 | J42: 11 | K42: 14.7 | L42: 18.4 | M42: 22
B43: =Translation!$A$118&" - "&Translation!$A$112 -> Volume flow - Heat source | C43: m³/h | D43: 6500 | E43: 7000 | F43: 7000 | G43: 2 x 7000 | H43: 2 x 7000 | I43: 2 x 7000 | J43: 3 x 7000 | K43: 4 x 7000 | L43: 5 x 7000 | M43: 6 x 7000
B44: =Translation!$A$160&" - "&Translation!$A$94 -> Pressure loss - Heating | C44: hPa | D44: 100 | E44: 100 | F44: 100 | G44: 100 | H44: 100 | I44: 100 | J44: 100 | K44: 100 | L44: 100 | M44: 100
B45: =Translation!$A$253&" - "&Translation!$A$112 -> external pressure differential - Heat source | C45: hPa | D45: - | E45: - | F45: - | G45: - | H45: - | I45: - | J45: - | K45: - | L45: - | M45: -
B46: =Translation!$A$95 -> Pipe diameter
B47: =Translation!$A$94&" - "&Translation!$A$110 -> Heating - Copper | C47: mm | D47: 35 x 1,5 | E47: 42 x 1,5 | F47: 42 x 1,5 | G47: 54 x 2,0 | H47: 54 x 2,0 | I47: 76 x 2,5 | J47: 76 x 2,5 | K47: 89 x 2,5 | L47: 89 x 2,5 | M47: 108 x 3,0
B48: =Translation!$A$94&" - "&Translation!$A$193 -> Heating - Steel pipe | D48: DN 32 | E48: DN 50 | F48: DN 50 | G48: DN 65 | H48: DN 65 | I48: DN 65 | J48: DN 80 | K48: DN 100 | L48: DN 100 | M48: DN 125
B49: =Translation!$A$94&" - "&Translation!$A$111 -> Heating - plastic material | C49: mm | D49: 40 x 3,7 | E49: 50 x 4,6 | F49: 50 x 4,6 | G49: 63 x 5,8 | H49: 63 x 5,8 | I49: 63 x 5,8 | J49: 90 x 8,2 | K49: 90 x 8,2 | L49: 125 x 11,4 | M49: 125 x 11,4
B50: =Translation!$A$88&" - "&Translation!$A$110 -> DHW - Copper | C50: mm | D50: 35 x 1,5 | E50: 42 x 1,5 | F50: 42 x 1,5 | G50: 42 x 1,5 | H50: 42 x 1,5 | I50: 42 x 1,5 | J50: 42 x 1,5 | K50: 42 x 1,5 | L50: 42 x 1,5 | M50: 42 x 1,5
B51: =Translation!$A$88&" - "&Translation!$A$193 -> DHW - Steel pipe | D51: DN 32 | E51: DN 50 | F51: DN 50 | G51: DN 50 | H51: DN 50 | I51: DN 50 | J51: DN 50 | K51: DN 50 | L51: DN 50 | M51: DN 50
B52: =Translation!$A$96 -> Pump
B53: =Translation!$A$98 -> HP - Buffer cylinder | D53: UP 30/1-8 | E53: UP 30/1-8 | F53: UP 30/1-8 | G53: 2 x UP 30/1-8 | H53: 2 x UP 30/1-8 | I53: 2 x UP 30/1-8 | J53: 3 x UP 30/1-8 | K53: 4 x UP 30/1-8 | L53: 5 x UP 30/1-8 | M53: 6 x UP 30/1-8
B54: =Translation!$A$99 -> HP - DHW cylinder | D54: UP 30/1-8 | E54: UP 30/1-8 | F54: UP 30/1-8 | G54: UP 30/1-8 | H54: UP 30/1-8 | I54: UP 30/1-8 | J54: UP 30/1-8 | K54: UP 30/1-8 | L54: UP 30/1-8 | M54: UP 30/1-8
B55: =Translation!$A$97 -> Expansion vessel
B56: =Translation!$A$94 -> Heating | D56: 80 / 1,0 | E56: 140 / 1,0 | F56: 140 / 1,0 | G56: 140 / 1,0 | H56: 140 / 1,0 | I56: 140 / 1,0 | J56: 200 / 1,0 | K56: 200 / 1,0 | L56: 300 / 1,0 | M56: 300 / 1,0
B57: =Translation!$A$101 -> Compressor
B58: =Translation!$A$135& " A2/W35" -> Compressor A2/W35 | C58: KW | D58: 5.8 | E58: 7.6 | F58: 9.1 | G58: 2 x 7,6 | H58: 16.7 | I58: 2 x 9,1 | J58: 3 x 9,1 | K58: 4 x 9,1 | L58: 5 x 9,1 | M58: 6 x 9,1
B59: =Translation!$A$102 -> Connecting cable | C59: n x mm² | D59: 5 x 4,0 | E59: 5 x 4,0 | F59: 5 x 6,0 | G59: 5 x 6,0 | H59: 5 x 6,0 | I59: 5 x 6,0 | J59: 5 x 6,0 | K59: 5 x 6,0 | L59: 5 x 6,0 | M59: 5 x 6,0
B60: =Translation!$A$103 -> Fuse | C60: A | D60: 3 x C 25 A | E60: 3 x C 25 A | F60: 3 x C 25 A | G60: 3 x C 25 A | H60: 3 x C 25 A | I60: 3 x C 25 A | J60: 3 x C 25 A | K60: 3 x C 25 A | L60: 3 x C 25 A | M60: 3 x C 25 A
B61: =Translation!$A$104 -> DHC
B62: =Translation!$A$134 -> Heating Capacity | C62: KW | D62: - | E62: - | F62: - | G62: - | H62: - | I62: - | J62: - | K62: - | L62: - | M62: -
B63: =Translation!$A$102 -> Connecting cable | C63: n x mm² | D63: - | E63: - | F63: - | G63: - | H63: - | I63: - | J63: - | K63: - | L63: - | M63: -
B64: =Translation!$A$103 -> Fuse | C64: A | D64: - | E64: - | F64: - | G64: - | H64: - | I64: - | J64: - | K64: - | L64: - | M64: -
B65: =Translation!$A$105 -> Control circuit
B66: =Translation!$A$102 -> Connecting cable | C66: n x mm² | D66: 5 x 1,5 | E66: 5 x 1,5 | F66: 5 x 1,5 | G66: 5 x 1,5 | H66: 5 x 1,5 | I66: 5 x 1,5 | J66: 5 x 1,5 | K66: 5 x 1,5 | L66: 5 x 1,5 | M66: 5 x 1,5
B67: =Translation!$A$103 -> Fuse | C67: A | D67: C 16 | E67: C 16 | F67: C 16 | G67: C 16 | H67: C 16 | I67: C 16 | J67: C 16 | K67: C 16 | L67: C 16 | M67: C 16
B68: =Translation!$A$106 -> BUS-cable | C68: n x mm² | D68: J-Y 2x2x0,8 | E68: J-Y 2x2x0,8 | F68: J-Y 2x2x0,8 | G68: J-Y 2x2x0,8 | H68: J-Y 2x2x0,8 | I68: J-Y 2x2x0,8 | J68: J-Y 2x2x0,8 | K68: J-Y 2x2x0,8 | L68: J-Y 2x2x0,8 | M68: J-Y 2x2x0,8
A69: =Translation!$A$91 -> DESIGN INFORMATION
A71: =Translation!$A$92 -> Air/Water Heat pumps
M72: =Auswahl!$AC$11 -> Page 5 | Version 05/12
B74: =Translation!$A$197 -> Performance data | D74: WPL 5 N Plus | E74: WPL 10 | F74: WPL 10 AC | G74: WPL 13 BIK | H74: WPL 13 A Basic | I74: WPL 20 A Basic | J74: WPL 33 HT | K74: WPL 15 | L74: WPL 25
B75: =Translation!$A$134& " A2/W35" -> Heating Capacity A2/W35 | C75: KW | D75: 5 | E75: 6.7 | F75: 6.4 | G75: 9 | H75: 8.97 | I75: 13.46 | J75: 6.59 | K75: 5 | L75: 8.1
B76: =Translation!$A$118&" - "&Translation!$A$94 -> Volume flow - Heating | C76: [7K] m³/h | D76: 0.6 | E76: 0.8 | F76: 0.8 | G76: 1.1 | H76: 1.1 | I76: 1.7 | J76: 0.9 | K76: 0.6 | L76: 1
B77: =Translation!$A$118&" - "&Translation!$A$112 -> Volume flow - Heat source | C77: m³/h | D77: - | E77: 1200 | F77: 2300 | G77: 2900 | H77: 2900 | I77: 2900 | J77: 2900 | K77: - | L77: -
B78: =Translation!$A$160&" - "&Translation!$A$94 -> Pressure loss - Heating | C78: hPa | D78: 195 | E78: 195 | F78: 195 | G78: 40 | H78: 40 | I78: 80 | J78: 190 | K78: 195 | L78: 195
B79: =Translation!$A$253&" - "&Translation!$A$112 -> external pressure differential - Heat source | C79: hPa | D79: - | E79: 100 | F79: - | G79: 100 | H79: - | I79: - | J79: 100 | K79: - | L79: -
B80: =Translation!$A$95 -> Pipe diameter
B81: =Translation!$A$94&" - "&Translation!$A$110 -> Heating - Copper | C81: mm | D81: 22 x 1,0 | E81: 22 x 1,0 | F81: 22 x 1,0 | G81: 28 x 1,5 | H81: 22 x 1,0 | I81: 28 x 1,5 | J81: 28 x 1,5 | K81: 22 x 1,0 | L81: 28 x 1,5
B82: =Translation!$A$94&" - "&Translation!$A$193 -> Heating - Steel pipe | D82: DN 20 | E82: DN 25 | F82: DN 20 | G82: DN 25 | H82: DN 25 | I82: DN 32 | J82: DN 25 | K82: DN 20 | L82: DN 32
B83: =Translation!$A$94&" - "&Translation!$A$111 -> Heating - plastic material | C83: mm | D83: 25 x 2,3 | E83: 25 x 2,3 | F83: 25 x 2,3 | G83: 32 x 2,9 | H83: 25 x 2,3 | I83: 32 x 2,9 | J83: 32 x 2,9 | K83: 25 x 2,3 | L83: 25 x 2,3
B84: =Translation!$A$88&" - "&Translation!$A$110 -> DHW - Copper | C84: mm | D84: - | E84: 22 x 1,0 | F84: 22 x 1,0 | G84: 28 x 1,5 | H84: 28 x 1,5 | I84: 28 x 1,5 | J84: 28 x 1,5 | K84: - | L84: -
B85: =Translation!$A$88&" - "&Translation!$A$193 -> DHW - Steel pipe | D85: - | E85: DN 25 | F85: DN 20 | G85: DN 25 | H85: DN 25 | I85: DN 32 | J85: DN 25 | K85: - | L85: -
B86: =Translation!$A$96 -> Pump
B87: =Translation!$A$98 -> HP - Buffer cylinder | D87: UP 25/1-7 | E87: UP 25/1-7 | F87: UP 25/1-7 | G87: UP 25/1-7 | H87: UP 25/1-7 | I87: UP 25/1-7 | J87: UP 30/1-8 | K87: UP 25/1-7 | L87: UP 25/1-7
B88: =Translation!$A$99 -> HP - DHW cylinder | D88: - | E88: UP 25/1-7 | F88: UP 25/1-7 | G88: UP 25/1-7 | H88: UP 25/1-7 | I88: UP 25/1-7 | J88: UP 30/1-8 | K88: UP 25/1-7 | L88: UP 25/1-7
B89: =Translation!$A$97 -> Expansion vessel
B90: =Translation!$A$94 -> Heating | D90: 35 / 1,0 | E90: 50 / 1,0 | F90: 50 / 1,0 | G90: 50 / 1,0 | H90: 50 / 1,0 | I90: 50 / 1,0 | J90: 35 / 1,0 | K90: 35 / 1,0 | L90: 35 / 1,0
B91: =Translation!$A$101 -> Compressor
B92: =Translation!$A$135& " A2/W35" -> Compressor A2/W35 | C92: KW | D92: 1.37 | E92: 2.1 | F92: 1.9 | G92: 2.4 | H92: 2.6 | I92: 3.92 | J92: 1.88 | K92: 2.3 | L92: 1.81
B93: =Translation!$A$102 -> Connecting cable | C93: n x mm² | D93: 3 x 2,5 | E93: 5 x 1,5 | F93: 5 x 2,5 | G93: 5 x 2,5 | H93: 5 x 2,5 | I93: 5 x 2,5 | J93: 5 x 10,0 | K93: 3 x 4,0 | L93: 5 x 2,5
B94: =Translation!$A$103 -> Fuse | C94: A | D94: C 20 A | E94: C 16 A | F94: C 16 A | G94: C 16 A | H94: C 16 A | I94: C 16 A | J94: C 35 A | K94: C 20 A | L94: 3 x C 20 A
B95: =Translation!$A$104 -> DHC
B96: =Translation!$A$134 -> Heating Capacity | C96: KW | D96: 8.8 | E96: 8.8 | F96: 8.8 | G96: 8.8 | H96: 8.8 | I96: 8.8 | J96: 8.8 | K96: 8.8 | L96: 8.8
B97: =Translation!$A$102 -> Connecting cable | C97: n x mm² | D97: 5 x 2,5 | E97: 5 x 2,5 | F97: 5 x 2,5 | G97: 5 x 2,5 | H97: 5 x 2,5 | I97: 5 x 2,5 | J97: 5 x 2,5 | K97: 5 x 2,5 | L97: 5 x 2,5
B98: =Translation!$A$103 -> Fuse | C98: A | D98: 3 x C 16 A | E98: 3 x C 16 A | F98: 3 x C 16 A | G98: 3 x C 16 A | H98: 3 x C 16 A | I98: 3 x C 16 A | J98: 3 x C 16 A | K98: 3 x C 16 A | L98: 3 x C 16 A
B99: =Translation!$A$105 -> Control circuit
B100: =Translation!$A$102 -> Connecting cable | C100: n x mm² | D100: 5 x 1,5 | E100: 5 x 1,5 | F100: 5 x 1,5 | G100: 5 x 1,5 | H100: 5 x 1,5 | I100: 5 x 1,5 | J100: 5 x 1,5 | K100: 5 x 1,5 | L100: 5 x 1,5
B101: =Translation!$A$103 -> Fuse | C101: A | D101: C 16 A | E101: C 16 A | F101: C 16 A | G101: C 16 A | H101: C 16 A | I101: C 16 A | J101: C 16 A | K101: C 16 A | L101: C 16 A
B102: =Translation!$A$106 -> BUS-cable | C102: n x mm² | D102: J-Y 2x2x0,8 | E102: J-Y 2x2x0,8 | F102: J-Y 2x2x0,8 | G102: J-Y 2x2x0,8 | H102: J-Y 2x2x0,8 | I102: J-Y 2x2x0,8 | J102: J-Y 2x2x0,8 | K102: J-Y 2x2x0,8 | L102: J-Y 2x2x0,8
A103: =Translation!$A$91 -> DESIGN INFORMATION
A105: =Translation!$A$92 -> Air/Water Heat pumps
M106: =Auswahl!$AC$12 -> Page 6 | Version 05/12
B108: =Translation!$A$197 -> Performance data | D108: WPL 10 S | E108: WPL 10 ACS | F108: WPL 13 S | G108: WPL 16 S | H108: WPL 13 S basic | I108: WPL 18 S basic
B109: =Translation!$A$134& " A2/W35" -> Heating Capacity A2/W35 | C109: KW | D109: 5.4 | E109: 6.5 | F109: 8.7 | G109: 12.8 | H109: 9 | I109: 11.6
B110: =Translation!$A$118&" - "&Translation!$A$94 -> Volume flow - Heating | C110: [7K] m³/h | D110: 0.7 | E110: 0.8 | F110: 1.1 | G110: 1.6 | H110: 1.1 | I110: 1.5
B111: =Translation!$A$118&" - "&Translation!$A$112 -> Volume flow - Heat source | C111: m³/h | D111: 1200 | E111: 2300 | F111: 3500 | G111: 6000 | H111: 3500 | I111: 3500
B112: =Translation!$A$160&" - "&Translation!$A$94 -> Pressure loss - Heating | C112: hPa | D112: 195 | E112: 195 | F112: 105 | G112: 255 | H112: 190 | I112: 40
B113: =Translation!$A$253&" - "&Translation!$A$112 -> external pressure differential - Heat source | C113: hPa | D113: 100 | E113: - | F113: 100 | G113: 100 | H113: 100 | I113: 100
B114: =Translation!$A$95 -> Pipe diameter
B115: =Translation!$A$94&" - "&Translation!$A$110 -> Heating - Copper | C115: mm | D115: 22 x 1,0 | E115: 22 x 1,0 | F115: 35 x 1,5 | G115: 35 x 1,5 | H115: 35 x 1,5 | I115: 35 x 1,5
B116: =Translation!$A$94&" - "&Translation!$A$193 -> Heating - Steel pipe | D116: DN 25 | E116: DN 25 | F116: DN 32 | G116: DN 32 | H116: DN 32 | I116: DN 32
B117: =Translation!$A$94&" - "&Translation!$A$111 -> Heating - plastic material | C117: mm | D117: 25 x 2,3 | E117: 25 x 2,3 | F117: 40 x 3,7 | G117: 40 x 3,7 | H117: 40 x 3,7 | I117: 40 x 3,7
B118: =Translation!$A$88&" - "&Translation!$A$110 -> DHW - Copper | C118: mm | D118: 22 x 1,0 | E118: 22 x 1,0 | F118: 28 x 1,5 | G118: 28 x 1,5 | H118: 28 x 1,5 | I118: 28 x 1,5
B119: =Translation!$A$88&" - "&Translation!$A$193 -> DHW - Steel pipe | D119: DN 25 | E119: DN 25 | F119: DN 25 | G119: DN 25 | H119: DN 25 | I119: DN 25
B120: =Translation!$A$96 -> Pump
B121: =Translation!$A$98 -> HP - Buffer cylinder | D121: UP 25/1-7 | E121: UP 25/1-7 | F121: UP 25/1-7 | G121: UP 25/1-7 | H121: UP 30/1-8 | I121: UP 25/1-7
B122: =Translation!$A$99 -> HP - DHW cylinder | D122: UP 25/1-7 | E122: UP 25/1-7 | F122: UP 25/1-7 | G122: UP 25/1-7 | H122: UP 30/1-8 | I122: UP 25/1-7
B123: =Translation!$A$97 -> Expansion vessel
B124: =Translation!$A$94 -> Heating | D124: 50 / 1,0 | E124: 50 / 1,0 | F124: 50 / 1,0 | G124: 50 / 1,0 | H124: 50 / 1,0 | I124: 50 / 1,0
B125: =Translation!$A$101 -> Compressor
B126: =Translation!$A$135& " A2/W35" -> Compressor A2/W35 | C126: KW | D126: 2.1 | E126: 1.9 | F126: 2.4 | G126: 3.4 | H126: 2.2 | I126: 3.5
B127: =Translation!$A$102 -> Connecting cable | C127: n x mm² | D127: 3 x 4,0 | E127: 3 x 4,0 | F127: 3 x 4,0 | G127: 3 x 4,0 | H127: 3 x 4,0 | I127: 3 x 4,0
B128: =Translation!$A$103 -> Fuse | C128: A | D128: C 25 A | E128: C 25 A | F128: C 25 A | G128: C 25 A | H128: C 25 A | I128: C 25 A
B129: =Translation!$A$104 -> DHC
B130: =Translation!$A$134 -> Heating Capacity | C130: KW | D130: 6.2 | E130: 6.2 | F130: 6.2 | G130: 6.2 | H130: 6.2 | I130: 6.2
B131: =Translation!$A$102 -> Connecting cable | C131: n x mm² | D131: 5 x 4,0 | E131: 4 x 4,0 | F131: 4 x 4,0 | G131: 4 x 4,0 | H131: 4 x 4,0 | I131: 4 x 4,0
B132: =Translation!$A$103 -> Fuse | C132: A | D132: C 35 A | E132: C 35 A | F132: C 35 A | G132: C 35 A | H132: C 35 A | I132: C 35 A
B133: =Translation!$A$105 -> Control circuit
B134: =Translation!$A$102 -> Connecting cable | C134: n x mm² | D134: 5 x 1,5 | E134: 5 x 1,5 | F134: 5 x 1,5 | G134: 5 x 1,5 | H134: 5 x 1,5 | I134: 5 x 1,5
B135: =Translation!$A$103 -> Fuse | C135: A | D135: C 16 A | E135: C 16 A | F135: C 16 A | G135: C 16 A | H135: C 16 A | I135: C 16 A
B136: =Translation!$A$106 -> BUS-cable | C136: n x mm² | D136: J-Y 2x2x0,8 | E136: J-Y 2x2x0,8 | F136: J-Y 2x2x0,8 | G136: J-Y 2x2x0,8 | H136: J-Y 2x2x0,8 | I136: J-Y 2x2x0,8

Sheet Daten WPF
A1: =Translation!$A$91 -> DESIGN INFORMATION
A3: =Translation!$A$108 -> Brine/Water Heat pumps
N4: =Auswahl!$AC$13 -> Page 7 | Version 05/12
B6: =Translation!$A$197 -> Performance data | D6: WPF 5 E | E6: WPF 7 E | F6: WPF 10 E | G6: WPF 13 E | H6: WPF 16 E | I6: WPF 5 basic | J6: WPF 7 basic | K6: WPF 10 basic | L6: WPF 13 basic | M6: WPF 16 basic
B7: =Translation!$A$134& " B0/W35" -> Heating Capacity B0/W35 | C7: KW | D7: 5.9 | E7: 7.4 | F7: 10 | G7: 12.8 | H7: 16.9 | I7: 5.8 | J7: 7.8 | K7: 9.9 | L7: 13.4 | M7: 16.1
B8: =Translation!$A$136& " B0/W35" -> Cooling Capacity B0/W35 | C8: KW | D8: 4.57 | E8: 5.72 | F8: 7.79 | G8: 9.85 | H8: 12.99 | I8: 4.46 | J8: 6.02 | K8: 7.7 | L8: 10.35 | M8: 12.5
B9: =Translation!$A$118&" - "&Translation!$A$94 -> Volume flow - Heating | C9: [7K] m³/h | D9: 0.7 | E9: 0.9 | F9: 1.2 | G9: 1.6 | H9: 2.1 | I9: 0.7 | J9: 1 | K9: 1.2 | L9: 1.6 | M9: 2
B10: =Translation!$A$118&" - "&Translation!$A$112 -> Volume flow - Heat source | C10: [3K] m³/h | D10: 1.4 | E10: 1.9 | F10: 2.2 | G10: 3.1 | H10: 3.8 | I10: 1.3 | J10: 1.7 | K10: 2.2 | L10: 3 | M10: 3.6
B11: =Translation!$A$160&" - "&Translation!$A$94 -> Pressure loss - Heating | C11: hPa | D11: - | E11: - | F11: - | G11: - | H11: - | I11: - | J11: - | K11: - | L11: - | M11: -
B12: =Translation!$A$253&" - "&Translation!$A$94 -> external pressure differential - Heating | C12: hPa | D12: 350 | E12: 350 | F12: 260 | G12: 167 | H12: 63 | I12: 280 | J12: 280 | K12: 280 | L12: 100 | M12: 100
B13: =Translation!$A$160&" - "&Translation!$A$112 -> Pressure loss - Heat source | C13: hPa | D13: - | E13: - | F13: - | G13: - | H13: - | I13: 100 | J13: 110 | K13: 120 | L13: 230 | M13: 340
B14: =Translation!$A$253&" - "&Translation!$A$112 -> external pressure differential - Heat source | C14: hPa | D14: 520 | E14: 450 | F14: 365 | G14: 205 | H14: 205 | I14: - | J14: - | K14: - | L14: - | M14: -
B15: =Translation!$A$95 -> Pipe diameter
B16: =Translation!$A$112&" - "&Translation!$A$110 -> Heat source - Copper | C16: mm | D16: 28 x 1,5 | E16: 35 x 1,5 | F16: 35 x 1,5 | G16: 42 x 1,5 | H16: 42 x 1,5 | I16: 28 x 1,5 | J16: 35 x 1,5 | K16: 35 x 1,5 | L16: 42 x 1,5 | M16: 42 x 1,5
B17: =Translation!$A$112&" - "&Translation!$A$111 -> Heat source - plastic material | C17: mm | D17: 32 x 2,9 | E17: 32 x 2,9 | F17: 40 x 3,7 | G17: 50 x 4,6 | H17: 50 x 4,6 | I17: 32 x 2,9 | J17: 32 x 2,9 | K17: 40 x 3,7 | L17: 50 x 4,6 | M17: 50 x 4,6
B18: =Translation!$A$94&" - "&Translation!$A$110 -> Heating - Copper | C18: mm | D18: 22 x 1,0 | E18: 22 x 1,0 | F18: 28 x 1,5 | G18: 28 x 1,5 | H18: 35 x 1,5 | I18: 22 x 1,0 | J18: 22 x 1,0 | K18: 28 x 1,5 | L18: 28 x 1,5 | M18: 35 x 1,5
B19: =Translation!$A$94&" - "&Translation!$A$193 -> Heating - Steel pipe | D19: DN 20 | E19: DN 20 | F19: DN 25 | G19: DN 25 | H19: DN 32 | I19: DN 20 | J19: DN 20 | K19: DN 25 | L19: DN 25 | M19: DN 32
B20: =Translation!$A$94&" - "&Translation!$A$111 -> Heating - plastic material | C20: mm | D20: 25 x 2,3 | E20: 25 x 2,3 | F20: 32 x 2,9 | G20: 32 x 2,9 | H20: 40 x 3,7 | I20: 25 x 2,3 | J20: 25 x 2,3 | K20: 32 x 2,9 | L20: 32 x 2,9 | M20: 40 x 3,7
B21: =Translation!$A$88&" - "&Translation!$A$110 -> DHW - Copper | C21: mm | D21: 22 x 1,0 | E21: 22 x 1,0 | F21: 28 x 1,5 | G21: 28 x 1,5 | H21: 28 x 1,5 | I21: 22 x 1,0 | J21: 22 x 1,0 | K21: 28 x 1,5 | L21: 28 x 1,5 | M21: 28 x 1,5
B22: =Translation!$A$88&" - "&Translation!$A$193 -> DHW - Steel pipe | D22: DN 20 | E22: DN 20 | F22: DN 25 | G22: DN 25 | H22: DN 32 | I22: DN 20 | J22: DN 20 | K22: DN 25 | L22: DN 25 | M22: DN 32
B23: =Translation!$A$88&" - "&Translation!$A$111 -> DHW - plastic material | C23: mm | D23: 25 x 2,3 | E23: 25 x 2,3 | F23: 32 x 2,9 | G23: 32 x 2,9 | H23: 40 x 3,7 | I23: 25 x 2,3 | J23: 25 x 2,3 | K23: 32 x 2,9 | L23: 32 x 2,9 | M23: 40 x 3,7
B24: =Translation!$A$96 -> Pump
B25: =Translation!$A$98 -> HP - Buffer cylinder | D25: UP 25/1-7 | E25: UP 25/1-7 | F25: UP 25/1-7 | G25: UP 25/1-7 | H25: UP 25/1-7 | I25: UP 25/1-7 | J25: UP 25/1-7 | K25: UP 25/1-7 | L25: UP 25/1-7 | M25: UP 25/1-7
B26: =Translation!$A$99 -> HP - DHW cylinder | D26: UP 25/1-7 | E26: UP 25/1-7 | F26: UP 25/1-7 | G26: UP 25/1-7 | H26: UP 25/1-7 | I26: UP 25/1-7 | J26: UP 25/1-7 | K26: UP 25/1-7 | L26: UP 25/1-7 | M26: UP 25/1-7
B27: =Translation!$A$109 -> Probes DN 25, max 100m | D27: UP 25/1-8 | E27: UP 25/1-8 | F27: UP 25/1-8 | G27: UP 25/1-8 | H27: UP 25/1-12 | I27: TOP S 30/7 | J27: TOP S 30/7 | K27: TOP S 30/7 | L27: TOP S 30/7 | M27: TOP S 30/10
B28: =Translation!$A$97 -> Expansion vessel
B29: =Translation!$A$94 -> Heating | D29: 24 / 1,0 | E29: 24 / 1,0 | F29: 24 / 1,0 | G29: 24 / 1,0 | H29: 24 / 1,0 | I29: 50 / 1,0 | J29: 50 / 1,0 | K29: 50 / 1,0 | L29: 50 / 1,0 | M29: 50 / 1,0
B30: =Translation!$A$112 -> Heat source | D30: 24 / 1,5 | E30: 24 / 1,5 | F30: 24 / 1,5 | G30: 24 / 1,5 | H30: 24 / 1,5 | I30: 18 / 1,5 | J30: 18 / 1,5 | K30: 18 / 1,5 | L30: 18 / 1,5 | M30: 25 / 1,5
B31: =Translation!$A$101 -> Compressor
B32: =Translation!$A$135& " B0W35" -> Compressor B0W35 | C32: KW | D32: 1.33 | E32: 1.68 | F32: 2.21 | G32: 2.95 | H32: 3.91 | I32: 1.34 | J32: 1.78 | K32: 2.2 | L32: 3.05 | M32: 3.6
B33: =Translation!$A$102 -> Connecting cable | C33: n x mm² | D33: 5 x 2,5 | E33: 5 x 2,5 | F33: 5 x 2,5 | G33: 5 x 2,5 | H33: 5 x 2,5 | I33: 5 x 2,5 | J33: 5 x 2,5 | K33: 5 x 2,5 | L33: 5 x 2,5 | M33: 5 x 2,5
B34: =Translation!$A$103 -> Fuse | C34: A | D34: 3 x C 16 | E34: 3 x C 16 | F34: 3 x C 16 | G34: 3 x C 16 | H34: 3 x C 16 | I34: C 16 A | J34: C 16 A | K34: C 16 A | L34: C 16 A | M34: C 16 A
B35: =Translation!$A$104 -> DHC
B36: =Translation!$A$134 -> Heating Capacity | C36: KW | D36: 8.8 | E36: 8.8 | F36: 8.8 | G36: 8.8 | H36: 8.8 | I36: 8.8 | J36: 8.8 | K36: 8.8 | L36: 8.8 | M36: 8.8
B37: =Translation!$A$102 -> Connecting cable | C37: n x mm² | D37: 5 x 2,5 | E37: 5 x 2,5 | F37: 5 x 2,5 | G37: 5 x 2,5 | H37: 5 x 2,5 | I37: 5 x 2,5 | J37: 5 x 2,5 | K37: 5 x 2,5 | L37: 5 x 2,5 | M37: 5 x 2,5
B38: =Translation!$A$103 -> Fuse | C38: A | D38: 3 x B 16 | E38: 3 x B 16 | F38: 3 x B 16 | G38: 3 x B 16 | H38: 3 x B 16 | I38: C 16 A | J38: C 16 A | K38: C 16 A | L38: C 16 A | M38: C 16 A
B39: =Translation!$A$105 -> Control circuit
B40: =Translation!$A$102 -> Connecting cable | C40: n x mm² | D40: 5 x 1,5 | E40: 5 x 1,5 | F40: 5 x 1,5 | G40: 5 x 1,5 | H40: 5 x 1,5 | I40: 5 x 1,5 | J40: 5 x 1,5 | K40: 5 x 1,5 | L40: 5 x 1,5 | M40: 5 x 1,5
B41: =Translation!$A$103 -> Fuse | C41: A | D41: 1 x B 16 | E41: 1 x B 16 | F41: 1 x B 16 | G41: 1 x B 16 | H41: 1 x B 16 | I41: C 16 A | J41: C 16 A | K41: C 16 A | L41: C 16 A | M41: C 16 A
B42: =Translation!$A$106 -> BUS-cable | C42: n x mm² | D42: - | E42: - | F42: - | G42: - | H42: - | I42: - | J42: - | K42: - | L42: - | M42: -
A43: =Translation!$A$91 -> DESIGN INFORMATION
A45: =Translation!$A$108 -> Brine/Water Heat pumps
N46: =Auswahl!$AC$14 -> Page 8 | Version 05/12
B48: =Translation!$A$197 -> Performance data | D48: WPF 20 | E48: WPF 27 | F48: WPF 35 | G48: WPF 40 | H48: WPF 52 | I48: WPF 66 | J48: WPF 80 SET | K48: WPF 92 SET | L48: WPF 104 SET | M48: WPF 118 SET | N48: WPF 132 SET
B49: =Translation!$A$134& " B0/W35" -> Heating Capacity B0/W35 | C49: KW | D49: 21.9 | E49: 29.7 | F49: 38.04 | G49: 45.7 | H49: 55.8 | I49: 69 | J49: 91.4 | K49: 101.5 | L49: 111.6 | M49: 124.8 | N49: 138
B50: =Translation!$A$136& " B0/W35" -> Cooling Capacity B0/W35 | C50: KW | D50: 17.4 | E50: 23.6 | F50: 26.6 | G50: 36.6 | H50: 44.2 | I50: 54.8 | J50: 73.2 | K50: 80.8 | L50: 88.4 | M50: 99 | N50: 109.6
B51: =Translation!$A$118&" - "&Translation!$A$94 -> Volume flow - Heating | C51: [7K] m³/h | D51: 2.7 | E51: 3.6 | F51: 4.6 | G51: 5.6 | H51: 6.9 | I51: 8.5 | J51: 11.2 | K51: 12.5 | L51: 13.7 | M51: 15.3 | N51: 17
B52: =Translation!$A$118&" - "&Translation!$A$112 -> Volume flow - Heat source | C52: [3K] m³/h | D52: 5 | E52: 6.8 | F52: 8.5 | G52: 10.5 | H52: 12.7 | I52: 15.7 | J52: 20.9 | K52: 23.1 | L52: 25.3 | M52: 28.4 | N52: 31.5
B53: =Translation!$A$160&" - "&Translation!$A$94 -> Pressure loss - Heating | C53: hPa | D53: 60 | E53: 52 | F53: 80 | G53: 80 | H53: 60 | I53: 80 | J53: 80 | K53: 80 | L53: 80 | M53: 80 | N53: 80
B54: =Translation!$A$253&" - "&Translation!$A$94 -> external pressure differential - Heating | C54: hPa | D54: - | E54: - | F54: - | G54: - | H54: - | I54: - | J54: - | K54: - | L54: - | M54: - | N54: -
B55: =Translation!$A$160&" - "&Translation!$A$112 -> Pressure loss - Heat source | C55: hPa | D55: 150 | E55: 140 | F55: 160 | G55: 160 | H55: 150 | I55: 160 | J55: 160 | K55: 160 | L55: 160 | M55: 160 | N55: 160
B56: =Translation!$A$253&" - "&Translation!$A$112 -> external pressure differential - Heat source | C56: hPa | D56: - | E56: - | G56: - | H56: - | I56: - | J56: - | K56: - | L56: - | M56: - | N56: -
B57: =Translation!$A$95 -> Pipe diameter
B58: =Translation!$A$112&" - "&Translation!$A$110 -> Heat source - Copper | C58: mm | D58: 54 x 2,0 | E58: 54 x 2,0 | F58: 76 x 2,5 | G58: 76 x 2,5 | H58: 76 x 2,5 | I58: 89 x 2,5 | J58: 108 x 3,0 | K58: 108 x 3,0 | L58: 108 x 3,0 | M58: 108 x 3,0 | N58: 133 x 3,0
B59: =Translation!$A$112&" - "&Translation!$A$111 -> Heat source - plastic material | C59: mm | D59: 63 x 5,8 | E59: 63 x 5,8 | F59: 75 x 6,8 | G59: 75 x 6,8 | H59: 90 x 8,2 | I59: 125 x 11,4 | J59: 125 x 11,4 | K59: 125 x 11,4 | L59: 125 x 11,4 | M59: 125 x 11,4 | N59: 160 x 14,6
B60: =Translation!$A$94&" - "&Translation!$A$110 -> Heating - Copper | C60: mm | D60: 35 x 1,5 | E60: 42 x 1,5 | F60: 54 x 2,0 | G60: 54 x 2,0 | H60: 54 x 2,0 | I60: 76,1 x 2,5 | J60: 76 x 2,5 | K60: 76 x 2,5 | L60: 76 x 2,5 | M60: 89 x 2,9 | N60: 89 x 2,9
B61: =Translation!$A$94&" - "&Translation!$A$193 -> Heating - Steel pipe | D61: DN 32 | E61: DN 40 | F61: DN 50 | G61: DN 50 | H61: DN 50 | I61: DN 65 | J61: DN 65 | K61: DN 65 | L61: DN 65 | M61: DN 80 | N61: DN 80
B62: =Translation!$A$94&" - "&Translation!$A$111 -> Heating - plastic material | C62: mm | D62: 40 x 3,7 | E62: 50 x 4,6 | F62: 63 x 5,8 | G62: 63 x 5,8 | H62: 63 x 5,8 | I62: 75 x 6,9 | J62: 90 x 8,2 | K62: 90 x 8,2 | L62: 90 x 8,2 | M62: 90 x 8,2 | N62: 125 x 11,4
B63: =Translation!$A$88&" - "&Translation!$A$110 -> DHW - Copper | C63: mm | D63: 35 x 1,5 | E63: 42 x 1,5 | F63: 54 x 2,0 | G63: 54 x 2,0 | H63: 54 x 2,0 | I63: 76 x 2,5 | J63: 54 x 2,0 | K63: 54 x 2,0 | L63: 76 x 2,5 | M63: 76 x 2,5 | N63: 76 x 2,5
B64: =Translation!$A$88&" - "&Translation!$A$193 -> DHW - Steel pipe | D64: DN 32 | E64: DN 40 | F64: DN 50 | G64: DN 50 | H64: DN 50 | I64: DN 65 | J64: DN 65 | K64: DN 65 | L64: DN 65 | M64: DN 65 | N64: DN 65
B65: =Translation!$A$88&" - "&Translation!$A$111 -> DHW - plastic material | C65: mm | D65: 40 x 3,7 | E65: 50 x 4,6 | F65: 63 x 5,8 | G65: 63 x 5,8 | H65: 63 x 5,8 | I65: 75 x 6,9 | J65: 63 x 5,8 | K65: 63 x 5,8 | L65: 63 x 5,8 | M65: 75 x 6,9 | N65: 75 x 6,9
B66: =Translation!$A$96 -> Pump
B67: =Translation!$A$98 -> HP - Buffer cylinder | D67: UP 40/1-8E | E67: UP 40/1-8E | F67: UP 40/1-8E | G67: UP 50/1-12E | H67: UP 50/1-12E | I67: UP 50/1-12E | J67: 2 x UP 50/1-12E | K67: 2 x UP 50/1-12E | L67: 2 x UP 50/1-12E | M67: 2 x UP 50/1-12E | N67: 2 x UP 50/1-12E
B68: =Translation!$A$99 -> HP - DHW cylinder | D68: UP 40/1-8E | E68: UP 40/1-8E | F68: UP 40/1-8E | G68: UP 50/1-12E | H68: UP 50/1-12E | I68: UP 50/1-12E | J68: UP 50/1-12E | K68: UP 50/1-12E | L68: UP 50/1-12E | M68: UP 50/1-12E | N68: UP 50/1-12E
B69: =Translation!$A$109 -> Probes DN 25, max 100m | D69: UPF 40/1-8E | E69: UPF 40/1-8E | F69: UPF 40/1-8E | G69: UPF 50/1-12E | H69: UPF 50/1-12E | I69: UPF 50/1-12E | J69: 2 x UPF 50/1-12E | K69: 2 x UPF 50/1-12E | L69: 2 x UPF 50/1-12E | M69: 2 x UPF 50/1-12E | N69: 2 x UPF 50/1-12E
B70: =Translation!$A$97 -> Expansion vessel
B71: =Translation!$A$94 -> Heating | D71: 80 / 1,0 | E71: 80 / 1,0 | F71: 140 / 1,0 | G71: 140 / 1,0 | H71: 140 / 1,0 | I71: 140 / 1,0 | J71: 140 / 1,0 | K71: 140 / 1,0 | L71: 200 / 1,0 | M71: 200 / 1,0 | N71: 200 / 1,0
B72: =Translation!$A$112 -> Heat source | D72: 50 / 1,5 | E72: 50 / 1,5 | F72: 2 x 50 / 1,5 | G72: 2 x 50 / 1,5 | H72: 2 x 50 / 1,5 | I72: 2 x 50 / 1,5 | J72: 3 x 50 / 1,5 | K72: 4 x 50 / 1,5 | L72: 4 x 50 / 1,5 | M72: 4 x 50 / 1,5 | N72: 4 x 50 / 1,5
B73: =Translation!$A$101 -> Compressor
B74: =Translation!$A$135& " B0W35" -> Compressor B0W35 | C74: KW | D74: 4.5 | E74: 6.1 | F74: 7.96 | G74: 9.1 | H74: 11.6 | I74: 14.2 | J74: 2 x 9,1 | K74: 9,1 / 11,6 | L74: 2 x 11,6 | M74: 11,6 / 14,2 | N74: 2 x 14,2
B75: =Translation!$A$102 -> Connecting cable | C75: n x mm² | D75: 5 x 6,0 | E75: 5 x 6,0 | F75: 5 x 6,0 | G75: 5 x 6,0 | H75: 5 x 10,0 | I75: 5 x 10,0 | J75: 5 x 10,0 | K75: 5 x 10,0 | L75: 5 x 10,0 | M75: 5 x 10,0 | N75: 5 x 10,0
B76: =Translation!$A$103 -> Fuse | C76: A | D76: 3 x C 35 A | E76: 3 x C 35 A | F76: 3 x C 35 A | G76: 3 x C 35 A | H76: 3 x C 50 A | I76: 3 x C 50 A | J76: 3 x C 50 A | K76: 3 x C 50 A | L76: 3 x C 50 A | M76: 3 x C 50 A | N76: 3 x C 50 A
B77: =Translation!$A$104 -> DHC
B78: =Translation!$A$134 -> Heating Capacity | C78: KW | D78: - | E78: - | F78: - | G78: - | H78: - | I78: - | J78: - | K78: - | L78: - | M78: - | N78: -
B79: =Translation!$A$102 -> Connecting cable | C79: n x mm² | D79: - | E79: - | F79: - | G79: - | H79: - | I79: - | J79: - | K79: - | L79: - | M79: - | N79: -
B80: =Translation!$A$103 -> Fuse | C80: A | D80: - | E80: - | F80: - | G80: - | H80: - | I80: - | J80: - | K80: - | L80: - | M80: - | N80: -
B81: =Translation!$A$105 -> Control circuit
B82: =Translation!$A$102 -> Connecting cable | C82: n x mm² | D82: 5 x 1,5 | E82: 5 x 1,5 | F82: 5 x 1,5 | G82: 5 x 1,5 | H82: 5 x 1,5 | I82: 5 x 1,5 | J82: 5 x 1,5 | K82: 5 x 1,5 | L82: 5 x 1,5 | M82: 5 x 1,5 | N82: 5 x 1,5
B83: =Translation!$A$103 -> Fuse | C83: A | D83: C 16 A | E83: C 16 A | F83: C 16 A | G83: C 16 A | H83: C 16 A | I83: C 16 A | J83: C 16 A | K83: C 16 A | L83: C 16 A | M83: C 16 A | N83: C 16 A
B84: =Translation!$A$106 -> BUS-cable | C84: n x mm² | D84: J-Y 2x2x0,8 | E84: J-Y 2x2x0,8 | F84: J-Y 2x2x0,8 | G84: J-Y 2x2x0,8 | H84: J-Y 2x2x0,8 | I84: J-Y 2x2x0,8 | J84: J-Y 2x2x0,8 | K84: J-Y 2x2x0,8 | L84: J-Y 2x2x0,8 | M84: J-Y 2x2x0,8 | N84: I-Y 2x2x0,8
A85: =Translation!$A$91 -> DESIGN INFORMATION
A87: =Translation!$A$108 -> Brine/Water Heat pumps
N88: =Auswahl!$AC$15 -> Page 9 | Version 05/12
B90: =Translation!$A$197 -> Performance data | D90: WPF 10 M | E90: WPF 13 M | F90: WPF 16 M | G90: WPF 20 SET | H90: WPF 23 SET | I90: WPF 26 SET | J90: WPF 29 SET | K90: WPF 32 SET | L90: WPF 27 HT
B91: =Translation!$A$134& " B0/W35" -> Heating Capacity B0/W35 | C91: KW | D91: 9.9 | E91: 13.4 | F91: 16.1 | G91: 19.8 | H91: 23.3 | I91: 26.8 | J91: 29.7 | K91: 32.6 | L91: 26.75
B92: =Translation!$A$136& " B0/W35" -> Cooling Capacity B0/W35 | C92: KW | D92: 7.7 | E92: 10.35 | F92: 12.6 | G92: 15.4 | H92: 18.05 | I92: 20.7 | J92: 23.15 | K92: 25.6 | L92: 20.62
B93: =Translation!$A$118&" - "&Translation!$A$94 -> Volume flow - Heating | C93: [7K] m³/h | D93: 1.2 | E93: 1.6 | F93: 2.1 | G93: 2.4 | H93: 2.9 | I93: 3.3 | J93: 3.6 | K93: 4 | L93: 4.7
B94: =Translation!$A$118&" - "&Translation!$A$112 -> Volume flow - Heat source | C94: [3K] m³/h | D94: 2.2 | E94: 3.1 | F94: 3.8 | G94: 4.4 | H94: 5.3 | I94: 6.2 | J94: 6.9 | K94: 7.6 | L94: 6.8
B95: =Translation!$A$160&" - "&Translation!$A$94 -> Pressure loss - Heating | C95: hPa | D95: 280 | E95: 100 | F95: 100 | G95: 100 | H95: 100 | I95: 100 | J95: 100 | K95: 100 | L95: 52
B96: =Translation!$A$253&" - "&Translation!$A$94 -> external pressure differential - Heating | C96: hPa | D96: - | E96: - | F96: - | G96: - | H96: - | I96: - | J96: - | K96: - | L96: -
B97: =Translation!$A$160&" - "&Translation!$A$112 -> Pressure loss - Heat source | C97: hPa | D97: 120 | E97: 230 | F97: 340 | G97: 120 | H97: 230 | I97: 230 | J97: 250 | K97: 250 | L97: 140
B98: =Translation!$A$253&" - "&Translation!$A$112 -> external pressure differential - Heat source | C98: hPa | D98: - | E98: - | F98: - | G98: - | H98: - | I98: - | J98: - | K98: - | L98: -
B99: =Translation!$A$95 -> Pipe diameter
B100: =Translation!$A$112&" - "&Translation!$A$110 -> Heat source - Copper | C100: mm | D100: 35 x 1,5 | E100: 42 x 1,5 | F100: 42 x 1,5 | G100: 54 x 2,0 | H100: 54 x 2,0 | I100: 54 x 2,0 | J100: 54 x 2,0 | K100: 76 x 2,5 | L100: 54 x 2,0
B101: =Translation!$A$112&" - "&Translation!$A$111 -> Heat source - plastic material | C101: mm | D101: 40 x 3,7 | E101: 50 x 4,6 | F101: 50 x 4,6 | G101: 63 x 5,8 | H101: 63 x 5,8 | I101: 63 x 5,8 | J101: 63 x 5,8 | K101: 75 x 6,8 | L101: 63 x 5,8
B102: =Translation!$A$94&" - "&Translation!$A$110 -> Heating - Copper | C102: mm | D102: 28 x 1,5 | E102: 28 x 1,5 | F102: 35 x 1,5 | G102: 35 x 1,5 | H102: 35 x 1,5 | I102: 42 x 1,5 | J102: 42 x 1,5 | K102: 42 x 1,5 | L102: 42 x 1,5
B103: =Translation!$A$94&" - "&Translation!$A$193 -> Heating - Steel pipe | D103: DN 25 | E103: DN 25 | F103: DN 32 | G103: DN 32 | H103: DN 32 | I103: DN 40 | J103: DN 40 | K103: DN 40 | L103: DN 40
B104: =Translation!$A$94&" - "&Translation!$A$111 -> Heating - plastic material | C104: mm | D104: 32 x 2,9 | E104: 32 x 2,9 | F104: 40 x 3,7 | G104: 40 x 3,7 | H104: 40 x 3,7 | I104: 50 x 4,6 | J104: 50 x 4,6 | K104: 50 x 4,6 | L104: 50 x 4,6
B105: =Translation!$A$88&" - "&Translation!$A$110 -> DHW - Copper | C105: mm | D105: 28 x 1,5 | E105: 28 x 1,5 | F105: 28 x 1,5 | G105: 28 x 1,5 | H105: 28 x 1,5 | I105: 28 x 1,5 | J105: 35 x 1,5 | K105: 35 x 1,5 | L105: 42 x 1,5
B106: =Translation!$A$88&" - "&Translation!$A$193 -> DHW - Steel pipe | D106: DN 25 | E106: DN 25 | F106: DN 32 | G106: DN 25 | H106: DN 32 | I106: DN 32 | J106: DN 32 | K106: DN 32 | L106: DN 40
B107: =Translation!$A$88&" - "&Translation!$A$111 -> DHW - plastic material | C107: mm | D107: 32 x 2,9 | E107: 32 x 2,9 | F107: 40 x 3,7 | G107: 32 x 2,9 | H107: 32 x 2,9 | I107: 32 x 2,9 | J107: 40 x 3,7 | K107: 40 x 3,7 | L107: 50 x 4,6
B108: =Translation!$A$96 -> Pump
B109: =Translation!$A$98 -> HP - Buffer cylinder | D109: UP 25/1-7 | E109: UP 25/1-7 | F109: UP 25/1-7 | G109: 2 x UP 25/1-7 | H109: 2 x UP 25/1-7 | I109: 2 x UP 25/1-7 | J109: 2 x UP 25/1-7 | K109: 2 x UP 25/1-7 | L109: UP 40/1-8E
B110: =Translation!$A$99 -> HP - DHW cylinder | D110: UP 25/1-7 | E110: UP 25/1-7 | F110: UP 25/1-7 | G110: UP 25/1-7 | H110: UP 25/1-7 | I110: UP 25/1-7 | J110: UP 25/1-7 | K110: UP 25/1-7 | L110: UP 40/1-8E
B111: =Translation!$A$109 -> Probes DN 25, max 100m | D111: TOP S 30/7 | E111: TOP S 30/7 | F111: TOP S 30/10 | G111: TOP S 30/10 | H111: TOP S 30/10 | I111: TOP S 40/7 | J111: TOP S 40/7 | K111: TOP S 40/7 | L111: UPF 40/1-8E
B112: =Translation!$A$97 -> Expansion vessel
B113: =Translation!$A$94 -> Heating | D113: 50 / 1,0 | E113: 50 / 1,0 | F113: 50 / 1,0 | G113: 80 / 1,0 | H113: 80 / 1,0 | I113: 80 / 1,0 | J113: 80 / 1,0 | K113: 80 / 1,0 | L113: 80 / 1,0
B114: =Translation!$A$112 -> Heat source | D114: 18 / 1,5 | E114: 18 / 1,5 | F114: 25 / 1,5 | G114: 50 / 1,5 | H114: 50 / 1,5 | I114: 50 / 1,5 | J114: 50 / 1,5 | K114: 50 / 1,5 | L114: 50 / 1,5
B115: =Translation!$A$101 -> Compressor
B116: =Translation!$A$135& " B0W35" -> Compressor B0W35 | C116: KW | D116: 2.2 | E116: 3.05 | F116: 3.5 | G116: 2 x 2,20 | H116: 2,20 / 3,05 | I116: 2 x 3,05 | J116: 3,05 / 3,50 | K116: 2 x 3,50 | L116: 6.13
B117: =Translation!$A$102 -> Connecting cable | C117: n x mm² | D117: 5 x 2,5 | E117: 5 x 2,5 | F117: 5 x 2,5 | G117: 5 x 2,5 | H117: 5 x 2,5 | I117: 5 x 2,5 | J117: 5 x 2,5 | K117: 5 x 2,5 | L117: 5 x 6,0
B118: =Translation!$A$103 -> Fuse | C118: A | D118: C 16 A | E118: C 16 A | F118: C 16 A | G118: C 16 A | H118: C 16 A | I118: C 16 A | J118: C 16 A | K118: C 16 A | L118: 3 x C 35 A
B119: =Translation!$A$104 -> DHC
B120: =Translation!$A$134 -> Heating Capacity | C120: KW | D120: - | E120: - | F120: - | G120: - | H120: - | I120: - | J120: - | K120: - | L120: -
B121: =Translation!$A$102 -> Connecting cable | C121: n x mm² | D121: - | E121: - | F121: - | G121: - | H121: - | I121: - | J121: - | K121: - | L121: -
B122: =Translation!$A$103 -> Fuse | C122: A | D122: - | E122: - | F122: - | G122: - | H122: - | I122: - | J122: - | K122: - | L122: -
B123: =Translation!$A$105 -> Control circuit
B124: =Translation!$A$102 -> Connecting cable | C124: n x mm² | D124: 5 x 1,5 | E124: 5 x 1,5 | F124: 5 x 1,5 | G124: 5 x 1,5 | H124: 5 x 1,5 | I124: 5 x 1,5 | J124: 5 x 1,5 | K124: 5 x 1,5 | L124: 5 x 1,5
B125: =Translation!$A$103 -> Fuse | C125: A | D125: C 16 A | E125: C 16 A | F125: C 16 A | G125: C 16 A | H125: C 16 A | I125: C 16 A | J125: C 16 A | K125: C 16 A | L125: C 16 A
B126: =Translation!$A$106 -> BUS-cable | C126: n x mm² | D126: J-Y 2x2x0,8 | E126: J-Y 2x2x0,8 | F126: J-Y 2x2x0,8 | G126: J-Y 2x2x0,8 | H126: J-Y 2x2x0,8 | I126: J-Y 2x2x0,8 | J126: J-Y 2x2x0,8 | K126: J-Y 2x2x0,8 | L126: J-Y 2x2x0,8

Sheet Daten WPF Wasser
A1: =Translation!$A$91 -> DESIGN INFORMATION
A3: =Translation!$A$113 -> Water/Water Heat pumps
N4: =Auswahl!$AC$16 -> Page 10 | Version 05/12
B6: =Translation!$A$197 -> Performance data | D6: WPW 7 E SET | E6: WPW 10 E SET | F6: WPW 13 E SET | G6: WPW 18 E SET | H6: WPW 22 E SET | I6: WPW 7 basic SET | J6: WPW 10 basic SET | K6: WPW 13 basic SET | L6: WPW 18 basic SET | M6: WPW 22 basic SET
B7: =Translation!$A$134& " B7/W35" -> Heating Capacity B7/W35 | C7: KW | D7: 7.1 | E7: 8.9 | F7: 12.2 | G7: 15.4 | H7: 20.1 | I7: 6.9 | J7: 9.4 | K7: 11.8 | L7: 15.9 | M7: 19.4
B8: =Translation!$A$136& " B7/W35" -> Cooling Capacity B7/W35 | C8: KW | D8: 5.8 | E8: 7.2 | F8: 10 | G8: 12.5 | H8: 16.1 | I8: 5.6 | J8: 7.6 | K8: 9.6 | L8: 12.9 | M8: 15.8
B9: =Translation!$A$118&" - "&Translation!$A$94 -> Volume flow - Heating | C9: [7K] m³/h | D9: 0.9 | E9: 1.1 | F9: 1.5 | G9: 1.9 | H9: 2.5 | I9: 0.8 | J9: 1.2 | K9: 1.4 | L9: 2 | M9: 2.4
B10: =Translation!$A$118&" - "&Translation!$A$112 -> Volume flow - Heat source | C10: [3K] m³/h | D10: 1.7 | E10: 2.1 | F10: 2.9 | G10: 3.6 | H10: 4.6 | I10: 1.6 | J10: 2.2 | K10: 2.8 | L10: 3.7 | M10: 4.5
B11: =Translation!$A$160&" - "&Translation!$A$94 -> Pressure loss - Heating | C11: hPa | D11: - | E11: - | F11: - | G11: - | H11: - | I11: - | J11: - | K11: - | L11: - | M11: -
B12: =Translation!$A$253&" - "&Translation!$A$94 -> external pressure differential - Heating | C12: hPa | D12: 350 | E12: 350 | F12: 260 | G12: 167 | H12: 63 | I12: 280 | J12: 280 | K12: 280 | L12: 100 | M12: 100
B13: =Translation!$A$160&" - "&Translation!$A$112 -> Pressure loss - Heat source | C13: hPa | D13: - | E13: - | F13: - | G13: - | H13: - | I13: 100 | J13: 110 | K13: 120 | L13: 230 | M13: 340
B14: =Translation!$A$253&" - "&Translation!$A$112 -> external pressure differential - Heat source | C14: hPa | D14: 600 | E14: 600 | F14: 540 | G14: 500 | H14: 600 | I14: 100 | J14: 110 | K14: 120 | L14: 230 | M14: 340
B15: =Translation!$A$95 -> Pipe diameter
B16: =Translation!$A$112&" - "&Translation!$A$110 -> Heat source - Copper | C16: mm | D16: 35 x 1,5 | E16: 42 x 1,5 | F16: 42 x 1,5 | G16: 54 x 2,0 | H16: 54 x 2,0 | I16: 35 x 1,5 | J16: 42 x 1,5 | K16: 42 x 1,5 | L16: 54 x 2,0 | M16: 54 x 2,0
B17: =Translation!$A$112&" - "&Translation!$A$111 -> Heat source - plastic material | C17: mm | D17: 40 x 3,7 | E17: 50 x 4,6 | F17: 50 x 4,6 | G17: 63 x 5,8 | H17: 63 x 5,8 | I17: 40 x 3,7 | J17: 50 x 4,6 | K17: 50 x 4,6 | L17: 63 x 5,8 | M17: 63 x 5,8
B18: =Translation!$A$94&" - "&Translation!$A$110 -> Heating - Copper | C18: mm | D18: 22 x 1,0 | E18: 22 x 1,0 | F18: 28 x 1,5 | G18: 35 x 1,5 | H18: 35 x 1,5 | I18: 22 x 1,0 | J18: 28 x 1,5 | K18: 28 x 1,5 | L18: 35 x 1,5 | M18: 35 x 1,5
B19: =Translation!$A$94&" - "&Translation!$A$193 -> Heating - Steel pipe | D19: DN 20 | E19: DN 25 | F19: DN 25 | G19: DN 32 | H19: DN 32 | I19: DN 20 | J19: DN 25 | K19: DN 25 | L19: DN 32 | M19: DN 32
B20: =Translation!$A$94&" - "&Translation!$A$111 -> Heating - plastic material | C20: mm | D20: 25 x 2,3 | E20: 25 x 2,3 | F20: 32 x 2,9 | G20: 40 x 3,7 | H20: 40 x 3,7 | I20: 25 x 2,3 | J20: 32 x 2,9 | K20: 32 x 2,9 | L20: 40 x 3,7 | M20: 40 x 3,7
B21: =Translation!$A$88&" - "&Translation!$A$110 -> DHW - Copper | C21: mm | D21: 22 x 1,0 | E21: 22 x 1,0 | F21: 28 x 1,5 | G21: 35 x 1,5 | H21: 35 x 1,5 | I21: 22 x 1,0 | J21: 28 x 1,5 | K21: 28 x 1,5 | L21: 35 x 1,5 | M21: 35 x 1,5
B22: =Translation!$A$88&" - "&Translation!$A$193 -> DHW - Steel pipe | D22: DN 20 | E22: DN 25 | F22: DN 25 | G22: DN 32 | H22: DN 32 | I22: DN 20 | J22: DN 25 | K22: DN 25 | L22: DN 32 | M22: DN 32
B23: =Translation!$A$88&" - "&Translation!$A$111 -> DHW - plastic material | C23: mm | D23: 25 x 2,3 | E23: 25 x 2,3 | F23: 32 x 2,9 | G23: 40 x 3,7 | H23: 40 x 3,7 | I23: 25 x 2,3 | J23: 32 x 2,9 | K23: 32 x 2,9 | L23: 40 x 3,7 | M23: 40 x 3,7
B24: =Translation!$A$96 -> Pump
B25: =Translation!$A$98 -> HP - Buffer cylinder | D25: UP 25/1-7 | E25: UP 25/1-7 | F25: UP 25/1-7 | G25: UP 25/1-7 | H25: UP 25/1-7 | I25: UP 25/1-7 | J25: UP 25/1-7 | K25: UP 25/1-7 | L25: UP 25/1-7 | M25: UP 25/1-7
B26: =Translation!$A$99 -> HP - DHW cylinder | D26: UP 25/1-7 | E26: UP 25/1-7 | F26: UP 25/1-7 | G26: UP 25/1-7 | H26: UP 25/1-7 | I26: UP 25/1-7 | J26: UP 25/1-7 | K26: UP 25/1-7 | L26: UP 25/1-7 | M26: UP 25/1-7
B27: =Translation!$A$109 -> Probes DN 25, max 100m | D27: UP 25/1-8 | E27: UP 25/1-8 | F27: UP 25/1-8 | G27: UP 25/1-8 | H27: UP 25/1-12 | I27: TOP S 30/7 | J27: TOP S 30/7 | K27: TOP S 30/7 | L27: TOP S 30/7 | M27: TOP S 30/10
B28: =Translation!$A$97 -> Expansion vessel
B29: =Translation!$A$94 -> Heating | D29: 24 / 1,0 | E29: 24 / 1,0 | F29: 24 / 1,0 | G29: 24 / 1,0 | H29: 24 / 1,0 | I29: 50 / 1,0 | J29: 50 / 1,0 | K29: 50 / 1,0 | L29: 50 / 1,0 | M29: 50 / 1,0
B30: =Translation!$A$112 -> Heat source | D30: 24 / 1,5 | E30: 24 / 1,5 | F30: 24 / 1,5 | G30: 24 / 1,5 | H30: 24 / 1,5 | I30: 18 / 1,5 | J30: 18 / 1,5 | K30: 18 / 1,5 | L30: 18 / 1,5 | M30: 25 / 1,5
B31: =Translation!$A$101 -> Compressor
B32: =Translation!$A$135& " B7W35" -> Compressor B7W35 | C32: KW | D32: 1.33 | E32: 1.68 | F32: 2.21 | G32: 2.95 | H32: 3.95 | I32: 1.34 | J32: 1.8 | K32: 2.2 | L32: 3.1 | M32: 3.6
B33: =Translation!$A$102 -> Connecting cable | C33: n x mm² | D33: 5 x 2,5 | E33: 5 x 2,5 | F33: 5 x 2,5 | G33: 5 x 2,5 | H33: 5 x 2,5 | I33: 5 x 2,5 | J33: 5 x 2,5 | K33: 5 x 2,5 | L33: 5 x 2,5 | M33: 5 x 2,5
B34: =Translation!$A$103 -> Fuse | C34: A | D34: C 16 A | E34: C 16 A | F34: C 16 A | G34: C 16 A | H34: C 16 A | I34: C 16 A | J34: C 16 A | K34: C 16 A | L34: C 16 A | M34: C 16 A
B35: =Translation!$A$104 -> DHC
B36: =Translation!$A$134 -> Heating Capacity | C36: KW | D36: 8.8 | E36: 8.8 | F36: 8.8 | G36: 8.8 | H36: 8.8 | I36: 8.8 | J36: 8.8 | K36: 8.8 | L36: 8.8 | M36: 8.8
B37: =Translation!$A$102 -> Connecting cable | C37: n x mm² | D37: 5 x 2,5 | E37: 5 x 2,5 | F37: 5 x 2,5 | G37: 5 x 2,5 | H37: 5 x 2,5 | I37: 5 x 2,5 | J37: 5 x 2,5 | K37: 5 x 2,5 | L37: 5 x 2,5 | M37: 5 x 2,5
B38: =Translation!$A$103 -> Fuse | C38: A | D38: C 16 A | E38: C 16 A | F38: C 16 A | G38: C 16 A | H38: C 16 A | I38: C 16 A | J38: C 16 A | K38: C 16 A | L38: C 16 A | M38: C 16 A
B39: =Translation!$A$105 -> Control circuit
B40: =Translation!$A$102 -> Connecting cable | C40: n x mm² | D40: 5 x 1,5 | E40: 5 x 1,5 | F40: 5 x 1,5 | G40: 5 x 1,5 | H40: 5 x 1,5 | I40: 5 x 1,5 | J40: 5 x 1,5 | K40: 5 x 1,5 | L40: 5 x 1,5 | M40: 5 x 1,5
B41: =Translation!$A$103 -> Fuse | C41: A | D41: C 16 A | E41: C 16 A | F41: C 16 A | G41: C 16 A | H41: C 16 A | I41: C 16 A | J41: C 16 A | K41: C 16 A | L41: C 16 A | M41: C 16 A
B42: =Translation!$A$106 -> BUS-cable | C42: n x mm² | D42: - | E42: - | F42: - | G42: - | H42: - | I42: - | J42: - | K42: - | L42: - | M42: -
A43: =Translation!$A$91 -> DESIGN INFORMATION
A45: =Translation!$A$113 -> Water/Water Heat pumps
N46: =Auswahl!$AC$17 -> Page 11 | Version 05/12
B48: =Translation!$A$197 -> Performance data | D48: WPF 20 | E48: WPF 27 | F48: WPF 35 | G48: WPF 40 | H48: WPF 52 | I48: WPF 66 | J48: WPF 80 SET | K48: WPF 92 SET | L48: WPF 104 SET | M48: WPF 118 SET | N48: WPF 132 SET
B49: =Translation!$A$134& " B7/W35" -> Heating Capacity B7/W35 | C49: KW | D49: 26.2 | E49: 35.3 | F49: 45 | G49: 54.4 | H49: 66.6 | I49: 82.3 | J49: 108.8 | K49: 121 | L49: 133.2 | M49: 148.9 | N49: 164.6
B50: =Translation!$A$136& " B7/W35" -> Cooling Capacity B7/W35 | C50: KW | D50: 21.6 | E50: 29.1 | F50: 29.1 | G50: 44.8 | H50: 54.8 | I50: 68 | J50: 89.6 | K50: 99.6 | L50: 109.6 | M50: 122.8 | N50: 136
B51: =Translation!$A$118&" - "&Translation!$A$94 -> Volume flow - Heating | C51: [7K] m³/h | D51: 3.2 | E51: 4.3 | F51: 5.5 | G51: 6.7 | H51: 8.2 | I51: 10.1 | J51: 13.4 | K51: 14.9 | L51: 16.4 | M51: 18.3 | N51: 20.2
B52: =Translation!$A$118&" - "&Translation!$A$112 -> Volume flow - Heat source | C52: [3K] m³/h | D52: 6.2 | E52: 8.3 | F52: 10 | G52: 12.8 | H52: 15.7 | I52: 19.5 | J52: 25.7 | K52: 28.5 | L52: 31.4 | M52: 35.2 | N52: 39
B53: =Translation!$A$160&" - "&Translation!$A$94 -> Pressure loss - Heating | C53: hPa | D53: 60 | E53: 52 | F53: 160 | G53: 80 | H53: 60 | I53: 80 | J53: 80 | K53: 80 | L53: 80 | M53: 80 | N53: 80
B54: =Translation!$A$253&" - "&Translation!$A$94 -> external pressure differential - Heating | C54: hPa | D54: - | E54: - | F54: - | G54: - | H54: - | I54: - | J54: - | K54: - | L54: - | M54: - | N54: -
B55: =Translation!$A$160&" - "&Translation!$A$112 -> Pressure loss - Heat source | C55: hPa | D55: 150 | E55: 140 | F55: 160 | G55: 160 | H55: 150 | I55: 160 | J55: 160 | K55: 160 | L55: 160 | M55: 160 | N55: 160
B56: =Translation!$A$253&" - "&Translation!$A$112 -> external pressure differential - Heat source | C56: hPa | D56: - | E56: - | F56: - | G56: - | H56: - | I56: - | J56: - | K56: - | L56: - | M56: - | N56: -
B57: =Translation!$A$95 -> Pipe diameter
B58: =Translation!$A$112&" - "&Translation!$A$110 -> Heat source - Copper | C58: mm | D58: 76 x 2,5 | E58: 76 x 2,5 | F58: 76 x 2,5 | G58: 89 x 2,5 | H58: 108 x 3,0 | I58: 108 x 3,0 | J58: 133 x 3,0 | K58: 133 x 3,0 | L58: 133 x 3,0 | M58: 133 x 3,0 | N58: 133 x 3,0
B59: =Translation!$A$112&" - "&Translation!$A$111 -> Heat source - plastic material | C59: mm | D59: 75 x 6,8 | E59: 90 x 8,2 | F59: 75 x 6,8 | G59: 125 x 11,4 | H59: 125 x 11,4 | I59: 125 x 11,4 | J59: 160 x 14,6 | K59: 160 x 14,6 | L59: 160 x 14,6 | M59: 180 x 16,4 | N59: 180 x 16,4
B60: =Translation!$A$94&" - "&Translation!$A$110 -> Heating - Copper | C60: mm | D60: 42 x 1,5 | E60: 42 x 1,5 | F60: 54 x 2,0 | G60: 54 x 2,0 | H60: 76 x 2,5 | I60: 76 x 2,5 | J60: 76 x 2,5 | K60: 76 x 2,5 | L60: 89 x 2,5 | M60: 89 x 2,5 | N60: 89 x 2,5
B61: =Translation!$A$94&" - "&Translation!$A$193 -> Heating - Steel pipe | D61: DN 40 | E61: DN 50 | F61: DN 65 | G61: DN 65 | H61: DN 65 | I61: DN 80 | J61: DN 80 | K61: DN 100 | L61: DN 100 | M61: DN 100 | N61: DN 100
B62: =Translation!$A$94&" - "&Translation!$A$111 -> Heating - plastic material | C62: mm | D62: 50 x 4,6 | E62: 50 x 4,6 | F62: 63 x 5,8 | G62: 63 x 5,8 | H62: 75 x 6,9 | I62: 75 x 6,9 | J62: 90 x 8,2 | K62: 90 x 8,2 | L62: 125 x 11,4 | M62: 125 x 11,4 | N62: 125 x 11,4
B63: =Translation!$A$88&" - "&Translation!$A$110 -> DHW - Copper | C63: mm | D63: 42 x 1,5 | E63: 42 x 1,5 | F63: 54 x 2,0 | G63: 54 x 2,0 | H63: 76 x 2,5 | I63: 76 x 2,5 | J63: 54 x 2,0 | K63: 76 x 2,5 | L63: 76 x 2,5 | M63: 76 x 2,5 | N63: 76 x 2,5
B64: =Translation!$A$88&" - "&Translation!$A$193 -> DHW - Steel pipe | D64: DN 40 | E64: DN 50 | F64: DN 65 | G64: DN 65 | H64: DN 65 | I64: DN 80 | J64: DN 65 | K64: DN 65 | L64: DN 65 | M64: DN 80 | N64: DN 80
B65: =Translation!$A$88&" - "&Translation!$A$111 -> DHW - plastic material | C65: mm | D65: 50 x 4,6 | E65: 50 x 4,6 | F65: 63 x 5,8 | G65: 63 x 5,8 | H65: 75 x 6,9 | I65: 75 x 6,9 | J65: 63 x 5,8 | K65: 75 x 6,9 | L65: 75 x 6,9 | M65: 75 x 6,9 | N65: 75 x 6,9
B66: =Translation!$A$96 -> Pump
B67: =Translation!$A$98 -> HP - Buffer cylinder | D67: UP 40/1-8E | E67: UP 40/1-8E | F67: UP 50/1-12E | G67: UP 50/1-12E | H67: UP 50/1-12E | I67: UP 50/1-12E | J67: 2 x UP 50/1-12E | K67: 2 x UP 50/1-12E | L67: 2 x UP 50/1-12E | M67: 2 x UP 50/1-12E | N67: 2 x UP 50/1-12E
B68: =Translation!$A$99 -> HP - DHW cylinder | D68: UP 40/1-8E | E68: UP 40/1-8E | F68: UP 50/1-12E | G68: UP 50/1-12E | H68: UP 50/1-12E | I68: UP 50/1-12E | J68: UP 50/1-12E | K68: UP 50/1-12E | L68: UP 50/1-12E | M68: UP 50/1-12E | N68: UP 50/1-12E
B69: =Translation!$A$109 -> Probes DN 25, max 100m | D69: UPF 40/1-8E | E69: UPF 40/1-8E | F69: UP 50/1-12E | G69: UPF 50/1-12E | H69: UPF 50/1-12E | I69: UPF 50/1-12E | J69: 2 x UPF 50/1-12E | K69: 2 x UPF 50/1-12E | L69: 2 x UPF 50/1-12E | M69: 2 x UPF 50/1-12E | N69: 2 x UPF 50/1-12E
B70: =Translation!$A$97 -> Expansion vessel
B71: =Translation!$A$94 -> Heating | D71: 80 / 1,0 | E71: 80 / 1,0 | F71: 140 / 1,0 | G71: 140 / 1,0 | H71: 140 / 1,0 | I71: 140 / 1,0 | J71: 140 / 1,0 | K71: 140 / 1,0 | L71: 200 / 1,0 | M71: 200 / 1,0 | N71: 200 / 1,0
B72: =Translation!$A$112 -> Heat source | D72: 25 / 1,5 | E72: 25 / 1,5 | F72: 25 / 1,5 | G72: 25 / 1,5 | H72: 25 / 1,5 | I72: 25 / 1,5 | J72: 50 / 1,5 | K72: 50 / 1,5 | L72: 50 / 1,5 | M72: 50 / 1,5 | N72: 50 / 1,5
B73: =Translation!$A$101 -> Compressor
B74: =Translation!$A$135& " B7W35" -> Compressor B7W35 | C74: KW | D74: 4.9 | E74: 6.6 | F74: 8.2 | G74: 9.9 | H74: 12.5 | I74: 14.9 | J74: 2 x 9,9 | K74: 9,1 / 12,5 | L74: 2 x 12,5 | M74: 12,5 / 14,9 | N74: 2 x 14,9
B75: =Translation!$A$102 -> Connecting cable | C75: n x mm² | D75: 5 x 6,0 | E75: 5 x 6,0 | F75: 5 x 6,0 | G75: 5 x 6,0 | H75: 5 x 10,0 | I75: 5 x 10,0 | J75: 5 x 10,0 | K75: 5 x 10,0 | L75: 5 x 10,0 | M75: 5 x 10,0 | N75: 5 x 10,0
B76: =Translation!$A$103 -> Fuse | C76: A | D76: C 35 A | E76: C 35 A | F76: C 35 A | G76: C 35 A | H76: C 50 A | I76: C 50 A | J76: C 50 A | K76: C 50 A | L76: C 50 A | M76: C 50 A | N76: C 50 A
B77: =Translation!$A$104 -> DHC
B78: =Translation!$A$134 -> Heating Capacity | C78: KW | D78: - | E78: - | F78: - | G78: - | H78: - | I78: - | J78: - | K78: - | L78: - | M78: - | N78: -
B79: =Translation!$A$102 -> Connecting cable | C79: n x mm² | D79: - | E79: - | F79: - | G79: - | H79: - | I79: - | J79: - | K79: - | L79: - | M79: - | N79: -
B80: =Translation!$A$103 -> Fuse | C80: A | D80: - | E80: - | F80: - | G80: - | H80: - | I80: - | J80: - | K80: - | L80: - | M80: - | N80: -
B81: =Translation!$A$105 -> Control circuit
B82: =Translation!$A$102 -> Connecting cable | C82: n x mm² | D82: 5 x 1,5 | E82: 5 x 1,5 | F82: 5 x 1,5 | G82: 5 x 1,5 | H82: 5 x 1,5 | I82: 5 x 1,5 | J82: 5 x 1,5 | K82: 5 x 1,5 | L82: 5 x 1,5 | M82: 5 x 1,5 | N82: 5 x 1,5
B83: =Translation!$A$103 -> Fuse | C83: A | D83: C 16 A | E83: C 16 A | F83: C 16 A | G83: C 16 A | H83: C 16 A | I83: C 16 A | J83: C 16 A | K83: C 16 A | L83: C 16 A | M83: C 16 A | N83: C 16 A
B84: =Translation!$A$106 -> BUS-cable | C84: n x mm² | D84: J-Y 2x2x0,8 | E84: J-Y 2x2x0,8 | F84: J-Y 2x2x0,8 | G84: J-Y 2x2x0,8 | H84: J-Y 2x2x0,8 | I84: J-Y 2x2x0,8 | J84: J-Y 2x2x0,8 | K84: J-Y 2x2x0,8 | L84: J-Y 2x2x0,8 | M84: J-Y 2x2x0,8 | N84: I-Y 2x2x0,8
A85: =Translation!$A$91 -> DESIGN INFORMATION
A87: =Translation!$A$113 -> Water/Water Heat pumps
N88: =Auswahl!$AC$18 -> Page 12 | Version 05/12
B90: =Translation!$A$197 -> Performance data | D90: WPF 10 M | E90: WPF 13 M | F90: WPF 16 M | G90: WPF 20 SET | H90: WPF 23 SET | I90: WPF 26 SET | J90: WPF 29 SET | K90: WPF 32 SET
B91: =Translation!$A$134& " B7/W35" -> Heating Capacity B7/W35 | C91: KW | D91: 11.8 | E91: 15.9 | F91: 20 | G91: 23.6 | H91: 27.7 | I91: 31.8 | J91: 35.9 | K91: 40
B92: =Translation!$A$136& " B7/W35" -> Cooling Capacity B7/W35 | C92: KW | D92: 9.6 | E92: 12.9 | F92: 16.5 | G92: 19.2 | H92: 22.5 | I92: 25.8 | J92: 29.4 | K92: 33
B93: =Translation!$A$118&" - "&Translation!$A$94 -> Volume flow - Heating | C93: [7K] m³/h | D93: 1.4 | E93: 2 | F93: 2.5 | G93: 2.9 | H93: 3.4 | I93: 3.9 | J93: 4.4 | K93: 4.9
B94: =Translation!$A$118&" - "&Translation!$A$112 -> Volume flow - Heat source | C94: [3K] m³/h | D94: 2.8 | E94: 3.7 | F94: 4.7 | G94: 5.5 | H94: 6.4 | I94: 7.4 | J94: 8.4 | K94: 9.5
B95: =Translation!$A$160&" - "&Translation!$A$94 -> Pressure loss - Heating | C95: hPa | D95: 280 | E95: 100 | F95: 100 | G95: 100 | H95: 100 | I95: 100 | J95: 100 | K95: 100
B96: =Translation!$A$253&" - "&Translation!$A$94 -> external pressure differential - Heating | C96: hPa | D96: - | E96: - | F96: - | G96: - | H96: - | I96: - | J96: - | K96: -
B97: =Translation!$A$160&" - "&Translation!$A$112 -> Pressure loss - Heat source | C97: hPa | D97: 120 | E97: 230 | F97: 340 | G97: 120 | H97: 230 | I97: 230 | J97: 250 | K97: 250
B98: =Translation!$A$253&" - "&Translation!$A$112 -> external pressure differential - Heat source | C98: hPa | D98: - | E98: - | F98: - | G98: - | H98: - | I98: - | J98: - | K98: -
B99: =Translation!$A$95 -> Pipe diameter
B100: =Translation!$A$112&" - "&Translation!$A$110 -> Heat source - Copper | C100: mm | D100: 42 x 1,5 | E100: 54 x 2,0 | F100: 54 x 2,0 | G100: 76 x 2,5 | H100: 76 x 2,5 | I100: 76 x 2,5 | J100: 76 x 2,5 | K100: 76 x 2,5
B101: =Translation!$A$112&" - "&Translation!$A$111 -> Heat source - plastic material | C101: mm | D101: 50 x 4,6 | E101: 63 x 5,8 | F101: 63 x 5,8 | G101: 75 x 6,8 | H101: 75 x 6,8 | I101: 90 x 8,2 | J101: 90 x 8,2 | K101: 90 x 8,2
B102: =Translation!$A$94&" - "&Translation!$A$110 -> Heating - Copper | C102: mm | D102: 28 x 1,5 | E102: 35 x 1,5 | F102: 35 x 1,5 | G102: 35 x 1,5 | H102: 42 x 1,5 | I102: 42 x 1,5 | J102: 54 x 2,0 | K102: 54 x 2,0
B103: =Translation!$A$94&" - "&Translation!$A$193 -> Heating - Steel pipe | D103: DN 25 | E103: DN 32 | F103: DN 32 | G103: DN 32 | H103: DN 50 | I103: DN 50 | J103: DN 50 | K103: DN 50
B104: =Translation!$A$94&" - "&Translation!$A$111 -> Heating - plastic material | C104: mm | D104: 32 x 2,9 | E104: 40 x 3,7 | F104: 40 x 3,7 | G104: 40 x 3,7 | H104: 50 x 4,6 | I104: 50 x 4,6 | J104: 63 x 5,8 | K104: 63 x 5,8
B105: =Translation!$A$88&" - "&Translation!$A$110 -> DHW - Copper | C105: mm | D105: 28 x 1,5 | E105: 35 x 1,5 | F105: 35 x 1,5 | G105: 28 x 1,5 | H105: 35 x 1,5 | I105: 35 x 1,5 | J105: 35 x 1,5 | K105: 35 x 1,5
B106: =Translation!$A$88&" - "&Translation!$A$193 -> DHW - Steel pipe | D106: DN 25 | E106: DN 32 | F106: DN 32 | G106: DN 32 | H106: DN 32 | I106: DN 32 | J106: DN 32 | K106: DN 32
B107: =Translation!$A$88&" - "&Translation!$A$111 -> DHW - plastic material | C107: mm | D107: 32 x 2,9 | E107: 40 x 3,7 | F107: 40 x 3,7 | G107: 32 x 2,9 | H107: 40 x 3,7 | I107: 40 x 3,7 | J107: 40 x 3,7 | K107: 40 x 3,7
B108: =Translation!$A$96 -> Pump
B109: =Translation!$A$98 -> HP - Buffer cylinder | D109: UP 25/1-7 | E109: UP 25/1-7 | F109: UP 25/1-7 | G109: 2 x UP 25/1-7 | H109: 2 x UP 25/1-7 | I109: 2 x UP 25/1-7 | J109: 2 x UP 25/1-7 | K109: 2 x UP 25/1-7
B110: =Translation!$A$99 -> HP - DHW cylinder | D110: UP 25/1-7 | E110: UP 25/1-7 | F110: UP 25/1-7 | G110: UP 25/1-7 | H110: UP 25/1-7 | I110: UP 25/1-7 | J110: UP 25/1-7 | K110: UP 25/1-7
B111: =Translation!$A$109 -> Probes DN 25, max 100m | D111: TOP S 30/7 | E111: TOP S 30/7 | F111: TOP S 30/10 | G111: TOP S 30/10 | H111: TOP S 30/10 | I111: TOP S 40/7 | J111: TOP S 40/7 | K111: TOP S 40/7
B112: =Translation!$A$97 -> Expansion vessel
B113: =Translation!$A$94 -> Heating | D113: 50 / 1,0 | E113: 50 / 1,0 | F113: 50 / 1,0 | G113: 80 / 1,0 | H113: 80 / 1,0 | I113: 80 / 1,0 | J113: 80 / 1,0 | K113: 80 / 1,0
B114: =Translation!$A$112 -> Heat source | D114: 18 / 1,5 | E114: 18 / 1,5 | F114: 25 / 1,5 | G114: 50 / 1,5 | H114: 50 / 1,5 | I114: 50 / 1,5 | J114: 50 / 1,5 | K114: 50 / 1,5
B115: =Translation!$A$101 -> Compressor
B116: =Translation!$A$135& " B7W35" -> Compressor B7W35 | C116: KW | D116: 2.3 | E116: 3.1 | F116: 3.6 | G116: 2 x 2,30 | H116: 2,3 / 3,1 | I116: 2 x 3,1 | J116: 3,10 / 3,60 | K116: 2 x 3,60
B117: =Translation!$A$102 -> Connecting cable | C117: n x mm² | D117: 5 x 2,5 | E117: 5 x 2,5 | F117: 5 x 2,5 | G117: 5 x 2,5 | H117: 5 x 2,5 | I117: 5 x 2,5 | J117: 5 x 2,5 | K117: 5 x 2,5
B118: =Translation!$A$103 -> Fuse | C118: A | D118: C 16 A | E118: C 16 A | F118: C 16 A | G118: C 16 A | H118: C 16 A | I118: C 16 A | J118: C 16 A | K118: C 16 A
B119: =Translation!$A$104 -> DHC
B120: =Translation!$A$134 -> Heating Capacity | C120: KW | D120: - | E120: - | F120: - | G120: - | H120: - | I120: - | J120: - | K120: -
B121: =Translation!$A$102 -> Connecting cable | C121: n x mm² | D121: - | E121: - | F121: - | G121: - | H121: - | I121: - | J121: - | K121: -
B122: =Translation!$A$103 -> Fuse | C122: A | D122: - | E122: - | F122: - | G122: - | H122: - | I122: - | J122: - | K122: -
B123: =Translation!$A$105 -> Control circuit
B124: =Translation!$A$102 -> Connecting cable | C124: n x mm² | D124: 5 x 1,5 | E124: 5 x 1,5 | F124: 5 x 1,5 | G124: 5 x 1,5 | H124: 5 x 1,5 | I124: 5 x 1,5 | J124: 5 x 1,5 | K124: 5 x 1,5
B125: =Translation!$A$103 -> Fuse | C125: A | D125: C 16 A | E125: C 16 A | F125: C 16 A | G125: C 16 A | H125: C 16 A | I125: C 16 A | J125: C 16 A | K125: C 16 A
B126: =Translation!$A$106 -> BUS-cable | C126: n x mm² | D126: J-Y 2x2x0,8 | E126: J-Y 2x2x0,8 | F126: J-Y 2x2x0,8 | G126: J-Y 2x2x0,8 | H126: J-Y 2x2x0,8 | I126: J-Y 2x2x0,8 | J126: J-Y 2x2x0,8 | K126: J-Y 2x2x0,8

Sheet Pufferspeicher
A1: =Translation!$A$122 -> DESIGN CHART BUFFER CYLINDER
M4: =Auswahl!$AC$19 -> Page 13 | Version 05/12
B6: =Translation!$A$92 -> Air/Water Heat pumps | H6: =Translation!$A$108 -> Brine/Water Heat pumps
B7: =Translation!$A$5 -> Heat pump | C7: =Translation!$A$87 -> Underfloor heating system | E7: =Translation!$A$86 -> Radiator heating system | H7: =Translation!$A$5 -> Heat pump | I7: =Translation!$A$87 -> Underfloor heating system | K7: =Translation!$A$86 -> Radiator heating system
B8: =Translation!$A$117 -> Type | C8: =Translation!$A$123 -> Buffer | D8: =Translation!$A$124 -> Low Loss Header | E8: =Translation!$A$123 -> Buffer | F8: =Translation!$A$124 -> Low Loss Header | H8: =Translation!$A$117 -> Type | I8: =Translation!$A$123 -> Buffer | J8: =Translation!$A$124 -> Low Loss Header | K8: =Translation!$A$123 -> Buffer | L8: =Translation!$A$124 -> Low Loss Header
B9: WPL 10 | C9: SBP 200 | D9: - | E9: SBP 200 | F9: - | H9: WPF 5 | I9: SBP 100 | SBP 200 | J9: WPHW 25 | K9: SBP 200 | L9: WPHW 25
B10: WPL 13 basic | C10: SBP 200 | D10: - | E10: SBP 200 | F10: - | H10: WPF 7 | I10: SBP 100 | SBP 200 | J10: WPHW 25 | K10: SBP 400 | L10: WPHW 25
B11: WPL 13 | C11: SBP 200 | D11: - | E11: SBP 400 | F11: - | H11: WPF 10 | I11: SBP 100 | SBP 200 | J11: WPHW 25 | K11: SBP 400 | L11: WPHW 25
B12: WPL 15 | C12: SBP 200 | D12: - | E12: SBP 400 | F12: - | H12: WPF 13 | I12: SBP 200 | J12: WPHW 25 | K12: SBP 700 | L12: WPHW 25
B13: WPL 18 | C13: SBP 200 | D13: - | E13: SBP 700 | F13: - | H13: WPF 16 | I13: SBP 400 | J13: WPHW 25 | K13: SBP 700 | L13: WPHW 25
B14: WPL 20 basic | C14: SBP 400 | D14: - | E14: SBP 700 | F14: - | H14: WPF 20 | I14: SBP 700 | J14: WPHW 40 | K14: SBP 1000 | L14: WPHW 40
B15: WPL 23 | C15: SBP 400 | D15: - | E15: SBP 700 | F15: - | H15: WPF 27 / HT | I15: SBP 700 | J15: WPHW 40 | K15: SBP 1500 | L15: WPHW 40
B16: WPL 25 | C16: SBP 700 | D16: - | E16: SBP 700 | F16: - | H16: WPF 35 | I16: SBP 1000 | J16: WPHW 65 | K16: 2 x SBP 1000 | L16: WPHW 65
B17: WPL 33 HT | C17: SBP 700 | D17: - | E17: SBP 700 | F17: - | H17: WPF 40 | I17: SBP 1000 | J17: WPHW 65 | K17: 2 x SBP 1000 | L17: WPHW 65
B18: WPL 34 A | C18: SBP 700 | D18: - | E18: SBP 1000 | F18: - | H18: WPF 52 | I18: SBP 1000 | J18: WPHW 80 | K18: 2 x SBP 1500 | L18: WPHW 80
B19: WPL 47 A | C19: SBP 1000 | D19: - | E19: SBP 1500 | F19: - | H19: WPF 66 | I19: SBP 1000 | J19: WPHW 80 | K19: 2 x SBP 1500 | L19: WPHW 80
B20: WPL 57 A | C20: SBP 1000 | D20: - | E20: 2 x SBP 1000 | F20: - | H20: WPF 20 SET | I20: SBP 700 | J20: WPHW 32 | K20: SBP 1000 | L20: WPHW 32
B21: 2 x WPL 23 | C21: SBP 700 | D21: - | E21: SBP 1500 | F21: - | H21: WPF 23 SET | I21: SBP 700 | J21: WPHW 32 | K21: SBP 1000 | L21: WPHW 32
B22: 3 x WPL 23 | C22: SBP 700 | D22: - | E22: 2 x SBP 1000 | F22: - | H22: WPF 26 SET | I22: SBP 700 | J22: WPHW 32 | K22: SBP 1000 | L22: WPHW 32
B23: 4 x WPL 23 | C23: SBP 1000 | D23: - | E23: 2 x SBP 1500 | F23: - | H23: WPF 29 SET | I23: SBP 700 | J23: WPHW 32 | K23: SBP 1500 | L23: WPHW 32
B24: 5 x WPL 23 | C24: SBP 1000 | D24: - | E24: 3 x SBP 1000 | F24: - | H24: WPF 32 SET | I24: SBP 700 | J24: WPHW 32 | K24: SBP 1500 | L24: WPHW 32
B25: 6 x WPL 23 | C25: SBP 1000 | D25: - | E25: 3 x SBP 1500 | F25: - | H25: WPF 80 SET | I25: SBP 1000 | J25: WPHW 100 | K25: 2 x SBP 1500 | L25: WPHW 100
B26: 2 x WPL 57 | C26: SBP 1000 | D26: - | E26: 2 x SBP 1500 | F26: - | H26: WPF 92 SET | I26: SBP 1000 | J26: WPHW 100 | K26: 3 x SBP 1000 | L26: WPHW 100
B27: 3 x WPL 57 | C27: 2 x SBP 1000 | D27: - | E27: 3 x SBP 1500 | F27: - | H27: WPF 104 SET | I27: 2 x SBP 1000 | J27: WPHW 100 | K27: 3 x SBP 1000 | L27: WPHW 100
B28: 4 x WPL 57 | C28: 2 x SBP 1000 | D28: - | E28: 4 x SBP 1500 | F28: - | H28: WPF 118 SET | I28: 2 x SBP 1000 | J28: WPHW 125 | K28: 3 x SBP 1000 | L28: WPHW 125
B29: 5 x WPL 57 | C29: 3 x SBP 1000 | D29: - | E29: 5 x SBP 1500 | F29: - | H29: WPF 132 SET | I29: 2 x SBP 1000 | J29: WPHW 125 | K29: 4 x SBP 1500 | L29: WPHW 125
B30: 6 x WPL 57 | C30: 3 x SBP 1000 | D30: - | E30: 6 x SBP 1500 | F30: - | H30: 3 x WPF 66 | I30: 3 x SBP 1000 | J30: WPHW 150 | K30: 5 x SBP 1500 | L30: WPHW 150
H31: 4 x WPF 66 | I31: 3 x SBP 1000 | J31: WPHW 150 | K31: 6 x SBP 1500 | L31: WPHW 150
H32: 5 x WPF 66 | I32: 4 x SBP 1000 | J32: WPHW 200 | K32: 7 x SBP 1500 | L32: WPHW 200
H33: 6 x WPF 66 | I33: 4 x SBP 1000 | J33: WPHW 200 | K33: 8 x SBP 1500 | L33: WPHW 200

Sheet Warmwasser
A1: =Translation!$A$126 -> DESIGN CHART DHW
Y4: =Auswahl!$AC$20 -> Page 14 | Version 05/12
A6: =Translation!$A$117 -> Type | D6: SBB…WP | J6: SBB…WP | P6: SBS… | T6: =Translation!$A$158 -> Heat Exchanger | X6: =Translation!$A$194 -> Loading unit
D7: 301 | E7: 302 | F7: 401 | G7: 401 | H7: 501 | I7: 501 | J7: 600 | K7: 600 | L7: 800 | M7: 800 | N7: 1000 | O7: 1000 | P7: 601 | Q7: 801 | R7: 1001 | S7: 1501 | T7: WT 10 | U7: WT 20 | V7: WT 30 | W7: WT 40 | X7: WTS 30 | Y7: WTS 40
A8: =Translation!$A$196 -> Connection heat exchanger | D8: =Translation!$A$192 -> Bottom | E8: =Translation!$A$192 -> Bottom | F8: =Translation!$A$191 -> Top | G8: =Translation!$A$195 -> Both | H8: =Translation!$A$191 -> Top | I8: =Translation!$A$195 -> Both | J8: =Translation!$A$191 -> Top | K8: =Translation!B195 -> beide | L8: =Translation!$A$191 -> Top | M8: =Translation!$A$195 -> Both | N8: =Translation!$A$191 -> Top | O8: =Translation!$A$195 -> Both
A9: =Translation!$A$134&" | "&Translation!$A$131 -> Heating Capacity | Heat exchanger area | D9: 3,2 m² | E9: 4,8 m² | F9: 4,0 m² | G9: 5,4 m² | H9: 5,0 m² | I9: 6,4 m² | J9: 5,8 m² | K9: 7,8 m² | L9: 6,2 m² | M9: 8,8 m² | N9: 6,2 m² | O9: 9,8 m² | P9: 1,8 m³/h | Q9: 2,0 m³/h | R9: 2,4 m³/h | S9: 3,0 m³/h
A10: WPL 10 ACS | B10: 9,3 KW | C10: 2,3 m² | D10: P | E10: P | F10: P | G10: P | H10: P | I10: P | J10: P | K10: P | L10: P | M10: P | N10: P | O10: P | P10: P | Q10: P | R10: x | S10: x | T10: x | U10: P | V10: P | W10: P | X10: P | Y10: P
A11: WPL 10 I/A/IK | B11: 10,9 KW | C11: 2,7 m² | D11: P | E11: P | F11: P | G11: P | H11: P | I11: P | J11: P | K11: P | L11: P | M11: P | N11: P | O11: P | P11: P | Q11: P | R11: x | S11: x | T11: P | U11: P | V11: P | W11: P | X11: P | Y11: P
A12: WPL 13 E/cool | B12: 12,1 KW | C12: 3,0 m² | D12: 49°C | E12: P | F12: P | G12: P | H12: P | I12: P | J12: P | K12: P | L12: P | M12: P | N12: P | O12: P | P12: P | Q12: P | R12: P | S12: x | T12: x | U12: P | V12: P | W12: P | X12: P | Y12: P
A13: WPL 13 A basic | B13: 12,1 KW | C13: 3,0 m² | D13: 49°C | E13: P | F13: P | G13: P | H13: P | I13: P | J13: P | K13: P | L13: P | M13: P | N13: P | O13: P | P13: P | Q13: P | R13: P | S13: x | T13: x | U13: P | V13: P | W13: P | X13: P | Y13: P
A14: WPL 18 E/cool | B14: 16,1 KW | C14: 4,0 m² | D14: x | E14: P | F14: 47°C | G14: P | H14: P | I14: P | J14: P | K14: P | L14: P | M14: P | N14: P | O14: P | P14: P | Q14: P | R14: P | S14: P | T14: x | U14: P | V14: P | W14: P | X14: P | Y14: P
A15: WPL 20 A basic | B15: 20,0 kW | C15: 5,0 m² | D15: x | E15: 47°C | F15: x | G15: P | H15: 48°C | I15: P | J15: P | K15: P | L15: P | M15: P | N15: P | O15: P | P15: P | Q15: P | R15: P | S15: P | T15: x | U15: P | V15: P | W15: P | X15: P | Y15: P
A16: WPL 23 E/cool | B16: 20,4 KW | C16: 5,1 m² | D16: x | E16: 46°C | F16: x | G16: 49°C | H16: 47°C | I16: P | J16: P | K16: P | L16: P | M16: P | N16: P | O16: P | P16: P | Q16: P | R16: P | S16: P | T16: x | U16: P | V16: P | W16: P | X16: P | Y16: P
A17: WPL 33 HT | B17: 14,0 KW | C17: 3,5m² | D17: 54°C | E17: P | F17: 59°C | G17: P | H17: P | I17: P | J17: 60°C | K17: 60°C | L17: 60°C | M17: 60°C | N17: 60°C | O17: 60°C | P17: P | Q17: P | R17: P | S17: P | T17: P | U17: x | V17: x | W17: P | X17: P | Y17: P
A18: WPL 34 | B18: 28,5 KW | C18: 7,1 m² | D18: x | E18: x | F18: x | G18: x | H18: x | I18: 45°C | J18: x | K18: P | L18: x | M18: P | N18: x | O18: P | P18: x | Q18: x | R18: P | S18: P | T18: x | U18: x | V18: P | W18: P | X18: P | Y18: P
A19: WPL 47 | B19: 39,3 KW | C19: 9,8 m² | D19: x | E19: x | F19: x | G19: x | H19: x | I19: x | J19: x | K19: x | L19: x | M19: 45°C | N19: x | O19: 47°C | P19: x | Q19: x | R19: x | S19: P | T19: x | U19: x | V19: x | W19: P | X19: x | Y19: P
A20: WPL 57 | B20: 46,1 KW | C20: 11,5 m² | D20: x | E20: x | F20: x | G20: x | H20: x | I20: x | J20: x | K20: x | L20: x | M20: x | N20: x | O20: x | P20: x | Q20: x | R20: x | S20: x | T20: x | U20: x | V20: x | W20: P | X20: x | Y20: P
A21: WPF 5 | B21: 6,8 KW | C21: 1,7 m² | D21: P | E21: P | F21: P | G21: P | H21: P | I21: P | J21: P | K21: P | L21: P | M21: P | N21: P | O21: P | P21: P | Q21: P | R21: x | S21: x | T21: P | U21: P | V21: P | W21: P | X21: P | Y21: P
A22: WPF 7 | B22: 8,5 KW | C22: 2,1 m² | D22: P | E22: P | F22: P | G22: P | H22: P | I22: P | J22: P | K22: P | L22: P | M22: P | N22: P | O22: P | P22: P | Q22: P | R22: x | S22: x | T22: P | U22: P | V22: P | W22: P | X22: P | Y22: P
A23: WPF 10 | B23: 11,6 KW | C23: 2,9 m² | D23: P | E23: P | F23: P | G23: P | H23: P | I23: P | J23: P | K23: P | L23: P | M23: P | N23: P | O23: P | P23: P | Q23: P | R23: P | S23: x | T23: P | U23: P | V23: P | W23: P | X23: P | Y23: P
A24: WPF 13 | B24: 14,7 KW | C24: 3,7 m² | D24: x | E24: P | F24: 49°C | G24: P | H24: P | I24: P | J24: P | K24: P | L24: P | M24: P | N24: P | O24: P | P24: P | Q24: P | R24: P | S24: P | T24: x | U24: P | V24: P | W24: P | X24: P | Y24: P
A25: WPF 16 | B25: 19,1 KW | C25: 4,8 m² | D25: x | E25: 49°C | F25: x | G25: P | H25: P | I25: P | J25: P | K25: P | L25: P | M25: P | N25: P | O25: P | P25: P | Q25: P | R25: P | S25: P | T25: x | U25: P | V25: P | W25: P | X25: P | Y25: P
A26: WPF 20 | B26: 24,8 KW | C26: 6,2 m² | D26: x | E26: x | F26: x | G26: x | H26: x | I26: 48°C | J26: 46°C | K26: P | L26: 48°C | M26: P | N26: 48°C | O26: P | P26: x | Q26: x | R26: x | S26: x | T26: P | U26: x | V26: P | W26: P | X26: P | Y26: P
A27: WPF 27 | B27: 33,6 KW | C27: 8,4 m² | D27: x | E27: x | F27: x | G27: x | H27: x | I27: x | J27: x | K27: 46°C | L27: x | M27: 49°C | N27: x | O27: P | P27: x | Q27: x | R27: x | S27: x | T27: x | U27: x | V27: P | W27: P | X27: P | Y27: P
A28: WPF 27 HT | B28: 33,6 KW | C28: 8,4 m² | D28: x | E28: 47°C | F28: x | G28: 49°C | H28: 47°C | I28: 52°C | J28: P | K28: 56°C | L28: 51°C | M28: 59°C | N28: 51°C | O28: 60°C | P28: x | Q28: x | R28: x | S28: x | T28: x | U28: x | V28: x | W28: P | X28: P | Y28: P
A29: WPF 35 | B29: 37,6 KW | C29: 9,4 m² | D29: x | E29: x | F29: x | G29: x | H29: x | I29: x | J29: x | K29: x | L29: x | M29: 46°C | N29: x | O29: 49°C | P29: x | Q29: x | R29: x | S29: x | T29: x | U29: x | V29: x | W29: P | X29: x | Y29: P
A30: WPF 40 | B30: 51,2 KW | C30: 12,8 m² | D30: x | E30: x | F30: x | G30: x | H30: x | I30: x | J30: x | K30: x | L30: x | M30: x | N30: x | O30: x | P30: x | Q30: x | R30: x | S30: x | T30: x | U30: x | V30: x | W30: P | X30: x | Y30: P
A31: WPF 52 | B31: 63,2 KW | C31: 15,8 m² | D31: x | E31: x | F31: x | G31: x | H31: x | I31: x | J31: x | K31: x | L31: x | M31: x | N31: x | O31: x | P31: x | Q31: x | R31: x | S31: x | T31: x | U31: x | V31: x | W31: x | X31: x | Y31: P
A32: WPF 66 | B32: 78,6 KW | C32: 19,7 m² | D32: x | E32: x | F32: x | G32: x | H32: x | I32: x | J32: x | K32: x | L32: x | M32: x | N32: x | O32: x | P32: x | Q32: x | R32: x | S32: x | T32: x | U32: x | V32: x | W32: x | X32: x | Y32: P
B34: =Translation!$A$130 -> Design: | C34: =Translation!$A$92&" A20/W50" -> Air/Water Heat pumps A20/W50
C35: =Translation!$A$108&" B7/W50" -> Brine/Water Heat pumps B7/W50
A37: =Translation!$A$126 -> DESIGN CHART DHW
Y40: =Auswahl!$AC$21 -> Page 15 | Version 05/12
D42: SBB…Plus | J42: SBB…Basic | P42: SBB…WP basic
A43: =Translation!$A$117 -> Type | D43: 300 | E43: 300 | F43: 400 | G43: 400 | H43: 600 | I43: 600 | J43: 300 | K43: 300 | L43: 400 | M43: 400 | N43: 500 | O43: 500 | P43: 300 | Q43: 400 | R43: 500
A44: =Translation!$A$196 -> Connection heat exchanger | D44: =Translation!$A$191 -> Top | E44: =Translation!$A$195 -> Both | F44: =Translation!$A$191 -> Top | G44: =Translation!$A$195 -> Both | H44: =Translation!$A$191 -> Top | I44: =Translation!$A$195 -> Both | J44: =Translation!$A$191 -> Top | K44: =Translation!$A$195 -> Both | L44: =Translation!$A$191 -> Top | M44: =Translation!$A$195 -> Both | N44: =Translation!$A$191 -> Top | O44: =Translation!$A$195 -> Both | P44: =Translation!A192 -> Bottom | Q44: =Translation!A192 -> Bottom | R44: =Translation!A192 -> Bottom
A45: =Translation!$A$134&" | "&Translation!$A$131 -> Heating Capacity | Heat exchanger area | D45: 1,1 m² | E45: 2,7 m² | F45: 1,3 m² | G45: 3,0 m² | H45: 1,9 m² | I45: 4,4 m² | J45: 1,0 m² | K45: 2,5 m² | L45: 1,0 m² | M45: 2,8 m² | N45: 1,4 m² | O45: 3,3 m² | P45: 3,2 m² | Q45: 5,1 m² | R45: 6,1 m²
A46: WPL 10 ACS | B46: 9.3 | C46: 2,3 m² | D46: O | E46: P | F46: O | G46: P | H46: O | I46: P | J46: O | K46: 49°C | L46: O | M46: P | N46: O | O46: P | P46: P | Q46: P | R46: P
A47: WPL 10 I/A/IK | B47: 10,9 KW | C47: 2,7 m² | D47: O | E47: 47°C | F47: O | G47: P | H47: O | I47: P | J47: O | K47: 48°C | L47: O | M47: 48°C | N47: O | O47: P | P47: P | Q47: P | R47: P
A48: WPL 13 E/cool | B48: 12,1 KW | C48: 3,0 m² | D48: O | E48: 45°C | F48: O | G48: 47°C | H48: O | I48: P | J48: O | K48: O | L48: O | M48: 45°C | N48: O | O48: P | P48: 49°C | Q48: P | R48: P
A49: WPL 13 A basic | B49: 12,1 KW | C49: 3,0 m² | D49: O | E49: 45°C | F49: O | G49: 47°C | H49: O | I49: P | J49: O | K49: O | L49: O | M49: 45°C | N49: O | O49: P | P49: 49°C | Q49: P | R49: P
A50: WPL 18 E/cool | B50: 16,1 KW | C50: 4,0 m² | D50: O | E50: O | F50: O | G50: O | H50: O | I50: P | J50: O | K50: O | L50: O | M50: O | N50: O | O50: O | P50: O | Q50: P | R50: P
A51: WPL 20 A basic | B51: 20,0 KW | C51: 5,0 m² | D51: O | E51: O | F51: O | G51: O | H51: O | I51: P | J51: O | K51: O | L51: O | M51: O | N51: O | O51: O | P51: O | Q51: 48°C | R51: P
A52: WPL 23 E/cool | B52: 20,4 KW | C52: 5,1 m² | D52: O | E52: O | F52: O | G52: O | H52: O | I52: O | J52: O | K52: O | L52: O | M52: O | N52: O | O52: O | P52: O | Q52: 48°C | R52: P
A53: WPL 33-2 HT-IK | B53: 15,0 KW | C53: 3,8 m² | D53: O | E53: 51°C | F53: O | G53: 53°C | H53: 45°C | I53: 60°C | J53: O | K53: 48°C | L53: O | M53: 51°C | N53: O | O53: 55°C | P53: P | Q53: P | R53: P
A54: WPL 33 HT | B54: 14,0 KW | C54: 3,8 m² | D54: O | E54: 51°C | F54: O | G54: 53°C | H54: 45°C | I54: 60°C | J54: O | K54: 48°C | L54: O | M54: 51°C | N54: O | O54: 55°C | P54: P | Q54: P | R54: P
A55: WPL 34 | B55: 28,5 KW | C55: 7,1 m² | D55: O | E55: O | F55: O | G55: O | H55: O | I55: O | J55: O | K55: O | L55: O | M55: O | N55: O | O55: O | P55: O | Q55: O | R55: O
A56: WPL 47 | B56: 39,3 KW | C56: 9,8 m² | D56: O | E56: O | F56: O | G56: O | H56: O | I56: O | J56: O | K56: O | L56: O | M56: O | N56: O | O56: O | P56: O | Q56: O | R56: O
A57: WPL 57 | B57: 46,1 KW | C57: 11,5 m² | D57: O | E57: O | F57: O | G57: O | H57: O | I57: O | J57: O | K57: O | L57: O | M57: O | N57: O | O57: O | P57: O | Q57: O | R57: O
A58: WPF 5 | B58: 6,8 KW | C58: 1,7 m² | D58: O | E58: P | F58: O | G58: P | H58: P | I58: P | J58: O | K58: P | L58: O | M58: P | N58: O | O58: P | P58: P | Q58: P | R58: P
A59: WPF 7 | B59: 8,5 KW | C59: 2,3 m² | D59: O | E59: P | F59: O | G59: P | H59: O | I59: P | J59: O | K59: P | L59: O | M59: P | N59: O | O59: P | P59: P | Q59: P | R59: P
A60: WPF 10 | B60: 11,6 KW | C60: 2,9 m² | D60: O | E60: 46°C | F60: O | G60: 49°C | H60: O | I60: P | J60: O | K60: O | L60: O | M60: 47°C | N60: O | O60: P | P60: P | Q60: P | R60: P
A61: WPF 13 | B61: 14,7 KW | C61: 3,8 m² | D61: O | E61: O | F61: O | G61: O | H61: O | I61: P | J61: O | K61: O | L61: O | M61: O | N61: O | O61: O | P61: O | Q61: P | R61: P
A62: WPF 16 | B62: 19,1 KW | C62: 4,6 m² | D62: O | E62: O | F62: O | G62: O | H62: O | I62: 46°C | J62: O | K62: O | L62: O | M62: O | N62: O | O62: O | P62: O | Q62: 49°C | R62: P
A63: WPF 20 | B63: 24,8 KW | C63: 7,0 m² | D63: O | E63: O | F63: O | G63: O | H63: O | I63: O | J63: O | K63: O | L63: O | M63: O | N63: O | O63: O | P63: O | Q63: O | R63: 47°C
A64: WPF 27 | B64: 33,6 KW | C64: 8,4 m² | D64: O | E64: O | F64: O | G64: O | H64: O | I64: O | J64: O | K64: O | L64: O | M64: O | N64: O | O64: O | P64: O | Q64: O | R64: O
A65: WPF 27 HT | B65: 33,6 KW | C65: 8,4 m² | D65: O | E65: O | F65: O | G65: O | H65: O | I65: O | J65: O | K65: O | L65: O | M65: O | N65: O | O65: O | P65: O | Q65: 48°C | R65: P
A66: WPF 35 | B66: 37,6 KW | C66: 9,4 m² | D66: O | E66: O | F66: O | G66: O | H66: O | I66: O | J66: O | K66: O | L66: O | M66: O | N66: O | O66: O | P66: O | Q66: O | R66: O
A67: WPF 40 | B67: 51,2 KW | C67: 12,8 m² | D67: O | E67: O | F67: O | G67: O | H67: O | I67: O | J67: O | K67: O | L67: O | M67: O | N67: O | O67: O | P67: O | Q67: O | R67: O
A68: WPF 52 | B68: 63,2 KW | C68: 15,8 m² | D68: O | E68: O | F68: O | G68: O | H68: O | I68: O | J68: O | K68: O | L68: O | M68: O | N68: O | O68: O | P68: O | Q68: O | R68: O
A69: WPF 66 | B69: 78,6 KW | C69: 19,7 m² | D69: O | E69: O | F69: O | G69: O | H69: O | I69: O | J69: O | K69: O | L69: O | M69: O | N69: O | O69: O | P69: O | Q69: O | R69: O
B71: =Translation!$A$130 -> Design: | C71: =Translation!$A$92&" A20/W50" -> Air/Water Heat pumps A20/W50
C72: =Translation!$A$108&" B7/W50" -> Brine/Water Heat pumps B7/W50

Sheet Auslegung WWB
A1: =Translation!A268 -> Design chart DHW requirement
K4: =Auswahl!$AC$22 -> Page 16 | Version 05/12
C6: =Translation!A270 -> Storage system | F6: =Translation!A271 -> Fresh water staion | I6: =Translation!A272 -> Charging system
A7: =Translation!A256 -> People | B7: =Translation!A257 -> DHW requirement | C7: =Translation!A259 -> Storage volume | D7: =Translation!A260 -> Cylinder | E7: =Translation!A261 -> Legionella protection | F7: =Translation!A259 -> Storage volume | G7: =Translation!A260 -> Cylinder | H7: =Translation!A261 -> Legionella protection | I7: =Translation!A259 -> Storage volume | J7: =Translation!A260 -> Cylinder | K7: =Translation!A262 -> reheating
A8: =Translation!A154 -> Quantity | B8: =Translation!A258 -> L/day | C8: =Translation!A125 -> Litres | D8: =Translation!A117 -> Type | F8: =Translation!A125 -> Litres | G8: =Translation!A117 -> Type | I8: =Translation!A125 -> Litres | J8: =Translation!A117 -> Type | K8: =Translation!A263 -> 60°C at the tap
A9: ≤ 5 | B9: 300 | C9: 300 | D9: 1 x SBB 300 WP | E9: - | F9: 400 | G9: SBP 400 | H9: -
A10: 6 | B10: 360 | C10: 300 | D10: 1 x SBB 300 WP | E10: - | F10: 700 | G10: SBP 400 | H10: -
A11: 8 | B11: 480 | C11: 400 | D11: 1 x SBB 400 WP | E11: x | F11: 700 | G11: SBP 700 | H11: -
A12: 10 | B12: 600 | C12: 500 | D12: 1 x SBB 500 WP | E12: x | F12: 1000 | G12: SBP 1000 | H12: -
A13: 12 | B13: 720 | C13: 600 | D13: 2 x SBB 300 WP | E13: x | F13: 1500 | G13: SBP 1500 | H13: -
A14: 14 | B14: 840 | C14: 700 | D14: 2 x SBB 400 WP | E14: x | I14: 700 | J14: 1 x SBB 751 | K14: 1 x FCR 28/120
A15: 16 | B15: 960 | C15: 800 | D15: 3 x SBB 400 WP | E15: x | I15: 800 | J15: 1 x SBB 751 | K15: 1 x FCR 28/120
A16: 20 | B16: 1200 | C16: 900 | D16: 2 x SBB 500 WP | E16: x | I16: 900 | J16: 1 x SBB 751 | K16: 1 x FCR 28/120
A17: 25 | B17: 1500 | I17: 1000 | J17: 1 x SBB 1001 | K17: 1 x FCR 28/120
A18: 30 | B18: 1800 | I18: 1100 | J18: 1 x SBB 1001 | K18: 1 x FCR 28/120
A19: 35 | B19: 2100 | I19: 1300 | J19: 2 x SBB 751 | K19: 2 x FCR 28/120
A20: 40 | B20: 2400 | I20: 1500 | J20: 2 x SBB 751 | K20: 2 x FCR 28/120
A21: 50 | B21: 3000 | I21: 1800 | J21: 2 x SBB 1001 | K21: 2 x FCR 28/120
A22: 60 | B22: 3600 | I22: 2200 | J22: 2 x SBB 1001 | K22: 2 x FCR 28/120
A23: 70 | B23: 4200 | I23: 2600 | J23: 3 x SBB 751 | K23: 3 x FCR 28/120
A24: 80 | B24: 4800 | I24: 2900 | J24: 3 x SBB 1001 | K24: 3 x FCR 28/120
A25: 90 | B25: 5400 | I25: 3300 | J25: 3 x SBB 1001 | K25: 3 x FCR 28/120
A26: 100 | B26: 6000 | I26: 3600 | J26: 4 x SBB 1001 | K26: 4 x FCR 28/120

Sheet Erdkollektor
A1: =Translation!$A$132 -> DESIGN CHART GROUND COLLECTOR
A3: =Translation!$A$108 -> Brine/Water Heat pumps
L4: =Auswahl!$AC$23 -> Page 17 | Version 05/12
A6: =Translation!$A$5 -> Heat pump | B6: =Translation!$A$197&" Bo / W35" -> Performance data Bo / W35 | E6: =Translation!$A$198 -> Horizontal collector | I6: =Translation!$A$93 -> Hydraulic connection
B7: =Translation!$A$134 -> Heating Capacity | C7: =Translation!$A$135 -> Compressor | D7: =Translation!$A$136 -> Cooling Capacity | E7: =Translation!$A$137 -> Area | F7: =Translation!$A$199 -> Pipe spacing | G7: =Translation!$A$138 -> Traces | H7: =Translation!$A$120 -> PE-Tube | I7: =Translation!$A$139 -> Brine assembly | J7: =Translation!$A$200 -> Brine assembly | K7: =Translation!$A$140 -> Expansion vessel | L7: =Translation!$A$141 -> HP-Collector
A8: =Translation!$A$117 -> Type | B8: KW | C8: KW | D8: KW | E8: m² | F8: m | G8: 100 m | H8: mm | I8: =Translation!$A$96 -> Pump | J8: =Translation!$A$117 -> Type | K8: =Translation!$A$117 -> Type | L8: mm
A9: WPF 5 | B9: 5.8 | C9: 1.3 | D9: 4.5 | E9: =D9*1000/25 -> 180 | F9: =IF(B9<35,0.6,0.8) -> 0.6 | G9: =IF((ROUNDUP(E9/F9,-2)-E9/F9)>89,ROUND(E9/F9/100,0),ROUNDUP(E9/F9/100,0)) -> 3 | H9: =IF(F9=0.6,"DN 20 (25 x 2,3)","DN 25 (32 x 2,9)") -> DN 20 (25 x 2,3) | I9: WPSB 307 | J9: 1 x WPSV 25-4 | K9: AG 18/1,5 | L9: DN 25 (32 x 2,9)
A10: WPF 7 | B10: 7.8 | C10: 1.8 | D10: 6 | E10: =D10*1000/25 -> 240 | F10: =IF(B10<35,0.6,0.8) -> 0.6 | G10: =IF((ROUNDUP(E10/F10,-2)-E10/F10)>89,ROUND(E10/F10/100,0),ROUNDUP(E10/F10/100,0)) -> 4 | H10: =IF(F10=0.6,"DN 20 (25 x 2,3)","DN 25 (32 x 2,9)") -> DN 20 (25 x 2,3) | I10: WPSB 307 | J10: 1 x WPSV 25-4 | K10: AG 18/1,5 | L10: DN 25 (32 x 2,9)
A11: WPF 10 | B11: 9.9 | C11: 2.2 | D11: 7.7 | E11: 308 | F11: 0.6 | G11: 6 | H11: DN 20 (25 x 2,3) | I11: WPSB 307 | J11: 1 x WPSV 25-6 | K11: AG 18/1,5 | L11: DN 32 (40 x 3,7)
A12: WPF 13 | B12: 13.4 | C12: 3.1 | D12: 10.3 | E12: 412 | F12: 0.6 | G12: 7 | H12: DN 20 (25 x 2,3) | I12: WPSB 307 | J12: 2 x WPSV 25-4 | K12: AG 18/1,5 | L12: DN 40 (50 x 4,6)
A13: WPF 16 | B13: 16.1 | C13: 3.6 | D13: 12.5 | E13: 500 | F13: 0.6 | G13: 9 | H13: DN 20 (25 x 2,3) | I13: WPSB 310 | J13: 2 x WPSV 25-6 | K13: AG 25/1,5 | L13: DN 40 (50 x 4,6)
A14: WPF 20 | B14: 21.9 | C14: 4.5 | D14: 17.4 | E14: 696 | F14: 0.6 | G14: 12 | H14: DN 20 (25 x 2,3) | I14: UPF 40/1-8E | J14: 2 x WPSV 25-6 | K14: AG 25/1,5 | L14: DN 50 (63 x 5,8)
A15: WPF 27...HT | B15: 29.7 | C15: 6.1 | D15: 23.6 | E15: 944 | F15: 0.6 | G15: 16 | H15: DN 20 (25 x 2,3) | I15: UPF 40/1-8E | J15: - | K15: AG 25/1,5 | L15: DN 50 (63 x 5,8)
A16: WPF 35 | B16: 38 | C16: 7.8 | D16: 29.8 | E16: 1192 | F16: 0.8 | G16: 19 | H16: DN 25 (32 x 2,9) | I16: UPF 40/1-8E | J16: - | K16: AG 50/1,5 | L16: DN 65 (75 x 6,8)
A17: WPF 40 | B17: 45.7 | C17: 9.4 | D17: 36.3 | E17: 1452 | F17: 0.8 | G17: 19 | H17: DN 25 (32 x 2,9) | I17: UPF 50/1-12E | J17: - | K17: AG 50/1,5 | L17: DN 65 (75 x 6,8)
A18: WPF 52 | B18: 55.8 | C18: 11.6 | D18: 44.2 | E18: 1768 | F18: 0.8 | G18: 22 | H18: DN 25 (32 x 2,9) | I18: UPF 50/1-12E | J18: - | K18: 2 x AG 50/1,5 | L18: DN 89 (90 x 8,2)
A19: WPF 66 | B19: 69 | C19: 14.4 | D19: 54.6 | E19: 2184 | F19: 0.8 | G19: 28 | H19: DN 25 (32 x 2,9) | I19: UPF 50/1-12E | J19: - | K19: 2 x AG 50/1,5 | L19: DN 100 (125 x 11,4)
A20: WPF 20 SET | B20: 19.8 | C20: 4.4 | D20: 15.4 | E20: 616 | F20: 0.6 | G20: 11 | H20: DN 20 (25 x 2,3) | I20: WPSB 310 | J20: 2 x WPSV 25-6 | K20: AG 25/1,5 | L20: DN 40 (50 x 4,6)
A21: WPF 23 SET | B21: 23.3 | C21: 5.3 | D21: 18 | E21: 720 | F21: 0.6 | G21: 12 | H21: DN 20 (25 x 2,3) | I21: WPSB 310 | J21: 2 x WPSV 25-6 | K21: AG 25/1,5 | L21: DN 50 (63 x 5,8)
A22: WPF 26 SET | B22: 26.8 | C22: 6.2 | D22: 20.6 | E22: 824 | F22: 0.6 | G22: 14 | H22: DN 20 (25 x 2,3) | I22: WPSB 407 | J22: - | K22: AG 25/1,5 | L22: DN 50 (63 x 5,8)
A23: WPF 29 SET | B23: 29.7 | C23: 6.6 | D23: 23.1 | E23: 924 | F23: 0.6 | G23: 16 | H23: DN 20 (25 x 2,3) | I23: WPSB 407 | J23: - | K23: AG 25/1,5 | L23: DN 50 (63 x 5,8)
A24: WPF 32 SET | B24: 32.6 | C24: 7 | D24: 25.6 | E24: 1024 | F24: 0.6 | G24: 17 | H24: DN 20 (25 x 2,3) | I24: WPSB 407 | J24: - | K24: AG 50/1,5 | L24: DN 65 (75 x 6,8)
A25: WPF 80 SET | B25: 91.4 | C25: 18.8 | D25: 72.6 | E25: =D25*1000/25 -> 2904 | F25: =IF(B25<35,0.6,0.8) -> 0.8 | G25: =IF((ROUNDUP(E25/F25,-2)-E25/F25)>89,ROUND(E25/F25/100,0),ROUNDUP(E25/F25/100,0)) -> 37 | H25: =IF(F25=0.6,"DN 20 (25 x 2,3)","DN 25 (32 x 2,9)") -> DN 25 (32 x 2,9) | I25: 2 x UPF 50/1-12E | J25: - | K25: 2 x AG 50/1,5 | L25: DN 100 (125 x 11,4)
A26: WPF 92 SET | B26: 101.5 | C26: 21 | D26: 80.5 | E26: =D26*1000/25 -> 3220 | F26: =IF(B26<35,0.6,0.8) -> 0.8 | G26: =IF((ROUNDUP(E26/F26,-2)-E26/F26)>89,ROUND(E26/F26/100,0),ROUNDUP(E26/F26/100,0)) -> 41 | H26: =IF(F26=0.6,"DN 20 (25 x 2,3)","DN 25 (32 x 2,9)") -> DN 25 (32 x 2,9) | I26: 2 x UPF 50/1-12E | J26: - | K26: 3 x AG 50/1,5 | L26: DN 100 (125 x 11,4)
A27: WPF 104 SET | B27: 111.6 | C27: 23.2 | D27: 88.4 | E27: =D27*1000/25 -> 3536 | F27: =IF(B27<35,0.6,0.8) -> 0.8 | G27: =IF((ROUNDUP(E27/F27,-2)-E27/F27)>89,ROUND(E27/F27/100,0),ROUNDUP(E27/F27/100,0)) -> 45 | H27: =IF(F27=0.6,"DN 20 (25 x 2,3)","DN 25 (32 x 2,9)") -> DN 25 (32 x 2,9) | I27: 2 x UPF 50/1-12E | J27: - | K27: 3 x AG 50/1,5 | L27: DN 100 (125 x 11,4)
A28: WPF 118 SET | B28: 124.8 | C28: 26 | D28: 98.8 | E28: =D28*1000/25 -> 3952 | F28: =IF(B28<35,0.6,0.8) -> 0.8 | G28: =IF((ROUNDUP(E28/F28,-2)-E28/F28)>89,ROUND(E28/F28/100,0),ROUNDUP(E28/F28/100,0)) -> 50 | H28: =IF(F28=0.6,"DN 20 (25 x 2,3)","DN 25 (32 x 2,9)") -> DN 25 (32 x 2,9) | I28: 2 x UPF 50/1-12E | J28: - | K28: 3 x AG 50/1,5 | L28: DN 100 (125 x 11,4)
A29: WPF 132 SET | B29: 138 | C29: 28.8 | D29: 109.2 | E29: =D29*1000/25 -> 4368 | F29: =IF(B29<35,0.6,0.8) -> 0.8 | G29: =IF((ROUNDUP(E29/F29,-2)-E29/F29)>89,ROUND(E29/F29/100,0),ROUNDUP(E29/F29/100,0)) -> 55 | H29: =IF(F29=0.6,"DN 20 (25 x 2,3)","DN 25 (32 x 2,9)") -> DN 25 (32 x 2,9) | I29: 2 x UPF 50/1-12E | J29: - | K29: 3 x AG 50/1,5 | L29: DN 125 (160 x 14,6)
A30: 3 x WPF 16 M | B30: 48.9 | C30: 10.5 | D30: 38.4 | E30: 1536 | F30: 0.8 | G30: 20 | H30: DN 25 (32 x 2,9) | I30: UPF 50/1-12E | J30: - | K30: AG 50/1,5 | L30: DN 65 (75 x 6,8)
A31: 4 x WPF 16 M | B31: 65.2 | C31: 14 | D31: 51.2 | E31: 2048 | F31: 0.8 | G31: 26 | H31: DN 25 (32 x 2,9) | I31: UPF 50/1-12E | J31: - | K31: AG 50/1,5 | L31: DN 89 (90 x 8,2)
A32: 5 x WPF 16 M | B32: 81.5 | C32: 17.5 | D32: 64 | E32: 2560 | F32: 0.8 | G32: 32 | H32: DN 25 (32 x 2,9) | I32: UPF 50/1-12E | J32: - | K32: AG 50/1,5 | L32: DN 100 (125 x 11,4)
A33: 6 x WPF 16 M | B33: 97.8 | C33: 21 | D33: 76.8 | E33: 3072 | F33: 0.8 | G33: 39 | H33: DN 25 (32 x 2,9) | I33: UPF 50/1-12E | J33: - | K33: 2 x AG 50/1,5 | L33: DN 100 (125 x 11,4)
A34: 3 x WPF 66 | B34: 207 | C34: 43.2 | D34: 163.8 | E34: 6552 | F34: 0.8 | G34: 82 | H34: DN 25 (32 x 2,9) | I34: 3 x UPF 50/1-12E | J34: - | K34: 5 x AG 50/1,5 | L34: DN 150 (180 x 16,4)
A35: 4 x WPF 66 | B35: 276 | C35: 57.6 | D35: 218.4 | E35: 8736 | F35: 0.8 | G35: 110 | H35: DN 25 (32 x 2,9) | I35: 4 x UPF 50/1-12E | J35: - | K35: 6 x AG 50/1,5 | L35: DN 150 (180 x 16,4)
A36: 5 x WPF 66 | B36: 345 | C36: 72 | D36: 273 | E36: 10920 | F36: 0.8 | G36: 137 | H36: DN 25 (32 x 2,9) | I36: 5 x UPF 50/1-12E | J36: - | K36: 7 x AG 50/1,5 | L36: DN 160 (200 x 18,2)
A37: 6 x WPF 66 | B37: 414 | C37: 86.4 | D37: 327 | E37: 13080 | F37: 0.8 | G37: 164 | H37: DN 25 (32 x 2,9) | I37: 6 x UPF 50/1-12E | J37: - | K37: 7 x AG 50/1,5 | L37: DN 180 (225 x 20,5)
A39: =Translation!A133&" 25 W/m², "&Translation!$A$142&": 1,2 m - 1,5 m" -> Heat removal 25 W/m², Depth of pipes: 1,2 m - 1,5 m
A40: =Translation!$A$145&": "&Translation!$A$148 -> Concentrate: 33 Vol % Antifrogen N (Tyfocor), 67 Vol % Water
A41: =Translation!$A$147&": "&Translation!$A$149 -> Operation hours: max. 1800 yearly operation hours (monovalent)

Sheet Erdsonde
A1: =Translation!$A$150 -> DESIGN CHART PROBES
A3: =Translation!$A$108 -> Brine/Water Heat pumps
L4: =Auswahl!$AC$24 -> Page 18 | Version 05/12
A6: =Translation!$A$5 -> Heat pump | B6: =Translation!$A$197&" Bo / W35" -> Performance data Bo / W35 | E6: =Translation!A152 -> Probes | I6: =Translation!$A$93 -> Hydraulic connection
B7: =Translation!$A$134 -> Heating Capacity | C7: =Translation!$A$135 -> Compressor | D7: =Translation!$A$136 -> Cooling Capacity | E7: =Translation!A153 -> Total length | F7: =Translation!$A$154 -> Quantity | G7: =Translation!$A$155 -> Depth | H7: =Translation!$A$120 -> PE-Tube | I7: =Translation!$A$139 -> Brine assembly | J7: =Translation!$A$200 -> Brine assembly | K7: =Translation!$A$140 -> Expansion vessel | L7: =Translation!$A$141 -> HP-Collector
A8: =Translation!$A$117 -> Type | B8: KW | C8: KW | D8: KW | E8: m | F8: - | G8: m | H8: mm | I8: =Translation!$A$96 -> Pump | J8: =Translation!$A$117 -> Type | K8: =Translation!$A$117 -> Type | L8: mm
A9: WPF 5 | B9: 5.8 | C9: 1.3 | D9: 4.5 | E9: =D9*1000/55 -> 81.81818182 | F9: =ROUNDUP(E9/99,0) -> 1 | G9: =ROUND(E9/F9,0) -> 82 | H9: DN 25 (32 x 2,9) | I9: WPSB 307 | J9: 1 x WPSV 32-4 | K9: AG 18/1,5 | L9: DN 25 (32 x 2,9)
A10: WPF 7 | B10: 7.8 | C10: 1.8 | D10: 6 | E10: =D10*1000/55 -> 109.0909091 | F10: =ROUNDUP(E10/99,0) -> 2 | G10: =ROUND(E10/F10,0) -> 55 | H10: DN 25 (32 x 2,9) | I10: WPSB 307 | J10: 1 x WPSV 32-4 | K10: AG 18/1,5 | L10: DN 25 (32 x 2,9)
A11: WPF 10 | B11: 9.9 | C11: 2.2 | D11: 7.7 | E11: 140 | F11: 2 | G11: 70 | H11: DN 25 (32 x 2,9) | I11: WPSB 307 | J11: 1 x WPSV 32-4 | K11: AG 25/1,5 | L11: DN 32 (40 x 3,7)
A12: WPF 13 | B12: 13.4 | C12: 3.1 | D12: 10.3 | E12: 187.2727273 | F12: 2 | G12: 94 | H12: DN 25 (32 x 2,9) | I12: WPSB 307 | J12: 1 x WPSV 32-6 | K12: AG 25/1,5 | L12: DN 40 (50 x 4,6)
A13: WPF 16 | B13: 16.1 | C13: 3.6 | D13: 12.5 | E13: 227.2727273 | F13: 3 | G13: 76 | H13: DN 25 (32 x 2,9) | I13: WPSB 310 | J13: 1 x WPSV 32-6 | K13: AG 25/1,5 | L13: DN 40 (50 x 4,6)
A14: WPF 20 | B14: 21.9 | C14: 4.5 | D14: 17.4 | E14: 316.3636364 | F14: 4 | G14: 79 | H14: DN 25 (32 x 2,9) | I14: UPF 40/1-8E | J14: 2 x WPSV 32-4 | K14: AG 50/1,5 | L14: DN 50 (63 x 5,8)
A15: WPF 27 / HT | B15: 29.7 | C15: 6.1 | D15: 23.6 | E15: 429.0909091 | F15: 5 | G15: 86 | H15: DN 25 (32 x 2,9) | I15: UPF 40/1-8E | J15: 2 x WPSV 32-6 | K15: AG 50/1,5 | L15: DN 50 (63 x 5,8)
A16: WPF 35 | B16: 38 | C16: 7.8 | D16: 29.8 | E16: 541.8181818 | F16: 9 | G16: 60 | H16: DN 25 (32 x 2,9) | I16: UPF 40/1-8E | J16: 3 x WPSV 32-6 | K16: AG 50/1,6 | L16: DN 65 (75 x 6,8)
A17: WPF 40 | B17: 45.7 | C17: 9.4 | D17: 36.3 | E17: 660 | F17: 7 | G17: 94 | H17: DN 25 (32 x 2,9) | I17: UPF 50/1-12E | J17: - | K17: 2 x AG 50/1,5 | L17: DN 65 (75 x 6,8)
A18: WPF 52 | B18: 55.8 | C18: 11.6 | D18: 44.2 | E18: 803.6363636 | F18: 9 | G18: 89 | H18: DN 25 (32 x 2,9) | I18: UPF 50/1-12E | J18: - | K18: 2 x AG 50/1,5 | L18: DN 89 (90 x 8,2)
A19: WPF 66 | B19: 69 | C19: 14.4 | D19: 54.6 | E19: 992.7272727 | F19: 11 | G19: 90 | H19: DN 25 (32 x 2,9) | I19: UPF 50/1-12E | J19: - | K19: 2 x AG 50/1,5 | L19: DN 100 (125 x 11,4)
A20: WPF 20 SET | B20: 19.8 | C20: 4.4 | D20: 15.4 | E20: 280 | F20: 3 | G20: 93 | H20: DN 25 (32 x 2,9) | I20: WPSB 310 | J20: 2 x WPSV 32-4 | K20: AG 50/1,5 | L20: DN 40 (50 x 4,6)
A21: WPF 23 SET | B21: 23.3 | C21: 5.3 | D21: 18 | E21: 327.2727273 | F21: 4 | G21: 82 | H21: DN 25 (32 x 2,9) | I21: WPSB 310 | J21: 2 x WPSV 32-4 | K21: AG 50/1,5 | L21: DN 50 (63 x 5,8)
A22: WPF 26 SET | B22: 26.8 | C22: 6.2 | D22: 20.6 | E22: 374.5454545 | F22: 4 | G22: 94 | H22: DN 25 (32 x 2,9) | I22: WPSB 407 | J22: 2 x WPSV 32-6 | K22: AG 50/1,5 | L22: DN 50 (63 x 5,8)
A23: WPF 29 SET | B23: 29.7 | C23: 6.6 | D23: 23.1 | E23: 420 | F23: 5 | G23: 84 | H23: DN 25 (32 x 2,9) | I23: WPSB 407 | J23: 2 x WPSV 32-6 | K23: AG 50/1,5 | L23: DN 50 (63 x 5,8)
A24: WPF 32 SET | B24: 32.6 | C24: 7 | D24: 25.6 | E24: 465.4545455 | F24: 5 | G24: 93 | H24: DN 25 (32 x 2,9) | I24: WPSB 407 | J24: 2 x WPSV 32-6 | K24: AG 50/1,5 | L24: DN 65 (75 x 6,8)
A25: WPF 80 SET | B25: 91.4 | C25: 18.8 | D25: 72.6 | E25: =D25*1000/55 -> 1320 | F25: =ROUNDUP(E25/99,0) -> 14 | G25: =ROUND(E25/F25,0) -> 94 | H25: DN 25 (32 x 2,9) | I25: 2 x UPF 50/1-12E | J25: - | K25: 3 x AG 50/1,5 | L25: DN 100 (125 x 11,4)
A26: WPF 92 SET | B26: 101.5 | C26: 21 | D26: 80.5 | E26: =D26*1000/55 -> 1463.636364 | F26: =ROUNDUP(E26/99,0) -> 15 | G26: =ROUND(E26/F26,0) -> 98 | H26: DN 25 (32 x 2,9) | I26: 2 x UPF 50/1-12E | J26: - | K26: 4 x AG 50/1,5 | L26: DN 100 (125 x 11,4)
A27: WPF 104 SET | B27: 111.6 | C27: 23.2 | D27: 88.4 | E27: =D27*1000/55 -> 1607.272727 | F27: =ROUNDUP(E27/99,0) -> 17 | G27: =ROUND(E27/F27,0) -> 95 | H27: DN 25 (32 x 2,9) | I27: 2 x UPF 50/1-12E | J27: - | K27: 4 x AG 50/1,5 | L27: DN 100 (125 x 11,4)
A28: WPF 118 SET | B28: 124.8 | C28: 26 | D28: 98.8 | E28: =D28*1000/55 -> 1796.363636 | F28: =ROUNDUP(E28/99,0) -> 19 | G28: =ROUND(E28/F28,0) -> 95 | H28: DN 25 (32 x 2,9) | I28: 2 x UPF 50/1-12E | J28: - | K28: 4 x AG 50/1,5 | L28: DN 100 (125 x 11,4)
A29: WPF 132 SET | B29: 138 | C29: 28.8 | D29: 109.2 | E29: =D29*1000/55 -> 1985.454545 | F29: =ROUNDUP(E29/99,0) -> 21 | G29: =ROUND(E29/F29,0) -> 95 | H29: DN 25 (32 x 2,9) | I29: 2 x UPF 50/1-12E | J29: - | K29: 5 x AG 50/1,5 | L29: DN 125 (160 x 14,6)
A30: 3 x WPF 16 M | B30: 48.9 | C30: 10.5 | D30: 38.4 | E30: 698.1818182 | F30: 8 | G30: 87 | H30: DN 25 (32 x 2,9) | I30: UPF 50/1-12E | J30: - | K30: 2 x AG 50/1,5 | L30: DN 65 (75 x 6,8)
A31: 4 x WPF 16 M | B31: 65.2 | C31: 14 | D31: 51.2 | E31: 930.9090909 | F31: 10 | G31: 93 | H31: DN 25 (32 x 2,9) | I31: UPF 50/1-12E | J31: - | K31: 2 x AG 50/1,5 | L31: DN 89 (90 x 8,2)
A32: 5 x WPF 16 M | B32: 81.5 | C32: 17.5 | D32: 64 | E32: 1163.636364 | F32: 12 | G32: 97 | H32: DN 25 (32 x 2,9) | I32: UPF 50/1-12E | J32: - | K32: 3 x AG 50/1,5 | L32: DN 100 (125 x 11,4)
A33: 6 x WPF 16 M | B33: 97.8 | C33: 21 | D33: 76.8 | E33: 1396.363636 | F33: 15 | G33: 93 | H33: DN 25 (32 x 2,9) | I33: UPF 50/1-12E | J33: - | K33: 3 x AG 50/1,5 | L33: DN 100 (125 x 11,4)
A34: 3 x WPF 66 | B34: 207 | C34: 43.2 | D34: 163.8 | E34: 2978.181818 | F34: 31 | G34: 96 | H34: DN 25 (32 x 2,9) | I34: 3 x UPF 50/1-12E | J34: - | K34: 6 x AG 50/1,5 | L34: DN 150 (180 x 16,4)
A35: 4 x WPF 66 | B35: 276 | C35: 57.6 | D35: 218.4 | E35: 3970.909091 | F35: 41 | G35: 97 | H35: DN 25 (32 x 2,9) | I35: 4 x UPF 50/1-12E | J35: - | K35: 7 x AG 50/1,5 | L35: DN 150 (180 x 16,4)
A36: 5 x WPF 66 | B36: 345 | C36: 72 | D36: 273 | E36: 4963.636364 | F36: 51 | G36: 97 | H36: DN 25 (32 x 2,9) | I36: 5 x UPF 50/1-12E | J36: - | K36: 8 x AG 50/1,5 | L36: DN 160 (200 x 18,2)
A37: 6 x WPF 66 | B37: 414 | C37: 86.4 | D37: 327 | E37: 5945.454545 | F37: 61 | G37: 97 | H37: DN 25 (32 x 2,9) | I37: 6 x UPF 50/1-12E | J37: - | K37: 8 x AG 50/1,5 | L37: DN 180 (225 x 20,5)
A39: =Translation!A133&" 55 W/m, "&Translation!$A$144&": 5 m" -> Heat removal 55 W/m, Pipe spacing: 5 m
A40: =Translation!$A$156&": "&Translation!$A$148 -> Concentrate: 33 Vol % Antifrogen N (Tyfocor), 67 Vol % Water
A41: =Translation!$A$147&": "&Translation!$A$149 -> Operation hours: max. 1800 yearly operation hours (monovalent)

Sheet Erdwärmekörbe
A1: =Translation!A264 -> Ground heat collector
A3: =Translation!$A$108 -> Brine/Water Heat pumps
M4: =Auswahl!$AC$25 -> Page 19 | Version 05/12
A6: =Translation!$A$5 -> Heat pump | B6: =Translation!$A$197&" Bo / W35" -> Performance data Bo / W35 | E6: =Translation!A265 -> Collector | H6: =Translation!$A$93 -> Hydraulic connection
B7: =Translation!$A$134 -> Heating Capacity | C7: =Translation!$A$135 -> Compressor | D7: =Translation!$A$136 -> Cooling Capacity | E7: =Translation!A266 -> supply pipe | F7: =Translation!A266 -> supply pipe | G7: =Translation!A269 -> Anti freeze concentraion | H7: =Translation!$A$139 -> Brine assembly | I7: =Translation!$A$200 -> Brine assembly | K7: =Translation!$A$140 -> Expansion vessel | L7: =Translation!A267 -> integreated
A8: =Translation!$A$117 -> Type | B8: KW | C8: KW | D8: KW | E8: m | F8: =Translation!A154 -> Quantity | H8: =Translation!$A$96 -> Pump | I8: WPSV 25-4 | J8: WPSV 25-6 | K8: =Translation!$A$117 -> Type | L8: mm | M8: m
A9: WPF 5 E | B9: 5.8 | C9: 1.3 | D9: 4.5 | E9: 150 | F9: 3 | G9: 90 | H9: =Translation!A267 -> integreated | I9: 1 | K9: AG 12/1,5 | L9: 32 x 2,9 | M9: 29
A10: WPF 7 E | B10: 7.8 | C10: 1.8 | D10: 6 | E10: 150 | F10: 4 | G10: 120 | H10: =Translation!A267 -> integreated | I10: 1 | K10: AG 12/1,5 | L10: 40 x 3,7 | M10: 44
A11: WPF 10 E | B11: 9.9 | C11: 2.2 | D11: 7.7 | E11: 150 | F11: 5 | G11: 150 | H11: =Translation!A267 -> integreated | J11: 1 | K11: AG 25/1,5 | L11: 40 x 3,7 | M11: 32
A12: WPF 13 E | B12: 13.4 | C12: 3.1 | D12: 10.3 | E12: 150 | F12: 7 | G12: 210 | H12: =Translation!A267 -> integreated | I12: 2 | K12: AG 25/1,5 | L12: 50 x 4,6 | M12: 38
A13: WPF 16 E | B13: 16.1 | C13: 3.6 | D13: 12.5 | E13: 150 | F13: 9 | G13: 250 | H13: =Translation!A267 -> integreated | I13: 1 | J13: 1 | K13: AG 50/1,5 | L13: 50 x 4,6 | M13: 37
A14: WPF 20 | B14: 21.9 | C14: 4.5 | D14: 17.4 | E14: 150 | F14: 12 | G14: 350 | H14: UPF 40/1-8E | J14: 2 | K14: AG 50/1,5 | L14: 63 x 5,8 | M14: 73
A15: WPF 27...HT | B15: 29.7 | C15: 6.1 | D15: 23.6 | E15: 150 | F15: 16 | G15: 460 | H15: UPF 40/1-8E | I15: 1 | J15: 2 | K15: 2 x AG 50/1,5 | L15: 63 x 5,8 | M15: 39
A16: WPF 35 | B16: 38 | C16: 7.8 | D16: 29.8 | E16: 150 | F16: 20 | G16: 590 | H16: UPF 40/1-8E | I16: 2 | J16: 2 | K16: 2 x AG 50/1,5 | L16: 75 x 6,8 | M16: 53
A17: WPF 40 | B17: 45.7 | C17: 9.4 | D17: 36.3 | E17: 150 | F17: 24 | G17: 710 | H17: UPF 50/1-12E | J17: 4 | K17: 2 x AG 50/1,5 | L17: 75 x 6,8 | M17: 44
A18: WPF 52 | B18: 55.8 | C18: 11.6 | D18: 44.2 | E18: 150 | F18: 29 | G18: 870 | H18: UPF 50/1-12E | K18: 2 x AG 50/1,5 | L18: 90 x 8,2 | M18: 37
A19: WPF 66 | B19: 69 | C19: 14.4 | D19: 54.6 | E19: 150 | F19: 36 | G19: 1070 | H19: UPF 50/1-12E | K19: 3 x AG 50/1,5 | L19: 90 x 8,2 | M19: 15
A20: WPF 20 SET | B20: 19.8 | C20: 4.4 | D20: 15.4 | E20: 150 | F20: 10 | G20: 300 | H20: UPF 40/1-8E | I20: 1 | J20: 1 | K20: AG 50/1,5 | L20: 50 x 4,6 | M20: 36
A21: WPF 23 SET | B21: 23.3 | C21: 5.3 | D21: 18 | E21: 150 | F21: 12 | G21: 360 | H21: UPF 40/1-8E | J21: 2 | K21: AG 50/1,5 | L21: 63 x 5,8 | M21: 52
A22: WPF 26 SET | B22: 26.8 | C22: 6.2 | D22: 20.6 | E22: 150 | F22: 14 | G22: 410 | H22: UPF 40/1-8E | I22: 2 | J22: 1 | K22: AG 50/1,5 | L22: 63 x 5,8 | M22: 38
A23: WPF 29 SET | B23: 29.7 | C23: 6.6 | D23: 23.1 | E23: 150 | F23: 15 | G23: 460 | H23: UPF 40/1-8E | I23: 1 | J23: 2 | K23: AG 50/1,5 | L23: 63 x 5,8 | M23: 29
A24: WPF 32 SET | B24: 32.6 | C24: 7 | D24: 25.6 | E24: 150 | F24: 17 | G24: 510 | H24: UPF 40/1-8E | J24: 3 | K24: 2 x AG 50/1,5 | L24: 75 x 6,8 | M24: 54
A25: WPF 80 SET | B25: 91.4 | C25: 18.8 | D25: 72.6 | E25: 150 | F25: 48 | G25: 1440 | H25: 2 x UPF 50/1-12E | K25: 4 x AG 50/1,5 | L25: 125 x 11,4 | M25: 107
A26: WPF 92 SET | B26: 101.5 | C26: 21 | D26: 80.5 | E26: 150 | F26: 54 | G26: 1590 | H26: 2 x UPF 50/1-12E | K26: 4 x AG 50/1,5 | L26: 125 x 11,4 | M26: 50
A27: WPF 104 SET | B27: 111.6 | C27: 23.2 | D27: 88.4 | E27: 150 | F27: 59 | G27: 1740 | H27: 2 x UPF 50/1-12E | K27: 5 x AG 50/1,5 | L27: 125 x 11,4 | M27: 41
A28: WPF 118 SET | B28: 124.8 | C28: 26 | D28: 98.8 | E28: 150 | F28: 66 | G28: 1940 | H28: 2 x UPF 50/1-12E | K28: 5 x AG 50/1,5 | L28: 125 x 11,4 | M28: 20
A29: WPF 132 SET | B29: 138 | C29: 28.8 | D29: 109.2 | E29: 150 | F29: 73 | G29: 2130 | H29: 2 x UPF 50/1-12E | K29: 6 x AG 50/1,5 | L29: 125 x 11,4 | M29: 17
A30: 3 x WPF 16 M | B30: 48.9 | C30: 10.5 | D30: 38.4 | E30: 150 | F30: 26 | G30: 750 | H30: UPF 50/1-12E | K30: 2 x AG 50/1,5 | L30: 75 x 6,8 | M30: 50
A31: 4 x WPF 16 M | B31: 65.2 | C31: 14 | D31: 51.2 | E31: 150 | F31: 34 | G31: 1010 | H31: UPF 50/1-12E | K31: 3 x AG 50/1,5 | L31: 90 x 8,2 | M31: 38
A32: 5 x WPF 16 M | B32: 81.5 | C32: 17.5 | D32: 64 | E32: 150 | F32: 43 | G32: 1280 | H32: UPF 50/1-12E | K32: 3 x AG 50/1,5 | L32: 125 x 11,4 | M32: 59
A33: 6 x WPF 16 M | B33: 97.8 | C33: 21 | D33: 76.8 | E33: 150 | F33: 51 | G33: 1520 | H33: UPF 50/1-12E | K33: 4 x AG 50/1,5 | L33: 125 x 11,4 | M33: 32
A34: 3 x WPF 66 | B34: 207 | C34: 43.2 | D34: 163.8 | E34: 150 | F34: 109 | G34: 3210 | H34: 3 x UPF 50/1-12E | K34: 8 x AG 50/1,5 | L34: 160 x 14,6 | M34: 22
A35: 4 x WPF 66 | B35: 276 | C35: 57.6 | D35: 218.4 | E35: 150 | F35: 146 | G35: 4270 | H35: 4 x UPF 50/1-12E | L35: 180 x 16,4 | M35: 21
A36: 5 x WPF 66 | B36: 345 | C36: 72 | D36: 273 | E36: 150 | F36: 182 | G36: 5340 | H36: 5 x UPF 50/1-12E | L36: 200 x 18,2 | M36: 21
A37: 6 x WPF 66 | B37: 414 | C37: 86.4 | D37: 327 | E37: 150 | F37: 218 | G37: 6410 | H37: 6 x UPF 50/1-12E | L37: 225 x 20,5 | M37: 24
A39: =Translation!A133&" 16 W/m, "&Translation!$A$143&": 0,8 m - 1,2 m" -> Heat removal 16 W/m, Depth of ground heat collector: 0,8 m - 1,2 m
A40: =Translation!$A$146&": "&Translation!$A$148 -> Concentration: 33 Vol % Antifrogen N (Tyfocor), 67 Vol % Water
A41: =Translation!$A$147&": "&Translation!$A$149 -> Operation hours: max. 1800 yearly operation hours (monovalent)

Sheet WT-WWB
A1: =Translation!$A$157 -> DESIGN CHART HEAT EXCHANGER DHW
M4: =Auswahl!$AC$26 -> Page 20 | Version 05/12
A6: =Translation!$A$5 -> Heat pump | C6: =Translation!$A$159 -> Temperature | E6: =Translation!$A$118 -> Volume flow | G6: =Translation!$A$158&"- "&Translation!$A$254 -> Heat Exchanger- bolted | J6: =Translation!$A$158&" - "&Translation!$A$255 -> Heat Exchanger - welded | M6: =Translation!$A$161 -> Pumps
A7: =Translation!$A$117 -> Type | B7: =Translation!$A$134 -> Heating Capacity | C7: =Translation!$A$181 -> Hot side | D7: =Translation!$A$182 -> Cold side | E7: =Translation!$A$181 -> Hot side | F7: =Translation!$A$182 -> Cold side | G7: =Translation!$A$117 -> Type | H7: =Translation!$A$181 -> Hot side | I7: =Translation!$A$182 -> Cold side | J7: =Translation!$A$117 -> Type | K7: =Translation!$A$181 -> Hot side | L7: =Translation!$A$182 -> Cold side | M7: =Translation!$A$162 -> HX - DHW-Cylinder
B8: kW | C8: °C | D8: °C | E8: m³/h | F8: m³/h | G8: Alfa Laval | H8: hPa | I8: hPa | J8: Alfa Laval | K8: hPa | L8: hPa | M8: =Translation!$A$117 -> Type
A9: WPL 10 ACS | B9: 10.9 | C9: 60 > 55 | D9: 50 < 55 | E9: 1.9 | F9: 1.9 | G9: T2-BFG 18 | H9: 89 | I9: 75 | J9: CB 30-18H | K9: 177 | L9: 143 | M9: UP 25-60 B
A10: WPL 10 I/A/IK | B10: 10.9 | C10: 60 > 55 | D10: 50 < 55 | E10: 1.9 | F10: 1.9 | G10: T2-BFG 18 | H10: 89 | I10: 75 | J10: CB 30-18H | K10: 177 | L10: 143 | M10: UP 25-60 B
A11: WPL 13 E/cool | B11: 12.1 | C11: 60 > 55 | D11: 50 < 55 | E11: 2.1 | F11: 2.1 | G11: T2-BFG 19 | H11: 108 | I11: 95 | J11: CB 30-18H | K11: 170 | L11: 140 | M11: UP 25-60 B
A12: WPL 13 A basic | B12: 12.1 | C12: 60 > 55 | D12: 50 < 55 | E12: 2.1 | F12: 2.1 | G12: T2-BFG 19 | H12: 108 | I12: 95 | J12: CB 30-18H | K12: 170 | L12: 140 | M12: UP 30/1-12 B
A13: WPL 18 E/cool | B13: 16.1 | C13: 60 > 55 | D13: 50 < 55 | E13: 2.8 | F13: 2.8 | G13: M3-FG 17 | H13: 195 | I13: 194 | J13: CB 30-18M | K13: 89 | L13: 66 | M13: UP 25-60 B
A14: WPL 20 A basic | B14: 20 | C14: 60 > 55 | D14: 50 < 55 | E14: 3.439380911 | F14: 3.439380911 | G14: M3-FG 19 | H14: 160 | I14: 160 | J14: CB 30-24M | K14: 85 | L14: 61 | M14: UP 30/1-12 B
A15: WPL 23 E/cool | B15: 20.4 | C15: 60 > 55 | D15: 50 < 55 | E15: 3.525365434 | F15: 3.525365434 | G15: M3-FG 19 | H15: 161 | I15: 161 | J15: CB 30-24M | K15: 87 | L15: 63 | M15: UP 25-60 B
A16: WPL 33 HT | B16: 15 | C16: 60 > 55 | D16: 50 < 55 | E16: 2.579535684 | F16: 2.579535684 | G16: M3-FG 17 | H16: 173 | I16: 173 | J16: CB 30-18M | K16: 78 | L16: 57 | M16: UP 25-60 B
A17: WPL 34 A | B17: 28.5 | C17: 60 > 55 | D17: 50 < 55 | E17: 4.901117799 | F17: 4.901117799 | G17: M3-FG 31 | H17: 189 | I17: 189 | J17: CB 30-34M | K17: 105 | L17: 71 | M17: UP 30/1-12 B
A18: WPL 47 A | B18: 39.3 | C18: 60 > 55 | D18: 50 < 55 | E18: 6.8 | F18: 6.8 | G18: M3-FG 41 | H18: 206 | I18: 206 | J18: CB 76-20M | K18: 172 | L18: 127 | M18: UP 30/1-12 B
A19: WPL 57 A | B19: 46.1 | C19: 60 > 55 | D19: 50 < 55 | E19: 7.927773001 | F19: 7.927773001 | G19: M3-FG 47 | H19: 162 | I19: 162 | J19: CB 76-20M | K19: 233 | L19: 173 | M19: UP 30/1-12 B
A20: WPF 5 | B20: 6.8 | C20: 60 > 55 | D20: 50 < 55 | E20: 1.2 | F20: 1.2 | G20: T2-BFG 12 | H20: 58 | I20: 59 | J20: CB 30-10H | K20: 210 | L20: 136 | M20: UP 25-60 B
A21: WPF 7 | B21: 8.5 | C21: 60 > 55 | D21: 50 < 55 | E21: 1.5 | F21: 1.5 | G21: T2-BFG 15 | H21: 75 | I21: 61 | J21: CB 30-18H | K21: 87 | L21: 71 | M21: UP 25-60 B
A22: WPF 10 | B22: 11.6 | C22: 60 > 55 | D22: 50 < 55 | E22: 2 | F22: 2 | G22: T2-BFG 18 | H22: 93 | I22: 77 | J22: CB 30-18H | K22: 159 | L22: 128 | M22: UP 25-60 B
A23: WPF 13 | B23: 14.7 | C23: 60 > 55 | D23: 50 < 55 | E23: 2.5 | F23: 2.5 | G23: M3-FG 17 | H23: 102 | I23: 103 | J23: CB 30-18M | K23: 75 | L23: 55 | M23: UP 25-60 B
A24: WPF 16 | B24: 19.1 | C24: 60 > 55 | D24: 50 < 55 | E24: 3.3 | F24: 3.3 | G24: M3-FG 21 | H24: 94 | I24: 94 | J24: CB 30-24M | K24: 76 | L24: 56 | M24: UP 25-60 B
A25: WPF 20 | B25: 24.8 | C25: 60 > 55 | D25: 50 < 55 | E25: 4.3 | F25: 4.3 | G25: M3-FG 23 | H25: 198 | I25: 199 | J25: CB 30-34M | K25: 80 | L25: 54 | M25: UP 30/1-12 B
A26: WPF 27 HT | B26: 26.75 | C26: 60 > 55 | D26: 50 < 55 | E26: 5.8 | F26: 5.8 | G26: M3-FG 31 | H26: 21.7 | I26: 21.7 | J26: CB 30-34M | K26: 144 | L26: 97 | M26: UP 30/1-12 B
A27: WPF 27 | B27: 33.6 | C27: 60 > 55 | D27: 50 < 55 | E27: 5.8 | F27: 5.8 | G27: M3-FG 31 | H27: 217 | I27: 217 | J27: CB 30-34M | K27: 144 | L27: 97 | M27: UP 30/1-12 B
A28: WPF 35 | B28: 42 | C28: 60 > 55 | D28: 50 < 55 | E28: 7.2 | F28: 7.2 | G28: M3-FG 41 | H28: 208 | I28: 208 | J28: CB 76-20M | K28: 191 | L28: 158 | M28: UP 30/1-12 B
A29: WPF 40 | B29: 51.2 | C29: 60 > 55 | D29: 50 < 55 | E29: 8.8 | F29: 8.8 | G29: M3-FG 47 | H29: 213 | I29: 213 | J29: CB 76-30M | K29: 115 | L29: 103 | M29: UP 30/1-12 B
A30: WPF 52 | B30: 63.2 | C30: 60 > 55 | D30: 50 < 55 | E30: 10.9 | F30: 10.9 | G30: T5-MFG 25 | H30: 215 | I30: 212 | J30: CB 76-30M | K30: 172 | L30: 153 | M30: UP 30/1-12 B
A31: WPF 66 | B31: 78.6 | C31: 60 > 55 | D31: 50 < 55 | E31: 13.5 | F31: 13.5 | G31: T5-MFG 31 | H31: 207 | I31: 208 | J31: CB 76-40M | K31: 156 | L31: 144 | M31: UP 30/1-12 B
A32: WPW 7 E SET | B32: 7.9 | C32: 60 > 55 | D32: 50 < 55 | E32: 1.4 | F32: 1.4 | G32: T2-BFG 14 | H32: 93 | I32: 93 | J32: CB 30-18H | K32: 76 | L32: 62 | M32: UP 25-60 B
A33: WPW 10 E SET | B33: 11.3 | C33: 60 > 55 | D33: 50 < 55 | E33: 1.9 | F33: 1.9 | G33: T2 BFG 18 | H33: 97 | I33: 98 | J33: CB 30-18H | K33: 151 | L33: 121 | M33: UP 25-60 B
A34: WPW 13 E SET | B34: 14 | C34: 60 > 55 | D34: 50 < 55 | E34: 2.4 | F34: 2.4 | G34: T2 BFG 21 | H34: 115 | I34: 116 | J34: CB 30-18M | K34: 230 | L34: 189 | M34: UP 25-60 B
A35: WPW 18 E SET | B35: 19 | C35: 60 > 55 | D35: 50 < 55 | E35: 3.3 | F35: 3.3 | G35: M3-FG 21 | H35: 112 | I35: 95 | J35: CB 30-24M | K35: 234 | L35: 200 | M35: UP 25-60 B
A36: WPW 22 E SET | B36: 23.6 | C36: 60 > 55 | D36: 50 < 55 | E36: 4.1 | F36: 4.1 | G36: M3-FG 26 | H36: 117 | I36: 104 | J36: CB 30-18M | K36: 115 | L36: 84 | M36: UP 25-60 B

Sheet WT-Schwimm
A1: =Translation!A163 -> DESIGN CHART POOL
L4: =Auswahl!$AC$27 -> Page 21 | Version 05/12
A6: =Translation!$A$5 -> Heat pump | C6: =Translation!$A$159 -> Temperature | E6: =Translation!$A$118 -> Volume flow | G6: =Translation!$A$158&"- "&Translation!$A$254 -> Heat Exchanger- bolted | J6: =Translation!$A$158&" - "&Translation!$A$255 -> Heat Exchanger - welded
A7: =Translation!$A$117 -> Type | B7: =Translation!$A$134 -> Heating Capacity | C7: =Translation!$A$181 -> Hot side | D7: =Translation!$A$182 -> Cold side | E7: =Translation!$A$181 -> Hot side | F7: =Translation!$A$182 -> Cold side | G7: =Translation!$A$117 -> Type | H7: =Translation!$A$181 -> Hot side | I7: =Translation!$A$182 -> Cold side | J7: =Translation!$A$117 -> Type | K7: =Translation!$A$181 -> Hot side | L7: =Translation!$A$182 -> Cold side
B8: kW | C8: °C | D8: °C | E8: m³/h | F8: m³/h | G8: Alfa Laval | H8: hPa | I8: hPa | J8: Alfa Laval | K8: hPa | L8: hPa
A9: WPL 10 ACS | B9: 9.3 | C9: 45 > 40 | D9: 25 < 30 | E9: 1.599312124 | F9: 1.599312124 | G9: T2-BFG 11 | H9: 156 | I9: 161 | J9: CB 30-10L | K9: 89 | L9: 59
A10: WPL 10 I/A/IK | B10: 10.9 | C10: 45 > 40 | D10: 25 < 30 | E10: 1.9 | F10: 1.9 | G10: T2-BFG 11 | H10: 156 | I10: 161 | J10: CB 30-10L | K10: 89 | L10: 59
A11: WPL 13 E/cool | B11: 12.1 | C11: 45 > 40 | D11: 25 < 30 | E11: 2.080825451 | F11: 2.080825451 | G11: T2-BFG 13 | H11: 197 | I11: 204 | J11: CB 30-10L | K11: 137 | L11: 90
A12: WPL 13 basic | B12: 12.1 | C12: 45 > 40 | D12: 25 < 30 | E12: 2.080825451 | F12: 2.080825451 | G12: T2-BFG 13 | H12: 197 | I12: 204 | J12: CB 30-10L | K12: 137 | L12: 90
A13: WPL 18 E/cool | B13: 16.1 | C13: 45 > 40 | D13: 25 < 30 | E13: 2.8 | F13: 2.8 | G13: T2-BFG 17 | H13: 228 | I13: 236 | J13: CB 30-10L | K13: 241 | L13: 159
A14: WPL 20 A basic | B14: 20 | C14: 45 > 40 | D14: 25 < 30 | E14: 3.439380911 | F14: 3.439380911 | G14: T2-BFG 21 | H14: 236 | I14: 244 | J14: CB 30-18L | K14: 105 | L14: 76
A15: WPL 23 E/cool | B15: 20.4 | C15: 45 > 40 | D15: 25 < 30 | E15: 3.525365434 | F15: 3.525365434 | G15: T2-BFG 21 | H15: 238 | I15: 246 | J15: CB 30-18L | K15: 107 | L15: 77
A16: WPL 33 HT | B16: 15 | C16: 45 > 40 | D16: 25 < 30 | E16: 2.579535684 | F16: 2.579535684 | G16: T2-BFG 15 | H16: 238 | I16: 203 | J16: CB 30-18L | K16: 155 | L16: 111
A17: WPL 34 A | B17: 28.5 | C17: 45 > 40 | D17: 25 < 30 | E17: 4.901117799 | F17: 4.901117799 | G17: M3-FG 16 | H17: 248 | I17: 209 | J17: CB 30-18L | K17: 198 | L17: 143
A18: WPL 47 A | B18: 39.3 | C18: 45 > 40 | D18: 25 < 30 | E18: 6.8 | F18: 6.8 | G18: M3-FG 23 | H18: 218 | I18: 227 | J18: CB 30-24L | K18: 239 | L18: 165
A19: WPL 57 A | B19: 46.1 | C19: 45 > 40 | D19: 25 < 30 | E19: 7.927773001 | F19: 7.927773001 | G19: M3-FG 27 | H19: 232 | I19: 240 | J19: CB 76-20L | K19: 107 | L19: 92
A20: WPF 5 | B20: 5.8 | C20: 45 > 40 | D20: 25 < 30 | E20: 0.9974204643 | F20: 0.9974204643 | G20: T2-BFG 7 | H20: 144 | I20: 149 | J20: CB 30-10L | K20: 34 | L20: 23
A21: WPF 7 | B21: 7.8 | C21: 45 > 40 | D21: 25 < 30 | E21: 1.341358555 | F21: 1.341358555 | G21: T2-BFG 9 | H21: 151 | I21: 157 | J21: CB 30-10L | K21: 59 | L21: 40
A22: WPF 10 | B22: 11.6 | C22: 45 > 40 | D22: 25 < 30 | E22: 2 | F22: 2 | G22: T2-BFG 11 | H22: 161 | I22: 168 | J22: CB 30-10L | K22: 84 | L22: 55
A23: WPF 13 | B23: 14.7 | C23: 45 > 40 | D23: 25 < 30 | E23: 2.5 | F23: 2.5 | G23: T2-BFG 15 | H23: 167 | I23: 218 | J23: CB 30-10L | K23: 147 | L23: 97
A24: WPF 16 | B24: 19.1 | C24: 45 > 40 | D24: 25 < 30 | E24: 3.3 | F24: 3.3 | G24: M3-FG 19 | H24: 211 | I24: 218 | J24: CB 30-10L | K24: 223 | L24: 147
A25: WPF 20 | B25: 21.9 | C25: 45 > 40 | D25: 25 < 30 | E25: 3.766122098 | F25: 3.766122098 | G25: M3-FG 14 | H25: 200 | I25: 210 | J25: CB 30-18L | K25: 120 | L25: 87
A26: WPF 27 HT | B26: 26.75 | C26: 45 > 40 | D26: 25 < 30 | E26: 4.600171969 | F26: 4.600171969 | G26: M3-FG 19 | H26: 215 | I26: 226 | J26: CB 30-18L | K26: 214 | L26: 154
A27: WPF 27 | B27: 29.7 | C27: 45 > 40 | D27: 25 < 30 | E27: 5.107480653 | F27: 5.107480653 | G27: M3-FG 19 | H27: 215 | I27: 226 | J27: CB 30-18L | K27: 214 | L27: 154
A28: WPF 35 | B28: 42 | C28: 46 > 40 | D28: 26 < 30 | E28: 7.2 | F28: 7.2 | G28: M3-FG 23 | H28: 226 | I28: 236 | J28: CB 76-20L | K28: 98 | L28: 84
A29: WPF 40 | B29: 51.2 | C29: 45 > 40 | D29: 25 < 30 | E29: 8.8 | F29: 8.8 | G29: M3-FG 31 | H29: 241 | I29: 231 | J29: CB 76-20L | K29: 105 | L29: 90
A30: WPF 52 | B30: 63.2 | C30: 45 > 40 | D30: 25 < 30 | E30: 10.9 | F30: 10.9 | G30: T5-MFG 21 | H30: 237 | I30: 246 | J30: CB 76-20L | K30: 152 | L30: 131
A31: WPF 66 | B31: 78.6 | C31: 45 > 40 | D31: 25 < 30 | E31: 13.5 | F31: 13.5 | G31: T5-MFG 25 | H31: 212 | I31: 217 | J31: CB 76-20L | K31: 225 | L31: 194
A32: WPF 20 SET | B32: 23.2 | C32: 45 > 40 | D32: 25 < 30 | E32: 4 | F32: 4 | G32: M3-FG 13 | H32: 247 | I32: 223 | J32: CB 30-18L | K32: 100 | L32: 72
A33: WPF 23 SET | B33: 26.3 | C33: 45 > 40 | D33: 25 < 30 | E33: 4.5 | F33: 4.5 | G33: M3-FG 15 | H33: 223 | I33: 234 | J33: CB 30-18L | K33: 136 | L33: 98
A34: WPF 26 SET | B34: 29.4 | C34: 45 > 40 | D34: 25 < 30 | E34: 5.1 | F34: 5.1 | G34: M3-FG 17 | H34: 222 | I34: 233 | J34: CB 30-18L | K34: 176 | L34: 127
A35: WPF 29 SET | B35: 33.8 | C35: 45 > 40 | D35: 25 < 30 | E35: 5.8 | F35: 5.8 | G35: M3-FG 19 | H35: 215 | I35: 226 | J35: CB 30-18L | K35: 214 | L35: 154
A36: WPF 32 SET | B36: 38.2 | C36: 45 > 40 | D36: 25 < 30 | E36: 6.6 | F36: 6.6 | G36: M3-FG 22 | H36: 215 | I36: 228 | J36: CB 30-24L | K36: 168 | L36: 117
A37: =Translation!A163 -> DESIGN CHART POOL
L40: =Auswahl!$AC$28 -> Page 22 | Version 05/12
A42: =Translation!$A$5 -> Heat pump | C42: =Translation!$A$159 -> Temperature | E42: =Translation!$A$118 -> Volume flow | G42: =Translation!$A$158&"- "&Translation!$A$254 -> Heat Exchanger- bolted | J42: =Translation!$A$158&" - "&Translation!$A$255 -> Heat Exchanger - welded
A43: =Translation!$A$117 -> Type | B43: =Translation!$A$134 -> Heating Capacity | C43: =Translation!$A$181 -> Hot side | D43: =Translation!$A$182 -> Cold side | E43: =Translation!$A$181 -> Hot side | F43: =Translation!$A$182 -> Cold side | G43: =Translation!$A$117 -> Type | H43: =Translation!$A$181 -> Hot side | I43: =Translation!$A$182 -> Cold side | J43: =Translation!$A$117 -> Type | K43: =Translation!$A$181 -> Hot side | L43: =Translation!$A$182 -> Cold side
B44: kW | C44: °C | D44: °C | E44: m³/h | F44: m³/h | G44: Alfa Laval | H44: hPa | I44: hPa | J44: Alfa Laval | K44: hPa | L44: hPa
A45: WPF 80 SET | B45: 102.4 | C45: 45 > 40 | D45: 25 < 30 | E45: 17.6 | F45: 17.6 | G45: T5-MFG 33 | H45: 242 | I45: 241 | J45: CB 76-30L | K45: 185 | L45: 171
A46: WPF 92 SET | B46: 114.4 | C46: 45 > 40 | D46: 25 < 30 | E46: 19.7 | F46: 19.7 | G46: T5-MFG 39 | H46: 239 | I46: 244 | J46: CB 76-30L | K46: 225 | L46: 208
A47: WPF 104 SET | B47: 126.4 | C47: 45 > 40 | D47: 25 < 30 | E47: 21.7 | F47: 21.7 | G47: M6-MFG 25 | H47: 241 | I47: 250 | J47: CB 76-40L | K47: 173 | L47: 165
A48: WPF 118 SET | B48: 141.8 | C48: 45 > 40 | D48: 25 < 30 | E48: 24.4 | F48: 24.4 | G48: M6-MFG 27 | H48: 241 | I48: 245 | J48: CB 76-40L | K48: 213 | L48: 204
A49: WPF 132 SET | B49: 157.2 | C49: 45 > 40 | D49: 25 < 30 | E49: 27 | F49: 27 | G49: M6-MFG 31 | H49: 247 | I49: 240 | J49: CB 76-50L | K49: 195 | L49: 190
A50: WPF 10 M | B50: 14 | C50: 45 > 40 | D50: 25 < 30 | E50: 2.4 | F50: 2.4 | G50: T2-BFG 15 | H50: 209 | I50: 216 | J50: CB 30-10L | K50: 183 | L50: 121
A51: WPF 13 M | B51: 19 | C51: 45 > 40 | D51: 25 < 30 | E51: 3.3 | F51: 3.3 | G51: T2-BFG 20 | H51: 245 | I51: 221 | J51: CB 30-18L | K51: 99 | L51: 77
A52: WPF 16 M | B52: 23.6 | C52: 45 > 40 | D52: 25 < 30 | E52: 4.1 | F52: 4.1 | G52: M3-FG 15 | H52: 203 | I52: 213 | J52: CB 30-18L | K52: 160 | L52: 116
A53: WPW 26 SET | B53: 28 | C53: 45 > 40 | D53: 25 < 30 | E53: 4.8 | F53: 4.8 | G53: M3-FG 17 | H53: 221 | I53: 235 | J53: CB 30-18L | K53: 221 | L53: 159
A54: WPW 31 SET | B54: 33 | C54: 45 > 40 | D54: 25 < 30 | E54: 5.7 | F54: 5.7 | G54: M3-FG 19 | H54: 238 | I54: 249 | J54: CB 30-24L | K54: 190 | L54: 131
A55: WPW 36 SET | B55: 38 | C55: 45 > 40 | D55: 25 < 30 | E55: 6.5 | F55: 6.5 | G55: M3-FG 23 | H55: 220 | I55: 229 | J55: CB 76-20L | K55: 80 | L55: 70
A56: WPW 40SET | B56: 42.6 | C56: 45 > 40 | D56: 25 < 30 | E56: 7.3 | F56: 7.3 | G56: M3-FG 26 | H56: 249 | I56: 232 | J56: CB 76-20L | K56: 103 | L56: 89
A57: WPW 44 SET | B57: 47.2 | C57: 45 > 40 | D57: 25 < 30 | E57: 8.1 | F57: 8.1 | G57: M3-FG 31 | H57: 232 | I57: 240 | J57: CB 76-20L | K57: 129 | L57: 111

Sheet Zwischen-WT
A1: =Translation!$A$176 -> HEAT EXCHANGER BRINE|WATER HEAT PUMP
A3: =Translation!A177 -> Heat exchanger between Brine/Water Heat Pump and well system
N4: =Auswahl!$AC$29 -> Page 23 | Version 05/12
A6: =Translation!$A$5 -> Heat pump | C6: =Translation!$A$159 -> Temperature | E6: =Translation!$A$118 -> Volume flow | G6: =Translation!$A$158&"- "&Translation!$A$254 -> Heat Exchanger- bolted | J6: =Translation!$A$158&" - "&Translation!$A$255 -> Heat Exchanger - welded | M6: =Translation!$A$161 -> Pumps
A7: =Translation!$A$117 -> Type | B7: =Translation!$A$136 -> Cooling Capacity | C7: =Translation!$A$181 -> Hot side | D7: =Translation!$A$182 -> Cold side | E7: =Translation!$A$181 -> Hot side | F7: =Translation!$A$182 -> Cold side | G7: =Translation!$A$117 -> Type | H7: =Translation!$A$181 -> Hot side | I7: =Translation!$A$182 -> Cold side | J7: =Translation!$A$117 -> Type | K7: =Translation!$A$181 -> Hot side | L7: =Translation!$A$182 -> Cold side | M7: =Translation!$A$179 -> Well | N7: =Translation!$A$209 -> Source side
B8: kW | C8: °C | D8: °C | E8: m³/h | F8: m³/h | G8: Alfa Laval | H8: hPa | I8: hPa | J8: Alfa Laval | K8: hPa | L8: hPa | M8: Grundfos | N8: Stiebel Eltron
A9: WPF 5 | B9: 6.4 | C9: 10 > 7 | D9: 5 < 8 | E9: 1.8 | F9: 1.8 | G9: TL3-PFG 15 | H9: 131 | I9: 197 | J9: AN 27-50H | K9: 34 | L9: 38 | M9: SP 3A-6 | N9: UPF 40/1-8 E
A10: WPF 7 | B10: 7.8 | C10: 10 > 7 | D10: 5 < 8 | E10: 2.2 | F10: 2.2 | G10: TL3-PFG 18 | H10: 150 | I10: 181 | J10: AN 27-50H | K10: 49 | L10: 55 | M10: SP 3A-6 | N10: UPF 40/1-8 E
A11: WPF 10 | B11: 11 | C11: 10 > 7 | D11: 5 < 8 | E11: 3.2 | F11: 3.2 | G11: TL3-PFG 26 | H11: 138 | I11: 179 | J11: AN 27-70H | K11: 58 | L11: 59 | M11: SP 3A-6 | N11: UPF 40/1-8 E
A12: WPF 13 | B12: 13.6 | C12: 10 > 7 | D12: 5 < 8 | E12: 3.9 | F12: 3.9 | G12: TL3-PFG 32 | H12: 140 | I12: 187 | J12: AN 52-60H | K12: 158 | L12: 183 | M12: SP 3A-6 | N12: UPF 40/1-8 E
A13: WPF 16 | B13: 17.5 | C13: 10 > 7 | D13: 5 < 8 | E13: 5 | F13: 5 | G13: T5-BFG 29 | H13: 128 | I13: 191 | J13: AN 76-30H | K13: 131 | L13: 161 | M13: SP 5A-6 | N13: UPF 40/1-8 E
A14: WPF 20 | B14: 23.5 | C14: 10 > 7 | D14: 5 < 8 | E14: 6.7 | F14: 6.7 | G14: T5-BFG 38 | H14: 140 | I14: 189 | J14: AN 76-40H | K14: 131 | L14: 166 | M14: SP 8A-7 | N14: UPF 40/1-8 E
A15: WPF 27 HT | B15: 20.6 | C15: 10 > 7 | D15: 5 < 8 | E15: 9.1 | F15: 13.6 | G15: T5-MFG 46 | H15: 105 | I15: 285 | J15: AN 76-60H | K15: 108 | L15: 305 | M15: SP 8A-7 | N15: UPF 40/1-8 E
A16: WPF 27 | B16: 31.6 | C16: 10 > 7 | D16: 5 < 8 | E16: 9.1 | F16: 9.1 | G16: T5-BFG 52 | H16: 135 | I16: 187 | J16: AN 76-50H | K16: 151 | L16: 195 | M16: SP 8A-7 | N16: UPF 40/1-8 E
A17: WPF 35 | B17: 39 | C17: 10 > 7 | D17: 5 < 8 | E17: 11.2 | F17: 11.2 | G17: T5-BFG 66 | H17: 136 | I17: 191 | J17: AN 76-70H | K17: 130 | L17: 171 | M17: SP 8A-7 | N17: UPF 40/1-8 E
A18: WPF 40 | B18: 49.3 | C18: 10 > 7 | D18: 5 < 8 | E18: 14.1 | F18: 14.1 | G18: M6-FG 48 | H18: 141 | I18: 197 | J18: AN 76-80H | K18: 154 | L18: 204 | M18: SP 17-2 | N18: UPF 50/1-12 E
A19: WPF 52 | B19: 59.7 | C19: 10 > 7 | D19: 5 < 8 | E19: 17.1 | F19: 17.1 | G19: M6-FG 60 | H19: 139 | I19: 197 | J19: AN 76-110H | K19: 138 | L19: 183 | M19: SP 30-2 | N19: UPF 50/1-12 E
A20: WPF 66 | B20: 73.6 | C20: 10 > 7 | D20: 5 < 8 | E20: 21.1 | F20: 21.1 | G20: M6-FG 75 | H20: 131 | I20: 194 | J20: AN 76-140L | K20: 152 | L20: 20.1 | M20: SP 30-2 | N20: UPF 50/1-12 E
A21: WPF 20 SET | B21: 22 | C21: 10 > 7 | D21: 5 < 8 | E21: 6.3 | F21: 6.3 | G21: T5-BFG 36 | H21: 137 | I21: 185 | J21: AN 76-40H | K21: 115 | L21: 147 | M21: SP 5A-6 | N21: UPF 40/1-8 E
A22: WPF 23 SET | B22: 24.6 | C22: 10 > 7 | D22: 5 < 8 | E22: 7.1 | F22: 7.1 | G22: T5-BFG 40 | H22: 138 | I22: 188 | J22: AN 76-40H | K22: 143 | L22: 181 | M22: SP 8A-7 | N22: UPF 40/1-8 E
A23: WPF 26 SET | B23: 27.2 | C23: 10 > 7 | D23: 5 < 8 | E23: 7.8 | F23: 7.8 | G23: T5-BFG 44 | H23: 139 | I23: 191 | J23: AN 76-50H | K23: 114 | L23: 147 | M23: SP 8A-7 | N23: UPF 40/1-8 E
A24: WPF 29 SET | B24: 31.1 | C24: 10 > 7 | D24: 5 < 8 | E24: 8.9 | F24: 8.9 | G24: T5-BFG 50 | H24: 140 | I24: 195 | J24: AN 76-50H | K24: 146 | L24: 189 | M24: SP 8A-7 | N24: UPF 40/1-8 E
A25: WPF 32 SET | B25: 35 | C25: 10 > 7 | D25: 5 < 8 | E25: 10 | F25: 10 | G25: T5-BFG 56 | H25: 142 | I25: 198 | J25: AN 76-60H | K25: 132 | L25: 172 | M25: SP 8A-7 | N25: UPF 40/1-8 E
A26: WPF 80 SET | B26: 98.6 | C26: 10 > 7 | D26: 5 < 8 | E26: 28.3 | F26: 28.3 | G26: M10-BFM 63 | H26: 142 | I26: 198 | J26: AN 400-80L | K26: 112 | L26: 199 | M26: SP 30-2 | N26: 2 x UPF 50/1-12 E
A27: WPF 92 SET | B27: 109 | C27: 10 > 7 | D27: 5 < 8 | E27: 31.2 | F27: 31.2 | G27: M10-BFM 71 | H27: 137 | I27: 190 | J27: AN 400-90L | K27: 109 | L27: 195 | M27: SP 60-2 | N27: 2 x UPF 50/1-12 E
A28: WPF 104 SET | B28: 119.4 | C28: 10 > 7 | D28: 5 < 8 | E28: 34.2 | F28: 34.2 | G28: M10-BFM 77 | H28: 141 | I28: 196 | J28: AN 400-100L | K28: 107 | L28: 192 | M28: SP 60-2 | N28: 2 x UPF 50/1-12 E
A29: WPF 118 SET | B29: 133.3 | C29: 10 > 7 | D29: 5 < 8 | E29: 38.2 | F29: 38.2 | G29: M10-BFM 87 | H29: 137 | I29: 190 | J29: AN 400-110L | K29: 110 | L29: 197 | M29: SP 60-2 | N29: 2 x UPF 50/1-12 E
A30: WPF 132 SET | B30: 147.2 | C30: 10 > 7 | D30: 5 < 8 | E30: 42.2 | F30: 42.2 | G30: M10-BFM 95 | H30: 144 | I30: 199 | J30: AN 400-110L | K30: 132 | L30: 228 | M30: SP 60-2 | N30: 2 x UPF 50/1-12 E
A31: 3 x WPF 66 | B31: 220.8 | C31: 10 > 7 | D31: 5 < 8 | E31: 63.3 | F31: 63.3 | G31: TL10-PFM 75 | H31: 169 | I31: 241 | J31: AN 400-160L | K31: 146 | L31: 247 | M31: SP 77-2 | N31: 3 x UPF 50/1-12 E
A32: 4 x WPF 66 | B32: 294.4 | C32: 10 > 7 | D32: 5 < 8 | E32: 84.4 | F32: 84.4 | G32: TL10-PFM 103 | H32: 171 | I32: 245 | J32: AN 400-200L | K32: 175 | L32: 285 | M32: SP 95-2 | N32: 4 x UPF 50/1-12 E
A33: 5 x WPF 66 | B33: 368 | C33: 10 > 7 | D33: 5 < 8 | E33: 105.5 | F33: 105.5 | G33: M15-MFM 91 | H33: 194 | I33: 249 | J33: AN 400-240L | K33: 198 | L33: 308 | M33: SP 125-2 | N33: 5 x UPF 50/1-12 E
A34: 6 x WPF 66 | B34: 441.6 | C34: 10 > 7 | D34: 5 < 8 | E34: 126.6 | F34: 126.6 | G34: M15-MFM 111 | H34: 181 | I34: 242 | J34: AN 400-270L | K34: 241 | L34: 371 | M34: SP 125-2 | N34: 6 x UPF 50/1-12 E
N35: =Translation!$A$180&" | "&Translation!$A$175 -> Intermediate circuit is filled with Tyfocor | Attention water quality is important

Sheet Passive Kühlung-Sonde
A1: =Translation!$A$165 -> HEAT EXCHANGER PASSIVE COOLING
A3: =Translation!$A$166 -> Indirect cooling via probes
N4: =Auswahl!$AC$30 -> Page 24 | Version 05/12
A6: =Translation!$A$5 -> Heat pump | C6: =Translation!$A$159 -> Temperature | E6: =Translation!$A$118 -> Volume flow | G6: =Translation!$A$158&"- "&Translation!$A$254 -> Heat Exchanger- bolted | J6: =Translation!$A$158&" - "&Translation!$A$255 -> Heat Exchanger - welded | M6: =Translation!$A$161 -> Pumps
A7: =Translation!$A$117 -> Type | B7: =Translation!$A$134 -> Heating Capacity | C7: =Translation!$A$181 -> Hot side | D7: =Translation!$A$182 -> Cold side | E7: =Translation!$A$181 -> Hot side | F7: =Translation!$A$182 -> Cold side | G7: =Translation!$A$117 -> Type | H7: =Translation!$A$181 -> Hot side | I7: =Translation!$A$182 -> Cold side | J7: =Translation!$A$117 -> Type | K7: =Translation!$A$181 -> Hot side | L7: =Translation!$A$182 -> Cold side | M7: =Translation!$A$209 -> Source side | N7: =Translation!$A$173 -> Cooling
B8: kW | C8: °C | D8: °C | E8: m³/h | F8: m³/h | G8: Alfa Laval | H8: hPa | I8: hPa | J8: Alfa Laval | K8: hPa | L8: hPa | M8: =Translation!$A$117 -> Type | N8: =Translation!$A$117 -> Type
A9: WPF 5 | B9: 5.5 | C9: 20 > 15 | D9: 10 < 13 | E9: 0.9 | F9: 1.6 | G9: T2-BFG 12 | H9: 59 | I9: 160 | J9: CB 30-10H | K9: 198 | L9: 255 | M9: WPSB 307 | N9: UPF40/1-8E
A10: WPF 7 | B10: 6.8 | C10: 20 > 15 | D10: 10 < 13 | E10: 1.2 | F10: 1.9 | G10: T2-BFG 15 | H10: 58 | I10: 215 | J10: CB 30-18H | K10: 82 | L10: 13 | M10: WPSB 307 | N10: UPF 40/1-8 E
